Workbook

Sheet Cover
A8: CREF-Castalia RE Island Ranking and RE Marketplace
A9: Year Presented | B9: 2019
A10: Author | B10: Castalia Advisors
A11: Last Updated | B11: 2019-10-16
A12: Website | B12: www.castalia-advisors.com

Sheet Marketplace
B1: Project Number | C1: Jurisdiction | D1: Project Name | E1: City or Province | F1: Project Developer | G1: Technology Type | H1: Number of Projects (GU) | I1: Scenario | J1: Distributed or Utility | K1: Status | L1: Project Developer | M1: Project Offtaker | N1: Capacity (KW) | O1: System Units | P1: Size Per Unit | Q1: Generation | R1: Generation Actual | S1: Generation Reported Estimate | T1: Generation Technology Estimate | U1: Capacity Factor | V1: Capacity Factor Actual | W1: Capacity Factor Reported Estimate | X1: Capacity Factor Technology Estimate | Y1: CAPEX | Z1: CAPEX Actual | AA1: CAPEX Reported Estimate | AB1: CAPEX Technology Estimate | AC1: CAPEX/kW | AD1: Fuel Cost | AE1: LRMC | AF1: Commercial Operation Date | AG1: Commercial Operation Date (Actual) | AH1: Additional Notes | AI1: Date Updated | AJ1: Status
A2: =H2 -> 1 | B2: P0001 | C2: Anguilla | E2: Rendezvous Bay | F2: Inovateus Solar | G2: Solar PV | H2: 1 | I2: =IF(K2="Planned","3.0",IF(AG2<DATE(2009,12,31),"1.0",IF(AND(AG2>=DATE(2010,1,1)+0,AG2<=DATE(2012,12,31)),"1.0",IF(AND(AG2>=DATE(2013,1,1),AG2<=DATE(2015,12,31)),"2.0",IF(AG2>=DATE(2016,1,1),"3.0",""))))) -> 1.0 | J2: Distributed | K2: Operational | L2: Inovateus Solar | M2: CuisinArt Golf and Resort Spa | N2: 1000 | O2: 3322 | P2: =N2/O2 -> 0.3010234798 | Q2: =IF(ISNUMBER(R2),R2,IF(ISNUMBER(S2),S2, IF(ISNUMBER(T2), T2,"NA"))) -> 1850 | R2: 1850 | T2: =(N2 * 8760 * U2)/1000 -> 1850 | U2: =IF(AND(V2="NA",ISBLANK(W2)),X2,IF(V2<>"NA",V2,IF(ISNUMBER(W2),W2,X2))) -> 0.2111872146 | V2: =IF(OR(ISBLANK(N2),ISBLANK(R2)),"NA",(R2*1000)/(N2*8760)) -> 0.2111872146 | X2: 0.254 | Y2: =IF(ISNUMBER(Z2), Z2,IF(ISNUMBER(AA2),AA2,IF(ISNUMBER(AB2), AB2, "NA"))) -> 2578000 | AB2: 2578000 | AC2: =IF(AND(ISNUMBER(N2), ISNUMBER(Y2)),Y2/N2,"NA") -> 2578 | AE2: =SUM(AD2:AD2) -> 0 | AF2: =IF(ISNUMBER(AG2),AG2,IF(ISNUMBER(AH2),AH2,"NA")) -> 2014 | AG2: 2014 | AH2: In operation | AI2: 2017-08-03
A3: =H3 -> 1 | B3: P0002 | C3: Anguilla | E3: Corito | F3: Anguilla Electricity Company Limited (ANGLEC) | G3: Solar PV | H3: 1 | J3: Utility/IPP | K3: Out | L3: Anguilla Electricity Company Limited (ANGLEC) | M3: Anguilla Electricity Company Limited (ANGLEC) | N3: 1000 | O3: 4452 | P3: =N3/O3 -> 0.2246181491 | Q3: 2233.8 | T3: 2233.8 | U3: =IF(AND(V3="NA",ISBLANK(W3)),X3,IF(V3<>"NA",V3,IF(ISNUMBER(W3),W3,X3))) -> 0.255 | V3: NA | X3: 0.255 | Y3: 2341000 | AA3: 2341000 | AB3: 2578000 | AC3: =IF(AND(ISNUMBER(N3), ISNUMBER(Y3)),Y3/N3,"NA") -> 2341 | AE3: 0 | AF3: 2016 | AG3: 2016 | AH3: Solar farm Corito was destroyed by Hurricane. Has been seeking developer to rebuild | AI3: 2019-08-06 | AJ3: Confident
A4: =H4 -> 1 | C4: Anguilla | E4: Meads Bay | G4: Solar PV | H4: 1 | J4: Distributed | K4: Operational | M4: Frangipani Beach Resort | N4: 350 | Q4: 705.18 | T4: 705.18 | U4: =IF(AND(V4="NA",ISBLANK(W4)),X4,IF(V4<>"NA",V4,IF(ISNUMBER(W4),W4,X4))) -> 0.23 | V4: NA | X4: =IF(OR(K4="Under development",K4="Planned"),VLOOKUP(G4,'Capex by RE tech'!$A$4:$D$18,4,TRUE),IF(AND(K4="Operational",G4="Solar PV"),VLOOKUP(AG4,'Capex by RE tech'!$C$11:$D$13,2,TRUE),IF(AND(K4="Operational",G4="Wind"),VLOOKUP(AG4,'Capex by RE tech'!$C$17:$D$19,2,TRUE),IF(AND(K4="Operational",G4="Biomass"),VLOOKUP(AG4,'Capex by RE tech'!$C$2:$D$4,2,TRUE),IF(AND(K4="Operational",G4="Geothermal"),VLOOKUP(AG4,'Capex by RE tech'!$C$2:$D$4,2,TRUE),IF(AND(K4="Operational",G4="Hydro"),VLOOKUP(AG4,'Capex by RE tech'!$C$8:$D$10,2,TRUE),IF(AND(K4="Operational",G4="Waste-to-Energy"),VLOOKUP(AG4,'Capex by RE tech'!$C$14:$D$16,2,TRUE),IF(AND(K4="Operational",AG4<2010),VLOOKUP(G4,'Capex by RE tech'!$A$2:$D$19,4,FALSE),NA)))))))) -> 0.23 | Y4: 507500 | AB4: =AC4*N4 -> 507500 | AC4: =VLOOKUP(G4,'Capex by RE tech'!$A$2:$F$19,6,TRUE) -> 1450 | AE4: 0 | AF4: 2019 | AG4: 2019 | AH4: Will power 70% of resort | AI4: 2019-08-06 | AJ4: Confident
A5: 1 | B5: P0003 | C5: Antigua & Barbuda | E5: TBD | F5: PV Energy Limited | G5: Solar PV | H5: 2 | J5: Utility/IPP | K5: Planned | L5: PV Energy Limited | M5: Antigua Public Utilities Authority (APUA) | N5: 7000 | Q5: 10885 | T5: 10885 | U5: =U6 -> 0.1775114155 | V5: NA | X5: 0.254 | Y5: 14322786.71 | AA5: =20500000 * N5/(N6+N5) -> 14322786.71 | AC5: =IF(AND(ISNUMBER(N5), ISNUMBER(Y5)),Y5/N5,"NA") -> 2046.112386 | AE5: 0 | AF5: NA | AH5: Agreement for remaining 7MW reached in 2018. ADFD issued US$15 million loan for solar/wind generation project. Project's first phase will have capacity of 10 MW, expanding to 25 MW in later phases. | AI5: 2019-08-07 | AJ5: Confident
A6: =H6 -> 1 | B6: P0003 | C6: Antigua & Barbuda | E6: Osbourn | F6: PV Energy Limited | G6: Solar PV | H6: 1 | I6: =IF(K6="Planned","3.0",IF(AG6<DATE(2009,12,31),"1.0",IF(AND(AG6>=DATE(2010,1,1)+0,AG6<=DATE(2012,12,31)),"1.0",IF(AND(AG6>=DATE(2013,1,1),AG6<=DATE(2015,12,31)),"2.0",IF(AG6>=DATE(2016,1,1),"3.0",""))))) -> 1.0 | J6: Utility/IPP | K6: Operational | L6: PV Energy Limited | M6: Antigua Public Utilities Authority (APUA) | N6: 3019 | O6: 12000 | P6: =N6/O6 -> 0.2515833333 | Q6: 4665 | S6: 4665 | T6: 4694.545 | U6: =IF(AND(V6="NA",ISBLANK(W6)),X6,IF(V6<>"NA",V6,IF(ISNUMBER(W6),W6,X6))) -> 0.1775114155 | V6: NA | W6: =S6/(3 * 8760) -> 0.1775114155 | X6: 0.254 | Y6: 6177213.295 | AA6: =20500000 * N6/(N6+N5) -> 6177213.295 | AB6: 7782982 | AC6: 2046.112386 | AE6: 0 | AF6: 2016 | AG6: 2016 | AI6: 2019-08-07 | AJ6: Confident
A7: 1 | B7: P0004 | C7: Antigua & Barbuda | F7: Gearing Up Limited (GUL) | G7: Solar PV | H7: 1 | I7: =IF(K7="Planned","3.0",IF(AG7<DATE(2009,12,31),"1.0",IF(AND(AG7>=DATE(2010,1,1)+0,AG7<=DATE(2012,12,31)),"1.0",IF(AND(AG7>=DATE(2013,1,1),AG7<=DATE(2015,12,31)),"2.0",IF(AG7>=DATE(2016,1,1),"3.0",""))))) -> 1.0 | J7: Distributed | K7: Operational | L7: Gearing Up Limited (GUL) | M7: Shirley Heights Lookout | N7: 6 | Q7: 10.512 | R7: 10.512 | T7: 10.512 | U7: 0.2 | V7: 0.2 | X7: 0.254 | Y7: 15468 | AB7: 15468 | AC7: 2578 | AE7: 0 | AF7: 2013 | AG7: 2013 | AH7: Provides Solar PV for premier tourist locale. | AI7: 2017-08-03
A8: 1 | B8: P0005 | C8: Antigua & Barbuda | G8: Solar PV | H8: 1 | I8: =IF(K8="Planned","3.0",IF(AG8<DATE(2009,12,31),"1.0",IF(AND(AG8>=DATE(2010,1,1)+0,AG8<=DATE(2012,12,31)),"1.0",IF(AND(AG8>=DATE(2013,1,1),AG8<=DATE(2015,12,31)),"2.0",IF(AG8>=DATE(2016,1,1),"3.0",""))))) -> 1.0 | J8: Distributed | K8: Operational | M8: Antigua Public Utilities Authority (APUA) | N8: 150 | O8: 600 | P8: =N8/O8 -> 0.25 | Q8: 229.9 | R8: 229.9 | T8: 229.9 | U8: 0.1749619482 | V8: 0.1749619482 | X8: 0.254 | Y8: 386700 | AB8: 386700 | AC8: 2578 | AE8: 0 | AF8: NA | AI8: 2017-08-03
A9: 1 | B9: P0006 | C9: Antigua & Barbuda | E9: Jumby Bay | F9: PV Energy Limited | G9: Solar PV | H9: 1 | I9: =IF(K9="Planned","3.0",IF(AG9<DATE(2009,12,31),"1.0",IF(AND(AG9>=DATE(2010,1,1)+0,AG9<=DATE(2012,12,31)),"1.0",IF(AND(AG9>=DATE(2013,1,1),AG9<=DATE(2015,12,31)),"2.0",IF(AG9>=DATE(2016,1,1),"3.0",""))))) -> 1.0 | J9: Distributed | K9: Operational | L9: PV Energy Limited | N9: 404 | O9: 11 | P9: =N9/O9 -> 36.72727273 | Q9: 626 | R9: 626 | T9: 626 | U9: 0.1768841268 | V9: 0.1768841268 | X9: 0.254 | Y9: 1041512 | AB9: 1041512 | AC9: 2578 | AE9: 0 | AF9: 2017 | AG9: 2017 | AH9: 11 solar installations on the small private island Jumby Bay in the north of Antigua by the renewable energy provider PV Energy Limited. | AI9: 2017-08-03
A10: 1 | C10: Antigua & Barbuda | F10: GreenTech Solar | G10: Solar PV | H10: 1 | J10: Distributed | K10: Planned | L10: GreenTech Solar | M10: Government buildings, hospitals, schools | N10: 10000 | Q10: 20148 | T10: 20148 | U10: 0.23 | V10: NA | X10: =IF(OR(K10="Under development",K10="Planned"),VLOOKUP(G10,'Capex by RE tech'!$A$4:$D$18,4,TRUE),IF(AND(K10="Operational",G10="Solar PV"),VLOOKUP(AG10,'Capex by RE tech'!$C$11:$D$13,2,TRUE),IF(AND(K10="Operational",G10="Wind"),VLOOKUP(AG10,'Capex by RE tech'!$C$17:$D$19,2,TRUE),IF(AND(K10="Operational",G10="Biomass"),VLOOKUP(AG10,'Capex by RE tech'!$C$2:$D$4,2,TRUE),IF(AND(K10="Operational",G10="Geothermal"),VLOOKUP(AG10,'Capex by RE tech'!$C$2:$D$4,2,TRUE),IF(AND(K10="Operational",G10="Hydro"),VLOOKUP(AG10,'Capex by RE tech'!$C$8:$D$10,2,TRUE),IF(AND(K10="Operational",G10="Waste-to-Energy"),VLOOKUP(AG10,'Capex by RE tech'!$C$14:$D$16,2,TRUE),IF(AND(K10="Operational",AG10<2010),VLOOKUP(G10,'Capex by RE tech'!$A$2:$D$19,4,FALSE),NA)))))))) -> 0.23 | Y10: 20000000 | AA10: 20000000 | AC10: 2000 | AE10: 0 | AF10: NA | AH10: Retroactively fitting gov't buildings, hospitals, schools, car parks with wind and solar | AI10: 2019-08-07 | AJ10: Confident
A11: 1 | B11: P0008 | C11: Aruba | D11: Sunrise Solar Park | E11: San Nicolas | F11: Water- en Energiebedrijf Arbua N.V (WEB Aruba) | G11: Solar PV | H11: 1 | J11: Utility/IPP | K11: Under development | L11: Water- en Energiebedrijf Arbua N.V (WEB Aruba) | M11: Water- en Energiebedrijf Arbua N.V (WEB Aruba) | N11: 5900 | Q11: 11800 | T11: 11800 | U11: 0.2283105023 | V11: NA | W11: =W12 -> 0.2283105023 | X11: 0.254 | Y11: 8900000 | AA11: 8900000 | AC11: 1508.474576 | AD11: 0 | AE11: 0 | AF11: NA | AH11: Project is a part of the island's "Aruba Renewable Energy Strategy" (ARES). Solar Project Launches | AI11: 2019-08-05 | AJ11: Confident
A12: 1 | B12: P0010 | C12: Aruba | D12: Reina Beatrix International Airport Solar Park | E12: Oranjestad | F12: Pfixx Solar System | G12: Solar PV | H12: 1 | I12: =IF(K12="Planned","3.0",IF(AG12<DATE(2009,12,31),"1.0",IF(AND(AG12>=DATE(2010,1,1)+0,AG12<=DATE(2012,12,31)),"1.0",IF(AND(AG12>=DATE(2013,1,1),AG12<=DATE(2015,12,31)),"2.0",IF(AG12>=DATE(2016,1,1),"3.0",""))))) -> 1.0 | J12: Utility/IPP | K12: Operational | L12: Pfixx Solar System | M12: N.V. Electriciteit-Maatschappij Aruba (NV Elmar) | N12: 3474 | O12: 13896 | P12: =N12/O12 -> 0.25 | Q12: 6000 | S12: =6000 -> 6000 | T12: 6948 | U12: 0.2283105023 | V12: NA | W12: =S12/(3 * 8760) -> 0.2283105023 | X12: 0.254 | Y12: 8955972 | AB12: 8955972 | AC12: 2578 | AE12: 0 | AF12: 2017 | AG12: 2017 | AH12: Project operational since May 23rd 2017 | AI12: 2018-07-18 | AJ12: Confident
A13: 0 | B13: P0009 | C13: Aruba | F13: Carbon War Room, TNO, and Utilities Aruba NV | G13: Solar PV | H13: Various | I13: =IF(K13="Planned","3.0",IF(AG13<DATE(2009,12,31),"1.0",IF(AND(AG13>=DATE(2010,1,1)+0,AG13<=DATE(2012,12,31)),"1.0",IF(AND(AG13>=DATE(2013,1,1),AG13<=DATE(2015,12,31)),"2.0",IF(AG13>=DATE(2016,1,1),"3.0",""))))) -> 1.0 | J13: Distributed | K13: Operational | L13: Carbon War Room, TNO, and Utilities Aruba NV | M13: WEB Aruba & NV Elmar | N13: 4000 | Q13: 8900.16 | T13: 8900.16 | U13: 0.254 | V13: NA | X13: 0.254 | Y13: 10312000 | AB13: 10312000 | AC13: 2578 | AD13: 0 | AE13: 0 | AF13: 2015 | AG13: 2015 | AH13: Solar panels are spread out over school rooftops. | AI13: 2017-08-03
A14: =H14 -> 1 | B14: P0011 | C14: Aruba | E14: Oranjestad | F14: Ecological Technologies | G14: Waste-to-Energy | H14: 1 | I14: =IF(K14="Planned","3.0",IF(AG14<DATE(2009,12,31),"1.0",IF(AND(AG14>=DATE(2010,1,1)+0,AG14<=DATE(2012,12,31)),"1.0",IF(AND(AG14>=DATE(2013,1,1),AG14<=DATE(2015,12,31)),"2.0",IF(AG14>=DATE(2016,1,1),"3.0",""))))) -> 1.0 | J14: Utility/IPP | K14: Operational | L14: Ecological Technologies | M14: Water- en Energiebedrijf Arbua N.V (WEB Aruba) | N14: 2000 | Q14: 12322.4 | T14: 12322.4 | U14: 0.7033333333 | V14: NA | X14: 0.7033333333 | Y14: 6000000 | AB14: =3000 * N14 -> 6000000 | AC14: 3000 | AE14: 0 | AF14: 2015 | AG14: 2015 | AI14: 2018-07-18 | AJ14: Confident
A15: 2 | B15: P0007 | C15: Aruba | E15: San Nicolas | F15: NuCapital & Vestas Benelux B.V. | G15: Wind | H15: 2 | I15: =IF(K15="Planned","3.0",IF(AG15<DATE(2009,12,31),"1.0",IF(AND(AG15>=DATE(2010,1,1)+0,AG15<=DATE(2012,12,31)),"1.0",IF(AND(AG15>=DATE(2013,1,1),AG15<=DATE(2015,12,31)),"2.0",IF(AG15>=DATE(2016,1,1),"3.0",""))))) -> 1.0 | J15: Utility/IPP | K15: Operational | L15: NuCapital & Vestas Benelux B.V. | M15: Water- en Energiebedrijf Arbua N.V (WEB Aruba) | N15: 30000 | O15: 10 | P15: =N15/O15 -> 3000 | Q15: 128700 | S15: 128700 | T15: 165564 | U15: 0.63 | V15: NA | W15: 0.63 | X15: 0.46 | Y15: 75000000 | AA15: 75000000 | AB15: 47270000 | AC15: 2500 | AD15: 0 | AE15: 0 | AF15: 2009 | AG15: 2009 | AI15: 2018-07-18 | AJ15: Confident
A16: 1 | B16: 2018 | C16: Aruba | F16: Pfixx Solar System | G16: Solar PV | H16: 1 | I16: =IF(K16="Planned","3.0",IF(AG16<DATE(2009,12,31),"1.0",IF(AND(AG16>=DATE(2010,1,1)+0,AG16<=DATE(2012,12,31)),"1.0",IF(AND(AG16>=DATE(2013,1,1),AG16<=DATE(2015,12,31)),"2.0",IF(AG16>=DATE(2016,1,1),"3.0",""))))) -> 1.0 | J16: Distributed | K16: Operational | L16: Pfixx Solar System | M16: St. Michael Paviljoen Elderly | N16: 20 | Q16: 30.66 | S16: 30.66 | T16: 30.66 | U16: 0.175 | V16: NA | W16: 0.175 | X16: 0.254 | Y16: 50000 | AA16: 50000 | AB16: 51560 | AC16: 2500 | AE16: 0 | AF16: NA | AH16: PV system will power elderly home's cooling system. | AI16: 2017-08-03
A17: 1 | C17: Aruba | D17: Microgrid | F17: ABB | G17: Microgrid | H17: 1 | K17: Planned | L17: ABB | Q17: 0 | T17: 0 | U17: 0 | X17: =IF(OR(K17="Under development",K17="Planned"),VLOOKUP(G17,'Capex by RE tech'!$A$4:$D$18,4,TRUE),IF(AND(K17="Operational",G17="Solar PV"),VLOOKUP(AG17,'Capex by RE tech'!$C$11:$D$13,2,TRUE),IF(AND(K17="Operational",G17="Wind"),VLOOKUP(AG17,'Capex by RE tech'!$C$17:$D$19,2,TRUE),IF(AND(K17="Operational",G17="Biomass"),VLOOKUP(AG17,'Capex by RE tech'!$C$2:$D$4,2,TRUE),IF(AND(K17="Operational",G17="Geothermal"),VLOOKUP(AG17,'Capex by RE tech'!$C$2:$D$4,2,TRUE),IF(AND(K17="Operational",G17="Hydro"),VLOOKUP(AG17,'Capex by RE tech'!$C$8:$D$10,2,TRUE),IF(AND(K17="Operational",G17="Waste-to-Energy"),VLOOKUP(AG17,'Capex by RE tech'!$C$14:$D$16,2,TRUE),IF(AND(K17="Operational",AG17<2010),VLOOKUP(G17,'Capex by RE tech'!$A$2:$D$19,4,FALSE),NA)))))))) -> 0.406 | Y17: 0 | AB17: =AC17*N17 -> 0 | AC17: =VLOOKUP(G17,'Capex by RE tech'!$A$2:$F$19,6,TRUE) -> 2813 | AI17: 2019-08-07 | AJ17: Not confident
A18: 1 | C18: Barbados | E18: Lamberts, St. Lucy | F18: Barbados Light and Power Company Ltd. (BL&P) | G18: Wind | H18: 1 | J18: Utility/IPP | K18: Planned | L18: Barbados Light and Power Company Ltd. (BL&P) | M18: Barbados Light and Power Company Ltd. (BL&P) | N18: 10000 | O18: 11 | P18: =N18/O18 -> 909.0909091 | Q18: 40296 | T18: 40296 | U18: 0.46 | V18: =IF(OR(ISBLANK(N18),ISBLANK(R18)),"NA",(R18*1000)/(N18*8760)) -> NA | X18: 0.46 | Y18: 15756666.67 | AB18: 15756666.67 | AC18: =IF(AND(ISNUMBER(N18), ISNUMBER(Y18)),Y18/N18,"NA") -> 1575.666667 | AE18: =SUM(AD18:AD18) -> 0 | AH18: Plans to develop it, as of 2018 still in the works, appear to be problems with land lease. | AI18: 2019-08-05 | AJ18: Confident
A19: 1 | B19: P0018 | C19: Barbados | D19: Trents PV | E19: Trent, St. Lucy | F19: Barbados Light and Power Company Ltd. (BL&P) | G19: Solar PV | H19: 1 | I19: =IF(K19="Planned","3.0",IF(AG19<DATE(2009,12,31),"1.0",IF(AND(AG19>=DATE(2010,1,1)+0,AG19<=DATE(2012,12,31)),"1.0",IF(AND(AG19>=DATE(2013,1,1),AG19<=DATE(2015,12,31)),"2.0",IF(AG19>=DATE(2016,1,1),"3.0",""))))) -> 1.0 | J19: Utility/IPP | K19: Operational | L19: Barbados Light and Power Company Ltd. (BL&P) | M19: Barbados Light and Power Company Ltd. (BL&P) | N19: 10000 | O19: 44496 | P19: =N19/O19 -> 0.2247393024 | Q19: 20200 | S19: 20200 | T19: 17520 | U19: 0.2 | V19: NA | W19: 0.2 | X19: 0.254 | Y19: 21500000 | Z19: 21500000 | AB19: 25780000 | AC19: 2150 | AE19: 0 | AF19: =IF(ISNUMBER(AG19),AG19,IF(ISNUMBER(AH19),AH19,"NA")) -> 2016 | AG19: 2016 | AH19: The Barbados Light & Power (BL&P) solar farm in Trents, St Lucy, is saving the country an estimated $10 million a year. | AI19: 2019-09-17 | AJ19: Confident
A20: 1 | B20: P0019 | C20: Barbados | F20: Williams Solar | G20: Solar PV | H20: 1 | I20: 1.0 | J20: Distributed | K20: Operational | L20: Williams Solar | M20: Armstrong Agencies Ltd. | N20: 62.68 | Q20: 139.4655072 | T20: 139.4655072 | U20: 0.254 | V20: NA | X20: 0.254 | Y20: 161589.04 | AB20: 161589.04 | AC20: 2578 | AE20: 0 | AF20: 2012 | AG20: 2012 | AH20: Commissioned 10/11/12. System comprised of 246 x 256 W solar panels. | AI20: 2017-08-03
A21: 1 | B21: P0020 | C21: Barbados | E21: St. Thomas | G21: Solar PV | H21: 1 | I21: 1.0 | J21: Distributed | K21: Operational | M21: Footprint Environmental | N21: 60.1 | Q21: 133.724904 | S21: 1,561 | T21: 133.724904 | U21: 0.254 | V21: NA | X21: 0.254 | Y21: 154937.8 | AB21: 154937.8 | AC21: 2578 | AE21: 0 | AF21: 2010 | AG21: 2010 | AH21: Premier tourist attraction utilizing PV system to power lighting. | AI21: 2017-08-03
A22: 1 | B22: P0021 | C22: Barbados | G22: Solar PV | H22: 1 | I22: 1.0 | J22: Distributed | K22: Operational | N22: 11.1 | Q22: 24.697944 | T22: 24.697944 | U22: 0.254 | V22: NA | X22: 0.254 | Y22: 28615.8 | AB22: 28615.8 | AC22: 2578 | AE22: 0 | AF22: 2001 | AG22: 2001 | AH22: In 2001, solar PV installed to power a solar icemaker for fishers. | AI22: 2017-08-03
A23: 1 | B23: P0022 | C23: Barbados | G23: Solar PV | H23: 1 | I23: 1.0 | J23: Distributed | K23: Operational | M23: Combermere School | N23: 3 | Q23: 6.67512 | T23: 6.67512 | U23: 0.254 | V23: NA | X23: 0.254 | Y23: 7734 | AB23: 7734 | AC23: 2578 | AE23: 0 | AF23: 2001 | AG23: 2001 | AH23: School uses solar PV to power computer laboratory. | AI23: 2017-08-03
A24: 1 | B24: P0023 | C24: Barbados | G24: Solar PV | H24: 1 | I24: 1.0 | J24: Distributed | K24: Operational | N24: 2 | Q24: 4.45008 | T24: 4.45008 | U24: 0.254 | V24: NA | X24: 0.254 | Y24: 5156 | AB24: 5156 | AC24: 2578 | AE24: 0 | AF24: 2001 | AG24: 2001 | AH24: Building relies on solar PV to operate lighting and provide emergency power. | AI24: 2017-08-03
A25: 1 | B25: P0024 | C25: Barbados | G25: Solar PV | H25: 1 | I25: 1.0 | J25: Distributed | K25: Operational | N25: 1.1 | Q25: 2.447544 | T25: 2.447544 | U25: 0.254 | V25: NA | X25: 0.254 | Y25: 2835.8 | AB25: 2835.8 | AC25: 2578 | AE25: 0 | AF25: 2001 | AG25: 2001 | AH25: UWI first university outside the US to get EBSCO solar grant | AI25: 2017-08-03
A26: 1 | B26: P0025 | C26: Barbados | G26: Wind | H26: 1 | I26: 1.0 | J26: Distributed | K26: Operational | N26: 20 | Q26: 80.592 | T26: 80.592 | U26: 0.46 | V26: NA | X26: 0.46 | Y26: 31513.33333 | AB26: 31513.33333 | AC26: 1575.666667 | AE26: 0 | AF26: 2016 | AG26: 2016 | AH26: U.S. Embassy Bridgetown Installs Wind Turbin | AI26: 2017-08-03
A27: 1 | C27: Barbados | D27: Part of Public Sector Smart Energy Programme | E27: Bridgetown | F27: Solar Watt Systems | G27: Solar PV | H27: 1 | I27: 1.0 | J27: Distributed | K27: Operational | L27: Solar Watt Systems | M27: Samuel Jackman Prescod Institute of Technology | N27: 109 | Q27: 219.6132 | T27: 219.6132 | U27: 0.23 | V27: NA | X27: =IF(OR(K27="Under development",K27="Planned"),VLOOKUP(G27,'Capex by RE tech'!$A$4:$D$18,4,TRUE),IF(AND(K27="Operational",G27="Solar PV"),VLOOKUP(AG27,'Capex by RE tech'!$C$11:$D$13,2,TRUE),IF(AND(K27="Operational",G27="Wind"),VLOOKUP(AG27,'Capex by RE tech'!$C$17:$D$19,2,TRUE),IF(AND(K27="Operational",G27="Biomass"),VLOOKUP(AG27,'Capex by RE tech'!$C$2:$D$4,2,TRUE),IF(AND(K27="Operational",G27="Geothermal"),VLOOKUP(AG27,'Capex by RE tech'!$C$2:$D$4,2,TRUE),IF(AND(K27="Operational",G27="Hydro"),VLOOKUP(AG27,'Capex by RE tech'!$C$8:$D$10,2,TRUE),IF(AND(K27="Operational",G27="Waste-to-Energy"),VLOOKUP(AG27,'Capex by RE tech'!$C$14:$D$16,2,TRUE),IF(AND(K27="Operational",AG27<2010),VLOOKUP(G27,'Capex by RE tech'!$A$2:$D$19,4,FALSE),NA)))))))) -> 0.23 | Y27: 158050 | AB27: =AC27*N27 -> 158050 | AC27: =VLOOKUP(G27,'Capex by RE tech'!$A$2:$F$19,6,TRUE) -> 1450 | AE27: 0 | AF27: 2019 | AG27: 2019 | AH27: This row is for 1 of the 16 public buildings as part of the Public Sector Smart Energy Programme funded through IDB and EU grants (USD 17 million and EUR 5.8 million respectively) | AI27: 2019-08-08 | AJ27: Confident
A28: 4 | C28: Barbados | D28: Part of Public Sector Smart Energy Programme | G28: Solar PV | H28: 4 | J28: Distributed | K28: Operational | M28: Bayley's Primary School, St. Catherine's Primary School, Selah Primary School, Half Moon Fort Primary School | N28: 70 | Q28: 141.036 | T28: 141.036 | U28: 0.23 | V28: NA | X28: =IF(OR(K28="Under development",K28="Planned"),VLOOKUP(G28,'Capex by RE tech'!$A$4:$D$18,4,TRUE),IF(AND(K28="Operational",G28="Solar PV"),VLOOKUP(AG28,'Capex by RE tech'!$C$11:$D$13,2,TRUE),IF(AND(K28="Operational",G28="Wind"),VLOOKUP(AG28,'Capex by RE tech'!$C$17:$D$19,2,TRUE),IF(AND(K28="Operational",G28="Biomass"),VLOOKUP(AG28,'Capex by RE tech'!$C$2:$D$4,2,TRUE),IF(AND(K28="Operational",G28="Geothermal"),VLOOKUP(AG28,'Capex by RE tech'!$C$2:$D$4,2,TRUE),IF(AND(K28="Operational",G28="Hydro"),VLOOKUP(AG28,'Capex by RE tech'!$C$8:$D$10,2,TRUE),IF(AND(K28="Operational",G28="Waste-to-Energy"),VLOOKUP(AG28,'Capex by RE tech'!$C$14:$D$16,2,TRUE),IF(AND(K28="Operational",AG28<2010),VLOOKUP(G28,'Capex by RE tech'!$A$2:$D$19,4,FALSE),NA)))))))) -> 0.23 | Y28: 101500 | AB28: 101500 | AC28: =VLOOKUP(G28,'Capex by RE tech'!$A$2:$F$19,6,TRUE) -> 1450 | AE28: 0 | AF28: 2018 | AG28: 2018 | AH28: This row refers to retrofitted rooftops of elemenatry schools as part of the Public Sector Smart Energy Programme | AI28: 2019-08-08 | AJ28: Confident
C29: Barbados | D29: Public Sector Smart Energy Programme | G29: Solar PV | H29: =16-(#REF!+H28) ->  | J29: Distributed | K29: Under development | M29: Various public buildings | N29: =2600-(N27+N28) -> 2421 | Q29: 4.5 | S29: 4.5 | T29: 0 | U29: 0 | V29: NA | Y29: 3510450 | AB29: 3510450 | AC29: =VLOOKUP(G29,'Capex by RE tech'!$A$2:$F$19,6,TRUE) -> 1450 | AE29: 0 | AF29: NA | AH29: This row refers to the remaining public buildings as part of the Public Sector Smart Energy Programme. 12 of the 16 "substantially completed" as of Sept 2018 | AI29: 2019-08-08 | AJ29: Confident
A30: 1 | C30: Barbados | F30: MPC Capital | G30: Solar PV | H30: 1 | J30: Distributed | K30: Planned | L30: MPC Capital | M30: Guinea Estates Inc. | N30: 5 | Q30: 10.074 | T30: 10.074 | U30: 0.23 | V30: NA | X30: =IF(OR(K30="Under development",K30="Planned"),VLOOKUP(G30,'Capex by RE tech'!$A$4:$D$18,4,TRUE),IF(AND(K30="Operational",G30="Solar PV"),VLOOKUP(AG30,'Capex by RE tech'!$C$11:$D$13,2,TRUE),IF(AND(K30="Operational",G30="Wind"),VLOOKUP(AG30,'Capex by RE tech'!$C$17:$D$19,2,TRUE),IF(AND(K30="Operational",G30="Biomass"),VLOOKUP(AG30,'Capex by RE tech'!$C$2:$D$4,2,TRUE),IF(AND(K30="Operational",G30="Geothermal"),VLOOKUP(AG30,'Capex by RE tech'!$C$2:$D$4,2,TRUE),IF(AND(K30="Operational",G30="Hydro"),VLOOKUP(AG30,'Capex by RE tech'!$C$8:$D$10,2,TRUE),IF(AND(K30="Operational",G30="Waste-to-Energy"),VLOOKUP(AG30,'Capex by RE tech'!$C$14:$D$16,2,TRUE),IF(AND(K30="Operational",AG30<2010),VLOOKUP(G30,'Capex by RE tech'!$A$2:$D$19,4,FALSE),NA)))))))) -> 0.23 | Y30: 7250 | AB30: 7250 | AC30: =VLOOKUP(G30,'Capex by RE tech'!$A$2:$F$19,6,TRUE) -> 1450 | AE30: 0 | AF30: NA | AH30: Construction expected to start 2020 | AI30: 2019-08-08 | AJ30: Confident
A31: Multiple | C31: Barbados | G31: Solar PV | H31: Multiple | J31: Distributed | K31: Operational | M31: Various | N31: 18000 | Q31: 36266.4 | T31: 36266.4 | U31: 0.23 | V31: NA | X31: 0.23 | Y31: 26100000 | AB31: 26100000 | AC31: =VLOOKUP(G31,'Capex by RE tech'!$A$2:$F$19,6,TRUE) -> 1450 | AE31: 0 | AF31: NA | AH31: Supply 3% of electricity demands. 2% is from solar PV farm in St. Lucy according to BL&P MD Roger Blackman | AI31: 2019-08-08 | AJ31: Confident
A32: 1 | C32: Barbados | E32: Portvale Sugar Factory | G32: Biomass | H32: 1 | J32: Utility/IPP | K32: Planned | Q32: 0 | T32: 0 | U32: 0.9 | V32: NA | X32: =IF(OR(K32="Under development",K32="Planned"),VLOOKUP(G32,'Capex by RE tech'!$A$4:$D$18,4,TRUE),IF(AND(K32="Operational",G32="Solar PV"),VLOOKUP(AG32,'Capex by RE tech'!$C$11:$D$13,2,TRUE),IF(AND(K32="Operational",G32="Wind"),VLOOKUP(AG32,'Capex by RE tech'!$C$17:$D$19,2,TRUE),IF(AND(K32="Operational",G32="Biomass"),VLOOKUP(AG32,'Capex by RE tech'!$C$2:$D$4,2,TRUE),IF(AND(K32="Operational",G32="Geothermal"),VLOOKUP(AG32,'Capex by RE tech'!$C$2:$D$4,2,TRUE),IF(AND(K32="Operational",G32="Hydro"),VLOOKUP(AG32,'Capex by RE tech'!$C$8:$D$10,2,TRUE),IF(AND(K32="Operational",G32="Waste-to-Energy"),VLOOKUP(AG32,'Capex by RE tech'!$C$14:$D$16,2,TRUE),IF(AND(K32="Operational",AG32<2010),VLOOKUP(G32,'Capex by RE tech'!$A$2:$D$19,4,FALSE),NA)))))))) -> 0.9 | Y32: 0 | AB32: 0 | AC32: =VLOOKUP(G32,'Capex by RE tech'!$A$2:$F$19,6,TRUE) -> 3000 | AE32: 0 | AF32: NA | AH32: Project under consideration. "If stakeholders come together, the project could be in place by 2020 said the Minister" | AI32: 2019-08-08 | AJ32: Confident
A33: 1 | B33: P0026 | C33: Belize | E33: Tower Hill Sugar Factory, Orange Walk | F33: Belize Co-Generation Energy Limited (Belcogen) | G33: Biomass | H33: 1 | I33: =IF(K33="Planned","3.0",IF(AG33<DATE(2009,12,31),"1.0",IF(AND(AG33>=DATE(2010,1,1)+0,AG33<=DATE(2012,12,31)),"1.0",IF(AND(AG33>=DATE(2013,1,1),AG33<=DATE(2015,12,31)),"2.0",IF(AG33>=DATE(2016,1,1),"3.0",""))))) -> 1.0 | J33: Utility/IPP | K33: Operational | L33: Belize Co-Generation Energy Limited (Belcogen) | M33: Belize Electricity Ltd. (BEL) & Belize Sugar Inudstries | N33: 32500 | Q33: 37933 | R33: 37933 | T33: 37933 | U33: 0.1332384967 | V33: 0.1332384967 | X33: 0.6963333333 | Y33: 35500000 | AA33: 35500000 | AB33: 115754166.7 | AC33: =IF(AND(ISNUMBER(N33), ISNUMBER(Y33)),Y33/N33,"NA") -> 1092.307692 | AE33: 0 | AF33: 2010 | AG33: 2010 | AH33: 13MW are for the national grid | AI33: 2018-07-18 | AJ33: Confident
A34: 1 | B34: P0027 | C34: Belize | D34: Mollejon hydroelectric facility | E34: Macal River (Cayo) | F34: Belize Electricity Company Ltd. (BECOL) | G34: Hydro | H34: 1 | I34: 1.0 | J34: Utility/IPP | K34: Operational | L34: Belize Electricity Company Ltd. (BECOL) | M34: Belize Electricity Ltd. (BEL) | N34: 25200 | O34: 3 | P34: =N34/O34 -> 8400 | Q34: 79470.72 | T34: 79470.72 | U34: 0.36 | V34: NA | W34: 0.36 | Y34: 59000000 | AA34: 59000000 | AB34: 77515200 | AC34: 2341.269841 | AE34: 0 | AF34: 1996 | AG34: 1996 | AH34: American Hydro will enhance the efficiency and performance of the Mollejon hydroelectric generating plant (2017) | AI34: 2018-07-18 | AJ34: Confident
A35: 1 | B35: P0028 | C35: Belize | D35: Vaca hydroelectric facility | E35: Macal River (Cayo) | F35: BECOL & Sinohydro Corporation Ltd | G35: Hydro | H35: 1 | I35: 1.0 | J35: Utility/IPP | K35: Operational | L35: BECOL & Sinohydro Corporation Ltd | M35: Belize Electricity Ltd. (BEL) | N35: 19000 | O35: 3 | P35: =N35/O35 -> 6333.333333 | Q35: 79521 | S35: 79521 | T35: 79558.32 | U35: 0.478 | V35: NA | W35: =S35 * 1000/(N35 * 8760) -> 0.4777757751 | X35: 0.85 | Y35: 39000000 | AA35: 39000000 | AB35: 58444000 | AC35: 2052.631579 | AE35: 0 | AF35: 2010 | AG35: 2010 | AI35: 2018-07-18 | AJ35: Confident
A36: 1 | B36: P0029 | C36: Belize | E36: Santander Sugar Mill, Cayo | F36: Santander Sugar Energy Ltd. (SSEL) | G36: Biomass | H36: 1 | I36: 1.0 | J36: Utility/IPP | K36: Operational | L36: Santander Sugar Energy Ltd. (SSEL) | M36: Belize Electricity Ltd. (BEL) | N36: 16000 | Q36: 46252.8 | T36: 46252.8 | U36: =IF(AND(V36="NA",ISBLANK(W36)),X36,IF(V36<>"NA",V36,IF(ISNUMBER(W36),W36,X36))) -> 0.33 | V36: NA | W36: 0.33 | X36: 0.6963333333 | Y36: 20000000 | AA36: 20000000 | AB36: 56986666.67 | AC36: 1250 | AE36: 0 | AF36: NA | AH36: S.S. Energy Ltd., a subsidiary of the Santander Sugar Group, signed PPA with Belize Electricity Limited on December 13, 2016. | AI36: 2018-07-10 | AJ36: Confident
A37: 1 | B37: P0030 | C37: Belize | D37: Chalillo hydroelectric facility | E37: Macal River (Cayo) | F37: BECOL, Sinohydro Corporation Ltd., & Gilbert-Green Associates Inc. | G37: Hydro | H37: 1 | I37: 1.0 | J37: Utility/IPP | K37: Operational | L37: BECOL, Sinohydro Corporation Ltd., & Gilbert-Green Associates Inc. | M37: Belize Electricity Ltd. (BEL) | N37: 7300 | O37: 2 | P37: =N37/O37 -> 3650 | Q37: 30161 | S37: 30161 | T37: 30161 | U37: =IF(AND(V37="NA",ISBLANK(W37)),X37,IF(V37<>"NA",V37,IF(ISNUMBER(W37),W37,X37))) -> 0.4716488397 | V37: NA | W37: =(S37* 1000)/(N37 * 8760) -> 0.4716488397 | X37: 0.85 | Y37: 100000000 | AA37: 100000000 | AB37: 22454800 | AC37: 13698.63014 | AE37: 0 | AF37: 2005 | AG37: 2005 | AI37: 2018-07-18 | AJ37: Confident
A38: 1 | B38: P0031 | C38: Belize | D38: Hydro Maya | E38: San Miguel | F38: Bradley Engineering ,Cisco Construction Ltd., & Sorenson Engineering | G38: Hydro | H38: 1 | I38: 1.0 | J38: Utility/IPP | K38: Operational | L38: Bradley Engineering ,Cisco Construction Ltd., & Sorenson Engineering | M38: Belize Electricity Ltd. (BEL) | N38: 3400 | O38: 2 | P38: =N38/O38 -> 1700 | Q38: 14500 | R38: 14500 | T38: 14500 | U38: =IF(AND(V38="NA",ISBLANK(W38)),X38,IF(V38<>"NA",V38,IF(ISNUMBER(W38),W38,X38))) -> 0.486838571 | V38: 0.486838571 | W38: 0.5188356164 | X38: 0.85 | Y38: 10458400 | AB38: 10458400 | AC38: 3076 | AE38: 0 | AF38: 2006 | AG38: 2006 | AI38: 2018-07-18 | AJ38: Confident
A39: 1 | C39: Belize | D39: BECOL 30 MW Solar Farm | F39: BECOL | G39: Solar PV | H39: 1 | J39: Utility/IPP | K39: Planned | L39: BECOL | M39: Belize Electricity Ltd. (BEL) | N39: 30000 | Q39: 60444 | T39: 60444 | U39: =IF(AND(V39="NA",ISBLANK(W39)),X39,IF(V39<>"NA",V39,IF(ISNUMBER(W39),W39,X39))) -> 0.23 | V39: NA | X39: ='Capex by RE tech'!D13 -> 0.23 | Y39: 43500000 | AB39: =AC39*N39 -> 43500000 | AC39: =VLOOKUP(G39,'Capex by RE tech'!$A$2:$F$19,6,TRUE) -> 1450 | AH39: Commercial operation expected 2021. Details from CREF 2019 survey response from Belize Electricity Ltd. | AI39: 2019-09-17 | AJ39: Confident
A40: 1 | C40: Belize | D40: BAPCOL 10MW Solar Farm | F40: BECOL | G40: Solar PV | H40: 1 | J40: Utility/IPP | K40: Planned | L40: BECOL | M40: Belize Electricity Ltd. (BEL) | N40: 10000 | Q40: 20148 | T40: 20148 | U40: =IF(AND(V40="NA",ISBLANK(W40)),X40,IF(V40<>"NA",V40,IF(ISNUMBER(W40),W40,X40))) -> 0.23 | V40: NA | X40: ='Capex by RE tech'!D13 -> 0.23 | Y40: 14500000 | AB40: =AC40*N40 -> 14500000 | AC40: =VLOOKUP(G40,'Capex by RE tech'!$A$2:$F$19,6,TRUE) -> 1450 | AH40: Commercial operation expected 2021. Details from CREF 2019 survey response from Belize Electricity Ltd. | AI40: 2019-09-17 | AJ40: Confident
A41: 1 | B41: P0032 | C41: Belize | G41: Solar PV | H41: 1 | I41: =IF(K41="Planned","3.0",IF(AG41<DATE(2009,12,31),"1.0",IF(AND(AG41>=DATE(2010,1,1)+0,AG41<=DATE(2012,12,31)),"1.0",IF(AND(AG41>=DATE(2013,1,1),AG41<=DATE(2015,12,31)),"2.0",IF(AG41>=DATE(2016,1,1),"3.0",""))))) -> 1.0 | J41: Distributed | K41: Operational | N41: 450 | Q41: 128700 | S41: 128700 | T41: 500.634 | U41: 0.127 | V41: NA | W41: =R41/4205 -> 0 | X41: 0.254 | Y41: 20000000 | AA41: 20000000 | AB41: 1160100 | AC41: =IF(AND(ISNUMBER(N41), ISNUMBER(Y41)),Y41/N41,"NA") -> 44444.44444 | AE41: =SUM(AD41:AD41) -> 0 | AF41: =IF(ISNUMBER(AG41),AG41,IF(ISNUMBER(AH41),AH41,"NA")) -> 2012 | AG41: 2012 | AI41: 2017-08-03
A42: 1 | C42: Belize | D42: Belcogen power plant | G42: Biomass | H42: 1 | J42: Utility/IPP | K42: Operational | M42: Belize Electricity Ltd. (BEL) | N42: 31500 | Q42: 150000 | S42: =106000+44000 -> 150000 | T42: 35044.38 | U42: 0.127 | V42: NA | Y42: 126000000 | AB42: =AC42*N42 -> 126000000 | AC42: ='Capex by RE tech'!F2 -> 4000 | AE42: 0 | AF42: 2009 | AG42: 2009 | AI42: 2017-08-03 | AJ42: Confident
A43: 1 | B43: P0033 | C43: Bermuda | D43: "The Finger" (airport) solar project | E43: L.F. Wade International Airport | F43: Saturn | G43: Solar PV | H43: 1 | J43: Utility/IPP | K43: Under development | L43: TBD | M43: Bermuda Electric Light Company Ltd. (BELCO) | N43: 6000 | Q43: 13350.24 | T43: 13350.24 | U43: =IF(AND(V43="NA",ISBLANK(W43)),X43,IF(V43<>"NA",V43,IF(ISNUMBER(W43),W43,X43))) -> 0.254 | V43: NA | X43: 0.254 | Y43: 15468000 | AB43: 15468000 | AC43: =IF(AND(ISNUMBER(N43), ISNUMBER(Y43)),Y43/N43,"NA") -> 2578 | AE43: 0 | AF43: NA | AH43: Solar Power Plant Deal Signed. Completion expected end of 2019. | AI43: 2019-08-05 | AJ43: Confident
A44: 1 | B44: P0034 | C44: Bermuda | E44: Tynes Bay | F44: Von Roll Ltd. | G44: Waste-to-Energy | H44: 1 | I44: =IF(K44="Planned","3.0",IF(AG44<DATE(2009,12,31),"1.0",IF(AND(AG44>=DATE(2010,1,1)+0,AG44<=DATE(2012,12,31)),"1.0",IF(AND(AG44>=DATE(2013,1,1),AG44<=DATE(2015,12,31)),"2.0",IF(AG44>=DATE(2016,1,1),"3.0",""))))) -> 1.0 | J44: Utility/IPP | K44: Operational | L44: Von Roll Ltd. | M44: Bermuda Electric Light Company Ltd. (BELCO) | N44: 5000 | Q44: 30806 | T44: 30806 | U44: 0.7033333333 | V44: NA | X44: 0.7033333333 | Y44: 70000000 | AA44: 70000000 | AC44: =IF(AND(ISNUMBER(N44), ISNUMBER(Y44)),Y44/N44,"NA") -> 14000 | AE44: 0 | AF44: 1994 | AG44: 1994 | AI44: 2018-07-18 | AJ44: Confident
A45: 1 | B45: P0035 | C45: Bermuda | G45: Solar PV | H45: 1 | I45: =IF(K45="Planned","3.0",IF(AG45<DATE(2009,12,31),"1.0",IF(AND(AG45>=DATE(2010,1,1)+0,AG45<=DATE(2012,12,31)),"1.0",IF(AND(AG45>=DATE(2013,1,1),AG45<=DATE(2015,12,31)),"2.0",IF(AG45>=DATE(2016,1,1),"3.0",""))))) -> 1.0 | J45: Distributed | K45: Operational | N45: 416 | Q45: 925.61664 | T45: 925.61664 | U45: 0.254 | V45: NA | X45: 0.254 | Y45: 1072448 | AB45: 1072448 | AC45: =IF(AND(ISNUMBER(N45), ISNUMBER(Y45)),Y45/N45,"NA") -> 2578 | AE45: 0 | AF45: NA | AI45: 2017-08-03
A46: =H46 -> 73 | B46: P0036 | C46: Bermuda | G46: Solar PV | H46: 73 | I46: =IF(K46="Planned","3.0",IF(AG46<DATE(2009,12,31),"1.0",IF(AND(AG46>=DATE(2010,1,1)+0,AG46<=DATE(2012,12,31)),"1.0",IF(AND(AG46>=DATE(2013,1,1),AG46<=DATE(2015,12,31)),"2.0",IF(AG46>=DATE(2016,1,1),"3.0",""))))) -> 1.0 | J46: Distributed | K46: Operational | N46: 360 | Q46: 801.0144 | T46: 801.0144 | U46: 0.254 | V46: NA | X46: 0.254 | Y46: 928080 | AB46: 928080 | AC46: =IF(AND(ISNUMBER(N46), ISNUMBER(Y46)),Y46/N46,"NA") -> 2578 | AE46: 0 | AF46: NA | AI46: 2017-08-03
A47: 1 | B47: P0037 | C47: Bermuda | G47: Solar PV | H47: 1 | I47: =IF(K47="Planned","3.0",IF(AG47<DATE(2009,12,31),"1.0",IF(AND(AG47>=DATE(2010,1,1)+0,AG47<=DATE(2012,12,31)),"1.0",IF(AND(AG47>=DATE(2013,1,1),AG47<=DATE(2015,12,31)),"2.0",IF(AG47>=DATE(2016,1,1),"3.0",""))))) -> 1.0 | J47: Distributed | K47: Operational | N47: 106.52 | Q47: 237.0112608 | T47: 237.0112608 | U47: 0.254 | V47: NA | X47: 0.254 | Y47: 274608.56 | AB47: 274608.56 | AC47: =IF(AND(ISNUMBER(N47), ISNUMBER(Y47)),Y47/N47,"NA") -> 2578 | AE47: 0 | AF47: NA | AI47: 2017-08-03
A48: Multiple | C48: Bermuda | G48: Solar PV | H48: Multiple | J48: Utility/IPP | K48: Planned | N48: 15000 | Q48: 30222 | T48: 30222 | U48: 0.23 | V48: NA | X48: =IF(OR(K48="Under development",K48="Planned"),VLOOKUP(G48,'Capex by RE tech'!$A$4:$D$18,4,TRUE),IF(AND(K48="Operational",G48="Solar PV"),VLOOKUP(AG48,'Capex by RE tech'!$C$11:$D$13,2,TRUE),IF(AND(K48="Operational",G48="Wind"),VLOOKUP(AG48,'Capex by RE tech'!$C$17:$D$19,2,TRUE),IF(AND(K48="Operational",G48="Biomass"),VLOOKUP(AG48,'Capex by RE tech'!$C$2:$D$4,2,TRUE),IF(AND(K48="Operational",G48="Geothermal"),VLOOKUP(AG48,'Capex by RE tech'!$C$2:$D$4,2,TRUE),IF(AND(K48="Operational",G48="Hydro"),VLOOKUP(AG48,'Capex by RE tech'!$C$8:$D$10,2,TRUE),IF(AND(K48="Operational",G48="Waste-to-Energy"),VLOOKUP(AG48,'Capex by RE tech'!$C$14:$D$16,2,TRUE),IF(AND(K48="Operational",AG48<2010),VLOOKUP(G48,'Capex by RE tech'!$A$2:$D$19,4,FALSE),NA)))))))) -> 0.23 | Y48: 21750000 | AB48: =AC48*N48 -> 21750000 | AC48: =VLOOKUP(G48,'Capex by RE tech'!$A$2:$F$19,6,TRUE) -> 1450 | AE48: 0 | AF48: NA | AH48: Planned as part of IRP, to be installed around 2023 | AI48: 2019-08-08 | AJ48: Not confident
A49: Multiple | C49: Bermuda | G49: Wind | H49: Multiple | J49: Utility/IPP | K49: Planned | N49: 60000 | Q49: 165564 | T49: 165564 | U49: 0.315 | V49: NA | X49: =IF(OR(K49="Under development",K49="Planned"),VLOOKUP(G49,'Capex by RE tech'!$A$4:$D$18,4,TRUE),IF(AND(K49="Operational",G49="Solar PV"),VLOOKUP(AG49,'Capex by RE tech'!$C$11:$D$13,2,TRUE),IF(AND(K49="Operational",G49="Wind"),VLOOKUP(AG49,'Capex by RE tech'!$C$17:$D$19,2,TRUE),IF(AND(K49="Operational",G49="Biomass"),VLOOKUP(AG49,'Capex by RE tech'!$C$2:$D$4,2,TRUE),IF(AND(K49="Operational",G49="Geothermal"),VLOOKUP(AG49,'Capex by RE tech'!$C$2:$D$4,2,TRUE),IF(AND(K49="Operational",G49="Hydro"),VLOOKUP(AG49,'Capex by RE tech'!$C$8:$D$10,2,TRUE),IF(AND(K49="Operational",G49="Waste-to-Energy"),VLOOKUP(AG49,'Capex by RE tech'!$C$14:$D$16,2,TRUE),IF(AND(K49="Operational",AG49<2010),VLOOKUP(G49,'Capex by RE tech'!$A$2:$D$19,4,FALSE),NA)))))))) -> 0.315 | Y49: 88500000 | AB49: =AC49*N49 -> 88500000 | AC49: =VLOOKUP(G49,'Capex by RE tech'!$A$2:$F$19,6,TRUE) -> 1475 | AE49: 0 | AF49: NA | AH49: Planned as part of IRP, to be installed around 2026 | AI49: 2019-08-08 | AJ49: Not confident
A50: 1 | C50: Bermuda | G50: Battery | H50: 1 | J50: Utility/IPP | K50: Operational | M50: Bermuda Electric Light Company Ltd. (BELCO) | N50: 10000 | Q50: NA | AB50: =AC50*N50 ->  | AC50: =VLOOKUP(G50,'Capex by RE tech'!$A$2:$F$19,6,TRUE) ->  | AH50: Battery | AI50: 2019-08-08 | AJ50: Confident
A51: 1 | B51: P0287 | C51: Bonaire | E51: Barcadera | F51: Contour Global/Caribbean Energies | G51: Solar PV | H51: 1 | I51: =IF(K51="Planned","3.0",IF(AG51<DATE(2009,12,31),"1.0",IF(AND(AG51>=DATE(2010,1,1)+0,AG51<=DATE(2012,12,31)),"1.0",IF(AND(AG51>=DATE(2013,1,1),AG51<=DATE(2015,12,31)),"2.0",IF(AG51>=DATE(2016,1,1),"3.0",""))))) -> 1.0 | J51: Utility/IPP | K51: Operational | L51: Contour Global/Caribbean Energies | M51: Water-en Energie Bedrijf Bonaire | O51: 792 | P51: =N51/O51 -> 0 | Q51: NA | V51: =IF(OR(ISBLANK(N51),ISBLANK(R51)),"NA",(R51*1000)/(N51*8760)) -> NA | X51: =IF(OR(K51="Under development",K51="Planned"),VLOOKUP(G51,'Capex by RE tech'!$A$4:$D$18,4,TRUE),IF(AND(K51="Operational",G51="Solar PV"),VLOOKUP(AG51,'Capex by RE tech'!$C$11:$D$13,2,TRUE),IF(AND(K51="Operational",G51="Wind"),VLOOKUP(AG51,'Capex by RE tech'!$C$17:$D$19,2,TRUE),IF(AND(K51="Operational",G51="Biomass"),VLOOKUP(AG51,'Capex by RE tech'!$C$2:$D$4,2,TRUE),IF(AND(K51="Operational",G51="Geothermal"),VLOOKUP(AG51,'Capex by RE tech'!$C$2:$D$4,2,TRUE),IF(AND(K51="Operational",G51="Hydro"),VLOOKUP(AG51,'Capex by RE tech'!$C$8:$D$10,2,TRUE),IF(AND(K51="Operational",G51="Waste-to-Energy"),VLOOKUP(AG51,'Capex by RE tech'!$C$14:$D$16,2,TRUE),IF(AND(K51="Operational",AG51<2010),VLOOKUP(G51,'Capex by RE tech'!$A$2:$D$19,4,FALSE),NA)))))))) ->  | Y51: 0 | AB51: =AC51*N51 -> 0 | AC51: =VLOOKUP(G51,'Capex by RE tech'!$A$2:$F$19,6,TRUE) -> 1450 | AH51: This is a test setup of 792 solar panels on the Barcadera grounds | AI51: 2018-07-18 | AJ51: Not confident
A52: 1 | B52: P0038 | C52: Bonaire | E52: Kralendjik | F52: Evelop | G52: Wind | H52: 1 | I52: =IF(K52="Planned","3.0",IF(AG52<DATE(2009,12,31),"1.0",IF(AND(AG52>=DATE(2010,1,1)+0,AG52<=DATE(2012,12,31)),"1.0",IF(AND(AG52>=DATE(2013,1,1),AG52<=DATE(2015,12,31)),"2.0",IF(AG52>=DATE(2016,1,1),"3.0",""))))) -> 1.0 | J52: Utility/IPP | K52: Operational | L52: Evelop | M52: Water-en Energie Bedrijf Bonaire | N52: 11130 | O52: 12 | P52: =N52/O52 -> 927.5 | Q52: 35000 | S52: 35000 | T52: 35000 | U52: 0.3589787772 | V52: NA | W52: =S52 * 1000/(N52 * 8760) -> 0.3589787772 | X52: 0.46 | Y52: 60000000 | AA52: 60000000 | AB52: 17537170 | AC52: =IF(AND(ISNUMBER(N52), ISNUMBER(Y52)),Y52/N52,"NA") -> 5390.83558 | AE52: =SUM(AD52:AD52) -> 0 | AF52: =IF(ISNUMBER(AG52),AG52,IF(ISNUMBER(AH52),AH52,"NA")) -> 2010 | AG52: 2010 | AI52: 2018-07-18 | AJ52: Confident
A53: 1 | B53: P0039 | C53: Bonaire | G53: Wind | H53: 1 | I53: =IF(K53="Planned","3.0",IF(AG53<DATE(2009,12,31),"1.0",IF(AND(AG53>=DATE(2010,1,1)+0,AG53<=DATE(2012,12,31)),"1.0",IF(AND(AG53>=DATE(2013,1,1),AG53<=DATE(2015,12,31)),"2.0",IF(AG53>=DATE(2016,1,1),"3.0",""))))) -> 1.0 | J53: Distributed | K53: Operational | N53: 330 | Q53: 1329.768 | T53: 1329.768 | U53: 0.46 | V53: NA | X53: 0.46 | Y53: 519970 | AB53: 519970 | AC53: =IF(AND(ISNUMBER(N53), ISNUMBER(Y53)),Y53/N53,"NA") -> 1575.666667 | AE53: =SUM(AD53:AD53) -> 0 | AF53: =IF(ISNUMBER(AG53),AG53,IF(ISNUMBER(AH53),AH53,"NA")) -> NA | AI53: 2017-08-03
A54: 1 | B54: P0040 | C54: Bonaire | G54: Solar PV | H54: 1 | I54: =IF(K54="Planned","3.0",IF(AG54<DATE(2009,12,31),"1.0",IF(AND(AG54>=DATE(2010,1,1)+0,AG54<=DATE(2012,12,31)),"1.0",IF(AND(AG54>=DATE(2013,1,1),AG54<=DATE(2015,12,31)),"2.0",IF(AG54>=DATE(2016,1,1),"3.0",""))))) -> 1.0 | J54: Distributed | K54: Operational | N54: 65 | Q54: 144.6276 | T54: 144.6276 | U54: 0.254 | V54: NA | X54: 0.254 | Y54: 167570 | AB54: 167570 | AC54: =IF(AND(ISNUMBER(N54), ISNUMBER(Y54)),Y54/N54,"NA") -> 2578 | AE54: =SUM(AD54:AD54) -> 0 | AF54: =IF(ISNUMBER(AG54),AG54,IF(ISNUMBER(AH54),AH54,"NA")) -> NA | AI54: 2017-08-03
A55: 1 | C55: Bonaire | F55: Wärtsilä | H55: 1 | J55: Utility/IPP | K55: Operational | L55: Wärtsilä | M55: ContourGlobal Bonaire | N55: 6000 | AB55: =AC55*N55 ->  | AC55: =VLOOKUP(G55,'Capex by RE tech'!$A$2:$F$19,6,TRUE) ->  | AE55: =SUM(AD55:AD55) -> 0 | AF55: =IF(ISNUMBER(AG55),AG55,IF(ISNUMBER(AH55),AH55,"NA")) -> NA | AH55: Battery | AI55: 2019-08-08 | AJ55: Confident
A56: 1 | B56: P0268 | C56: British Virgin Islands | G56: Wind | H56: 1 | J56: Utility/IPP | K56: Under development | N56: 500 | Q56: 1752 | T56: 1752 | U56: 0.4 | V56: NA | X56: 0.4 | Y56: 737500 | AB56: =AC56*N56 -> 737500 | AC56: =VLOOKUP(G56,'Capex by RE tech'!$A$2:$F$19,6,TRUE) -> 1475 | AH56: 2 Turbines, Total 500 KW | AI56: 2019-08-05 | AJ56: Not confident
A57: 1 | B57: P0041 | C57: British Virgin Islands | E57: Necker Island | G57: Wind | H57: 1 | J57: Distributed | K57: Operational | N57: 900 | Q57: 3626.64 | T57: 3626.64 | U57: 0.46 | V57: NA | X57: 0.46 | Y57: 1418100 | AB57: 1418100 | AC57: =IF(AND(ISNUMBER(N57), ISNUMBER(Y57)),Y57/N57,"NA") -> 1575.666667 | AE57: =SUM(AD57:AD57) -> 0 | AF57: =IF(ISNUMBER(AG57),AG57,IF(ISNUMBER(AH57),AH57,"NA")) -> 2016 | AG57: 2016 | AH57: Privately owned by billionaire entrepreneur Richard Branson on Necker Island, working with NRG Energy. Microgrid includes 350kW solar PV and 500 kWh battery . See P0034 | AI57: 2019-08-05 | AJ57: Confident
A58: 3 | B58: P0042 | C58: British Virgin Islands | E58: Necker Island | G58: Wind | H58: 3 | I58: =IF(K58="Planned","3.0",IF(AG58<DATE(2009,12,31),"1.0",IF(AND(AG58>=DATE(2010,1,1)+0,AG58<=DATE(2012,12,31)),"1.0",IF(AND(AG58>=DATE(2013,1,1),AG58<=DATE(2015,12,31)),"2.0",IF(AG58>=DATE(2016,1,1),"3.0",""))))) -> 1.0 | J58: Distributed | K58: Operational | N58: 750 | Q58: 3022.2 | T58: 3022.2 | U58: 0.46 | V58: NA | X58: 0.46 | Y58: 1181750 | AB58: 1181750 | AC58: 1575.666667 | AE58: 0 | AF58: NA | AI58: 2017-08-03
A59: 1 | B59: P0043 | C59: British Virgin Islands | E59: Necker Island | G59: Solar PV | H59: 1 | J59: Distributed | K59: Operational | N59: 300 | Q59: 667.512 | T59: 667.512 | U59: 0.254 | V59: NA | X59: 0.254 | Y59: 773400 | AB59: 773400 | AC59: 2578 | AE59: 0 | AF59: NA | AH59: Privately owned by billionaire entrepreneur Richard Branson on Necker Island, working with NRG Energy. Microgrid includes 350kW solar PV and 500 kWh battery. See P0041 | AI59: 2019-08-05 | AJ59: Confident
A60: 1 | B60: P0044 | C60: British Virgin Islands | G60: Solar PV | H60: 1 | I60: =IF(K60="Planned","3.0",IF(AG60<DATE(2009,12,31),"1.0",IF(AND(AG60>=DATE(2010,1,1)+0,AG60<=DATE(2012,12,31)),"1.0",IF(AND(AG60>=DATE(2013,1,1),AG60<=DATE(2015,12,31)),"2.0",IF(AG60>=DATE(2016,1,1),"3.0",""))))) -> 1.0 | J60: Distributed | K60: Operational | N60: 32 | Q60: 71.20128 | T60: 71.20128 | U60: 0.254 | V60: NA | X60: 0.254 | Y60: 82496 | AB60: 82496 | AC60: 2578 | AE60: 0 | AF60: NA | AI60: 2017-08-03
A61: 2 | B61: P0045 | C61: British Virgin Islands | G61: Solar PV | H61: 2 | I61: =IF(K61="Planned","3.0",IF(AG61<DATE(2009,12,31),"1.0",IF(AND(AG61>=DATE(2010,1,1)+0,AG61<=DATE(2012,12,31)),"1.0",IF(AND(AG61>=DATE(2013,1,1),AG61<=DATE(2015,12,31)),"2.0",IF(AG61>=DATE(2016,1,1),"3.0",""))))) -> 1.0 | J61: Distributed | K61: Operational | N61: 6 | Q61: 13.35024 | T61: 13.35024 | U61: 0.254 | V61: NA | X61: 0.254 | Y61: 15468 | AB61: 15468 | AC61: 2578 | AE61: 0 | AF61: NA | AI61: 2017-08-03
A62: 1 | B62: P0046 | C62: British Virgin Islands | G62: Wind | H62: 1 | I62: =IF(K62="Planned","3.0",IF(AG62<DATE(2009,12,31),"1.0",IF(AND(AG62>=DATE(2010,1,1)+0,AG62<=DATE(2012,12,31)),"1.0",IF(AND(AG62>=DATE(2013,1,1),AG62<=DATE(2015,12,31)),"2.0",IF(AG62>=DATE(2016,1,1),"3.0",""))))) -> 1.0 | J62: Distributed | K62: Operational | N62: 3.7 | Q62: 14.90952 | T62: 14.90952 | U62: 0.46 | V62: NA | X62: 0.46 | Y62: 5829.966667 | AB62: 5829.966667 | AC62: 1575.666667 | AE62: 0 | AF62: NA | AI62: 2017-08-03
A63: 1 | C63: British Virgin Islands | D63: Cox Heath Solar Project | E63: Tortola | G63: Solar PV | H63: 1 | J63: Utility/IPP | K63: Planned | M63: British Vigin Islands Electricity Corporation (BVIEC) | Q63: 0 | T63: 0 | U63: 0.23 | V63: NA | X63: =IF(OR(K63="Under development",K63="Planned"),VLOOKUP(G63,'Capex by RE tech'!$A$4:$D$18,4,TRUE),IF(AND(K63="Operational",G63="Solar PV"),VLOOKUP(AG63,'Capex by RE tech'!$C$11:$D$13,2,TRUE),IF(AND(K63="Operational",G63="Wind"),VLOOKUP(AG63,'Capex by RE tech'!$C$17:$D$19,2,TRUE),IF(AND(K63="Operational",G63="Biomass"),VLOOKUP(AG63,'Capex by RE tech'!$C$2:$D$4,2,TRUE),IF(AND(K63="Operational",G63="Geothermal"),VLOOKUP(AG63,'Capex by RE tech'!$C$2:$D$4,2,TRUE),IF(AND(K63="Operational",G63="Hydro"),VLOOKUP(AG63,'Capex by RE tech'!$C$8:$D$10,2,TRUE),IF(AND(K63="Operational",G63="Waste-to-Energy"),VLOOKUP(AG63,'Capex by RE tech'!$C$14:$D$16,2,TRUE),IF(AND(K63="Operational",AG63<2010),VLOOKUP(G63,'Capex by RE tech'!$A$2:$D$19,4,FALSE),NA)))))))) -> 0.23 | Y63: 0 | AB63: =AC63*N63 -> 0 | AC63: =VLOOKUP(G63,'Capex by RE tech'!$A$2:$F$19,6,TRUE) -> 1450 | AE63: 0 | AF63: NA | AH63: Part of Resilient National Energy Transition Strategy | AI63: 2019-08-08 | AJ63: Confident
A64: 0 | C64: British Virgin Islands | D64: Ground-Mount and Rooftop Solar | G64: Solar PV | J64: Utility/IPP | K64: Planned | M64: British Vigin Islands Electricity Corporation (BVIEC) | N64: 5000 | Q64: 10074 | T64: 10074 | U64: 0.23 | V64: NA | X64: =IF(OR(K64="Under development",K64="Planned"),VLOOKUP(G64,'Capex by RE tech'!$A$4:$D$18,4,TRUE),IF(AND(K64="Operational",G64="Solar PV"),VLOOKUP(AG64,'Capex by RE tech'!$C$11:$D$13,2,TRUE),IF(AND(K64="Operational",G64="Wind"),VLOOKUP(AG64,'Capex by RE tech'!$C$17:$D$19,2,TRUE),IF(AND(K64="Operational",G64="Biomass"),VLOOKUP(AG64,'Capex by RE tech'!$C$2:$D$4,2,TRUE),IF(AND(K64="Operational",G64="Geothermal"),VLOOKUP(AG64,'Capex by RE tech'!$C$2:$D$4,2,TRUE),IF(AND(K64="Operational",G64="Hydro"),VLOOKUP(AG64,'Capex by RE tech'!$C$8:$D$10,2,TRUE),IF(AND(K64="Operational",G64="Waste-to-Energy"),VLOOKUP(AG64,'Capex by RE tech'!$C$14:$D$16,2,TRUE),IF(AND(K64="Operational",AG64<2010),VLOOKUP(G64,'Capex by RE tech'!$A$2:$D$19,4,FALSE),NA)))))))) -> 0.23 | Y64: 7250000 | AB64: 7250000 | AC64: =VLOOKUP(G64,'Capex by RE tech'!$A$2:$F$19,6,TRUE) -> 1450 | AE64: 0 | AF64: NA | AH64: Part of Resilient National Energy Transition Strategy. Need to identify sites. "can be structured as a PPA where BVIEC purchases the electricity generated from the solar PV" | AI64: 2019-08-08 | AJ64: Confident
A65: 0 | C65: British Virgin Islands | D65: Solar for Schools and Gov't Buildings Project | G65: Solar PV | J65: Utility/IPP | K65: Planned | Q65: 0 | T65: 0 | U65: 0.23 | V65: NA | X65: =IF(OR(K65="Under development",K65="Planned"),VLOOKUP(G65,'Capex by RE tech'!$A$4:$D$18,4,TRUE),IF(AND(K65="Operational",G65="Solar PV"),VLOOKUP(AG65,'Capex by RE tech'!$C$11:$D$13,2,TRUE),IF(AND(K65="Operational",G65="Wind"),VLOOKUP(AG65,'Capex by RE tech'!$C$17:$D$19,2,TRUE),IF(AND(K65="Operational",G65="Biomass"),VLOOKUP(AG65,'Capex by RE tech'!$C$2:$D$4,2,TRUE),IF(AND(K65="Operational",G65="Geothermal"),VLOOKUP(AG65,'Capex by RE tech'!$C$2:$D$4,2,TRUE),IF(AND(K65="Operational",G65="Hydro"),VLOOKUP(AG65,'Capex by RE tech'!$C$8:$D$10,2,TRUE),IF(AND(K65="Operational",G65="Waste-to-Energy"),VLOOKUP(AG65,'Capex by RE tech'!$C$14:$D$16,2,TRUE),IF(AND(K65="Operational",AG65<2010),VLOOKUP(G65,'Capex by RE tech'!$A$2:$D$19,4,FALSE),NA)))))))) -> 0.23 | Y65: 0 | AB65: 0 | AC65: =VLOOKUP(G65,'Capex by RE tech'!$A$2:$F$19,6,TRUE) -> 1450 | AE65: 0 | AF65: NA | AH65: Part of Resilient National Energy Transition Strategy, pg. 55 | AI65: 2019-08-08 | AJ65: Confident
A66: 0 | C66: British Virgin Islands | D66: Paraquita Bay Integrated Energy Project | G66: Solar PV | Q66: =IF(ISNUMBER(R66),R66,IF(ISNUMBER(S66),S66, IF(ISNUMBER(T66), T66,"NA"))) -> NA | T66: =(N66 * 8760 * U66)/1000 ->  | V66: NA | X66: =IF(OR(K66="Under development",K66="Planned"),VLOOKUP(G66,'Capex by RE tech'!$A$4:$D$18,4,TRUE),IF(AND(K66="Operational",G66="Solar PV"),VLOOKUP(AG66,'Capex by RE tech'!$C$11:$D$13,2,TRUE),IF(AND(K66="Operational",G66="Wind"),VLOOKUP(AG66,'Capex by RE tech'!$C$17:$D$19,2,TRUE),IF(AND(K66="Operational",G66="Biomass"),VLOOKUP(AG66,'Capex by RE tech'!$C$2:$D$4,2,TRUE),IF(AND(K66="Operational",G66="Geothermal"),VLOOKUP(AG66,'Capex by RE tech'!$C$2:$D$4,2,TRUE),IF(AND(K66="Operational",G66="Hydro"),VLOOKUP(AG66,'Capex by RE tech'!$C$8:$D$10,2,TRUE),IF(AND(K66="Operational",G66="Waste-to-Energy"),VLOOKUP(AG66,'Capex by RE tech'!$C$14:$D$16,2,TRUE),IF(AND(K66="Operational",AG66<2010),VLOOKUP(G66,'Capex by RE tech'!$A$2:$D$19,4,FALSE),NA)))))))) ->  | Y66: =IF(ISNUMBER(Z66), Z66,IF(ISNUMBER(AA66),AA66,IF(ISNUMBER(AB66), AB66, "NA"))) -> 0 | AB66: 0 | AC66: =VLOOKUP(G66,'Capex by RE tech'!$A$2:$F$19,6,TRUE) -> 1450 | AE66: 0 | AF66: NA
A67: 0 | C67: British Virgin Islands | D67: Anegada Hybrid Microgrid Project | E67: Anegada Island | K67: Planned | Q67: NA | AC67: =VLOOKUP(G67,'Capex by RE tech'!$A$2:$F$19,6,TRUE) ->  | AE67: 0 | AF67: NA | AH67: Part of Resilient National Energy Transiation Strategy. Anegada island not connected to rest of BVI grid | AI67: 2019-08-08 | AJ67: Confident
A68: 0 | C68: British Virgin Islands | D68: Anegada Generation Expansion Project | E68: Anegada Island | K68: Planned | Q68: NA | AC68: =VLOOKUP(G68,'Capex by RE tech'!$A$2:$F$19,6,TRUE) ->  | AE68: 0 | AF68: NA | AH68: Part of Resilient National Energy Transiation Strategy. Anegada island not connected to rest of BVI grid | AI68: 2019-08-08 | AJ68: Confident
A69: 79 | B69: P0047 | C69: Cayman Islands | E69: Various Residential and Commercial Customers | F69: Caribbean Utilities Company Ltd. (CUC) | G69: Solar PV | H69: 79 | I69: =IF(K69="Planned","3.0",IF(AG69<DATE(2009,12,31),"1.0",IF(AND(AG69>=DATE(2010,1,1)+0,AG69<=DATE(2012,12,31)),"1.0",IF(AND(AG69>=DATE(2013,1,1),AG69<=DATE(2015,12,31)),"2.0",IF(AG69>=DATE(2016,1,1),"3.0",""))))) -> 1.0 | J69: Distributed | K69: Operational | L69: Caribbean Utilities Company Ltd. (CUC) | M69: Caribbean Utilities Company Ltd. (CUC) | N69: 8000 | Q69: 17800.32 | T69: 17800.32 | U69: 0.254 | V69: NA | X69: 0.254 | Y69: 20624000 | AB69: 20624000 | AC69: =IF(AND(ISNUMBER(N69), ISNUMBER(Y69)),Y69/N69,"NA") -> 2578 | AE69: 0 | AF69: 2009 | AG69: 2009 | AH69: CUC approved the allocation of two more MW of capacity for CUC's Core Programme in May 2017, however, customers will have only have access to 1 MW until December 2017. | AI69: 2017-08-03
A70: 1 | B70: P0048 | C70: Cayman Islands | D70: Bodden Town Solar Farm | E70: Bodden Town | F70: BMR Energy LLC | G70: Solar PV | H70: 1 | I70: =IF(K70="Planned","3.0",IF(AG70<DATE(2009,12,31),"1.0",IF(AND(AG70>=DATE(2010,1,1)+0,AG70<=DATE(2012,12,31)),"1.0",IF(AND(AG70>=DATE(2013,1,1),AG70<=DATE(2015,12,31)),"2.0",IF(AG70>=DATE(2016,1,1),"3.0",""))))) -> 1.0 | J70: Utility/IPP | K70: Operational | L70: BMR Energy LLC | M70: Caribbean Utilities Company Ltd. (CUC) | N70: 5000 | Q70: 11125.2 | T70: 11125.2 | U70: 0.254 | V70: NA | X70: 0.254 | Y70: 12890000 | AB70: 12890000 | AC70: =IF(AND(ISNUMBER(N70), ISNUMBER(Y70)),Y70/N70,"NA") -> 2578 | AE70: 0 | AF70: 2017 | AG70: 2017 | AH70: Project in operation since 2017. BMR Energy aquired the plant from Entropy Cayman Solar I in Januray 2019. | AI70: 2019-09-17 | AJ70: Confident
A71: 1 | B71: P0049 | C71: Cayman Islands | E71: George Town | F71: TBD | G71: Waste-to-Energy | H71: 1 | J71: Utility/IPP | K71: Planned | L71: TBD | M71: Caribbean Utilities Company Ltd. (CUC) | N71: 2700 | Q71: 16635.24 | T71: 16635.24 | U71: 0.7033333333 | V71: NA | X71: 0.7033333333 | Y71: 7000000 | AA71: 7000000 | AC71: =IF(AND(ISNUMBER(N71), ISNUMBER(Y71)),Y71/N71,"NA") -> 2592.592593 | AE71: 0 | AF71: NA | AH71: In 2016, government announced George Town landfill will be capped and a WtE plant will be constructed on the site. Companies are currently being shortlisted to construct and operate the plant over a 25-year-period. Still waiting on Environmental Impact Assessment expected to be completed June 2019. | AI71: 2019-08-05 | AJ71: Confident
A72: 1 | B72: P0050 | C72: Cayman Islands | G72: Solar PV | H72: 1 | I72: =IF(K72="Planned","3.0",IF(AG72<DATE(2009,12,31),"1.0",IF(AND(AG72>=DATE(2010,1,1)+0,AG72<=DATE(2012,12,31)),"1.0",IF(AND(AG72>=DATE(2013,1,1),AG72<=DATE(2015,12,31)),"2.0",IF(AG72>=DATE(2016,1,1),"3.0",""))))) -> 1.0 | J72: Distributed | K72: Operational | N72: 58.5 | Q72: 130.16484 | T72: 130.16484 | U72: 0.254 | V72: NA | X72: 0.254 | Y72: 250000 | AA72: 250000 | AB72: 150813 | AC72: =IF(AND(ISNUMBER(N72), ISNUMBER(Y72)),Y72/N72,"NA") -> 4273.504274 | AE72: 0 | AF72: NA | AH72: Completed at end of July 2014. | AI72: 2017-08-03
A73: 1 | B73: P0051 | C73: Cayman Islands | G73: Solar PV | H73: 1 | I73: =IF(K73="Planned","3.0",IF(AG73<DATE(2009,12,31),"1.0",IF(AND(AG73>=DATE(2010,1,1)+0,AG73<=DATE(2012,12,31)),"1.0",IF(AND(AG73>=DATE(2013,1,1),AG73<=DATE(2015,12,31)),"2.0",IF(AG73>=DATE(2016,1,1),"3.0",""))))) -> 1.0 | J73: Distributed | K73: Operational | N73: 3.4 | Q73: 7.565136 | T73: 7.565136 | U73: 0.254 | V73: NA | X73: 0.254 | Y73: 8765.2 | AB73: 8765.2 | AC73: =IF(AND(ISNUMBER(N73), ISNUMBER(Y73)),Y73/N73,"NA") -> 2578 | AE73: 0 | AF73: NA | AI73: 2017-08-03
A74: 1 | C74: Cayman Islands | G74: Waste-to-Energy | H74: 1 | J74: Utility/IPP | K74: Planned | M74: Caribbean Utilities Company Ltd. (CUC) | N74: 5000 | Q74: 30966.6 | T74: 30966.6 | U74: 0.707 | V74: NA | X74: =IF(OR(K74="Under development",K74="Planned"),VLOOKUP(G74,'Capex by RE tech'!$A$4:$D$18,4,TRUE),IF(AND(K74="Operational",G74="Solar PV"),VLOOKUP(AG74,'Capex by RE tech'!$C$11:$D$13,2,TRUE),IF(AND(K74="Operational",G74="Wind"),VLOOKUP(AG74,'Capex by RE tech'!$C$17:$D$19,2,TRUE),IF(AND(K74="Operational",G74="Biomass"),VLOOKUP(AG74,'Capex by RE tech'!$C$2:$D$4,2,TRUE),IF(AND(K74="Operational",G74="Geothermal"),VLOOKUP(AG74,'Capex by RE tech'!$C$2:$D$4,2,TRUE),IF(AND(K74="Operational",G74="Hydro"),VLOOKUP(AG74,'Capex by RE tech'!$C$8:$D$10,2,TRUE),IF(AND(K74="Operational",G74="Waste-to-Energy"),VLOOKUP(AG74,'Capex by RE tech'!$C$14:$D$16,2,TRUE),IF(AND(K74="Operational",AG74<2010),VLOOKUP(G74,'Capex by RE tech'!$A$2:$D$19,4,FALSE),NA)))))))) -> 0.707 | Y74: 41360000 | AB74: =AC74*N74 -> 41360000 | AC74: =VLOOKUP(G74,'Capex by RE tech'!$A$2:$F$19,6,TRUE) -> 8272 | AE74: 0 | AF74: NA | AH74: Part of IRP designed in 2017 and approved in 2019. Expected to be operational 2020 | AI74: 2019-08-08 | AJ74: Confident
A75: 1 | C75: Cayman Islands | G75: Biomass | H75: 1 | J75: Utility/IPP | K75: Planned | M75: Caribbean Utilities Company Ltd. (CUC) | N75: 1000 | Q75: 7884 | T75: 7884 | U75: 0.9 | V75: NA | X75: =IF(OR(K75="Under development",K75="Planned"),VLOOKUP(G75,'Capex by RE tech'!$A$4:$D$18,4,TRUE),IF(AND(K75="Operational",G75="Solar PV"),VLOOKUP(AG75,'Capex by RE tech'!$C$11:$D$13,2,TRUE),IF(AND(K75="Operational",G75="Wind"),VLOOKUP(AG75,'Capex by RE tech'!$C$17:$D$19,2,TRUE),IF(AND(K75="Operational",G75="Biomass"),VLOOKUP(AG75,'Capex by RE tech'!$C$2:$D$4,2,TRUE),IF(AND(K75="Operational",G75="Geothermal"),VLOOKUP(AG75,'Capex by RE tech'!$C$2:$D$4,2,TRUE),IF(AND(K75="Operational",G75="Hydro"),VLOOKUP(AG75,'Capex by RE tech'!$C$8:$D$10,2,TRUE),IF(AND(K75="Operational",G75="Waste-to-Energy"),VLOOKUP(AG75,'Capex by RE tech'!$C$14:$D$16,2,TRUE),IF(AND(K75="Operational",AG75<2010),VLOOKUP(G75,'Capex by RE tech'!$A$2:$D$19,4,FALSE),NA)))))))) -> 0.9 | Y75: 3000000 | AB75: =AC75*N75 -> 3000000 | AC75: =VLOOKUP(G75,'Capex by RE tech'!$A$2:$F$19,6,TRUE) -> 3000 | AE75: 0 | AF75: NA | AH75: Part of IRP designed in 2017 and approved in 2019. Expected to be operational 2020 | AI75: 2019-08-08 | AJ75: Confident
A76: 1 | B76: P0076 | C76: Cuba | F76: Ecotècnia S.c.c.l. | G76: Wind | H76: 1 | I76: =IF(K76="Planned","3.0",IF(AG76<DATE(2009,12,31),"1.0",IF(AND(AG76>=DATE(2010,1,1)+0,AG76<=DATE(2012,12,31)),"1.0",IF(AND(AG76>=DATE(2013,1,1),AG76<=DATE(2015,12,31)),"2.0",IF(AG76>=DATE(2016,1,1),"3.0",""))))) -> 1.0 | J76: Utility/IPP | K76: Operational | L76: Ecotècnia S.c.c.l. | M76: Unión Eléctrica de Cuba (UNE) | N76: 450 | Q76: 1813.32 | T76: 1813.32 | U76: 0.46 | V76: NA | X76: 0.46 | Y76: 709050 | AB76: 709050 | AC76: =IF(AND(ISNUMBER(N76), ISNUMBER(Y76)),Y76/N76,"NA") -> 1575.666667 | AE76: 0 | AF76: 1997 | AG76: 1997 | AH76: Turiguano Island Wind Park commissioned in 1997 as Cuba's first wind project. Plans to add 1000 kW in the future. | AI76: 2018-07-18 | AJ76: Confident
A77: 180 | B77: P0052 | C77: Cuba | E77: Various | F77: Various | G77: Hydro | H77: 180 | I77: =IF(K77="Planned","3.0",IF(AG77<DATE(2009,12,31),"1.0",IF(AND(AG77>=DATE(2010,1,1)+0,AG77<=DATE(2012,12,31)),"1.0",IF(AND(AG77>=DATE(2013,1,1),AG77<=DATE(2015,12,31)),"2.0",IF(AG77>=DATE(2016,1,1),"3.0",""))))) -> 1.0 | J77: Utility/IPP | K77: Operational | L77: Various | M77: Unión Eléctrica de Cuba (UNE) | N77: 62100 | Q77: 64200 | R77: 64200 | T77: 64200 | U77: 0.1180155736 | V77: 0.1180155736 | Y77: 174687300 | AB77: =AC77*N77 -> 174687300 | AC77: =VLOOKUP(G77,'Capex by RE tech'!$A$2:$F$19,6,TRUE) -> 2813 | AE77: 0 | AF77: =IF(ISNUMBER(AG77),AG77,IF(ISNUMBER(AH94),AH94,"NA")) -> NA | AI77: 2018-07-18 | AJ77: Not confident
A78: =H78 -> 1 | B78: P0053 | C78: Cuba | E78: Ciro Redondo Sugar Mill, Ciego de Avila | F78: Biopower S.A. (Joint venture between Zerus S.A. and Havana Energy) | G78: Biomass | H78: 1 | J78: Utility/IPP | K78: Under development | L78: Biopower S.A. (Joint venture between Zerus S.A. and Havana Energy) | M78: Unión Eléctrica de Cuba (UNE) | N78: 62000 | Q78: 378192.56 | T78: 378192.56 | U78: 0.6963333333 | V78: NA | X78: 0.6963333333 | Y78: 186000000 | AA78: 186000000 | AB78: 220823333.3 | AC78: =IF(AND(ISNUMBER(N78), ISNUMBER(Y78)),Y78/N78,"NA") -> 3000 | AE78: 0 | AF78: =IF(ISNUMBER(AG78),AG78,IF(ISNUMBER(AH78),AH78,"NA")) -> NA | AH78: Biopower, joint venture between Azcuba's subsidiary Zerus SA and Havana Energy, began construction in April 2017 and hopes to complete inaugral project by 2019 (delayed to November). Using Marabu as the fuel. First PPA signed in Cuba | AI78: 2019-08-05 | AJ78: Confident
A79: 74 | B79: P0054 | C79: Cuba | E79: Various | F79: TBD | G79: Hydro | H79: 74 | J79: Utility/IPP | K79: Under development | L79: TBD | M79: Unión Eléctrica de Cuba (UNE) | N79: 56000 | Q79: 350000 | S79: 350000 | T79: 350000 | U79: 0.7134703196 | V79: NA | W79: =S79 * 1000/(N79 * 8760) -> 0.7134703196 | X79: 0.85 | Y79: 172256000 | AB79: 172256000 | AC79: 3076 | AE79: 0 | AF79: 2030 | AH79: Part of Cuban government's plan to generate 2.1 GW of renewable energy by 2030. | AI79: 2019-08-05 | AJ79: Confident
A80: 1 | B80: P0055 | C80: Cuba | D80: La Herradura-1 Wind Farm | E80: Las Tunas Province | F80: Empresa de Construccion y Montaje | G80: Wind | H80: 1 | J80: Utility/IPP | K80: Under development | L80: Unión Eléctrica de Cuba (UNE) | M80: Unión Eléctrica de Cuba (UNE) | N80: 51000 | Q80: 205509.6 | T80: 205509.6 | U80: 0.46 | V80: NA | X80: 0.46 | Y80: 81934666.67 | AB80: 81934666.67 | AC80: 1606.562092 | AE80: 0 | AF80: =IF(ISNUMBER(AG80),AG80,IF(ISNUMBER(AH80),AH80,"NA")) -> NA | AH80: Construction started March 2019. Construction of Wind Farms in Las Tunas Enters into New Stage | AI80: 2019-08-08 | AJ80: Confident
A81: 1 | B81: P0056 | C81: Cuba | D81: La Herradura-2 Wind Farm | E81: Las Tunas Province | F81: Empresa de Construccion y Montaje | G81: Wind | H81: 1 | J81: Utility/IPP | K81: Under development | L81: Unión Eléctrica de Cuba (UNE) | M81: Unión Eléctrica de Cuba (UNE) | N81: 50000 | Q81: 201480 | T81: 201480 | U81: 0.46 | V81: NA | X81: 0.46 | Y81: 81934666.67 | AB81: 81934666.67 | AC81: 1638.693333 | AE81: 0 | AF81: NA | AH81: Construction has been underway. The company is also planning a third wind park. Construction of Wind Farms in Las Tunas Enters into New Stage | AI81: 2019-08-08 | AJ81: Confident
A82: 1 | B82: P0057 | C82: Cuba | E82: Cabo Lucrecia | F82: Unión Eléctrica de Cuba (UNE) | G82: Wind | H82: 1 | J82: Utility/IPP | K82: Planned | L82: Unión Eléctrica de Cuba (UNE) | M82: Unión Eléctrica de Cuba (UNE) | N82: 51000 | Q82: 205509.6 | T82: 205509.6 | U82: 0.46 | V82: =IF(OR(ISBLANK(N82),ISBLANK(R82)),"NA",(R82*1000)/(N82*8760)) -> NA | X82: 0.46 | Y82: 80359000 | AB82: 80359000 | AC82: 1575.666667 | AE82: 0 | AF82: NA | AH82: Prospective wind farm site identified by Ministry of Energy and Mining. | AI82: 2018-07-10 | AJ82: Confident
A83: 1 | B83: P0058 | C83: Cuba | E83: Camagüey Province | F83: Unión Eléctrica de Cuba (UNE) | G83: Wind | H83: 1 | J83: Utility/IPP | K83: Planned | L83: Unión Eléctrica de Cuba (UNE) | M83: Unión Eléctrica de Cuba (UNE) | N83: 51000 | Q83: 205509.6 | T83: 205509.6 | U83: 0.46 | V83: NA | X83: 0.46 | Y83: 80359000 | AB83: 80359000 | AC83: 1575.666667 | AE83: 0 | AF83: NA | AH83: Prospective wind farm site identified by Ministry of Energy and Mining. | AI83: 2018-07-10 | AJ83: Confident
A84: 1 | B84: P0059 | C84: Cuba | E84: Camagüey Province | F84: Unión Eléctrica de Cuba (UNE) | G84: Wind | H84: 1 | J84: Utility/IPP | K84: Planned | L84: Unión Eléctrica de Cuba (UNE) | M84: Unión Eléctrica de Cuba (UNE) | N84: 51000 | Q84: 205509.6 | T84: 205509.6 | U84: 0.46 | V84: NA | X84: 0.46 | Y84: 80359000 | AB84: 80359000 | AC84: 1575.666667 | AE84: 0 | AF84: NA | AH84: Continued work in Nuevas grandes, Manati | AI84: 2018-07-10 | AJ84: Confident
A85: 1 | B85: P0060 | C85: Cuba | E85: Punta de Maisi | F85: Unión Eléctrica de Cuba (UNE) | G85: Wind | H85: 1 | J85: Utility/IPP | K85: Planned | L85: Unión Eléctrica de Cuba (UNE) | M85: Unión Eléctrica de Cuba (UNE) | N85: 51000 | Q85: 205509.6 | T85: 205509.6 | U85: 0.46 | V85: NA | X85: 0.46 | Y85: 80359000 | AB85: 80359000 | AC85: 1575.666667 | AE85: 0 | AF85: NA | AH85: Prospective wind farm site identified by Ministry of Energy and Mining. | AI85: 2018-07-10 | AJ85: Confident
A86: 1 | B86: P0061 | C86: Cuba | E86: Punta de Maisi | F86: Unión Eléctrica de Cuba (UNE) | G86: Wind | H86: 1 | J86: Utility/IPP | K86: Planned | L86: Unión Eléctrica de Cuba (UNE) | M86: Unión Eléctrica de Cuba (UNE) | N86: 51000 | Q86: 205509.6 | T86: 205509.6 | U86: 0.46 | V86: NA | X86: 0.46 | Y86: 80359000 | AB86: 80359000 | AC86: 1575.666667 | AE86: 0 | AF86: NA | AH86: Prospective wind farm site identified by Ministry of Energy and Mining. | AI86: 2018-07-10 | AJ86: Confident
A87: 1 | B87: P0062 | C87: Cuba | E87: Mayabeque Province | F87: Unión Eléctrica de Cuba (UNE) | G87: Wind | H87: 1 | J87: Utility/IPP | K87: Planned | L87: Unión Eléctrica de Cuba (UNE) | M87: Unión Eléctrica de Cuba (UNE) | N87: 51000 | Q87: 205509.6 | T87: 205509.6 | U87: 0.46 | V87: NA | X87: 0.46 | Y87: 80359000 | AB87: 80359000 | AC87: 1575.666667 | AE87: 0 | AF87: NA | AH87: Prospective wind farm site identified by Ministry of Energy and Mining. | AI87: 2018-07-10 | AJ87: Confident
A88: 3 | B88: P0063 | C88: Cuba | D88: Mariel Solar PV Park | E88: Mariel Special Development Zone | F88: Hive Energy | G88: Solar PV | H88: 3 | J88: Utility/IPP | K88: Under development | L88: Hive Energy | M88: Unión Eléctrica de Cuba (UNE) | N88: 50000 | Q88: 108897 | S88: 108897 | T88: 438000 | U88: 1 | V88: NA | W88: =93000/438000 -> 0.2123287671 | X88: 0.254 | Y88: 100000000 | AA88: 100000000 | AB88: 150452080 | AC88: 2000 | AE88: 0 | AF88: NA | AH88: Expected to be completed 4Q2019. | AI88: 2019-08-05 | AJ88: Confident
A89: 1 | B89: P0064 | C89: Cuba | E89: Punta de Maisi | F89: Unión Eléctrica de Cuba (UNE) | G89: Wind | H89: 1 | J89: Utility/IPP | K89: Planned | L89: Unión Eléctrica de Cuba (UNE) | M89: Unión Eléctrica de Cuba (UNE) | N89: 36000 | Q89: 145065.6 | T89: 145065.6 | U89: =IF(AND(V89="NA",ISBLANK(W89)),X89,IF(V89<>"NA",V89,IF(ISNUMBER(W89),W89,X89))) -> 0.46 | V89: NA | X89: 0.46 | Y89: 56724000 | AB89: 56724000 | AC89: 1575.666667 | AE89: 0 | AF89: NA | AH89: Prospective wind farm site identified by Ministry of Energy and Mining. | AI89: 2018-07-10 | AJ89: Not confident
A90: 1 | B90: P0065 | C90: Cuba | E90: Punta de Maisi | F90: Unión Eléctrica de Cuba (UNE) | G90: Wind | H90: 1 | J90: Utility/IPP | K90: Planned | L90: Unión Eléctrica de Cuba (UNE) | M90: Unión Eléctrica de Cuba (UNE) | N90: 36000 | Q90: 145065.6 | T90: 145065.6 | U90: 0.46 | V90: NA | X90: 0.46 | Y90: 56724000 | AB90: 56724000 | AC90: 1575.666667 | AE90: 0 | AF90: NA | AH90: Prospective wind farm site identified by Ministry of Energy and Mining. | AI90: 2018-07-10 | AJ90: Not confident
A91: 1 | B91: P0066 | C91: Cuba | E91: Punta de Mulas | F91: Unión Eléctrica de Cuba (UNE) | G91: Wind | H91: 1 | J91: Utility/IPP | K91: Planned | L91: Unión Eléctrica de Cuba (UNE) | M91: Unión Eléctrica de Cuba (UNE) | N91: 36000 | Q91: 145065.6 | T91: 145065.6 | U91: 0.46 | V91: NA | X91: 0.46 | Y91: 56724000 | AB91: 56724000 | AC91: 1575.666667 | AE91: 0 | AF91: NA | AH91: Prospective wind farm site identified by Ministry of Energy and Mining. | AI91: 2018-07-10 | AJ91: Not confident
A92: 1 | B92: P0067 | C92: Cuba | E92: Matanzas Province | F92: Shandong Electric Power Engineering Consulting Institute Corp., Ltd. | G92: Biomass | H92: 1 | J92: Utility/IPP | K92: Under development | L92: Shandong Electric Power Engineering Consulting Institute Corp., Ltd. | M92: Unión Eléctrica de Cuba (UNE) | N92: 20000 | Q92: 90000 | S92: 90000 | T92: 90000 | U92: 0.5136986301 | V92: NA | W92: =90000/175200 -> 0.5136986301 | X92: 0.6963333333 | Y92: 71233333.33 | AB92: 71233333.33 | AC92: 3561.666667 | AE92: 0 | AF92: NA | AH92: British-Chinese group invests in second biomass power plant in Cuba | AI92: 2019-08-05 | AJ92: Not confident
A93: 1 | B93: P0290 | C93: Cuba | F93: ACIMUT | G93: Wind | H93: 1 | J93: Utility/IPP | K93: Planned | L93: ACIMUT | M93: Unión Eléctrica de Cuba (UNE) | Q93: 0 | T93: 0 | U93: 0.315 | V93: NA | X93: =IF(OR(K93="Under development",K93="Planned"),VLOOKUP(G93,'Capex by RE tech'!$A$4:$D$18,4,TRUE),IF(AND(K93="Operational",G93="Solar PV"),VLOOKUP(AG93,'Capex by RE tech'!$C$11:$D$13,2,TRUE),IF(AND(K93="Operational",G93="Wind"),VLOOKUP(AG93,'Capex by RE tech'!$C$17:$D$19,2,TRUE),IF(AND(K93="Operational",G93="Biomass"),VLOOKUP(AG93,'Capex by RE tech'!$C$2:$D$4,2,TRUE),IF(AND(K93="Operational",G93="Geothermal"),VLOOKUP(AG93,'Capex by RE tech'!$C$2:$D$4,2,TRUE),IF(AND(K93="Operational",G93="Hydro"),VLOOKUP(AG93,'Capex by RE tech'!$C$8:$D$10,2,TRUE),IF(AND(K93="Operational",G93="Waste-to-Energy"),VLOOKUP(AG93,'Capex by RE tech'!$C$14:$D$16,2,TRUE),IF(AND(K93="Operational",AG93<2010),VLOOKUP(G93,'Capex by RE tech'!$A$2:$D$19,4,FALSE),NA)))))))) -> 0.315 | Y93: 0 | AB93: =AC93*N93 -> 0 | AC93: =VLOOKUP(G93,'Capex by RE tech'!$A$2:$F$19,6,TRUE) -> 1475 | AI93: 2018-07-18 | AJ93: Not confident
A94: 1 | B94: P0070 | C94: Cuba | E94: Guantanamo | F94: Ministerio de la Industria Basica (MINBAS) & Unión Eléctrica de Cuba (UNE) | G94: Solar PV | H94: 1 | I94: =IF(K94="Planned","3.0",IF(AG94<DATE(2009,12,31),"1.0",IF(AND(AG94>=DATE(2010,1,1)+0,AG94<=DATE(2012,12,31)),"1.0",IF(AND(AG94>=DATE(2013,1,1),AG94<=DATE(2015,12,31)),"2.0",IF(AG94>=DATE(2016,1,1),"3.0",""))))) -> 1.0 | J94: Utility/IPP | K94: Operational | L94: Ministerio de la Industria Basica (MINBAS) & Unión Eléctrica de Cuba (UNE) | M94: Unión Eléctrica de Cuba (UNE) | N94: 2500 | Q94: 3000 | S94: 3000 | T94: 3000 | U94: 0.1369863014 | V94: NA | W94: =S94 * 1000/(N94 * 8760) -> 0.1369863014 | Y94: 5000000 | AB94: =2000 * N94 -> 5000000 | AC94: =IF(AND(ISNUMBER(N94), ISNUMBER(Y94)),Y94/N94,"NA") -> 2000 | AE94: =SUM(AD94:AD94) -> 0 | AF94: =IF(ISNUMBER(AG94),AG94,IF(ISNUMBER(#REF!),#REF!,"NA")) -> 2013 | AG94: 2013 | AH94: Back on track after Hurricane | AI94: 2018-07-18 | AJ94: Confident
A95: 1 | B95: P0072 | C95: Cuba | E95: Cienfuegos Province | F95: Hidroenergia | G95: Solar PV | H95: 1 | I95: 1.0 | J95: Utility/IPP | K95: Operational | L95: Hidroenergia | M95: Unión Eléctrica de Cuba (UNE) | N95: 2600 | O95: 14000 | P95: =N95/O95 -> 0.1857142857 | Q95: 5785.104 | T95: 5785.104 | U95: 0.254 | V95: NA | X95: 0.254 | Y95: 6702800 | AB95: 6702800 | AC95: 2578 | AE95: 0 | AF95: =IF(ISNUMBER(AG95),AG95,IF(ISNUMBER(AH95),AH95,"NA")) -> 2013 | AG95: 2013 | AI95: 2018-07-18 | AJ95: Confident
A96: 280 | B96: P0071 | C96: Cuba | E96: Various | G96: Solar PV | H96: 280 | I96: 1.0 | J96: Distributed | K96: Operational | M96: Unión Eléctrica de Cuba (UNE) | N96: 2800 | Q96: 6230.112 | T96: 6230.112 | U96: 0.254 | V96: NA | X96: 0.254 | Y96: 7218400 | AB96: 7218400 | AC96: 2578 | AE96: 0 | AF96: NA | AH96: Number of installations estimated assuming 10kW average size of installation. | AI96: 2017-08-03
A97: 1 | B97: P0073 | C97: Cuba | E97: Moa | F97: Unión Eléctrica de Cuba (UNE) | G97: Hydro | H97: 1 | I97: 1.0 | J97: Utility/IPP | K97: Operational | L97: Unión Eléctrica de Cuba (UNE) | M97: Unión Eléctrica de Cuba (UNE) | N97: 2000 | O97: 2 | P97: =N97/O97 -> 1000 | Q97: 16000 | S97: 16000 | T97: 16000 | U97: 0.9132420091 | V97: NA | W97: =S97 * 1000/(N97 * 8760) -> 0.9132420091 | X97: 0.85 | Y97: 6400000 | AA97: 6400000 | AB97: 6152000 | AC97: 3200 | AE97: 0 | AF97: 2010 | AG97: 2010 | AI97: 2018-07-18 | AJ97: Confident
A98: 1 | B98: P0075 | C98: Cuba | G98: Solar PV | H98: 1 | I98: 1.0 | J98: Utility/IPP | K98: Operational | N98: 962 | O98: 5200 | P98: =N98/O98 -> 0.185 | Q98: 2140.48848 | T98: 2140.48848 | U98: 0.254 | V98: NA | X98: 0.254 | Y98: 2480036 | AB98: 2480036 | AC98: 2578 | AE98: 0 | AF98: 2013 | AG98: 2013 | AI98: 2018-07-18 | AJ98: Confident
A99: 1 | B99: P0074 | C99: Cuba | E99: Isla de la Juventud | F99: Vergnet | G99: Wind | H99: 1 | I99: 1.0 | J99: Utility/IPP | K99: Operational | L99: Vergnet | M99: Unión Eléctrica de Cuba (UNE) | N99: 1650 | O99: 6 | P99: =N99/O99 -> 275 | Q99: 1800 | S99: 1800 | T99: 1800 | U99: 0.1245330012 | V99: NA | W99: =S99 * 1000/(N99 * 8760) -> 0.1245330012 | X99: 0.46 | Y99: 3400000 | AA99: 3400000 | AB99: 2599850 | AC99: 2060.606061 | AE99: 0 | AF99: 2007 | AG99: 2007 | AI99: 2018-07-18 | AJ99: Confident
A100: 1 | B100: P0068 | C100: Cuba | E100: Holguín | F100: Ministerio de la Industria Basica (MINBAS) & Unión Eléctrica de Cuba (UNE) | G100: Wind | H100: 1 | I100: 1.0 | J100: Utility/IPP | K100: Operational | L100: Ministerio de la Industria Basica (MINBAS) & Unión Eléctrica de Cuba (UNE) | M100: Unión Eléctrica de Cuba (UNE) | N100: 5100 | O100: 6 | P100: =N100/O100 -> 850 | Q100: 11000 | S100: 11000 | T100: 11000 | U100: 0.2462172083 | V100: NA | W100: =S100 * 1000/(N100 * 8760) -> 0.2462172083 | X100: 0.46 | Y100: 8035900 | AB100: 8035900 | AC100: 1575.666667 | AE100: 0 | AF100: 2008 | AG100: 2008 | AI100: 2018-07-18 | AJ100: Confident
A101: 1 | B101: P0069 | C101: Cuba | E101: Punta Rasa | F101: Goldwind Global | G101: Wind | H101: 1 | I101: 1.0 | J101: Utility/IPP | K101: Operational | L101: Goldwind Global | M101: Unión Eléctrica de Cuba (UNE) | N101: 4500 | O101: 6 | P101: =N101/O101 -> 750 | Q101: 10000 | S101: 10000 | T101: 10000 | U101: 0.2536783359 | V101: NA | W101: =S101 * 1000/(N101 * 8760) -> 0.2536783359 | X101: 0.46 | Y101: 7090500 | AB101: 7090500 | AC101: 1575.666667 | AE101: 0 | AF101: 2011 | AG101: 2011 | AH101: Construction of Wind Farm | AI101: 2018-07-18 | AJ101: Confident
A102: 1 | C102: Cuba | E102: Mario Munoz sugar mill | F102: Havana Energy | G102: Biomass | H102: 1 | K102: Under development | L102: Havana Energy | N102: 62000 | Q102: 488808 | T102: 488808 | U102: 0.9 | V102: NA | X102: =IF(OR(K102="Under development",K102="Planned"),VLOOKUP(G102,'Capex by RE tech'!$A$4:$D$18,4,TRUE),IF(AND(K102="Operational",G102="Solar PV"),VLOOKUP(AG102,'Capex by RE tech'!$C$11:$D$13,2,TRUE),IF(AND(K102="Operational",G102="Wind"),VLOOKUP(AG102,'Capex by RE tech'!$C$17:$D$19,2,TRUE),IF(AND(K102="Operational",G102="Biomass"),VLOOKUP(AG102,'Capex by RE tech'!$C$2:$D$4,2,TRUE),IF(AND(K102="Operational",G102="Geothermal"),VLOOKUP(AG102,'Capex by RE tech'!$C$2:$D$4,2,TRUE),IF(AND(K102="Operational",G102="Hydro"),VLOOKUP(AG102,'Capex by RE tech'!$C$8:$D$10,2,TRUE),IF(AND(K102="Operational",G102="Waste-to-Energy"),VLOOKUP(AG102,'Capex by RE tech'!$C$14:$D$16,2,TRUE),IF(AND(K102="Operational",AG102<2010),VLOOKUP(G102,'Capex by RE tech'!$A$2:$D$19,4,FALSE),NA)))))))) -> 0.9 | Y102: 140000000 | AB102: 140000000 | AC102: 2258.064516 | AG102: 2020 | AH102: Expected to be operational 2020 | AI102: 2019-08-07 | AJ102: Confident
A103: 1 | C103: Cuba | D103: Cardenas I | E103: Matanzas | G103: Solar PV | H103: 1 | J103: Utility/IPP | K103: Operational | N103: 3750 | Q103: 7555.5 | T103: 7555.5 | U103: 0.23 | V103: NA | X103: =IF(OR(K103="Under development",K103="Planned"),VLOOKUP(G103,'Capex by RE tech'!$A$4:$D$18,4,TRUE),IF(AND(K103="Operational",G103="Solar PV"),VLOOKUP(AG103,'Capex by RE tech'!$C$11:$D$13,2,TRUE),IF(AND(K103="Operational",G103="Wind"),VLOOKUP(AG103,'Capex by RE tech'!$C$17:$D$19,2,TRUE),IF(AND(K103="Operational",G103="Biomass"),VLOOKUP(AG103,'Capex by RE tech'!$C$2:$D$4,2,TRUE),IF(AND(K103="Operational",G103="Geothermal"),VLOOKUP(AG103,'Capex by RE tech'!$C$2:$D$4,2,TRUE),IF(AND(K103="Operational",G103="Hydro"),VLOOKUP(AG103,'Capex by RE tech'!$C$8:$D$10,2,TRUE),IF(AND(K103="Operational",G103="Waste-to-Energy"),VLOOKUP(AG103,'Capex by RE tech'!$C$14:$D$16,2,TRUE),IF(AND(K103="Operational",AG103<2010),VLOOKUP(G103,'Capex by RE tech'!$A$2:$D$19,4,FALSE),NA)))))))) -> 0.23 | Y103: 5437500 | AB103: =AC103*N103 -> 5437500 | AC103: =VLOOKUP(G103,'Capex by RE tech'!$A$2:$F$19,6,TRUE) -> 1450 | AE103: =SUM(AD103:AD103) -> 0 | AF103: =IF(ISNUMBER(AG103),AG103,IF(ISNUMBER(AH103),AH103,"NA")) -> 2019 | AG103: 2019 | AH103: Opened July 2019, financed by IRENA and Bud Dhabi Fund for Development | AI103: 2019-08-08 | AJ103: Confident
A104: 1 | C104: Cuba | F104: EFF Solar SA | G104: Solar PV | H104: 1 | J104: Utility/IPP | K104: Under development | L104: EFF Solar SA | N104: 5000 | Q104: 10074 | T104: 10074 | U104: 0.23 | V104: NA | X104: =IF(OR(K104="Under development",K104="Planned"),VLOOKUP(G104,'Capex by RE tech'!$A$4:$D$18,4,TRUE),IF(AND(K104="Operational",G104="Solar PV"),VLOOKUP(AG104,'Capex by RE tech'!$C$11:$D$13,2,TRUE),IF(AND(K104="Operational",G104="Wind"),VLOOKUP(AG104,'Capex by RE tech'!$C$17:$D$19,2,TRUE),IF(AND(K104="Operational",G104="Biomass"),VLOOKUP(AG104,'Capex by RE tech'!$C$2:$D$4,2,TRUE),IF(AND(K104="Operational",G104="Geothermal"),VLOOKUP(AG104,'Capex by RE tech'!$C$2:$D$4,2,TRUE),IF(AND(K104="Operational",G104="Hydro"),VLOOKUP(AG104,'Capex by RE tech'!$C$8:$D$10,2,TRUE),IF(AND(K104="Operational",G104="Waste-to-Energy"),VLOOKUP(AG104,'Capex by RE tech'!$C$14:$D$16,2,TRUE),IF(AND(K104="Operational",AG104<2010),VLOOKUP(G104,'Capex by RE tech'!$A$2:$D$19,4,FALSE),NA)))))))) -> 0.23 | Y104: 7250000 | AB104: 7250000 | AC104: =VLOOKUP(G104,'Capex by RE tech'!$A$2:$F$19,6,TRUE) -> 1450 | AE104: 0 | AF104: NA | AI104: 2019-08-08 | AJ104: Confident
A105: 1 | C105: Cuba | E105: Sancti Spiritus Province | G105: Solar PV | H105: 1 | J105: Utility/IPP | K105: Operational | N105: 1250 | Q105: 1875 | S105: 1875 | T105: 0 | U105: 0 | V105: NA | Y105: 1812500 | AB105: 1812500 | AC105: =VLOOKUP(G105,'Capex by RE tech'!$A$2:$F$19,6,TRUE) -> 1450 | AE105: 0 | AF105: 2019 | AG105: 2019 | AH105: Inaugurated February 2019 | AI105: 2019-08-08 | AJ105: Confident
A106: 1 | C106: Cuba | D106: Parada II Solar Park | E106: Puerto Padre, Las Tunas | G106: Solar PV | H106: 1 | J106: Utility/IPP | K106: Operational | N106: 4400 | Q106: 9125 | S106: =25*365 -> 9125 | T106: 0 | U106: 0 | V106: NA | Y106: 6380000 | AB106: 6380000 | AC106: =VLOOKUP(G106,'Capex by RE tech'!$A$2:$F$19,6,TRUE) -> 1450 | AE106: 0 | AF106: 2018 | AG106: 2018 | AH106: Operational since July 2018 | AI106: 2019-08-08 | AJ106: Confident
A107: 1 | C107: Cuba | D107: Parada I Solar Park | E107: Puerto Padre, Las Tunas | G107: Solar PV | H107: 1 | J107: Utility/IPP | K107: Operational | N107: 2200 | Q107: 4432.56 | T107: 4432.56 | U107: 0.23 | V107: NA | X107: =IF(OR(K107="Under development",K107="Planned"),VLOOKUP(G107,'Capex by RE tech'!$A$4:$D$18,4,TRUE),IF(AND(K107="Operational",G107="Solar PV"),VLOOKUP(AG107,'Capex by RE tech'!$C$11:$D$13,2,TRUE),IF(AND(K107="Operational",G107="Wind"),VLOOKUP(AG107,'Capex by RE tech'!$C$17:$D$19,2,TRUE),IF(AND(K107="Operational",G107="Biomass"),VLOOKUP(AG107,'Capex by RE tech'!$C$2:$D$4,2,TRUE),IF(AND(K107="Operational",G107="Geothermal"),VLOOKUP(AG107,'Capex by RE tech'!$C$2:$D$4,2,TRUE),IF(AND(K107="Operational",G107="Hydro"),VLOOKUP(AG107,'Capex by RE tech'!$C$8:$D$10,2,TRUE),IF(AND(K107="Operational",G107="Waste-to-Energy"),VLOOKUP(AG107,'Capex by RE tech'!$C$14:$D$16,2,TRUE),IF(AND(K107="Operational",AG107<2010),VLOOKUP(G107,'Capex by RE tech'!$A$2:$D$19,4,FALSE),NA)))))))) -> 0.23 | Y107: 3190000 | AB107: 3190000 | AC107: =VLOOKUP(G107,'Capex by RE tech'!$A$2:$F$19,6,TRUE) -> 1450 | AE107: 0 | AF107: 2017 | AG107: 2017 | AH107: Operational since September 2017 | AI107: 2019-08-08 | AJ107: Confident
A108: 1 | C108: Cuba | E108: Ciego de Avlia, Ceballos | G108: Solar PV | H108: 1 | I108: Utility/IPP | J108: Utility/IPP | K108: Operational | N108: 4400 | Q108: 8865.12 | T108: 8865.12 | U108: 0.23 | V108: NA | X108: =IF(OR(K108="Under development",K108="Planned"),VLOOKUP(G108,'Capex by RE tech'!$A$4:$D$18,4,TRUE),IF(AND(K108="Operational",G108="Solar PV"),VLOOKUP(AG108,'Capex by RE tech'!$C$11:$D$13,2,TRUE),IF(AND(K108="Operational",G108="Wind"),VLOOKUP(AG108,'Capex by RE tech'!$C$17:$D$19,2,TRUE),IF(AND(K108="Operational",G108="Biomass"),VLOOKUP(AG108,'Capex by RE tech'!$C$2:$D$4,2,TRUE),IF(AND(K108="Operational",G108="Geothermal"),VLOOKUP(AG108,'Capex by RE tech'!$C$2:$D$4,2,TRUE),IF(AND(K108="Operational",G108="Hydro"),VLOOKUP(AG108,'Capex by RE tech'!$C$8:$D$10,2,TRUE),IF(AND(K108="Operational",G108="Waste-to-Energy"),VLOOKUP(AG108,'Capex by RE tech'!$C$14:$D$16,2,TRUE),IF(AND(K108="Operational",AG108<2010),VLOOKUP(G108,'Capex by RE tech'!$A$2:$D$19,4,FALSE),NA)))))))) -> 0.23 | Y108: 6380000 | AB108: 6380000 | AC108: =VLOOKUP(G108,'Capex by RE tech'!$A$2:$F$19,6,TRUE) -> 1450 | AE108: 0 | AF108: 2017 | AG108: 2017 | AH108: Operational since August 2017 | AI108: 2019-08-08 | AJ108: Confident
A109: 1 | C109: Cuba | E109: Chambras | G109: Solar PV | H109: 1 | I109: Utility/IPP | J109: Utility/IPP | K109: Operational | N109: 5500 | Q109: 11081.4 | T109: 11081.4 | U109: 0.23 | V109: NA | X109: =IF(OR(K109="Under development",K109="Planned"),VLOOKUP(G109,'Capex by RE tech'!$A$4:$D$18,4,TRUE),IF(AND(K109="Operational",G109="Solar PV"),VLOOKUP(AG109,'Capex by RE tech'!$C$11:$D$13,2,TRUE),IF(AND(K109="Operational",G109="Wind"),VLOOKUP(AG109,'Capex by RE tech'!$C$17:$D$19,2,TRUE),IF(AND(K109="Operational",G109="Biomass"),VLOOKUP(AG109,'Capex by RE tech'!$C$2:$D$4,2,TRUE),IF(AND(K109="Operational",G109="Geothermal"),VLOOKUP(AG109,'Capex by RE tech'!$C$2:$D$4,2,TRUE),IF(AND(K109="Operational",G109="Hydro"),VLOOKUP(AG109,'Capex by RE tech'!$C$8:$D$10,2,TRUE),IF(AND(K109="Operational",G109="Waste-to-Energy"),VLOOKUP(AG109,'Capex by RE tech'!$C$14:$D$16,2,TRUE),IF(AND(K109="Operational",AG109<2010),VLOOKUP(G109,'Capex by RE tech'!$A$2:$D$19,4,FALSE),NA)))))))) -> 0.23 | Y109: 7975000 | AB109: 7975000 | AC109: =VLOOKUP(G109,'Capex by RE tech'!$A$2:$F$19,6,TRUE) -> 1450 | AF109: 2018 | AG109: 2018 | AH109: Operational since March 2018 | AI109: 2019-08-08 | AJ109: Confident
A110: =H110 -> 15 | C110: Cuba | G110: Solar PV | H110: 15 | J110: Utility/IPP | K110: Under development | N110: 42000 | Q110: 84621.6 | T110: 84621.6 | U110: 0.23 | V110: NA | X110: =IF(OR(K110="Under development",K110="Planned"),VLOOKUP(G110,'Capex by RE tech'!$A$4:$D$18,4,TRUE),IF(AND(K110="Operational",G110="Solar PV"),VLOOKUP(AG110,'Capex by RE tech'!$C$11:$D$13,2,TRUE),IF(AND(K110="Operational",G110="Wind"),VLOOKUP(AG110,'Capex by RE tech'!$C$17:$D$19,2,TRUE),IF(AND(K110="Operational",G110="Biomass"),VLOOKUP(AG110,'Capex by RE tech'!$C$2:$D$4,2,TRUE),IF(AND(K110="Operational",G110="Geothermal"),VLOOKUP(AG110,'Capex by RE tech'!$C$2:$D$4,2,TRUE),IF(AND(K110="Operational",G110="Hydro"),VLOOKUP(AG110,'Capex by RE tech'!$C$8:$D$10,2,TRUE),IF(AND(K110="Operational",G110="Waste-to-Energy"),VLOOKUP(AG110,'Capex by RE tech'!$C$14:$D$16,2,TRUE),IF(AND(K110="Operational",AG110<2010),VLOOKUP(G110,'Capex by RE tech'!$A$2:$D$19,4,FALSE),NA)))))))) -> 0.23 | Y110: 60900000 | AB110: 60900000 | AC110: =VLOOKUP(G110,'Capex by RE tech'!$A$2:$F$19,6,TRUE) -> 1450 | AI110: 2019-08-08 | AJ110: Confident
A111: 13 | C111: Cuba | G111: Wind | H111: 13 | I111: Utility/IPP | J111: Utility/IPP | K111: Planned | N111: 688000 | Q111: 1898467.2 | T111: 1898467.2 | U111: 0.315 | V111: NA | X111: =IF(OR(K111="Under development",K111="Planned"),VLOOKUP(G111,'Capex by RE tech'!$A$4:$D$18,4,TRUE),IF(AND(K111="Operational",G111="Solar PV"),VLOOKUP(AG111,'Capex by RE tech'!$C$11:$D$13,2,TRUE),IF(AND(K111="Operational",G111="Wind"),VLOOKUP(AG111,'Capex by RE tech'!$C$17:$D$19,2,TRUE),IF(AND(K111="Operational",G111="Biomass"),VLOOKUP(AG111,'Capex by RE tech'!$C$2:$D$4,2,TRUE),IF(AND(K111="Operational",G111="Geothermal"),VLOOKUP(AG111,'Capex by RE tech'!$C$2:$D$4,2,TRUE),IF(AND(K111="Operational",G111="Hydro"),VLOOKUP(AG111,'Capex by RE tech'!$C$8:$D$10,2,TRUE),IF(AND(K111="Operational",G111="Waste-to-Energy"),VLOOKUP(AG111,'Capex by RE tech'!$C$14:$D$16,2,TRUE),IF(AND(K111="Operational",AG111<2010),VLOOKUP(G111,'Capex by RE tech'!$A$2:$D$19,4,FALSE),NA)))))))) -> 0.315 | Y111: 1014800000 | AB111: 1014800000 | AC111: =VLOOKUP(G111,'Capex by RE tech'!$A$2:$F$19,6,TRUE) -> 1475 | AI111: 2019-08-08 | AJ111: Confident
A112: 1 | B112: P0291 | C112: Curaҫao | G112: Solar PV | H112: 1 | J112: Utility/IPP | K112: Planned | M112: Aqualectra | N112: 10000 | Q112: 17520 | T112: 17520 | U112: 0.2 | V112: NA | X112: 0.2 | Y112: 14500000 | AB112: 14500000 | AC112: =VLOOKUP(G112,'Capex by RE tech'!$A$2:$F$19,6,TRUE) -> 1450 | AF112: =IF(ISNUMBER(AG112),AG112,IF(ISNUMBER(AH112),AH112,"NA")) -> NA | AH112: National Policy for Curacao, Pg. 76 | AI112: 2019-09-16 | AJ112: Confident
A113: 1 | B113: P0078 | C113: Curaҫao | D113: Playa Kanoa Wind Farm | E113: Playa Kanoa | F113: NuCapital, Inc. | G113: Wind | H113: 1 | I113: =IF(K113="Planned","3.0",IF(AG113<DATE(2009,12,31),"1.0",IF(AND(AG113>=DATE(2010,1,1)+0,AG113<=DATE(2012,12,31)),"1.0",IF(AND(AG113>=DATE(2013,1,1),AG113<=DATE(2015,12,31)),"2.0",IF(AG113>=DATE(2016,1,1),"3.0",""))))) -> 1.0 | J113: Utility/IPP | K113: Operational | L113: NuCapital, Inc. | M113: Aqualectra | N113: 15000 | O113: 5 | P113: =N113/O113 -> 3000 | Q113: 65000 | S113: 65000 | T113: 65700 | U113: 0.5 | V113: NA | W113: 0.5 | X113: 0.46 | Y113: 32727272.73 | AB113: =N113 * AC113 -> 32727272.73 | AC113: =AC114 -> 2181.818182 | AE113: =SUM(AD113:AD113) -> 0 | AF113: 2012 | AG113: 2012 | AH113: Confirmed in survey response from Aqualectra. Operational in 1999, purchased by NuCapital, Inc. in 2012 and repowered with five 3-MW turbines. | AI113: 2019-09-16 | AJ113: Confident
A114: 1 | B114: P0079 | C114: Curaҫao | D114: Tera Kora Wind Farm (5X3MW) | E114: Tera Kora | F114: NuCapital, Inc. | G114: Wind | H114: 1 | I114: 1.0 | J114: Utility/IPP | K114: Operational | L114: NuCapital, Inc. | M114: Aqualectra | N114: 15000 | O114: 5 | P114: =N114/O114 -> 3000 | Q114: 65000 | S114: 65000 | T114: 65700 | U114: 0.5 | V114: =IF(OR(ISBLANK(N114),ISBLANK(R114)),"NA",(R114*1000)/(N114*8760)) -> NA | W114: 0.5 | Y114: 32727272.73 | AB114: =N114 * AC114 -> 32727272.73 | AC114: =AC115 -> 2181.818182 | AE114: 0 | AF114: 2012 | AG114: 2012 | AH114: Confirmed in survey response from Aqualectra. Operational in 1999, purchased by NuCapital, Inc. in 2012 and repowered with five 3-MW turbines. | AI114: 2019-09-16 | AJ114: Confident
A115: 1 | B115: P0077 | C115: Curaҫao | D115: Tera Kora Wind Farm (5X3.3MW) | E115: Tera Kora | F115: NuCuraҫao Windparken II B.V. | G115: Wind | H115: 1 | I115: 1.0 | J115: Utility/IPP | K115: Operational | L115: NuCuraҫao Windparken II B.V. | M115: Aqualectra | N115: 16500 | O115: 5 | P115: =N115/O115 -> 3300 | Q115: 103000 | S115: 103000 | T115: 101178 | U115: 0.7 | V115: NA | W115: 0.7 | X115: 0.46 | Y115: 36000000 | AA115: 36000000 | AB115: 27180250 | AC115: =IF(AND(ISNUMBER(N115), ISNUMBER(Y115)),Y115/N115,"NA") -> 2181.818182 | AE115: 0 | AF115: 2017 | AG115: 2017 | AH115: Confirmed in survey response from Aqualectra. Completed in August 2017 | AI115: 2019-09-16 | AJ115: Confident
A116: 700 | B116: P0080 | C116: Curaҫao | E116: Various | G116: Solar PV | H116: 700 | I116: 1.0 | J116: Distributed | K116: Operational | N116: 8000 | Q116: 17800.32 | T116: 17800.32 | U116: 0.254 | V116: NA | X116: 0.254 | Y116: 20624000 | AB116: 20624000 | AC116: 2578 | AE116: 0 | AF116: NA | AH116: Part of net metering program, 8 MW of grid-connected solar systems by February 2014. | AI116: 2017-08-03
A117: 1 | B117: P0081 | C117: Curaҫao | G117: Solar PV | H117: 1 | I117: 1.0 | J117: Distributed | K117: Operational | N117: 734 | Q117: 1633.17936 | T117: 1633.17936 | U117: 0.254 | V117: NA | X117: 0.254 | Y117: 1892252 | AB117: 1892252 | AC117: 2578 | AE117: 0 | AF117: 2013 | AG117: 2013 | AH117: Eco Energy installs 2669 panels at Naval Base Parera in 2013. | AI117: 2017-08-03
A118: 1 | B118: P0082 | C118: Curaҫao | G118: Solar PV | H118: 1 | I118: 1.0 | J118: Distributed | K118: Operational | N118: 715 | Q118: 1590.9036 | T118: 1590.9036 | U118: 0.254 | V118: NA | X118: 0.254 | Y118: 1843270 | AB118: 1843270 | AC118: 2578 | AE118: 0 | AF118: 2013 | AG118: 2013 | AH118: Eco Energy installs 2803 panels at Central Bank in 2013. | AI118: 2017-08-03
A119: 1 | B119: P0083 | C119: Dominica | E119: Roseau Valley | F119: TBD | G119: Geothermal | H119: 1 | J119: Utility/IPP | K119: Planned | L119: TBD | M119: Dominica Electricity Services Ltd. (DOMLEC) | N119: 100000 | Q119: 716860 | T119: 716860 | U119: 0.8183333333 | V119: NA | X119: 0.8183333333 | Y119: 484700000 | AB119: 484700000 | AC119: 4847 | AE119: 0 | AF119: NA | AH119: A small geothermal power plant with capacity of 7 MW will first (see P0269) be developed to produce at a domestic level, then a large power plant with capacity of up to 100 will be developed to export energy to other islands (Guadeloupe and Martinique). | AI119: 2019-10-09 | AJ119: Confident
A120: 1 | B120: P0085 | C120: Dominica | E120: Trafalgar Falls | F120: Dominica Electricity Services Ltd. (DOMLEC) | G120: Hydro | H120: 1 | I120: =IF(K120="Planned","3.0",IF(AG120<DATE(2009,12,31),"1.0",IF(AND(AG120>=DATE(2010,1,1)+0,AG120<=DATE(2012,12,31)),"1.0",IF(AND(AG120>=DATE(2013,1,1),AG120<=DATE(2015,12,31)),"2.0",IF(AG120>=DATE(2016,1,1),"3.0",""))))) -> 1.0 | J120: Utility/IPP | K120: Operational | L120: Dominica Electricity Services Ltd. (DOMLEC) | M120: Dominica Electricity Services Ltd. (DOMLEC) | N120: 3520 | O120: 2 | P120: =N120/O120 -> 1760 | Q120: 26209.92 | T120: 26209.92 | U120: 0.85 | V120: NA | X120: 0.85 | Y120: 10827520 | AB120: 10827520 | AC120: 3076 | AE120: 0 | AF120: 1991 | AG120: 1991 | AH120: Damaged by the hurricane Maria but operating | AI120: 2018-07-18 | AJ120: Confident
A121: 1 | B121: P0086 | C121: Dominica | E121: Roseau River | F121: Dominica Electricity Services Ltd. (DOMLEC) | G121: Hydro | H121: 1 | I121: =IF(K121="Planned","3.0",IF(AG121<DATE(2009,12,31),"1.0",IF(AND(AG121>=DATE(2010,1,1)+0,AG121<=DATE(2012,12,31)),"1.0",IF(AND(AG121>=DATE(2013,1,1),AG121<=DATE(2015,12,31)),"2.0",IF(AG121>=DATE(2016,1,1),"3.0",""))))) -> 1.0 | J121: Utility/IPP | K121: Operational | L121: Dominica Electricity Services Ltd. (DOMLEC) | M121: Dominica Electricity Services Ltd. (DOMLEC) | N121: 1800 | O121: 2 | P121: =N121/O121 -> 900 | Q121: 13402.8 | T121: 13402.8 | U121: 0.85 | V121: NA | X121: 0.85 | Y121: 5536800 | AB121: 5536800 | AC121: 3076 | AE121: 0 | AF121: 1990 | AG121: 1990 | AH121: Hydro Power Plants – Padu power station suffered extensive damage to the turbine house and generating units. | AI121: 2018-07-18 | AJ121: Confident
A122: 1 | B122: P0269 | C122: Dominica | E122: Roseau Valley | G122: Geothermal | H122: 1 | J122: Utility/IPP | K122: Planned | M122: Dominica Electricity Services Ltd. (DOMLEC) | N122: 7000 | O122: 2 | P122: =N122/O122 -> 3500 | Q122: 50180.2 | T122: 50180.2 | U122: 0.8183333333 | V122: NA | Y122: 48000000 | AA122: 48000000 | AB122: 33929000 | AC122: 6857.142857 | AH122: Secured $27 million in funding from the World Bank in March 2019. Testing on well began October 2019. Construction was set for 3Q 2019 | AI122: 2019-08-06 | AJ122: Confident
A123: 1 | B123: P0087 | C123: Dominica | E123: Laudat | F123: Dominica Electricity Services Ltd. (DOMLEC) | G123: Hydro | H123: 1 | I123: =IF(K123="Planned","3.0",IF(AG123<DATE(2009,12,31),"1.0",IF(AND(AG123>=DATE(2010,1,1)+0,AG123<=DATE(2012,12,31)),"1.0",IF(AND(AG123>=DATE(2013,1,1),AG123<=DATE(2015,12,31)),"2.0",IF(AG123>=DATE(2016,1,1),"3.0",""))))) -> 1.0 | J123: Utility/IPP | K123: Operational | L123: Dominica Electricity Services Ltd. (DOMLEC) | M123: Dominica Electricity Services Ltd. (DOMLEC) | N123: 1300 | O123: 1 | P123: =N123/O123 -> 1300 | Q123: 9679.8 | T123: 9679.8 | U123: =IF(AND(V123="NA",ISBLANK(W123)),X123,IF(V123<>"NA",V123,IF(ISNUMBER(W123),W123,X123))) -> 0.85 | V123: NA | X123: 0.85 | Y123: 3998800 | AB123: 3998800 | AC123: 3076 | AE123: =SUM(AD123:AD123) -> 0 | AF123: =IF(ISNUMBER(AG123),AG123,IF(ISNUMBER(AH123),AH123,"NA")) -> 1967 | AG123: 1967 | AI123: 2018-07-18 | AJ123: Confident
A124: 1 | B124: P0088 | C124: Dominica | G124: Solar PV | H124: 1 | I124: =IF(K124="Planned","3.0",IF(AG124<DATE(2009,12,31),"1.0",IF(AND(AG124>=DATE(2010,1,1)+0,AG124<=DATE(2012,12,31)),"1.0",IF(AND(AG124>=DATE(2013,1,1),AG124<=DATE(2015,12,31)),"2.0",IF(AG124>=DATE(2016,1,1),"3.0",""))))) -> 1.0 | J124: Distributed | K124: Operational | N124: 225 | Q124: 500.634 | T124: 500.634 | U124: =IF(AND(V124="NA",ISBLANK(W124)),X124,IF(V124<>"NA",V124,IF(ISNUMBER(W124),W124,X124))) -> 0.254 | V124: NA | X124: 0.254 | Y124: 580050 | AB124: 580050 | AC124: 2578 | AE124: =SUM(AD124:AD124) -> 0 | AF124: 2014 | AG124: 2014 | AH124: Eco Resort in Dominica got closed after hurricane | AI124: 2018-08-06
A125: 1 | B125: P0089 | C125: Dominica | G125: Wind | H125: 1 | I125: =IF(K125="Planned","3.0",IF(AG125<DATE(2009,12,31),"1.0",IF(AND(AG125>=DATE(2010,1,1)+0,AG125<=DATE(2012,12,31)),"1.0",IF(AND(AG125>=DATE(2013,1,1),AG125<=DATE(2015,12,31)),"2.0",IF(AG125>=DATE(2016,1,1),"3.0",""))))) -> 1.0 | J125: Distributed | K125: Operational | N125: 225 | Q125: 906.66 | T125: 906.66 | U125: =IF(AND(V125="NA",ISBLANK(W125)),X125,IF(V125<>"NA",V125,IF(ISNUMBER(W125),W125,X125))) -> 0.46 | V125: NA | X125: 0.46 | Y125: 354525 | AB125: 354525 | AC125: 1575.666667 | AE125: =SUM(AD125:AD125) -> 0 | AF125: 2014 | AG125: 2014 | AH125: Additional 1-kW turbine operational, but not connected to the grid. | AI125: 2017-08-03
A126: 1 | B126: P0299 | C126: Dominica | G126: Solar PV | H126: 1 | J126: Distributed | K126: Planned | Q126: 0 | T126: 0 | U126: 0.2 | V126: NA | X126: =IF(OR(K126="Under development",K126="Planned"),VLOOKUP(G126,'Capex by RE tech'!$A$4:$D$18,4,TRUE),IF(AND(K126="Operational",G126="Solar PV"),VLOOKUP(AG126,'Capex by RE tech'!$C$11:$D$13,2,TRUE),IF(AND(K126="Operational",G126="Wind"),VLOOKUP(AG126,'Capex by RE tech'!$C$17:$D$19,2,TRUE),IF(AND(K126="Operational",G126="Biomass"),VLOOKUP(AG126,'Capex by RE tech'!$C$2:$D$4,2,TRUE),IF(AND(K126="Operational",G126="Geothermal"),VLOOKUP(AG126,'Capex by RE tech'!$C$2:$D$4,2,TRUE),IF(AND(K126="Operational",G126="Hydro"),VLOOKUP(AG126,'Capex by RE tech'!$C$8:$D$10,2,TRUE),IF(AND(K126="Operational",G126="Waste-to-Energy"),VLOOKUP(AG126,'Capex by RE tech'!$C$14:$D$16,2,TRUE),IF(AND(K126="Operational",AG126<2010),VLOOKUP(G126,'Capex by RE tech'!$A$2:$D$19,4,FALSE),NA)))))))) -> 0.23 | Y126: 6000000 | AA126: 6000000 | AC126: NA | AF126: NA | AH126: Incorporation of 4 Renewable Distributed Generation Systems with Storm resilient Solar PV (6 Million US$) | AI126: 2018-09-19 | AJ126: Confident
A127: 1 | B127: P0300 | C127: Dominica | G127: Solar PV | H127: 1 | J127: Utility/IPP | K127: Planned | Q127: 0 | T127: 0 | U127: 0.2 | V127: NA | X127: =IF(OR(K127="Under development",K127="Planned"),VLOOKUP(G127,'Capex by RE tech'!$A$4:$D$18,4,TRUE),IF(AND(K127="Operational",G127="Solar PV"),VLOOKUP(AG127,'Capex by RE tech'!$C$11:$D$13,2,TRUE),IF(AND(K127="Operational",G127="Wind"),VLOOKUP(AG127,'Capex by RE tech'!$C$17:$D$19,2,TRUE),IF(AND(K127="Operational",G127="Biomass"),VLOOKUP(AG127,'Capex by RE tech'!$C$2:$D$4,2,TRUE),IF(AND(K127="Operational",G127="Geothermal"),VLOOKUP(AG127,'Capex by RE tech'!$C$2:$D$4,2,TRUE),IF(AND(K127="Operational",G127="Hydro"),VLOOKUP(AG127,'Capex by RE tech'!$C$8:$D$10,2,TRUE),IF(AND(K127="Operational",G127="Waste-to-Energy"),VLOOKUP(AG127,'Capex by RE tech'!$C$14:$D$16,2,TRUE),IF(AND(K127="Operational",AG127<2010),VLOOKUP(G127,'Capex by RE tech'!$A$2:$D$19,4,FALSE),NA)))))))) -> 0.23 | Y127: 2400000 | AA127: 2400000 | AC127: NA | AF127: NA | AH127: Microgrid for airport and Castle Bruce Area (2.4 Million US$) | AI127: 2018-09-19 | AJ127: Not confident
A128: 1 | B128: P0301 | C128: Dominica | G128: Solar PV | H128: 1 | I128: =IF(K128="Planned","3.0",IF(AG128<DATE(2009,12,31),"1.0",IF(AND(AG128>=DATE(2010,1,1)+0,AG128<=DATE(2012,12,31)),"1.0",IF(AND(AG128>=DATE(2013,1,1),AG128<=DATE(2015,12,31)),"2.0",IF(AG128>=DATE(2016,1,1),"3.0",""))))) -> 1.0 | J128: Utility/IPP | K128: Operational | N128: 3000 | Q128: 5256 | T128: 5256 | U128: =IF(AND(V128="NA",ISBLANK(W128)),X128,IF(V128<>"NA",V128,IF(ISNUMBER(W128),W128,X128))) -> 0.2 | V128: NA | X128: 0.2 | Y128: 8000000 | AA128: 8000000 | AC128: 2666.666667 | AF128: 2018 | AG128: 2018 | AH128: Large Scale Solar PV3 1MW Solar Installed during 2018/19, resilient to withstand cat 4 and 5 / Cost 8 M US$ | AI128: 2018-09-19 | AJ128: Confident
A129: 1 | B129: P0302 | C129: Dominica | G129: Solar PV | H129: 1 | J129: Distributed | K129: Planned | Q129: 0 | T129: 0 | U129: 0.23 | V129: NA | X129: =IF(OR(K129="Under development",K129="Planned"),VLOOKUP(G129,'Capex by RE tech'!$A$4:$D$18,4,TRUE),IF(AND(K129="Operational",G129="Solar PV"),VLOOKUP(AG129,'Capex by RE tech'!$C$11:$D$13,2,TRUE),IF(AND(K129="Operational",G129="Wind"),VLOOKUP(AG129,'Capex by RE tech'!$C$17:$D$19,2,TRUE),IF(AND(K129="Operational",G129="Biomass"),VLOOKUP(AG129,'Capex by RE tech'!$C$2:$D$4,2,TRUE),IF(AND(K129="Operational",G129="Geothermal"),VLOOKUP(AG129,'Capex by RE tech'!$C$2:$D$4,2,TRUE),IF(AND(K129="Operational",G129="Hydro"),VLOOKUP(AG129,'Capex by RE tech'!$C$8:$D$10,2,TRUE),IF(AND(K129="Operational",G129="Waste-to-Energy"),VLOOKUP(AG129,'Capex by RE tech'!$C$14:$D$16,2,TRUE),IF(AND(K129="Operational",AG129<2010),VLOOKUP(G129,'Capex by RE tech'!$A$2:$D$19,4,FALSE),NA)))))))) -> 0.23 | Y129: 5000000 | AA129: 5000000 | AC129: NA | AF129: NA | AH129: Aggregated Battery Storage of 15MWh for Commercial and Home | AI129: 2018-09-19 | AJ129: Confident
A130: 10 | B130: P0090 | C130: Dominica | G130: Solar PV | H130: 10 | I130: =IF(K130="Planned","3.0",IF(AG130<DATE(2009,12,31),"1.0",IF(AND(AG130>=DATE(2010,1,1)+0,AG130<=DATE(2012,12,31)),"1.0",IF(AND(AG130>=DATE(2013,1,1),AG130<=DATE(2015,12,31)),"2.0",IF(AG130>=DATE(2016,1,1),"3.0",""))))) -> 1.0 | J130: Distributed | K130: Operational | N130: 195.7 | Q130: =IF(ISNUMBER(R130),R130,IF(ISNUMBER(S130),S130, IF(ISNUMBER(T130), T130,"NA"))) -> 435.440328 | T130: =(N130 * 8760 * U130)/1000 -> 435.440328 | U130: 0.254 | V130: NA | X130: 0.254 | Y130: =IF(ISNUMBER(Z130), Z130,IF(ISNUMBER(AA130),AA130,IF(ISNUMBER(AB130), AB130, "NA"))) -> 504514.6 | AB130: 504514.6 | AC130: 2578 | AE130: =SUM(AD130:AD130) -> 0 | AF130: NA | AI130: 2017-08-03
A131: 1 | B131: P0091 | C131: Dominica | G131: Wind | H131: 1 | I131: =IF(K131="Planned","3.0",IF(AG131<DATE(2009,12,31),"1.0",IF(AND(AG131>=DATE(2010,1,1)+0,AG131<=DATE(2012,12,31)),"1.0",IF(AND(AG131>=DATE(2013,1,1),AG131<=DATE(2015,12,31)),"2.0",IF(AG131>=DATE(2016,1,1),"3.0",""))))) -> 1.0 | J131: Distributed | K131: Operational | N131: 1.5 | Q131: 6.0444 | T131: 6.0444 | U131: 0.46 | V131: NA | X131: 0.46 | Y131: 2363.5 | AB131: 2363.5 | AC131: 1575.666667 | AE131: =SUM(AD131:AD131) -> 0 | AF131: 2003 | AG131: 2003 | AH131: Lodge is powered by completely clean energy (extra 800 watts of solar). | AI131: 2017-08-03
A132: 1 | B132: P0292 | C132: Dominican Republic | D132: Parque Eolico Tierra Nueva | F132: EGEHID | G132: Wind | H132: 1 | J132: Utility/IPP | K132: Planned | L132: EGEHID | M132: Corporación Dominicana de Empresas Eléctricas Estatales | N132: 50000 | Q132: 116000 | S132: =116000 -> 116000 | T132: 116000 | U132: 0.2648401826 | V132: NA | W132: =S132 * 1000/(N132 * 8760) -> 0.2648401826 | Y132: 144450000 | AB132: =AC141 * N132 -> 144450000 | AC132: 2889 | AH132: CDEEE Strategic Plan 2017-2020 | AI132: 2019-09-16 | AJ132: Confident
A133: 1 | B133: P0293 | C133: Dominican Republic | D133: Proyecto Hidroeléctrico La Diferencia | F133: Generacion Hidroelectirca Dominicana | G133: Hydro | H133: 1 | J133: Utility/IPP | K133: Planned | L133: Generacion Hidroelectirca Dominicana | M133: Corporación Dominicana de Empresas Eléctricas Estatales | N133: 11000 | Q133: 30400 | S133: 30400 | T133: 30400 | U133: 0.3154836032 | V133: NA | W133: =S133 * 1000/(N133 * 8760) -> 0.3154836032 | Y133: 30943000 | AB133: =AC133*N133 -> 30943000 | AC133: =VLOOKUP(G133,'Capex by RE tech'!$A$2:$F$19,6,TRUE) -> 2813 | AH133: CDEEE Strategic Plan 2017-2020 | AI133: 2019-09-16 | AJ133: Confident
A134: 1 | B134: P0294 | C134: Dominican Republic | D134: Proyecto Hidroeléctrico Expansión Hatillo | F134: Generacion Hidroelectirca Dominicana | G134: Hydro | H134: 1 | J134: Utility/IPP | K134: Under development | L134: Generacion Hidroelectirca Dominicana | M134: Corporación Dominicana de Empresas Eléctricas Estatales | N134: 10700 | Q134: 70350 | S134: =70.35 * 1000 -> 70350 | T134: 70350 | U134: 0.7505441045 | V134: NA | W134: =S134 * 1000/(N134 * 8760) -> 0.7505441045 | Y134: 30099100 | AB134: =AC134*N134 -> 30099100 | AC134: =VLOOKUP(G134,'Capex by RE tech'!$A$2:$F$19,6,TRUE) -> 2813 | AH134: CDEEE Strategic Plan 2017-2020 | AI134: 2019-09-16 | AJ134: Confident
C135: Dominican Republic | D135: Proyecto Hidroelectrico Artibonito | E135: Pedro Santana, Elias Pina | G135: Hydro | H135: 1 | J135: Utility/IPP | K135: Planned | L135: EGEHID | N135: 50000 | Q135: 130000 | S135: 130000 | T135: 177828 | U135: 0.406 | V135: NA | X135: =IF(OR(K135="Under development",K135="Planned"),VLOOKUP(G135,'Capex by RE tech'!$A$4:$D$18,4,TRUE),IF(AND(K135="Operational",G135="Solar PV"),VLOOKUP(AG135,'Capex by RE tech'!$C$11:$D$13,2,TRUE),IF(AND(K135="Operational",G135="Wind"),VLOOKUP(AG135,'Capex by RE tech'!$C$17:$D$19,2,TRUE),IF(AND(K135="Operational",G135="Biomass"),VLOOKUP(AG135,'Capex by RE tech'!$C$2:$D$4,2,TRUE),IF(AND(K135="Operational",G135="Geothermal"),VLOOKUP(AG135,'Capex by RE tech'!$C$2:$D$4,2,TRUE),IF(AND(K135="Operational",G135="Hydro"),VLOOKUP(AG135,'Capex by RE tech'!$C$8:$D$10,2,TRUE),IF(AND(K135="Operational",G135="Waste-to-Energy"),VLOOKUP(AG135,'Capex by RE tech'!$C$14:$D$16,2,TRUE),IF(AND(K135="Operational",AG135<2010),VLOOKUP(G135,'Capex by RE tech'!$A$2:$D$19,4,FALSE),NA)))))))) -> 0.406 | Y135: 140650000 | AB135: =AC135*N135 -> 140650000 | AC135: =VLOOKUP(G135,'Capex by RE tech'!$A$2:$F$19,6,TRUE) -> 2813 | AH135: CDEEE Strategic Plan 2017-2020 | AI135: 2019-09-16 | AJ135: Confident
A136: =H136 -> 26 | B136: P0092 | C136: Dominican Republic | F136: Various | G136: Hydro | H136: 26 | I136: =IF(K136="Planned","3.0",IF(AG136<DATE(2009,12,31),"1.0",IF(AND(AG136>=DATE(2010,1,1)+0,AG136<=DATE(2012,12,31)),"1.0",IF(AND(AG136>=DATE(2013,1,1),AG136<=DATE(2015,12,31)),"2.0",IF(AG136>=DATE(2016,1,1),"3.0",""))))) -> 1.0 | J136: Utility/IPP | K136: Operational | L136: Various | M136: Various | N136: 613000 | Q136: 231263.8423 | S136: 231263.8423 | T136: 4564398 | U136: 0.85 | V136: =IF(OR(ISBLANK(N136),ISBLANK(R136)),"NA",(R136*1000)/(N136*8760)) -> NA | X136: 0.85 | Y136: 1885588000 | AB136: 1885588000 | AC136: =IF(AND(ISNUMBER(N136), ISNUMBER(Y136)),Y136/N136,"NA") -> 3076 | AE136: =SUM(AD136:AD136) -> 0 | AF136: =IF(ISNUMBER(AG136),AG136,IF(ISNUMBER(AH136),AH136,"NA")) -> NA | AI136: 2018-07-18 | AJ136: Confident
A137: 1 | B137: P0096 | C137: Dominican Republic | D137: Parque Montecristi Solar Phase I | E137: Monte Cristi Province | F137: Montecristi Solar FV SAS (F&S Solar) | G137: Solar PV | H137: 1 | J137: Utility/IPP | K137: Operational | L137: Montecristi Solar FV SAS (F&S Solar) | M137: Corporación Dominicana de Empresas Eléctricas Estatales | N137: 57960 | Q137: 90122 | S137: 90122 | T137: 90122 | U137: 0.1774999921 | V137: NA | W137: =S137 * 1000/(N137 * 8760) -> 0.1774999921 | X137: 0.254 | Y137: 100000000 | AA137: 100000000 | AB137: 149420880 | AC137: 1725.327812 | AE137: 0 | AF137: 2018 | AG137: 2018 | AH137: CDEEE Strategic Plan 2017-2020 pg. 37. Will add additional another 58 MW of capacity in Phase II | AI137: 2019-09-16 | AJ137: Confident
A138: 0 | C138: Dominican Republic | D138: Parque Montecristi Solar Phase II | E138: Monte Cristi Province | F138: F&S Solar | G138: Solar PV | J138: Utility/IPP | K138: Under development | L138: F&S Solar | M138: Corporación Dominicana de Empresas Eléctricas Estatales | N138: 57960 | Q138: 116777.808 | T138: 116777.808 | U138: 0.23 | V138: NA | X138: =IF(OR(K138="Under development",K138="Planned"),VLOOKUP(G138,'Capex by RE tech'!$A$4:$D$18,4,TRUE),IF(AND(K138="Operational",G138="Solar PV"),VLOOKUP(AG138,'Capex by RE tech'!$C$11:$D$13,2,TRUE),IF(AND(K138="Operational",G138="Wind"),VLOOKUP(AG138,'Capex by RE tech'!$C$17:$D$19,2,TRUE),IF(AND(K138="Operational",G138="Biomass"),VLOOKUP(AG138,'Capex by RE tech'!$C$2:$D$4,2,TRUE),IF(AND(K138="Operational",G138="Geothermal"),VLOOKUP(AG138,'Capex by RE tech'!$C$2:$D$4,2,TRUE),IF(AND(K138="Operational",G138="Hydro"),VLOOKUP(AG138,'Capex by RE tech'!$C$8:$D$10,2,TRUE),IF(AND(K138="Operational",G138="Waste-to-Energy"),VLOOKUP(AG138,'Capex by RE tech'!$C$14:$D$16,2,TRUE),IF(AND(K138="Operational",AG138<2010),VLOOKUP(G138,'Capex by RE tech'!$A$2:$D$19,4,FALSE),NA)))))))) -> 0.23 | Y138: 150000000 | AA138: 150000000 | AC138: 2587.991718 | AE138: 0 | AF138: NA | AH138: Provisional CNE concession | AI138: 2019-08-06 | AJ138: Confident
A139: 1 | B139: P0097 | C139: Dominican Republic | D139: Parque Fotovoltaico WCG | E139: Mata de Palma, San Antonio de Guerra | F139: WCG Energy Ltd. | G139: Solar PV | H139: 1 | J139: Utility/IPP | K139: Under development | L139: WCG Energy Ltd. | M139: Corporación Dominicana de Empresas Eléctricas Estatales | N139: 50000 | Q139: 110000 | S139: 110000 | T139: 110000 | U139: 0.2511415525 | V139: NA | W139: 0.2511415525 | X139: 0.254 | Y139: 78000000 | AA139: 78000000 | AB139: 128900000 | AC139: 1560 | AE139: 0 | AF139: NA | AH139: CDEEE Strategic Plan 2017-2020 pg. 37. Broke ground February 2019. Developed by WCG Energy LTD. One of eight renewable energy projects announced by the Dominican Corporation of State Electric Companies in April 2017, projects will add a combined capacity of 361.2 MW by 2018. | AI139: 2019-08-12 | AJ139: Confident
A140: 1 | B140: P0098 | C140: Dominican Republic | D140: Parque Éolico Agua Clara | E140: Monte Cristi Province | F140: IC Power DR Operations, S.A.S | G140: Wind | H140: 1 | J140: Utility/IPP | K140: Operational | L140: IC Power DR Operations, S.A.S | M140: Corporación Dominicana de Empresas Eléctricas Estatales | N140: 50000 | Q140: 170000 | S140: 170000 | T140: 170000 | U140: 0.3881278539 | V140: NA | W140: 0.3881278539 | X140: 0.46 | Y140: 90000000 | AA140: 90000000 | AB140: 78783333.33 | AC140: 1800 | AE140: 0 | AF140: 2019 | AG140: 2019 | AH140: CDEEE Strategic Plan 2017-2020 pg. 37. Began operations April 2019. Developed by ICC Power DR Operations. One of eight renewable energy projects announced by the Dominican Corporation of State Electric Companies in April 2017, projects will add a combined capacity of 361.2 MW by 2018. | AI140: 2019-08-06 | AJ140: Confident
A141: 1 | B141: P0099 | C141: Dominican Republic | D141: Parque Éolico Guanillo | E141: Monte Cristi Province | F141: Parques Eolicos del Caribe (PECASA S.A.) | G141: Wind | H141: 1 | J141: Utility/IPP | K141: Operational | L141: Parques Eolicos del Caribe (PECASA S.A.) | M141: Corporación Dominicana de Empresas Eléctricas Estatales | N141: 50000 | Q141: 144540 | S141: 144540 | T141: 144540 | U141: 0.33 | V141: NA | W141: 0.33 | X141: 0.46 | Y141: 144450000 | AA141: 144450000 | AB141: 78783333.33 | AC141: 2889 | AE141: 0 | AF141: NA | AH141: CDEEE Strategic Plan 2017-2020 pg. 37. Inaugurated June 2019. Developed by Parques Eolicos del Caribe (PECASA S.A.). One of eight renewable energy projects announced by the Dominican Corporation of State Electric Companies in April 2017, projects will add a combined capacity of 361.2 MW by 2018. PPA : 115 USD | AI141: 2019-09-16 | AJ141: Confident
A142: 1 | B142: P0101 | C142: Dominican Republic | D142: Parque Éolico Puerto Plata-Imbert | E142: Puerto Plata | F142: Jasper Caribbean Wind Power LLC | G142: Wind | H142: 1 | J142: Utility/IPP | K142: Under development | L142: Jasper Caribbean Wind Power LLC | M142: Corporación Dominicana de Empresas Eléctricas Estatales | N142: 46000 | O142: 8 | P142: =N142/O142 -> 5750 | Q142: 132976 | S142: 132976 | T142: 132976 | U142: 0.3299980147 | V142: NA | W142: 0.3299980147 | X142: 0.46 | Y142: 100800000 | AA142: 100800000 | AB142: 72480666.67 | AC142: 2191.304348 | AE142: 0 | AF142: NA | AH142: CDEEE Strategic Plan 2017-2020 pg. 37. Set to be completed 2020. This would be the first of three phases bringing on a total of 115MW. Alberto:Developed by Jasper Caribbean Wind Power LLC. One of eight renewable energy projects announced by the Dominican Corporation of State Electric Companies in April 2017, projects will add a combined capacity of 361.2 MW by 2018. | AI142: 2019-08-06 | AJ142: Confident
A143: 0 | C143: Dominican Republic | D143: Parque Eolico Puerto Plata-Imbert Phase II & III | E143: Puerto Plata | F143: Jasper Caribbean Wind Power LLC | G143: Wind | J143: Utility/IPP | K143: Under development | L143: Jasper Caribbean Wind Power LLC | M143: Corporación Dominicana de Empresas Eléctricas Estatales | N143: 69000 | Q143: 0 | T143: 0 | U143: 0 | V143: NA | W143: 0 | X143: =IF(OR(K143="Under development",K143="Planned"),VLOOKUP(G143,'Capex by RE tech'!$A$4:$D$18,4,TRUE),IF(AND(K143="Operational",G143="Solar PV"),VLOOKUP(AG143,'Capex by RE tech'!$C$11:$D$13,2,TRUE),IF(AND(K143="Operational",G143="Wind"),VLOOKUP(AG143,'Capex by RE tech'!$C$17:$D$19,2,TRUE),IF(AND(K143="Operational",G143="Biomass"),VLOOKUP(AG143,'Capex by RE tech'!$C$2:$D$4,2,TRUE),IF(AND(K143="Operational",G143="Geothermal"),VLOOKUP(AG143,'Capex by RE tech'!$C$2:$D$4,2,TRUE),IF(AND(K143="Operational",G143="Hydro"),VLOOKUP(AG143,'Capex by RE tech'!$C$8:$D$10,2,TRUE),IF(AND(K143="Operational",G143="Waste-to-Energy"),VLOOKUP(AG143,'Capex by RE tech'!$C$14:$D$16,2,TRUE),IF(AND(K143="Operational",AG143<2010),VLOOKUP(G143,'Capex by RE tech'!$A$2:$D$19,4,FALSE),NA)))))))) -> 0.315 | Y143: 140000000 | AA143: 140000000 | AC143: 2028.985507 | AE143: 0 | AF143: NA | AI143: 2019-08-06
A144: 1 | B144: P0102 | C144: Dominican Republic | D144: Parque Éolico Los Guzmancito | E144: Villa Vázquez | F144: Poseidon Renewable Energy | G144: Wind | H144: 1 | J144: Utility/IPP | K144: Under development | L144: Poseidon Renewable Energy | M144: Corporación Dominicana de Empresas Eléctricas Estatales | N144: =O144*P144 -> 57600 | O144: 16 | P144: 3600 | Q144: 139625 | S144: 139625 | T144: 139625 | U144: 0.2767174816 | V144: NA | W144: 0.2767174816 | X144: 0.46 | Y144: 139625600 | AA144: 139625600 | AB144: 76104700 | AC144: 2424.055556 | AE144: 0 | AF144: NA | AH144: CDEEE Strategic Plan 2017-2020 pg. 37. Under constuction. As of September 2019, set to enter operations in coming months. | AI144: 2019-08-06 | AJ144: Confident
A145: 1 | B145: P0103 | C145: Dominican Republic | D145: Parque Monte Plata Solar I | E145: Monte Plata Province | F145: Phanes Group, General Energy Solutions, and Soventix | G145: Solar PV | H145: 1 | I145: =IF(K145="Planned","3.0",IF(AG145<DATE(2009,12,31),"1.0",IF(AND(AG145>=DATE(2010,1,1)+0,AG145<=DATE(2012,12,31)),"1.0",IF(AND(AG145>=DATE(2013,1,1),AG145<=DATE(2015,12,31)),"2.0",IF(AG145>=DATE(2016,1,1),"3.0",""))))) -> 1.0 | J145: Utility/IPP | K145: Operational | L145: Phanes Group, General Energy Solutions, and Soventix | M145: Corporación Dominicana de Empresas Eléctricas Estatales | N145: 33400 | Q145: 50000 | S145: 50000 | T145: 50000 | U145: 0.1708910945 | V145: NA | W145: 0.1708910945 | X145: 0.254 | Y145: 60000000 | AA145: 60000000 | AB145: 86105200 | AC145: 1796.407186 | AE145: 0 | AF145: 2016 | AG145: 2016 | AH145: CDEEE Strategic Plan 2017-2020 pg. 37. Got financing in April 2018 | AI145: 2019-08-07 | AJ145: Confident
A146: 1 | B146: P0104 | C146: Dominican Republic | D146: Parque Éolico Matafongo | E146: Baní | F146: Grupo Eolico Dominicano, SA (GEDEOM) | G146: Wind | H146: 1 | J146: Utility/IPP | K146: Operational | L146: Grupo Eolico Dominicano, SA (GEDEOM) | M146: Corporación Dominicana de Empresas Eléctricas Estatales | N146: 34000 | Q146: 98287 | S146: 98287 | T146: 98287 | U146: 0.3299993285 | V146: NA | W146: 0.3299993285 | X146: 0.46 | Y146: 98287200 | AA146: 98287200 | AB146: 53572666.67 | AC146: 2890.8 | AE146: 0 | AF146: 2019 | AG146: 2019 | AH146: CDEEE Strategic Plan 2017-2020 pg. 37. Became operational September 2019. Developed by Grupo Eolico Dominicano, SA (GEDEOM). One of eight renewable energy projects announced by the Dominican Corporation of State Electric Companies in April 2017, projects will add a combined capacity of 361.2 MW by 2018. | AI146: 2019-08-06 | AJ146: Confident
A147: 0 | B147: P0105 | C147: Dominican Republic | D147: Parque Monte Plata Solar II | E147: Monte Plata Province | F147: General Energy Solutions and Phanes Group | G147: Solar PV | J147: Utility/IPP | K147: Under development | L147: General Energy Solutions and Phanes Group | M147: Corporación Dominicana de Empresas Eléctricas Estatales | N147: 30000 | Q147: 46647 | S147: 46647 | T147: 46647 | U147: 0.1775 | V147: NA | W147: 0.1775 | X147: 0.254 | Y147: 55000000 | AA147: 55000000 | AB147: 77340000 | AC147: 1833.333333 | AE147: 0 | AF147: NA | AH147: CDEEE Strategic Plan 2017-2020 pg. 37.. First phase completed/inaugurated 2016. Second phase underway - altogether the park will total 68-69MW. Previous: Expansion to bring it to From 2007 - 2013, over 60 customers connected to the RE Interconnection Programme to generate 352.97 kW. After achieving full subscription, GRENLEC has increased the cap to 500 kW in the second phase of the project. | AI147: 2019-08-07 | AJ147: Confident
A148: 1 | B148: P0106 | C148: Dominican Republic | D148: Central de Biomasa San Pedro BioEnergy | E148: San Pedro de Macoris | F148: Grupo Inicia | G148: Biomass | H148: 1 | I148: =IF(K148="Planned","3.0",IF(AG148<DATE(2009,12,31),"1.0",IF(AND(AG148>=DATE(2010,1,1)+0,AG148<=DATE(2012,12,31)),"1.0",IF(AND(AG148>=DATE(2013,1,1),AG148<=DATE(2015,12,31)),"2.0",IF(AG148>=DATE(2016,1,1),"3.0",""))))) -> 1.0 | J148: Utility/IPP | K148: Operational | L148: Grupo Inicia | M148: Corporación Dominicana de Empresas Eléctricas Estatales | N148: 30000 | Q148: 236520 | S148: 236520 | T148: 236520 | U148: 0.9 | V148: NA | W148: 0.9 | X148: 0.6963333333 | Y148: 90000000 | AA148: 90000000 | AB148: 106850000 | AC148: 3000 | AE148: 0 | AF148: 2015 | AG148: 2015 | AH148: CDEEE Strategic Plan 2017-2020 pg. 37. | AI148: 2018-07-18 | AJ148: Confident
A149: 1 | B149: P0108 | C149: Dominican Republic | D149: Parque Solar Canoa | E149: Barahona Province | F149: Emerald Solar Energy | G149: Solar PV | H149: 1 | J149: Utility/IPP | K149: Under development | L149: Emerald Solar Energy | M149: Corporación Dominicana de Empresas Eléctricas Estatales | N149: 25000 | Q149: 38872.5 | S149: 38872.5 | T149: 38872.5 | U149: 0.1775 | V149: NA | W149: 0.1775 | X149: 0.254 | Y149: 41200000 | AA149: 41200000 | AB149: 64450000 | AC149: 1648 | AE149: 0 | AF149: NA | AH149: CDEEE Strategic Plan 2017-2020 pg. 37. Broke ground in early 2018, expected to take a year but there have been delays. Developed by Emerald Solar Energy. One of eight renewable energy projects announced by the Dominican Corporation of State Electric Companies in April 2017 | AI149: 2019-08-06 | AJ149: Confident
A150: 1 | B150: P0111 | C150: Dominican Republic | D150: Parque Quisqueya Solar Fotovoltaico | F150: EGE Haina | G150: Solar PV | H150: 1 | I150: =IF(K150="Planned","3.0",IF(AG150<DATE(2009,12,31),"1.0",IF(AND(AG150>=DATE(2010,1,1)+0,AG150<=DATE(2012,12,31)),"1.0",IF(AND(AG150>=DATE(2013,1,1),AG150<=DATE(2015,12,31)),"2.0",IF(AG150>=DATE(2016,1,1),"3.0",""))))) -> 1.0 | J150: Utility/IPP | K150: Operational | N150: 1500 | Q150: 2332.35 | T150: 2332.35 | U150: 0.1775 | V150: NA | X150: =W149 -> 0.1775 | Y150: 3200000 | AA150: 3200000 | AB150: 3867000 | AC150: 2133.333333 | AE150: 0 | AF150: NA | AH150: Located next to Quisqueya II fuel plant. | AI150: 2018-07-18 | AJ150: Confident
A151: 1 | B151: P0295 | C151: Dominican Republic | D151: Quilvio Cabrera | F151: CEPM | G151: Wind | H151: 1 | I151: 1.0 | J151: Utility/IPP | K151: Operational | L151: CEPM | M151: Corporación Dominicana de Empresas Eléctricas Estatales | N151: 8250 | Q151: 33244.2 | T151: 33244.2 | U151: 0.46 | V151: NA | X151: 0.46 | Y151: 275000000 | AA151: =100000000 * N151/(N$127+N$128) -> 275000000 | AB151: 12999250 | AC151: 33333.33333 | AF151: 2011 | AG151: 2011 | AH151: CDEEE Strategic Plan 2017-2020 pg. 37. | AI151: 2019-09-16 | AJ151: Confident
A152: 1 | B152: P0093 | C152: Dominican Republic | D152: Los Cocos I | E152: Pedernales | F152: EGE Haina | G152: Wind | H152: 1 | I152: 1.0 | J152: Utility/IPP | K152: Operational | L152: Empresa Generadora de Electridicad Haina (EGE Haina) | M152: Empresas Distribuidoras de Electricidad (EdeSur, EdeEste, EdeNorte) | N152: 25200 | O152: 14 | P152: =N152/O152 -> 1800 | Q152: 3311950.433 | S152: =420000 * N152/SUM($N$128:$N$130) -> 3311950.433 | T152: 101545.92 | U152: 0.46 | V152: NA | X152: 0.46 | Y152: 840000000 | AA152: =100000000 * N152/(N$127+N$128) -> 840000000 | AB152: 39391666.67 | AC152: 33333.33333 | AE152: =SUM(AD152:AD152) -> 0 | AF152: 2011 | AG152: 2011 | AH152: CDEEE Strategic Plan 2017-2020 pg. 37. | AI152: 2019-09-16 | AJ152: Confident
A153: 1 | B153: P0094 | C153: Dominican Republic | D153: Los Cocos II | E153: Pedernales | F153: EGE Haina | G153: Wind | H153: 1 | I153: 1.0 | J153: Utility/IPP | K153: Operational | L153: Empresa Generadora de Electricidad Haina (EGE Haina) | M153: Empresas Distribuidoras de Electricidad (EdeSur, EdeEste, EdeNorte) | N153: 52000 | Q153: 6834183.434 | S153: =420000 * N153/SUM($N$128:$N$130) -> 6834183.434 | T153: 209539.2 | U153: 0.46 | V153: NA | X153: 0.46 | Y153: 1733333333 | AB153: =N153 * AC152 -> 1733333333 | AC153: 33333.33333 | AE153: =SUM(AD153:AD153) -> 0 | AF153: 2013 | AG153: 2013 | AH153: CDEEE Strategic Plan 2017-2020 pg. 37. An additional 52MW in installed capacity entered operation in January 2013, which increased generation at the site to about 220,000MWh. | AI153: 2019-09-16 | AJ153: Confident
A154: 1 | B154: P0100 | C154: Dominican Republic | D154: Larimar I | E154: Larimar | F154: EGE Haina | G154: Wind | H154: 1 | I154: 1.0 | J154: Utility/IPP | K154: Operational | L154: Empresa Generadora de Electridicad Haina (EGE Haina) | M154: Corporación Dominicana de Empresas Eléctricas Estatales | N154: 49500 | Q154: 6505616.923 | S154: =420000 * N154/SUM($N$128:$N$130) -> 6505616.923 | T154: 199465.2 | U154: 0.46 | V154: NA | X154: 0.46 | Y154: 120000000 | Z154: 120000000 | AB154: 77995500 | AC154: 2424.242424 | AE154: =SUM(AD154:AD154) -> 0 | AF154: 2016 | AG154: 2016 | AH154: CDEEE Strategic Plan 2017-2020 pg. 37. | AI154: 2019-09-16 | AJ154: Confident
A155: 660 | B155: P0109 | C155: Dominican Republic | G155: Solar PV | H155: 660 | I155: 1.0 | J155: Distributed | K155: Operational | N155: 15477 | Q155: 34436.94408 | T155: 34436.94408 | U155: 0.254 | V155: NA | X155: 0.254 | Y155: 39899706 | AB155: 39899706 | AC155: 2578 | AE155: =SUM(AD155:AD155) -> 0 | AF155: NA | AH155: Aggregate sum of various local projects in different regions of the Dominican Republican. | AI155: 2017-08-03
A156: 1 | B156: P0110 | C156: Dominican Republic | F156: Banco Popular Dominicano | G156: Solar PV | H156: 1 | I156: 1.0 | J156: Distributed | K156: Operational | L156: Banco Popular Dominicano | M156: Banco Popular Dominicano | N156: 1900 | Q156: 4227.576 | T156: 4227.576 | U156: 0.254 | V156: NA | X156: 0.254 | Y156: 4898200 | AB156: 4898200 | AC156: 2578 | AE156: =SUM(AD156:AD156) -> 0 | AF156: NA | AH156: 40 of the bank's office utilize solar pv energy, and bank plans to add 32 offices (1.9 MW to 3.4 MW). | AI156: 2017-08-03
A157: 1 | B157: P0270 | C157: Dominican Republic | D157: Larimar II | E157: Larimar | F157: EGE Haina | G157: Wind | H157: 1 | I157: 1.0 | J157: Utility/IPP | K157: Operational | L157: Empresa Generadora de Electridicad Haina (EGE Haina) | M157: Corporación Dominicana de Empresas Eléctricas Estatales | N157: 48300 | Q157: 169243.2 | S157: 169243.2 | T157: 194629.68 | U157: 0.46 | V157: NA | X157: 0.46 | Y157: 117090909.1 | AB157: =AC154 * N157 -> 117090909.1 | AC157: 2424.242424 | AF157: 2018 | AG157: 2018 | AH157: CDEEE Strategic Plan 2017-2020 pg. 37. | AI157: 2019-09-16 | AJ157: Confident
A158: 1 | B158: P0112 | C158: Dominican Republic | E158: Santiago de los Caballeros | F158: Trace Solar RL | G158: Solar PV | H158: 1 | I158: 1.0 | J158: Distributed | K158: Operational | L158: Trace Solar RL | M158: Empresas Distribuidoras de Electricidad (EdeSur, EdeEste, EdeNorte) | N158: 1500 | O158: 5880 | P158: =N158/O158 -> 0.2551020408 | Q158: 3337.56 | T158: 3337.56 | U158: 0.254 | V158: NA | X158: 0.254 | Y158: 3867000 | AB158: 3867000 | AC158: 2578 | AE158: =SUM(AD158:AD158) -> 0 | AF158: 2013 | AG158: 2013 | AI158: 2017-08-03
A159: 1 | B159: P0113 | C159: Dominican Republic | E159: Santiago de los Caballeros | F159: CEMEX and Empresa Generadora de Electridicad Haina (EGE Haina) | G159: Solar PV | H159: 1 | I159: 1.0 | J159: Distributed | K159: Operational | L159: CEMEX and Empresa Generadora de Electridicad Haina (EGE Haina) | N159: 1500 | O159: 5040 | P159: =N159/O159 -> 0.2976190476 | Q159: 3337.56 | T159: 3337.56 | U159: 0.254 | V159: NA | X159: 0.254 | Y159: 3867000 | AB159: 3867000 | AC159: 2578 | AE159: 0 | AF159: 2016 | AG159: 2016 | AI159: 2017-08-03
A160: 1 | B160: P0114 | C160: Dominican Republic | G160: Biomass | H160: 1 | I160: 1.0 | J160: Distributed | K160: Operational | N160: 200 | Q160: 157.68 | T160: 157.68 | U160: =IF(AND(V160="NA",ISBLANK(W160)),X160,IF(V160<>"NA",V160,IF(ISNUMBER(W160),W160,X160))) -> 0.09 | V160: NA | W160: 0.09 | X160: 0.6963333333 | Y160: 712333.3333 | AB160: 712333.3333 | AC160: 3561.666667 | AE160: 0 | AF160: NA | AI160: 2017-08-03
A161: 1 | B161: P0115 | C161: Dominican Republic | G161: Solar PV | H161: 1 | I161: 1.0 | J161: Distributed | K161: Operational | N161: 72 | Q161: 160.20288 | T161: 160.20288 | U161: 0.254 | V161: NA | X161: 0.254 | Y161: 185616 | AB161: 185616 | AC161: 2578 | AE161: 0 | AF161: NA | AH161: Grid-connected solar array at solar developer's headquarters. | AI161: 2017-08-03
A162: 1 | B162: P0116 | C162: Dominican Republic | G162: Wind | H162: 1 | I162: 1.0 | J162: Distributed | K162: Operational | N162: 70 | Q162: 282.072 | T162: 282.072 | U162: 0.46 | V162: NA | X162: 0.46 | Y162: 110296.6667 | AB162: 110296.6667 | AC162: 1575.666667 | AE162: 0 | AF162: NA | AH162: Provides energy to about 1,160 families in the area. | AI162: 2017-08-03
A163: 1 | B163: P0117 | C163: Dominican Republic | G163: Wind | H163: 1 | I163: 1.0 | J163: Distributed | K163: Operational | N163: 50 | Q163: 201.48 | T163: 201.48 | U163: 0.46 | V163: NA | X163: 0.46 | Y163: 78783.33333 | AB163: 78783.33333 | AC163: 1575.666667 | AE163: 0 | AF163: NA | AI163: 2017-08-03
A164: 1 | C164: Dominican Republic | D164: Villarpando Solar Park | E164: Villarpando, Azua | F164: Natural World Energy Corporation (NWEC) | G164: Solar PV | H164: 1 | I164: 3.0 | J164: Utility/IPP | K164: Planned | L164: Natural World Energy Corporation (NWEC) | M164: Empresas Distribuidoras de Electricidad (EdeSur, EdeEste, EdeNorte) | N164: 100000 | Q164: 201480 | T164: 201480 | U164: 0.23 | V164: NA | X164: =IF(OR(K164="Under development",K164="Planned"),VLOOKUP(G164,'Capex by RE tech'!$A$4:$D$18,4,TRUE),IF(AND(K164="Operational",G164="Solar PV"),VLOOKUP(AG164,'Capex by RE tech'!$C$11:$D$13,2,TRUE),IF(AND(K164="Operational",G164="Wind"),VLOOKUP(AG164,'Capex by RE tech'!$C$17:$D$19,2,TRUE),IF(AND(K164="Operational",G164="Biomass"),VLOOKUP(AG164,'Capex by RE tech'!$C$2:$D$4,2,TRUE),IF(AND(K164="Operational",G164="Geothermal"),VLOOKUP(AG164,'Capex by RE tech'!$C$2:$D$4,2,TRUE),IF(AND(K164="Operational",G164="Hydro"),VLOOKUP(AG164,'Capex by RE tech'!$C$8:$D$10,2,TRUE),IF(AND(K164="Operational",G164="Waste-to-Energy"),VLOOKUP(AG164,'Capex by RE tech'!$C$14:$D$16,2,TRUE),IF(AND(K164="Operational",AG164<2010),VLOOKUP(G164,'Capex by RE tech'!$A$2:$D$19,4,FALSE),NA)))))))) -> 0.23 | Y164: 110000000 | AA164: 110000000 | AC164: 1100 | AE164: 0 | AF164: NA | AH164: Approved by regulator in June 2019 | AI164: 2019-08-07 | AJ164: Confident
A165: 1 | C165: Dominican Republic | D165: Proyecto Energy Solar del Este Cabreto I | E165: Santo Domingo | F165: Energy Solar del Este Cabreto I | G165: Solar PV | H165: 1 | J165: Utility/IPP | K165: Planned | L165: Energy Solar del Este Cabreto I | N165: 55400 | Q165: 111619.92 | T165: 111619.92 | U165: 0.23 | V165: NA | X165: =IF(OR(K165="Under development",K165="Planned"),VLOOKUP(G165,'Capex by RE tech'!$A$4:$D$18,4,TRUE),IF(AND(K165="Operational",G165="Solar PV"),VLOOKUP(AG165,'Capex by RE tech'!$C$11:$D$13,2,TRUE),IF(AND(K165="Operational",G165="Wind"),VLOOKUP(AG165,'Capex by RE tech'!$C$17:$D$19,2,TRUE),IF(AND(K165="Operational",G165="Biomass"),VLOOKUP(AG165,'Capex by RE tech'!$C$2:$D$4,2,TRUE),IF(AND(K165="Operational",G165="Geothermal"),VLOOKUP(AG165,'Capex by RE tech'!$C$2:$D$4,2,TRUE),IF(AND(K165="Operational",G165="Hydro"),VLOOKUP(AG165,'Capex by RE tech'!$C$8:$D$10,2,TRUE),IF(AND(K165="Operational",G165="Waste-to-Energy"),VLOOKUP(AG165,'Capex by RE tech'!$C$14:$D$16,2,TRUE),IF(AND(K165="Operational",AG165<2010),VLOOKUP(G165,'Capex by RE tech'!$A$2:$D$19,4,FALSE),NA)))))))) -> 0.23 | Y165: 80330000 | AB165: =AC165*N165 -> 80330000 | AC165: =VLOOKUP(G165,'Capex by RE tech'!$A$2:$F$19,6,TRUE) -> 1450 | AE165: 0 | AF165: NA | AH165: Received provisional concession from CNE in May | AI165: 2019-08-07 | AJ165: Confident
A166: 1 | C166: Dominican Republic | D166: EDP-Bani Solar | E166: Fundacion, Peravia (near Bani) | F166: Energias Renovables Dominicana (EDP) | G166: Solar PV | H166: 1 | I166: Utility/IPP | J166: Utility/IPP | K166: Planned | L166: Energias Renovables Dominicana (EDP) | M166: Empresas Distribuidoras de Electricidad (EdeSur, EdeEste, EdeNorte) | N166: 200000 | Q166: 402960 | T166: 402960 | U166: 0.23 | V166: NA | X166: =IF(OR(K166="Under development",K166="Planned"),VLOOKUP(G166,'Capex by RE tech'!$A$4:$D$18,4,TRUE),IF(AND(K166="Operational",G166="Solar PV"),VLOOKUP(AG166,'Capex by RE tech'!$C$11:$D$13,2,TRUE),IF(AND(K166="Operational",G166="Wind"),VLOOKUP(AG166,'Capex by RE tech'!$C$17:$D$19,2,TRUE),IF(AND(K166="Operational",G166="Biomass"),VLOOKUP(AG166,'Capex by RE tech'!$C$2:$D$4,2,TRUE),IF(AND(K166="Operational",G166="Geothermal"),VLOOKUP(AG166,'Capex by RE tech'!$C$2:$D$4,2,TRUE),IF(AND(K166="Operational",G166="Hydro"),VLOOKUP(AG166,'Capex by RE tech'!$C$8:$D$10,2,TRUE),IF(AND(K166="Operational",G166="Waste-to-Energy"),VLOOKUP(AG166,'Capex by RE tech'!$C$14:$D$16,2,TRUE),IF(AND(K166="Operational",AG166<2010),VLOOKUP(G166,'Capex by RE tech'!$A$2:$D$19,4,FALSE),NA)))))))) -> 0.23 | Y166: 200000000 | AA166: 200000000 | AC166: =IF(AND(ISNUMBER(N166), ISNUMBER(Y166)),Y166/N166,"NA") -> 1000 | AE166: 0 | AF166: NA | AH166: Received provisional concession from CNE in May | AI166: 2019-08-08 | AJ166: Confident
A167: 1 | C167: Dominican Republic | D167: Parque Eolico Sajoma | E167: Santiago | F167: Empresa Generadora de Electricidad de Haina, S.A. (EGE-HAINA) | G167: Wind | H167: 1 | J167: Utility/IPP | K167: Planned | L167: Empresa Generadora de Electricidad de Haina, S.A. (EGE-HAINA) | N167: 50000 | Q167: 137970 | T167: 137970 | U167: 0.315 | V167: NA | X167: =IF(OR(K167="Under development",K167="Planned"),VLOOKUP(G167,'Capex by RE tech'!$A$4:$D$18,4,TRUE),IF(AND(K167="Operational",G167="Solar PV"),VLOOKUP(AG167,'Capex by RE tech'!$C$11:$D$13,2,TRUE),IF(AND(K167="Operational",G167="Wind"),VLOOKUP(AG167,'Capex by RE tech'!$C$17:$D$19,2,TRUE),IF(AND(K167="Operational",G167="Biomass"),VLOOKUP(AG167,'Capex by RE tech'!$C$2:$D$4,2,TRUE),IF(AND(K167="Operational",G167="Geothermal"),VLOOKUP(AG167,'Capex by RE tech'!$C$2:$D$4,2,TRUE),IF(AND(K167="Operational",G167="Hydro"),VLOOKUP(AG167,'Capex by RE tech'!$C$8:$D$10,2,TRUE),IF(AND(K167="Operational",G167="Waste-to-Energy"),VLOOKUP(AG167,'Capex by RE tech'!$C$14:$D$16,2,TRUE),IF(AND(K167="Operational",AG167<2010),VLOOKUP(G167,'Capex by RE tech'!$A$2:$D$19,4,FALSE),NA)))))))) -> 0.315 | Y167: 73750000 | AB167: =AC167*N167 -> 73750000 | AC167: =VLOOKUP(G167,'Capex by RE tech'!$A$2:$F$19,6,TRUE) -> 1475 | AE167: 0 | AF167: NA | AH167: Received provisional concession from CNE in May | AI167: 2019-08-12 | AJ167: Confident
A168: 1 | C168: Dominican Republic | D168: Parque Eolico Esperanza | E168: Valverde | F168: Empresa Generadora de Electricidad de Haina, S.A. (EGE-HAINA) | G168: Wind | H168: 1 | J168: Utility/IPP | K168: Planned | L168: Empresa Generadora de Electricidad de Haina, S.A. (EGE-HAINA) | N168: 50000 | Q168: 137970 | T168: 137970 | U168: 0.315 | V168: NA | X168: =IF(OR(K168="Under development",K168="Planned"),VLOOKUP(G168,'Capex by RE tech'!$A$4:$D$18,4,TRUE),IF(AND(K168="Operational",G168="Solar PV"),VLOOKUP(AG168,'Capex by RE tech'!$C$11:$D$13,2,TRUE),IF(AND(K168="Operational",G168="Wind"),VLOOKUP(AG168,'Capex by RE tech'!$C$17:$D$19,2,TRUE),IF(AND(K168="Operational",G168="Biomass"),VLOOKUP(AG168,'Capex by RE tech'!$C$2:$D$4,2,TRUE),IF(AND(K168="Operational",G168="Geothermal"),VLOOKUP(AG168,'Capex by RE tech'!$C$2:$D$4,2,TRUE),IF(AND(K168="Operational",G168="Hydro"),VLOOKUP(AG168,'Capex by RE tech'!$C$8:$D$10,2,TRUE),IF(AND(K168="Operational",G168="Waste-to-Energy"),VLOOKUP(AG168,'Capex by RE tech'!$C$14:$D$16,2,TRUE),IF(AND(K168="Operational",AG168<2010),VLOOKUP(G168,'Capex by RE tech'!$A$2:$D$19,4,FALSE),NA)))))))) -> 0.315 | Y168: 73750000 | AB168: 73750000 | AC168: =VLOOKUP(G168,'Capex by RE tech'!$A$2:$F$19,6,TRUE) -> 1475 | AE168: 0 | AF168: =IF(ISNUMBER(AG168),AG168,IF(ISNUMBER(AH168),AH168,"NA")) -> NA | AH168: Received provisional concession from CNE in May | AI168: 2019-08-12 | AJ168: Confident
A169: 1 | C169: Dominican Republic | D169: Planta Solar Pizarrete | E169: Peravia | F169: AES Andres DR, S.A. | G169: Solar PV | H169: 1 | J169: Utility/IPP | K169: Planned | L169: AES Andres DR, S.A. | N169: 65250 | Q169: 131465.7 | T169: 131465.7 | U169: 0.23 | V169: NA | X169: =IF(OR(K169="Under development",K169="Planned"),VLOOKUP(G169,'Capex by RE tech'!$A$4:$D$18,4,TRUE),IF(AND(K169="Operational",G169="Solar PV"),VLOOKUP(AG169,'Capex by RE tech'!$C$11:$D$13,2,TRUE),IF(AND(K169="Operational",G169="Wind"),VLOOKUP(AG169,'Capex by RE tech'!$C$17:$D$19,2,TRUE),IF(AND(K169="Operational",G169="Biomass"),VLOOKUP(AG169,'Capex by RE tech'!$C$2:$D$4,2,TRUE),IF(AND(K169="Operational",G169="Geothermal"),VLOOKUP(AG169,'Capex by RE tech'!$C$2:$D$4,2,TRUE),IF(AND(K169="Operational",G169="Hydro"),VLOOKUP(AG169,'Capex by RE tech'!$C$8:$D$10,2,TRUE),IF(AND(K169="Operational",G169="Waste-to-Energy"),VLOOKUP(AG169,'Capex by RE tech'!$C$14:$D$16,2,TRUE),IF(AND(K169="Operational",AG169<2010),VLOOKUP(G169,'Capex by RE tech'!$A$2:$D$19,4,FALSE),NA)))))))) -> 0.23 | Y169: 94612500 | AB169: 94612500 | AC169: =VLOOKUP(G169,'Capex by RE tech'!$A$2:$F$19,6,TRUE) -> 1450 | AE169: 0 | AF169: NA | AH169: Received provisional concession from CNE in May | AI169: 2019-08-12 | AJ169: Confident
A170: 1 | C170: Dominican Republic | D170: Proyecto Peravia Solar I | E170: Peravia | F170: I.E. DR Projects I, SRL | G170: Solar PV | H170: 1 | I170: Utility/IPP | J170: Utility/IPP | K170: Planned | L170: I.E. DR Projects I, SRL | N170: 70000 | Q170: 141036 | T170: 141036 | U170: 0.23 | V170: NA | X170: =IF(OR(K170="Under development",K170="Planned"),VLOOKUP(G170,'Capex by RE tech'!$A$4:$D$18,4,TRUE),IF(AND(K170="Operational",G170="Solar PV"),VLOOKUP(AG170,'Capex by RE tech'!$C$11:$D$13,2,TRUE),IF(AND(K170="Operational",G170="Wind"),VLOOKUP(AG170,'Capex by RE tech'!$C$17:$D$19,2,TRUE),IF(AND(K170="Operational",G170="Biomass"),VLOOKUP(AG170,'Capex by RE tech'!$C$2:$D$4,2,TRUE),IF(AND(K170="Operational",G170="Geothermal"),VLOOKUP(AG170,'Capex by RE tech'!$C$2:$D$4,2,TRUE),IF(AND(K170="Operational",G170="Hydro"),VLOOKUP(AG170,'Capex by RE tech'!$C$8:$D$10,2,TRUE),IF(AND(K170="Operational",G170="Waste-to-Energy"),VLOOKUP(AG170,'Capex by RE tech'!$C$14:$D$16,2,TRUE),IF(AND(K170="Operational",AG170<2010),VLOOKUP(G170,'Capex by RE tech'!$A$2:$D$19,4,FALSE),NA)))))))) -> 0.23 | Y170: 101500000 | AB170: 101500000 | AC170: =VLOOKUP(G170,'Capex by RE tech'!$A$2:$F$19,6,TRUE) -> 1450 | AE170: 0 | AF170: NA | AH170: Received provisional concession from CNE in May | AI170: 2019-08-12 | AJ170: Confident
A171: 1 | C171: Dominican Republic | D171: Proyecto Peravia Solar II | E171: Peravia | F171: I.E. DR Projects I, SRL | G171: Solar PV | H171: 1 | J171: Utility/IPP | K171: Planned | L171: I.E. DR Projects I, SRL | N171: 70000 | Q171: 141036 | T171: 141036 | U171: 0.23 | V171: NA | X171: =IF(OR(K171="Under development",K171="Planned"),VLOOKUP(G171,'Capex by RE tech'!$A$4:$D$18,4,TRUE),IF(AND(K171="Operational",G171="Solar PV"),VLOOKUP(AG171,'Capex by RE tech'!$C$11:$D$13,2,TRUE),IF(AND(K171="Operational",G171="Wind"),VLOOKUP(AG171,'Capex by RE tech'!$C$17:$D$19,2,TRUE),IF(AND(K171="Operational",G171="Biomass"),VLOOKUP(AG171,'Capex by RE tech'!$C$2:$D$4,2,TRUE),IF(AND(K171="Operational",G171="Geothermal"),VLOOKUP(AG171,'Capex by RE tech'!$C$2:$D$4,2,TRUE),IF(AND(K171="Operational",G171="Hydro"),VLOOKUP(AG171,'Capex by RE tech'!$C$8:$D$10,2,TRUE),IF(AND(K171="Operational",G171="Waste-to-Energy"),VLOOKUP(AG171,'Capex by RE tech'!$C$14:$D$16,2,TRUE),IF(AND(K171="Operational",AG171<2010),VLOOKUP(G171,'Capex by RE tech'!$A$2:$D$19,4,FALSE),NA)))))))) -> 0.23 | Y171: 101500000 | AB171: 101500000 | AC171: =VLOOKUP(G171,'Capex by RE tech'!$A$2:$F$19,6,TRUE) -> 1450 | AE171: 0 | AF171: NA | AH171: Received provisional concession from CNE in May | AI171: 2019-08-12 | AJ171: Confident
A172: 1 | C172: Dominican Republic | D172: Planta Solar Noroeste | E172: Montecristi | F172: AES Renewable Power Group | G172: Solar PV | H172: 1 | J172: Utility/IPP | K172: Planned | L172: AES Renewable Power Group | N172: 136800 | Q172: 275624.64 | T172: 275624.64 | U172: 0.23 | V172: NA | X172: =IF(OR(K172="Under development",K172="Planned"),VLOOKUP(G172,'Capex by RE tech'!$A$4:$D$18,4,TRUE),IF(AND(K172="Operational",G172="Solar PV"),VLOOKUP(AG172,'Capex by RE tech'!$C$11:$D$13,2,TRUE),IF(AND(K172="Operational",G172="Wind"),VLOOKUP(AG172,'Capex by RE tech'!$C$17:$D$19,2,TRUE),IF(AND(K172="Operational",G172="Biomass"),VLOOKUP(AG172,'Capex by RE tech'!$C$2:$D$4,2,TRUE),IF(AND(K172="Operational",G172="Geothermal"),VLOOKUP(AG172,'Capex by RE tech'!$C$2:$D$4,2,TRUE),IF(AND(K172="Operational",G172="Hydro"),VLOOKUP(AG172,'Capex by RE tech'!$C$8:$D$10,2,TRUE),IF(AND(K172="Operational",G172="Waste-to-Energy"),VLOOKUP(AG172,'Capex by RE tech'!$C$14:$D$16,2,TRUE),IF(AND(K172="Operational",AG172<2010),VLOOKUP(G172,'Capex by RE tech'!$A$2:$D$19,4,FALSE),NA)))))))) -> 0.23 | Y172: 198360000 | AB172: 198360000 | AC172: =VLOOKUP(G172,'Capex by RE tech'!$A$2:$F$19,6,TRUE) -> 1450 | AE172: 0 | AF172: NA | AH172: Received provisional concession from CNE in May | AI172: 2019-08-12 | AJ172: Confident
A173: 1 | C173: Dominican Republic | D173: Planta Solar Marti | E173: Santo Domingo | F173: Tropigas Dominicana | G173: Solar PV | H173: 1 | J173: Utility/IPP | K173: Planned | L173: Tropigas Dominicana | N173: 50320 | Q173: 101384.736 | T173: 101384.736 | U173: 0.23 | V173: NA | X173: =IF(OR(K173="Under development",K173="Planned"),VLOOKUP(G173,'Capex by RE tech'!$A$4:$D$18,4,TRUE),IF(AND(K173="Operational",G173="Solar PV"),VLOOKUP(AG173,'Capex by RE tech'!$C$11:$D$13,2,TRUE),IF(AND(K173="Operational",G173="Wind"),VLOOKUP(AG173,'Capex by RE tech'!$C$17:$D$19,2,TRUE),IF(AND(K173="Operational",G173="Biomass"),VLOOKUP(AG173,'Capex by RE tech'!$C$2:$D$4,2,TRUE),IF(AND(K173="Operational",G173="Geothermal"),VLOOKUP(AG173,'Capex by RE tech'!$C$2:$D$4,2,TRUE),IF(AND(K173="Operational",G173="Hydro"),VLOOKUP(AG173,'Capex by RE tech'!$C$8:$D$10,2,TRUE),IF(AND(K173="Operational",G173="Waste-to-Energy"),VLOOKUP(AG173,'Capex by RE tech'!$C$14:$D$16,2,TRUE),IF(AND(K173="Operational",AG173<2010),VLOOKUP(G173,'Capex by RE tech'!$A$2:$D$19,4,FALSE),NA)))))))) -> 0.23 | Y173: 72964000 | AB173: 72964000 | AC173: =VLOOKUP(G173,'Capex by RE tech'!$A$2:$F$19,6,TRUE) -> 1450 | AE173: 0 | AF173: NA | AH173: Received provisional concession from CNE in May | AI173: 2019-08-12 | AJ173: Confident
A174: 1 | C174: Dominican Republic | D174: Projecto EDP Energia Renovables Dominicana SA | E174: Peravia | F174: EDP Energias Renovables Dominicana | G174: Solar PV | H174: 1 | J174: Utility/IPP | K174: Planned | L174: EDP Energias Renovables Dominicana | N174: 200200 | Q174: 403362.96 | T174: 403362.96 | U174: 0.23 | V174: NA | X174: =IF(OR(K174="Under development",K174="Planned"),VLOOKUP(G174,'Capex by RE tech'!$A$4:$D$18,4,TRUE),IF(AND(K174="Operational",G174="Solar PV"),VLOOKUP(AG174,'Capex by RE tech'!$C$11:$D$13,2,TRUE),IF(AND(K174="Operational",G174="Wind"),VLOOKUP(AG174,'Capex by RE tech'!$C$17:$D$19,2,TRUE),IF(AND(K174="Operational",G174="Biomass"),VLOOKUP(AG174,'Capex by RE tech'!$C$2:$D$4,2,TRUE),IF(AND(K174="Operational",G174="Geothermal"),VLOOKUP(AG174,'Capex by RE tech'!$C$2:$D$4,2,TRUE),IF(AND(K174="Operational",G174="Hydro"),VLOOKUP(AG174,'Capex by RE tech'!$C$8:$D$10,2,TRUE),IF(AND(K174="Operational",G174="Waste-to-Energy"),VLOOKUP(AG174,'Capex by RE tech'!$C$14:$D$16,2,TRUE),IF(AND(K174="Operational",AG174<2010),VLOOKUP(G174,'Capex by RE tech'!$A$2:$D$19,4,FALSE),NA)))))))) -> 0.23 | Y174: 290290000 | AB174: 290290000 | AC174: =VLOOKUP(G174,'Capex by RE tech'!$A$2:$F$19,6,TRUE) -> 1450 | AE174: 0 | AF174: NA | AH174: Received provisional concession from CNE in May | AI174: 2019-08-12 | AJ174: Confident
A175: 1 | C175: Dominican Republic | D175: Parque Solar Girasol | E175: San Cristobal | F175: Empresa Generadora de Electricidad de Haina, S.A. (EGE-HAINA) | G175: Solar PV | H175: 1 | J175: Utility/IPP | K175: Planned | L175: Empresa Generadora de Electricidad de Haina, S.A. (EGE-HAINA) | N175: 120000 | Q175: 241776 | T175: 241776 | U175: 0.23 | V175: NA | X175: =IF(OR(K175="Under development",K175="Planned"),VLOOKUP(G175,'Capex by RE tech'!$A$4:$D$18,4,TRUE),IF(AND(K175="Operational",G175="Solar PV"),VLOOKUP(AG175,'Capex by RE tech'!$C$11:$D$13,2,TRUE),IF(AND(K175="Operational",G175="Wind"),VLOOKUP(AG175,'Capex by RE tech'!$C$17:$D$19,2,TRUE),IF(AND(K175="Operational",G175="Biomass"),VLOOKUP(AG175,'Capex by RE tech'!$C$2:$D$4,2,TRUE),IF(AND(K175="Operational",G175="Geothermal"),VLOOKUP(AG175,'Capex by RE tech'!$C$2:$D$4,2,TRUE),IF(AND(K175="Operational",G175="Hydro"),VLOOKUP(AG175,'Capex by RE tech'!$C$8:$D$10,2,TRUE),IF(AND(K175="Operational",G175="Waste-to-Energy"),VLOOKUP(AG175,'Capex by RE tech'!$C$14:$D$16,2,TRUE),IF(AND(K175="Operational",AG175<2010),VLOOKUP(G175,'Capex by RE tech'!$A$2:$D$19,4,FALSE),NA)))))))) -> 0.23 | Y175: 174000000 | AB175: 174000000 | AC175: =VLOOKUP(G175,'Capex by RE tech'!$A$2:$F$19,6,TRUE) -> 1450 | AE175: 0 | AF175: NA | AH175: Received provisional concession from CNE in May | AI175: 2019-08-12 | AJ175: Confident
A176: 1 | C176: Dominican Republic | D176: Proyecto Esperanza Solar | E176: Valverde | F176: Empresa Generadora de Electricidad de Haina, S.A. (EGE-HAINA) | G176: Solar PV | H176: 1 | J176: Utility/IPP | K176: Planned | L176: Empresa Generadora de Electricidad de Haina, S.A. (EGE-HAINA) | N176: 61000 | Q176: 122902.8 | T176: 122902.8 | U176: 0.23 | V176: NA | X176: =IF(OR(K176="Under development",K176="Planned"),VLOOKUP(G176,'Capex by RE tech'!$A$4:$D$18,4,TRUE),IF(AND(K176="Operational",G176="Solar PV"),VLOOKUP(AG176,'Capex by RE tech'!$C$11:$D$13,2,TRUE),IF(AND(K176="Operational",G176="Wind"),VLOOKUP(AG176,'Capex by RE tech'!$C$17:$D$19,2,TRUE),IF(AND(K176="Operational",G176="Biomass"),VLOOKUP(AG176,'Capex by RE tech'!$C$2:$D$4,2,TRUE),IF(AND(K176="Operational",G176="Geothermal"),VLOOKUP(AG176,'Capex by RE tech'!$C$2:$D$4,2,TRUE),IF(AND(K176="Operational",G176="Hydro"),VLOOKUP(AG176,'Capex by RE tech'!$C$8:$D$10,2,TRUE),IF(AND(K176="Operational",G176="Waste-to-Energy"),VLOOKUP(AG176,'Capex by RE tech'!$C$14:$D$16,2,TRUE),IF(AND(K176="Operational",AG176<2010),VLOOKUP(G176,'Capex by RE tech'!$A$2:$D$19,4,FALSE),NA)))))))) -> 0.23 | Y176: 88450000 | AB176: 88450000 | AC176: =VLOOKUP(G176,'Capex by RE tech'!$A$2:$F$19,6,TRUE) -> 1450 | AE176: 0 | AF176: NA | AH176: Received provisional concession from CNE in May | AI176: 2019-08-12 | AJ176: Confident
A177: 1 | C177: Dominican Republic | D177: Montecristi Solar Domita | E177: Montecristi | F177: Domita Group SRL | G177: Solar PV | H177: 1 | J177: Utility/IPP | K177: Planned | L177: Domita Group SRL | N177: 50000 | Q177: 100740 | T177: 100740 | U177: 0.23 | V177: NA | X177: =IF(OR(K177="Under development",K177="Planned"),VLOOKUP(G177,'Capex by RE tech'!$A$4:$D$18,4,TRUE),IF(AND(K177="Operational",G177="Solar PV"),VLOOKUP(AG177,'Capex by RE tech'!$C$11:$D$13,2,TRUE),IF(AND(K177="Operational",G177="Wind"),VLOOKUP(AG177,'Capex by RE tech'!$C$17:$D$19,2,TRUE),IF(AND(K177="Operational",G177="Biomass"),VLOOKUP(AG177,'Capex by RE tech'!$C$2:$D$4,2,TRUE),IF(AND(K177="Operational",G177="Geothermal"),VLOOKUP(AG177,'Capex by RE tech'!$C$2:$D$4,2,TRUE),IF(AND(K177="Operational",G177="Hydro"),VLOOKUP(AG177,'Capex by RE tech'!$C$8:$D$10,2,TRUE),IF(AND(K177="Operational",G177="Waste-to-Energy"),VLOOKUP(AG177,'Capex by RE tech'!$C$14:$D$16,2,TRUE),IF(AND(K177="Operational",AG177<2010),VLOOKUP(G177,'Capex by RE tech'!$A$2:$D$19,4,FALSE),NA)))))))) -> 0.23 | Y177: 72500000 | AB177: 72500000 | AC177: =VLOOKUP(G177,'Capex by RE tech'!$A$2:$F$19,6,TRUE) -> 1450 | AE177: 0 | AF177: NA | AH177: Received provisional concession from CNE in May | AI177: 2019-08-12 | AJ177: Confident
A178: 1 | C178: Dominican Republic | D178: Projecto Grupo Energetico del Este SRL (GEDE) | E178: La Altagracia | F178: Grupo Energetico del Este SRL (GEDE) | G178: Biomass | H178: 1 | J178: Utility/IPP | K178: Planned | L178: Grupo Energetico del Este SRL (GEDE) | N178: 26450 | Q178: 208531.8 | T178: 208531.8 | U178: 0.9 | V178: NA | X178: =IF(OR(K178="Under development",K178="Planned"),VLOOKUP(G178,'Capex by RE tech'!$A$4:$D$18,4,TRUE),IF(AND(K178="Operational",G178="Solar PV"),VLOOKUP(AG178,'Capex by RE tech'!$C$11:$D$13,2,TRUE),IF(AND(K178="Operational",G178="Wind"),VLOOKUP(AG178,'Capex by RE tech'!$C$17:$D$19,2,TRUE),IF(AND(K178="Operational",G178="Biomass"),VLOOKUP(AG178,'Capex by RE tech'!$C$2:$D$4,2,TRUE),IF(AND(K178="Operational",G178="Geothermal"),VLOOKUP(AG178,'Capex by RE tech'!$C$2:$D$4,2,TRUE),IF(AND(K178="Operational",G178="Hydro"),VLOOKUP(AG178,'Capex by RE tech'!$C$8:$D$10,2,TRUE),IF(AND(K178="Operational",G178="Waste-to-Energy"),VLOOKUP(AG178,'Capex by RE tech'!$C$14:$D$16,2,TRUE),IF(AND(K178="Operational",AG178<2010),VLOOKUP(G178,'Capex by RE tech'!$A$2:$D$19,4,FALSE),NA)))))))) -> 0.9 | Y178: 79350000 | AB178: 79350000 | AC178: =VLOOKUP(G178,'Capex by RE tech'!$A$2:$F$19,6,TRUE) -> 3000 | AE178: 0 | AF178: NA | AH178: Provisional CNE concession | AI178: 2019-08-12 | AJ178: Confident
A179: 1 | C179: Dominican Republic | D179: Proyecto Ridge Partners Linea Noreste SRL | E179: Valverde | F179: Ridge Partners Linea Noreste SRL | G179: Biomass | H179: 1 | J179: Utility/IPP | K179: Planned | L179: Ridge Partners Linea Noreste SRL | Q179: 0 | T179: 0 | U179: 0.9 | V179: NA | X179: =IF(OR(K179="Under development",K179="Planned"),VLOOKUP(G179,'Capex by RE tech'!$A$4:$D$18,4,TRUE),IF(AND(K179="Operational",G179="Solar PV"),VLOOKUP(AG179,'Capex by RE tech'!$C$11:$D$13,2,TRUE),IF(AND(K179="Operational",G179="Wind"),VLOOKUP(AG179,'Capex by RE tech'!$C$17:$D$19,2,TRUE),IF(AND(K179="Operational",G179="Biomass"),VLOOKUP(AG179,'Capex by RE tech'!$C$2:$D$4,2,TRUE),IF(AND(K179="Operational",G179="Geothermal"),VLOOKUP(AG179,'Capex by RE tech'!$C$2:$D$4,2,TRUE),IF(AND(K179="Operational",G179="Hydro"),VLOOKUP(AG179,'Capex by RE tech'!$C$8:$D$10,2,TRUE),IF(AND(K179="Operational",G179="Waste-to-Energy"),VLOOKUP(AG179,'Capex by RE tech'!$C$14:$D$16,2,TRUE),IF(AND(K179="Operational",AG179<2010),VLOOKUP(G179,'Capex by RE tech'!$A$2:$D$19,4,FALSE),NA)))))))) -> 0.9 | Y179: 0 | AB179: 0 | AC179: =VLOOKUP(G179,'Capex by RE tech'!$A$2:$F$19,6,TRUE) -> 3000 | AE179: 0 | AF179: NA | AH179: Provisional CNE concession | AI179: 2019-08-12 | AJ179: Confident
A180: 1 | C180: Dominican Republic | D180: Phase I of Solar PV plant in Sabana Grande de Palenque | E180: San Cristobal | F180: Escala Solar, Consorcio Ecoterra | G180: Solar PV | H180: 1 | J180: Utility/IPP | K180: Operational | L180: Escala Solar, Consorcio Ecoterra | N180: 1500 | Q180: 3022.2 | T180: 3022.2 | U180: 0.23 | V180: NA | X180: =IF(OR(K180="Under development",K180="Planned"),VLOOKUP(G180,'Capex by RE tech'!$A$4:$D$18,4,TRUE),IF(AND(K180="Operational",G180="Solar PV"),VLOOKUP(AG180,'Capex by RE tech'!$C$11:$D$13,2,TRUE),IF(AND(K180="Operational",G180="Wind"),VLOOKUP(AG180,'Capex by RE tech'!$C$17:$D$19,2,TRUE),IF(AND(K180="Operational",G180="Biomass"),VLOOKUP(AG180,'Capex by RE tech'!$C$2:$D$4,2,TRUE),IF(AND(K180="Operational",G180="Geothermal"),VLOOKUP(AG180,'Capex by RE tech'!$C$2:$D$4,2,TRUE),IF(AND(K180="Operational",G180="Hydro"),VLOOKUP(AG180,'Capex by RE tech'!$C$8:$D$10,2,TRUE),IF(AND(K180="Operational",G180="Waste-to-Energy"),VLOOKUP(AG180,'Capex by RE tech'!$C$14:$D$16,2,TRUE),IF(AND(K180="Operational",AG180<2010),VLOOKUP(G180,'Capex by RE tech'!$A$2:$D$19,4,FALSE),NA)))))))) -> 0.23 | Y180: 2175000 | AB180: 2175000 | AC180: =VLOOKUP(G180,'Capex by RE tech'!$A$2:$F$19,6,TRUE) -> 1450 | AE180: 0 | AF180: 2018 | AG180: 2018 | AH180: Inaugurated December 2018 | AI180: 2019-08-12 | AJ180: Confident
A181: 1 | C181: Dominican Republic | D181: Phase II of Solar PV plant in Sabana Grande de Palenque | F181: Escala Solar, Consorcio Ecoterra | G181: Solar PV | H181: 1 | I181: Utility/IPP | J181: Utility/IPP | K181: Under development | L181: Escala Solar, Consorcio Ecoterra | N181: 4500 | Q181: 9066.6 | T181: 9066.6 | U181: 0.23 | V181: NA | X181: =IF(OR(K181="Under development",K181="Planned"),VLOOKUP(G181,'Capex by RE tech'!$A$4:$D$18,4,TRUE),IF(AND(K181="Operational",G181="Solar PV"),VLOOKUP(AG181,'Capex by RE tech'!$C$11:$D$13,2,TRUE),IF(AND(K181="Operational",G181="Wind"),VLOOKUP(AG181,'Capex by RE tech'!$C$17:$D$19,2,TRUE),IF(AND(K181="Operational",G181="Biomass"),VLOOKUP(AG181,'Capex by RE tech'!$C$2:$D$4,2,TRUE),IF(AND(K181="Operational",G181="Geothermal"),VLOOKUP(AG181,'Capex by RE tech'!$C$2:$D$4,2,TRUE),IF(AND(K181="Operational",G181="Hydro"),VLOOKUP(AG181,'Capex by RE tech'!$C$8:$D$10,2,TRUE),IF(AND(K181="Operational",G181="Waste-to-Energy"),VLOOKUP(AG181,'Capex by RE tech'!$C$14:$D$16,2,TRUE),IF(AND(K181="Operational",AG181<2010),VLOOKUP(G181,'Capex by RE tech'!$A$2:$D$19,4,FALSE),NA)))))))) -> 0.23 | Y181: 6525000 | AB181: 6525000 | AC181: =VLOOKUP(G181,'Capex by RE tech'!$A$2:$F$19,6,TRUE) -> 1450 | AE181: 0 | AF181: NA | AH181: Construction began December 2018 | AI181: 2019-08-12 | AJ181: Confident
B182: P0118 | C182: Grenada | G182: Solar PV | H182: Various | I182: =IF(K182="Planned","3.0",IF(AG182<DATE(2009,12,31),"1.0",IF(AND(AG182>=DATE(2010,1,1)+0,AG182<=DATE(2012,12,31)),"1.0",IF(AND(AG182>=DATE(2013,1,1),AG182<=DATE(2015,12,31)),"2.0",IF(AG182>=DATE(2016,1,1),"3.0",""))))) -> 1.0 | J182: Distributed | K182: Operational | N182: 1066.43 | Q182: 2372.849407 | T182: 2372.849407 | U182: 0.254 | V182: =IF(OR(ISBLANK(N182),ISBLANK(R182)),"NA",(R182*1000)/(N182*8760)) -> NA | X182: 0.254 | Y182: 2749256.54 | AB182: 2749256.54 | AC182: =IF(AND(ISNUMBER(N182), ISNUMBER(Y182)),Y182/N182,"NA") -> 2578 | AE182: 0 | AF182: 2013 | AG182: 2013 | AH182: From 2007 - 2013, over 60 customers connected to the RE Interconnection Programme to generate 352.97 kW. After achieving full subscription, GRENLEC has increased the cap to 500 kW in the second phase of the project. | AI182: 2017-08-03
A183: =H183 -> 1 | B183: P0119 | C183: Grenada | G183: Solar PV | H183: 1 | I183: 1.0 | J183: Distributed | K183: Operational | N183: 300 | Q183: 667.512 | T183: 667.512 | U183: 0.254 | V183: NA | X183: 0.254 | Y183: 2100000 | AA183: 2100000 | AB183: 773400 | AC183: =IF(AND(ISNUMBER(N183), ISNUMBER(Y183)),Y183/N183,"NA") -> 7000 | AE183: 0 | AF183: 2014 | AG183: 2014 | AH183: Grenada completed PV system to power reverse osmosis plant in June 2014. | AI183: 2018-07-18 | AJ183: Confident
A184: 1 | B184: P0120 | C184: Grenada | G184: Solar PV | H184: 1 | I184: 1.0 | J184: Distributed | K184: Operational | N184: 263.38 | Q184: 586.0310352 | T184: 586.0310352 | U184: 0.254 | V184: NA | X184: 0.254 | Y184: 678993.64 | AB184: 678993.64 | AC184: =IF(AND(ISNUMBER(N184), ISNUMBER(Y184)),Y184/N184,"NA") -> 2578 | AE184: 0 | AF184: 2016 | AG184: 2016 | AH184: Commissioned in August 2016. | AI184: 2017-08-03
A185: 1 | B185: P0121 | C185: Grenada | G185: Solar PV | H185: 1 | I185: 1.0 | J185: Distributed | K185: Operational | N185: 201.4 | Q185: 448.123056 | T185: 448.123056 | U185: 0.254 | V185: NA | X185: 0.254 | Y185: 519209.2 | AB185: 519209.2 | AC185: =IF(AND(ISNUMBER(N185), ISNUMBER(Y185)),Y185/N185,"NA") -> 2578 | AE185: 0 | AF185: 2016 | AG185: 2016 | AH185: 148.48 kW commisioned in September 2013. An additional 52.92 kW installed in June 2016. | AI185: 2018-08-03 | AJ185: Confident
A186: 1 | B186: P0297 | C186: Grenada | F186: GRENLEC | G186: Solar PV | H186: 1 | I186: 1.0 | J186: Utility/IPP | K186: Operational | L186: GRENLEC | M186: GRENLEC | N186: 400 | Q186: 700.8 | T186: 700.8 | U186: 0.2 | V186: NA | X186: 0.2 | Y186: 800000 | AB186: =N186 * AC186 -> 800000 | AC186: 2000 | AF186: 2016 | AG186: 2016 | AI186: 2018-07-18 | AJ186: Confident
A187: 1 | B187: P0122 | C187: Grenada | G187: Solar PV | H187: 1 | I187: 1.0 | J187: Distributed | K187: Operational | N187: 148.5 | Q187: 330.41844 | T187: 330.41844 | U187: 0.254 | V187: NA | X187: 0.254 | Y187: 382833 | AB187: 382833 | AC187: =IF(AND(ISNUMBER(N187), ISNUMBER(Y187)),Y187/N187,"NA") -> 2578 | AE187: =SUM(AD187:AD187) -> 0 | AF187: 2013 | AG187: 2013 | AI187: 2018-08-03 | AJ187: Confident
A188: 1 | B188: P0271 | C188: Grenada | G188: Geothermal | H188: 1 | J188: Utility/IPP | K188: Planned | N188: 15000 | Q188: 111690 | T188: 111690 | U188: 0.85 | V188: NA | Y188: 63750000 | AB188: =AC188*N188 -> 63750000 | AC188: =VLOOKUP(G188,'Capex by RE tech'!$A$2:$F$19,6,TRUE) -> 4250 | AF188: NA | AH188: Commissioning expected 2022/2023. | AI188: 2019-08-12 | AJ188: Confident
A189: 1 | B189: P0123 | C189: Grenada | F189: GRENLEC | G189: Solar PV | H189: 1 | I189: =IF(K189="Planned","3.0",IF(AG189<DATE(2009,12,31),"1.0",IF(AND(AG189>=DATE(2010,1,1)+0,AG189<=DATE(2012,12,31)),"1.0",IF(AND(AG189>=DATE(2013,1,1),AG189<=DATE(2015,12,31)),"2.0",IF(AG189>=DATE(2016,1,1),"3.0",""))))) -> 1.0 | J189: Distributed | K189: Operational | L189: GRENLEC | N189: =149 + 53 + 144 -> 346 | Q189: 769.86384 | T189: 769.86384 | U189: =IF(AND(V189="NA",ISBLANK(W189)),X189,IF(V189<>"NA",V189,IF(ISNUMBER(W189),W189,X189))) -> 0.254 | V189: NA | X189: 0.254 | Y189: 891988 | AB189: 891988 | AC189: =IF(AND(ISNUMBER(N189), ISNUMBER(Y189)),Y189/N189,"NA") -> 2578 | AE189: =SUM(AD189:AD189) -> 0 | AF189: 2013 | AG189: 2013 | AH189: Commissioned in August 2016. | AI189: 2017-08-03
A190: 1 | B190: P0124 | C190: Grenada | G190: Wind | H190: 1 | I190: 1.0 | J190: Distributed | K190: Operational | N190: 80 | Q190: 322.368 | T190: 322.368 | U190: 0.46 | V190: NA | X190: 0.46 | Y190: 126053.3333 | AB190: 126053.3333 | AC190: 1575.666667 | AE190: 0 | AF190: 2007 | AG190: 2007 | AH190: One of first installations in the world in which energy is generated almost completely by wind. | AI190: 2017-08-03
A191: 1 | B191: P0125 | C191: Grenada | G191: Solar PV | H191: 1 | I191: 1.0 | J191: Distributed | K191: Operational | N191: 31.59 | Q191: 70.2890136 | T191: 70.2890136 | U191: 0.254 | V191: NA | X191: 0.254 | Y191: 81439.02 | AB191: 81439.02 | AC191: 2578 | AE191: 0 | AF191: 2013 | AG191: 2013 | AH191: Commisioned in October 2013. | AI191: 2017-08-03
A192: 1 | B192: P0126 | C192: Grenada | F192: GRENLEC | G192: Solar PV | H192: 1 | I192: 1.0 | J192: Distributed | K192: Operational | L192: GRENLEC | N192: =102 + 30 + 268 -> 400 | Q192: 890.016 | T192: 890.016 | U192: 0.254 | V192: NA | X192: 0.254 | Y192: 1031200 | AB192: 1031200 | AC192: 2578 | AE192: 0 | AF192: 2016 | AG192: 2016 | AH192: Commissioned in June 2016. | AI192: 2017-08-03
A193: 1 | B193: P0127 | C193: Grenada | G193: Solar PV | H193: 1 | I193: 1.0 | J193: Distributed | K193: Operational | N193: 13.9 | Q193: 30.928056 | T193: 30.928056 | U193: 0.254 | V193: NA | X193: 0.254 | Y193: 35834.2 | AB193: 35834.2 | AC193: 2578 | AE193: 0 | AF193: 2014 | AG193: 2014 | AH193: Commisioned in May 2014. | AI193: 2017-08-03
A194: 1 | B194: P0128 | C194: Grenada | G194: Solar PV | H194: 1 | I194: 1.0 | J194: Distributed | K194: Operational | N194: 10 | Q194: =IF(ISNUMBER(R194),R194,IF(ISNUMBER(S194),S194, IF(ISNUMBER(T194), T194,"NA"))) -> 22.2504 | T194: =(N194 * 8760 * U194)/1000 -> 22.2504 | U194: 0.254 | V194: NA | X194: 0.254 | Y194: =IF(ISNUMBER(Z194), Z194,IF(ISNUMBER(AA194),AA194,IF(ISNUMBER(AB194), AB194, "NA"))) -> 25780 | AB194: 25780 | AC194: 2578 | AE194: 0 | AF194: 2009 | AG194: 2009 | AH194: 111 solar photovoltaic panels. | AI194: 2017-08-03
A195: 1 | B195: P0129 | C195: Grenada | G195: Solar PV | H195: 1 | I195: 1.0 | J195: Distributed | K195: Operational | N195: 1.84 | Q195: 4.0940736 | T195: 4.0940736 | U195: 0.254 | V195: NA | X195: 0.254 | Y195: 4743.52 | AB195: 4743.52 | AC195: 2578 | AE195: 0 | AF195: 2012 | AG195: 2012 | AH195: Commisioned in October 2012. | AI195: 2017-08-03
A196: 1 | B196: P0130 | C196: Grenada | G196: Wind | H196: 1 | I196: 1.0 | J196: Distributed | K196: Operational | N196: 1 | Q196: 4.0296 | T196: 4.0296 | U196: 0.46 | V196: NA | X196: 0.46 | Y196: 1575.666667 | AB196: 1575.666667 | AC196: 1575.666667 | AE196: 0 | AF196: 2012 | AG196: 2012 | AH196: Commisioned in October 2012. | AI196: 2017-08-03
A197: Multiple | C197: Grenada | G197: Solar PV | H197: Multiple | J197: Distributed | K197: Operational | N197: 300 | Q197: 0 | T197: 0 | U197: 0 | X197: =IF(OR(K197="Under development",K197="Planned"),VLOOKUP(G197,'Capex by RE tech'!$A$4:$D$18,4,TRUE),IF(AND(K197="Operational",G197="Solar PV"),VLOOKUP(AG197,'Capex by RE tech'!$C$11:$D$13,2,TRUE),IF(AND(K197="Operational",G197="Wind"),VLOOKUP(AG197,'Capex by RE tech'!$C$17:$D$19,2,TRUE),IF(AND(K197="Operational",G197="Biomass"),VLOOKUP(AG197,'Capex by RE tech'!$C$2:$D$4,2,TRUE),IF(AND(K197="Operational",G197="Geothermal"),VLOOKUP(AG197,'Capex by RE tech'!$C$2:$D$4,2,TRUE),IF(AND(K197="Operational",G197="Hydro"),VLOOKUP(AG197,'Capex by RE tech'!$C$8:$D$10,2,TRUE),IF(AND(K197="Operational",G197="Waste-to-Energy"),VLOOKUP(AG197,'Capex by RE tech'!$C$14:$D$16,2,TRUE),IF(AND(K197="Operational",AG197<2010),VLOOKUP(G197,'Capex by RE tech'!$A$2:$D$19,4,FALSE),NA)))))))) ->  | Y197: 435000 | AB197: =AC197*N197 -> 435000 | AC197: =VLOOKUP(G197,'Capex by RE tech'!$A$2:$F$19,6,TRUE) -> 1450
A198: Multiple | C198: Grenada | G198: Wind | H198: Multiple | J198: Distributed | K198: Operational | N198: 80 | Q198: 0 | T198: 0 | U198: 0 | X198: =IF(OR(K198="Under development",K198="Planned"),VLOOKUP(G198,'Capex by RE tech'!$A$4:$D$18,4,TRUE),IF(AND(K198="Operational",G198="Solar PV"),VLOOKUP(AG198,'Capex by RE tech'!$C$11:$D$13,2,TRUE),IF(AND(K198="Operational",G198="Wind"),VLOOKUP(AG198,'Capex by RE tech'!$C$17:$D$19,2,TRUE),IF(AND(K198="Operational",G198="Biomass"),VLOOKUP(AG198,'Capex by RE tech'!$C$2:$D$4,2,TRUE),IF(AND(K198="Operational",G198="Geothermal"),VLOOKUP(AG198,'Capex by RE tech'!$C$2:$D$4,2,TRUE),IF(AND(K198="Operational",G198="Hydro"),VLOOKUP(AG198,'Capex by RE tech'!$C$8:$D$10,2,TRUE),IF(AND(K198="Operational",G198="Waste-to-Energy"),VLOOKUP(AG198,'Capex by RE tech'!$C$14:$D$16,2,TRUE),IF(AND(K198="Operational",AG198<2010),VLOOKUP(G198,'Capex by RE tech'!$A$2:$D$19,4,FALSE),NA)))))))) ->  | Y198: 118000 | AB198: =AC198*N198 -> 118000 | AC198: =VLOOKUP(G198,'Capex by RE tech'!$A$2:$F$19,6,TRUE) -> 1475
A199: 70 | B199: P0131 | C199: Guadeloupe | E199: Various | F199: Various | G199: Solar PV | H199: 70 | I199: =IF(K199="Planned","3.0",IF(AG199<DATE(2009,12,31),"1.0",IF(AND(AG199>=DATE(2010,1,1)+0,AG199<=DATE(2012,12,31)),"1.0",IF(AND(AG199>=DATE(2013,1,1),AG199<=DATE(2015,12,31)),"2.0",IF(AG199>=DATE(2016,1,1),"3.0",""))))) -> 1.0 | J199: Distributed | K199: Operational | L199: Various | M199: Various | N199: 65410 | Q199: 93794 | S199: 93794 | T199: 145539.8664 | U199: 0.254 | V199: =IF(OR(ISBLANK(N199),ISBLANK(R199)),"NA",(R199*1000)/(N199*8760)) -> NA | X199: 0.254 | Y199: 168626980 | AB199: 168626980 | AC199: =IF(AND(ISNUMBER(N199), ISNUMBER(Y199)),Y199/N199,"NA") -> 2578 | AE199: =SUM(AD199:AD199) -> 0 | AF199: =IF(ISNUMBER(AG199),AG199,IF(ISNUMBER(AH199),AH199,"NA")) -> 2016 | AG199: 2016 | AI199: 2017-08-03
A200: =H200 -> 1 | B200: P0146 | C200: Guadeloupe | E200: Petit-Canal | F200: Quadran Caraïbes | G200: Wind | H200: 1 | I200: 1.0 | J200: Utility/IPP | K200: Operational | L200: Quadran Caraïbes | M200: EDF Énergies Nouvelles S.A. | N200: 1440 | O200: 24 | P200: =N200/O200 -> 60 | Q200: 2720 | T200: 2720 | U200: 0.2156265855 | V200: NA | W200: =51000/(27 * 8760) -> 0.2156265855 | X200: 0.46 | Y200: 2268960 | AB200: 2268960 | AC200: 1575.666667 | AE200: 0 | AF200: 1999 | AG200: 1999 | AI200: 2018-08-20 | AJ200: Confident
... 223 more rows

Sheet RE Index | Ranking inputs
H2: 1 | I2: 1 | J2: 1 | K2: 1 | L2: 1 | M2: =SUM(IF(M$4=Marketplace!$C$3:$C$284,IF(Marketplace!$K$3:$K$284 = "Planned", IF(Marketplace!$AG$3:$AG$284 < "2023", IF(Marketplace!$J$3:$J$284 ="Utility/IPP", Marketplace!$H$3:$H$284))))) -> 0 | N2: =SUM(IF(N$4=Marketplace!$C$3:$C$284,IF(Marketplace!$K$3:$K$284 = "Planned", IF(Marketplace!$AG$3:$AG$284 < "2023", IF(Marketplace!$J$3:$J$284 ="Utility/IPP", Marketplace!$H$3:$H$284))))) -> 2 | O2: =SUM(IF(O$4=Marketplace!$C$3:$C$284,IF(Marketplace!$K$3:$K$284 = "Planned", IF(Marketplace!$AG$3:$AG$284 < "2023", IF(Marketplace!$J$3:$J$284 ="Utility/IPP", Marketplace!$H$3:$H$284))))) -> 0 | P2: 1 | Q2: 1 | R2: =SUM(IF(R$4=Marketplace!$C$3:$C$284,IF(Marketplace!$K$3:$K$284 = "Planned", IF(Marketplace!$AG$3:$AG$284 < "2023", IF(Marketplace!$J$3:$J$284 ="Utility/IPP", Marketplace!$H$3:$H$284))))) -> 23 | S2: =SUM(IF(S$4=Marketplace!$C$3:$C$284,IF(Marketplace!$K$3:$K$284 = "Planned", IF(Marketplace!$AG$3:$AG$284 < "2023", IF(Marketplace!$J$3:$J$284 ="Utility/IPP", Marketplace!$H$3:$H$284))))) -> 0 | T2: =SUM(IF(T$4=Marketplace!$C$3:$C$284,IF(Marketplace!$K$3:$K$284 = "Planned", IF(Marketplace!$AG$3:$AG$284 < "2023", IF(Marketplace!$J$3:$J$284 ="Utility/IPP", Marketplace!$H$3:$H$284))))) -> 3 | U2: 1 | V2: =SUM(IF(V$4=Marketplace!$C$3:$C$284,IF(Marketplace!$K$3:$K$284 = "Planned", IF(Marketplace!$AG$3:$AG$284 < "2023", IF(Marketplace!$J$3:$J$284 ="Utility/IPP", Marketplace!$H$3:$H$284))))) -> 1 | W2: 1 | X2: 1 | Y2: 1 | Z2: 1 | AA2: 1 | AB2: 1 | AC2: 1 | AD2: 1 | AE2: 1 | AF2: 1 | AG2: 1 | AH2: 1 | AI2: 1 | AJ2: 1 | AK2: 1 | AL2: 1 | AM2: 1
H4: Anguilla | I4: Antigua_Barbuda | J4: Aruba | K4: Bahamas | L4: Barbados | M4: Bermuda | N4: Belize | O4: Bonaire | P4: BVI | Q4: Cayman_Islands | R4: Cuba | S4: Curacao | T4: Dominica | U4: Dominican_Republic | V4: Grenada | W4: Guadeloupe | X4: Guyana | Y4: Haiti | Z4: Jamaica | AA4: Martinique | AB4: Montserrat | AC4: Nevis | AD4: Puerto_Rico | AE4: Saint_Martin | AF4: Sint_Marteen | AG4: St_Lucia | AH4: St_Vincent_Grenadines | AI4: St_Kitts | AJ4: Suriname | AK4: Trinidad_Tobago | AL4: Turks_and_Caicos | AM4: USVI
C5: List of Indicators for the Castalia - CREF Island RE Ranking Scale: 0 to 5 (0 = Poor ; 5 = World class) | E5: Index | H5: Anguilla | I5: Antigua & Barbuda | J5: Aruba | K5: The Bahamas | L5: Barbados | M5: Bermuda | N5: Belize | O5: Bonaire | P5: British Virgin Islands | Q5: Cayman Islands | R5: Cuba | S5: Curaҫao | T5: Dominica | U5: Dominican Republic | V5: Grenada | W5: Guadeloupe | X5: Guyana | Y5: Haiti | Z5: Jamaica | AA5: Martinique | AB5: Montserrat | AC5: Nevis | AD5: Puerto Rico | AE5: Saint-Martin | AF5: Sint Maarten | AG5: St. Lucia | AH5: St. Vincent and the Grenadines | AI5: St. Kitts | AJ5: Suriname | AK5: Trinidad and Tobago | AL5: Turks and Caicos Islands | AM5: U.S. Virgin Islands
D6: Overall Score | E6: 0 to 5 | F6: =SUM(F8,F26,F34,F42) -> 1 | G6: 1 | H6: =($G$8*H8)+($G$26*H26)+($G$34*H34)+($G$42*H42) -> 0 | I6: 1.343992424 | J6: 0.2287208081 | K6: 1.031678972 | L6: 1.407370503 | M6: 1.657955967 | N6: 2.217965098 | O6: 2.127604167 | P6: 0.10074 | Q6: 2.113488529 | R6: 0.1157180608 | S6: 2.243866177 | T6: 3.1309375 | U6: 2.5509375 | V6: 1.333295212 | W6: 2.76126027 | X6: 0.1793156505 | Y6: 0.4393724731 | Z6: 1.855560529 | AA6: 0.1187576923 | AB6: 1.255940299 | AC6: 1.694243778 | AD6: 0.2593867646 | AE6: 0 | AF6: 0 | AG6: 1.47304471 | AH6: 0.5451730149 | AI6: 1.009711799 | AJ6: 1.709088558 | AK6: 0.2369791667 | AL6: 0.8685600063 | AM6: 0.6640255285
D7: Rank | E7: Rank of 32 | H7: =H123 -> 31 | I7: =I123 -> 14 | J7: 25 | K7: 17 | L7: 13 | M7: 11 | N7: 5 | O7: 6 | P7: 29 | Q7: 7 | R7: 28 | S7: 4 | T7: 1 | U7: 3 | V7: 15 | W7: 2 | X7: 26 | Y7: 22 | Z7: 8 | AA7: 27 | AB7: 16 | AC7: 10 | AD7: 23 | AE7: 31 | AF7: 31 | AG7: 12 | AH7: 21 | AI7: 18 | AJ7: 9 | AK7: 24 | AL7: 19 | AM7: 20
B8: 1 | D8: Enabling environment for renewable energy investments | F8: =SUM(F9,F12,F22) -> 0.3 | G8: 0.3 | H8: =(+H9*$G$9)+(MAX(H12,H16)*$G$12)+(H22*$G$22) -> 0 | I8: =(+I9*$G$9)+(MAX(I12,I16)*$G$12)+(I22*$G$22) -> 4.375 | J8: 0 | K8: =(+K9*$G$9)+(MAX(K12,K16)*$G$12)+(K22*$G$22) -> 2.78125 | L8: 3.125 | M8: 4.6875 | N8: 3.359375 | O8: 4.453125 | P8: 0 | Q8: 4.609375 | R8: 0 | S8: 4.6875 | T8: 3.203125 | U8: 2.703125 | V8: 3.046875 | W8: 4.765625 | X8: 0 | Y8: 0.65625 | Z8: 3.453125 | AA8: 0 | AB8: 0.15625 | AC8: 2.8125 | AD8: 0 | AE8: 0 | AF8: 0 | AG8: 0.390625 | AH8: 0.15625 | AI8: 1.546875 | AJ8: 2.96875 | AK8: 0.234375 | AL8: 1.71875 | AM8: 2.046875
D9: Renewable Energy Strategy | E9: 0 to 5 | F9: =G9*$G$8 -> 0.075 | G9: 0.25 | H9: =COUNTIF(H10:H11,"Yes")*5/COUNT($C$10:$C$11) -> 0 | I9: =COUNTIF(I10:I40,"Yes")*5/COUNT($C$10:$C$40) -> 2.5 | J9: 0 | K9: 3.125 | L9: 2.5 | M9: 3.75 | N9: 3.4375 | O9: 2.8125 | P9: 0 | Q9: 3.4375 | R9: 0 | S9: 3.75 | T9: 2.8125 | U9: 2.8125 | V9: 2.1875 | W9: 4.0625 | X9: 0 | Y9: 0.625 | Z9: 2.8125 | AA9: 0 | AB9: 0.625 | AC9: 1.25 | AD9: 0 | AE9: 0 | AF9: 0 | AG9: 1.5625 | AH9: 0.625 | AI9: 2.1875 | AJ9: 1.875 | AK9: 0.9375 | AL9: 1.875 | AM9: 2.1875
C10: 1 | D10: Does the plan contain a specific target for renewable energy? | F10: 0.0375 | G10: =$G$9/COUNT($C$10:$C$11) -> 0.125 | H10: =INDIRECT(H$4&"!E7") -> NA | I10: =INDIRECT(I$4&"!E7") -> Yes | J10: NA | K10: =INDIRECT(K$4&"!E7") -> Yes | L10: Yes | M10: Yes | N10: Yes | O10: Yes | P10: NA | Q10: Yes | R10: NA | S10: Yes | T10: NA | U10: No | V10: Yes | W10: Yes | X10: NA | Y10: No | Z10: Yes | AA10: NA | AB10: No | AC10: Yes | AD10: NA | AE10: NA | AF10: NA | AG10: Yes | AH10: Yes | AI10: Yes | AJ10: Yes | AK10: Yes | AL10: No | AM10: Yes
C11: 2 | D11: Does your country have an Integrated Resource Plan (IRP) that was produced within the last three years? | F11: 0.0375 | G11: =$G$9/COUNT($C$10:$C$11) -> 0.125 | H11: =INDIRECT(H$4&"!E10") -> NA | I11: =INDIRECT(I$4&"!E10") -> No | J11: NA | K11: =INDIRECT(K$4&"!E10") -> Yes | L11: No | M11: Yes | N11: Yes | O11: No | P11: NA | Q11: Yes | R11: NA | S11: No | T11: No | U11: Yes | V11: No | W11: No | X11: NA | Y11: No | Z11: Yes | AA11: NA | AB11: No | AC11: No | AD11: NA | AE11: NA | AF11: NA | AG11: Yes | AH11: No | AI11: Yes | AJ11: No | AK11: No | AL11: Yes | AM11: Yes
D12: Utilities and regulatory processes | E12: 0 to 5 | F12: 0.15 | G12: 0.5 | H12: =COUNTIF(H14:H15,"Yes")*5/COUNT($C$14:$C$15) -> 0 | I12: 5 | J12: 0 | K12: =COUNTIF(K14:K15,"Yes")*5/COUNT($C$14:$C$15) -> 2.5 | L12: 2.5 | M12: 5 | N12: 2.5 | O12: 5 | P12: 0 | Q12: 0 | R12: 0 | S12: 5 | T12: 5 | U12: 2.5 | V12: 2.5 | W12: 5 | X12: 0 | Y12: 0 | Z12: 0 | AA12: 0 | AB12: 0 | AC12: 5 | AD12: 0 | AE12: 0 | AF12: 0 | AG12: 0 | AH12: 0 | AI12: 0 | AJ12: 5 | AK12: 0 | AL12: 0 | AM12: 2.5
C13: 1 | D13: When planning generation expansion, does the utility consider RE options? | F13: 0.05 | G13: =$G$12/COUNT($C$13:$C$15) -> 0.1666666667 | H13: =INDIRECT(H$4&"!E12") -> NA | I13: =INDIRECT(I$4&"!E12") -> Yes | J13: NA | K13: =INDIRECT(K$4&"!E12") -> Yes | L13: Yes | M13: Yes | N13: Yes | O13: Yes | P13: NA | Q13: Yes | R13: NA | S13: Yes | T13: Yes | U13: Yes | V13: Yes | W13: Yes | X13: NA | Y13: Yes | Z13: Yes | AA13: NA | AB13: Yes | AC13: Yes | AD13: NA | AE13: NA | AF13: NA | AG13: Yes | AH13: Yes | AI13: Yes | AJ13: Yes | AK13: Yes | AL13: Yes | AM13: Yes
C14: 2 | D14: Can the utility safely recover RE investments through tariffs like it can recover fossil fuel costs? | F14: 0.05 | G14: =$G$12/COUNT($C$13:$C$15) -> 0.1666666667 | H14: =INDIRECT(H$4&"!E13") -> NA | I14: =INDIRECT(I$4&"!E13") -> Yes | J14: NA | K14: =INDIRECT(K$4&"!E13") -> No | L14: Yes | M14: Yes | N14: Yes | O14: Yes | P14: NA | Q14: No | R14: NA | S14: Yes | T14: Yes | U14: No | V14: Yes | W14: Yes | X14: NA | Y14: No | Z14: No | AA14: NA | AB14: No | AC14: Yes | AD14: NA | AE14: NA | AF14: NA | AG14: No | AH14: No | AI14: No | AJ14: Yes | AK14: No | AL14: No | AM14: NA
C15: 3 | D15: Are there clear, specific planning and permitting processes and rules in place for developing RE? | F15: 0.05 | G15: 0.1666666667 | H15: =INDIRECT(H$4&"!E14") -> NA | I15: =INDIRECT(I$4&"!E14") -> Yes | J15: NA | K15: =INDIRECT(K$4&"!E14") -> Yes | L15: No | M15: Yes | N15: No | O15: Yes | P15: NA | Q15: No | R15: NA | S15: Yes | T15: Yes | U15: Yes | V15: No | W15: Yes | X15: NA | Y15: No | Z15: No | AA15: NA | AB15: No | AC15: Yes | AD15: NA | AE15: NA | AF15: NA | AG15: No | AH15: No | AI15: No | AJ15: Yes | AK15: No | AL15: No | AM15: Yes
D16: IPPs | E16: 0 or 5 | F16: OR | G16: OR | H16: =COUNTIF(H17:H21,"Yes")*5/COUNT($C$17:$C$21) -> 0 | I16: 2 | J16: 0 | K16: =COUNTIF(K17:K21,"Yes")*5/COUNT($C$17:$C$21) -> 4 | L16: 2 | M16: 5 | N16: 5 | O16: 3 | P16: 0 | Q16: 5 | R16: 0 | S16: 4 | T16: 4 | U16: 4 | V16: 1 | W16: 5 | X16: 0 | Y16: 1 | Z16: 3 | AA16: 0 | AB16: 0 | AC16: 0 | AD16: 0 | AE16: 0 | AF16: 0 | AG16: 0 | AH16: 0 | AI16: 2 | AJ16: 1 | AK16: 0 | AL16: 0 | AM16: 3
C17: 1 | D17: Can the utility safely recover purchases of RE from third parties, just as it recovers fossil fuel costs? | F17: =G17*$G$8 -> 0.03 | G17: =$G$12/COUNT($C$17:$C$21) -> 0.1 | H17: =INDIRECT(H$4&"!E17") -> NA | I17: =INDIRECT(I$4&"!E17") -> Yes | J17: NA | K17: =INDIRECT(K$4&"!E17") -> No | L17: Yes | M17: Yes | N17: Yes | O17: Yes | P17: NA | Q17: Yes | R17: NA | S17: Yes | T17: Yes | U17: Yes | V17: Yes | W17: Yes | X17: NA | Y17: No | Z17: No | AA17: NA | AB17: No | AC17: NA | AD17: NA | AE17: NA | AF17: NA | AG17: No | AH17: NA | AI17: Yes | AJ17: No | AK17: No | AL17: No | AM17: NA
C18: =C17+1 -> 2 | D18: Are there workable precedents or rules for PPA terms and grid operation rules? | F18: =G18*$G$8 -> 0.03 | G18: =$G$12/COUNT($C$17:$C$21) -> 0.1 | H18: =INDIRECT(H$4&"!E19") -> NA | I18: =INDIRECT(I$4&"!E19") -> Yes | J18: NA | K18: =INDIRECT(K$4&"!E19") -> Yes | L18: 0 | M18: Yes | N18: Yes | O18: Yes | P18: NA | Q18: Yes | R18: NA | S18: Yes | T18: Yes | U18: Yes | V18: No | W18: Yes | X18: NA | Y18: Yes | Z18: Yes | AA18: NA | AB18: No | AC18: NA | AD18: NA | AE18: NA | AF18: NA | AG18: No | AH18: NA | AI18: No | AJ18: No | AK18: No | AL18: No | AM18: Yes
C19: 3 | D19: Are there clear and effective licensing processes and requirements in place for IPPs? | F19: 0.03 | G19: =$G$12/COUNT($C$17:$C$21) -> 0.1 | H19: =INDIRECT(H$4&"!E20") -> NA | I19: =INDIRECT(I$4&"!E20") -> No | J19: NA | K19: =INDIRECT(K$4&"!E20") -> Yes | L19: 0 | M19: Yes | N19: Yes | O19: Yes | P19: NA | Q19: Yes | R19: NA | S19: Yes | T19: Yes | U19: Yes | V19: No | W19: Yes | X19: NA | Y19: No | Z19: Yes | AA19: NA | AB19: No | AC19: NA | AD19: NA | AE19: NA | AF19: NA | AG19: No | AH19: NA | AI19: No | AJ19: No | AK19: No | AL19: No | AM19: Yes
C20: 4 | D20: Does the utility have an obligation to purchase from IPPs when it is cheaper than generating the power itself? | F20: 0.03 | G20: =$G$12/COUNT($C$17:$C$21) -> 0.1 | H20: =INDIRECT(H$4&"!E21") -> NA | I20: =INDIRECT(I$4&"!E21") -> No | J20: NA | K20: =INDIRECT(K$4&"!E21") -> Yes | L20: Yes | M20: Yes | N20: Yes | O20: No | P20: NA | Q20: Yes | R20: NA | S20: No | T20: Yes | U20: No | V20: 0 | W20: Yes | X20: NA | Y20: No | Z20: Yes | AA20: NA | AB20: No | AC20: NA | AD20: NA | AE20: NA | AF20: NA | AG20: No | AH20: NA | AI20: No | AJ20: Yes | AK20: No | AL20: NA | AM20: Yes
C21: 5 | D21: Does the PPA have any take-or-pay arrangements? | F21: =G21*$G$8 -> 0.03 | G21: =$G$12/COUNT($C$17:$C$21) -> 0.1 | H21: =INDIRECT(H$4&"!E22") -> NA | I21: =INDIRECT(I$4&"!E22") -> No | J21: NA | K21: =INDIRECT(K$4&"!E22") -> Yes | L21: 0 | M21: Yes | N21: Yes | O21: 0 | P21: NA | Q21: Yes | R21: NA | S21: Yes | T21: NA | U21: Yes | V21: 0 | W21: Yes | X21: NA | Y21: No | Z21: No | AA21: NA | AB21: No | AC21: NA | AD21: NA | AE21: NA | AF21: NA | AG21: No | AH21: NA | AI21: Yes | AJ21: No | AK21: No | AL21: NA | AM21: No
D22: Distributed generation | E22: 0 or 5 | F22: =G22*$G$8 -> 0.075 | G22: 0.25 | H22: =IF(COUNTIF(H24,"Yes") = 1,5,0) -> 0 | I22: =IF(COUNTIF(I24,"Yes") = 1,5,0) -> 5 | J22: =IF(COUNTIF(J24,"Yes") = 1,5,0) -> 0 | K22: =IF(COUNTIF(K24,"Yes") = 1,5,0) -> 0 | L22: =IF(COUNTIF(L24,"Yes") = 1,5,0) -> 5 | M22: =IF(COUNTIF(M24,"Yes") = 1,5,0) -> 5 | N22: 0 | O22: 5 | P22: =IF(COUNTIF(P24,"Yes") = 1,5,0) -> 0 | Q22: =IF(COUNTIF(Q24,"Yes") = 1,5,0) -> 5 | R22: 0 | S22: 5 | T22: =IF(COUNTIF(T24,"Yes") = 1,5,0) -> 0 | U22: =IF(COUNTIF(U24,"Yes") = 1,5,0) -> 0 | V22: =IF(COUNTIF(V24,"Yes") = 1,5,0) -> 5 | W22: 5 | X22: 0 | Y22: 0 | Z22: 5 | AA22: 0 | AB22: 0 | AC22: 0 | AD22: 0 | AE22: 0 | AF22: 0 | AG22: 0 | AH22: 0 | AI22: 0 | AJ22: 0 | AK22: =IF(COUNTIF(AK24,"Yes") = 1,5,0) -> 0 | AL22: =IF(COUNTIF(AL24,"Yes") = 1,5,0) -> 5 | AM22: =IF(COUNTIF(AM24,"Yes") = 1,5,0) -> 0
C23: 1 | D23: Do you have a registry or database of distributed generation? | F23: =G23*$G$8 -> 0.0375 | G23: =$G$22/COUNT($C$23:$C$24) -> 0.125 | H23: =INDIRECT(H$4&"!E24") -> NA | I23: =INDIRECT(I$4&"!E24") -> Yes | J23: NA | K23: =INDIRECT(K$4&"!E24") -> Yes | L23: Yes | M23: No | N23: No | O23: No | P23: NA | Q23: Yes | R23: NA | S23: Yes | T23: NA | U23: No | V23: Yes | W23: Yes | X23: NA | Y23: No | Z23: No | AA23: NA | AB23: No | AC23: NA | AD23: NA | AE23: NA | AF23: NA | AG23: Yes | AH23: NA | AI23: No | AJ23: No | AK23: No | AL23: Yes | AM23: NA
C24: 2 | D24: Is there a standard arrangement in place for customers to sell electricity to the utility at a reasonable price, for a reasonable timeframe, and with a clear interconnection agreement? | F24: =G24*$G$8 -> 0.0375 | G24: =$G$22/COUNT($C$23:$C$24) -> 0.125 | H24: =INDIRECT(H$4&"!E29") -> NA | I24: =INDIRECT(I$4&"!E29") -> Yes | J24: NA | K24: =INDIRECT(K$4&"!E29") -> NA | L24: Yes | M24: Yes | N24: No | O24: Yes | P24: NA | Q24: Yes | R24: NA | S24: Yes | T24: NA | U24: No | V24: Yes | W24: Yes | X24: NA | Y24: No | Z24: Yes | AA24: NA | AB24: No | AC24: NA | AD24: NA | AE24: NA | AF24: NA | AG24: No | AH24: NA | AI24: No | AJ24: No | AK24: No | AL24: Yes | AM24: NA
B26: 2 | D26: Existing renewable generation | F26: =SUM(F27:F31) -> 0.3 | G26: 0.3 | H26: =H27 -> 0 | I26: =I27 -> 0.05 | J26: 0.7425373737 | K26: =K27 -> 0 | L26: 0.09024481591 | M26: 0.2506746616 | N26: 2.709893787 | O26: 2.083333333 | P26: 0 | Q26: 0.07189842435 | R26: 0.02078416717 | S26: 1.372965968 | T26: 1.4 | U26: 0.8 | V26: 0.03585853759 | W26: 1.062206573 | X26: 0.4898527448 | Y26: 0.8083249102 | Z26: 0.6 | AA26: 0.35 | AB26: 0 | AC26: 0.7671576178 | AD26: 0.1 | AE26: 0 | AF26: 0 | AG26: 0.6261270287 | AH26: 0.85 | AI26: 0.06284761905 | AJ26: 2.171313104 | AK26: 0 | AL26: 0.05 | AM26: 0.1141593114
C27: 1 | D27: Share of RE to total electricity produced to scale | F27: =$G$26*G27 -> 0.3 | G27: =1/COUNT(C27:C31) -> 1 | H27: =H28*5 -> 0 | I27: =I28*5 -> 0.05 | J27: 0.7425373737 | K27: =K28*5 -> 0 | L27: 0.09024481591 | M27: 0.2506746616 | N27: 2.709893787 | O27: 2.083333333 | P27: 0 | Q27: 0.07189842435 | R27: 0.02078416717 | S27: 1.372965968 | T27: 1.4 | U27: 0.8 | V27: 0.03585853759 | W27: 1.062206573 | X27: 0.4898527448 | Y27: 0.8083249102 | Z27: 0.6 | AA27: 0.35 | AB27: 0 | AC27: 0.7671576178 | AD27: 0.1 | AE27: 0 | AF27: 0 | AG27: 0.6261270287 | AH27: 0.85 | AI27: 0.06284761905 | AJ27: 2.171313104 | AK27: 0 | AL27: 0.05 | AM27: 0.1141593114
D28: Share of RE to total electricity produced | E28: % | H28: =H31/H29 -> 0 | I28: 0.01 | J28: 0.1485074747 | K28: 0 | L28: 0.01804896318 | M28: 0.05013493231 | N28: 0.5419787575 | O28: 0.4166666667 | P28: 0 | Q28: 0.01437968487 | R28: 0.004156833433 | S28: 0.2745931936 | T28: 0.28 | U28: 0.16 | V28: 0.007171707518 | W28: 0.2124413146 | X28: 0.09797054895 | Y28: 0.161664982 | Z28: 0.12 | AA28: 0.07 | AB28: 0 | AC28: 0.1534315236 | AD28: 0.02 | AE28: 0 | AF28: 0 | AG28: 0.1252254057 | AH28: 0.17 | AI28: 0.01256952381 | AJ28: 0.4342626208 | AK28: 0 | AL28: 0.01 | AM28: 0.02283186227
D29: What was the total electricity generated in 2018? (MWh) | E29: MWh / year | H29: =IF(OR(INDIRECT(H$4&"!E33")=0,INDIRECT(H$4&"!E33")="NA"),VLOOKUP(H$4,'Jurisdictions | Generation'!$A$3:$I$35,5,FALSE),INDIRECT(H$4&"!E33")) -> 100446 | I29: =IF(OR(INDIRECT(I$4&"!E33")=0,INDIRECT(I$4&"!E33")="NA"),VLOOKUP(I$4,'Jurisdictions | Generation'!$A$3:$I$35,5,FALSE),INDIRECT(I$4&"!E33")) -> 330000 | J29: =IF(OR(INDIRECT(J$4&"!E33")=0,INDIRECT(J$4&"!E33")="NA"),VLOOKUP(J$4,'Jurisdictions | Generation'!$A$3:$I$35,5,FALSE),INDIRECT(J$4&"!E33")) -> 990000 | K29: =IF(OR(INDIRECT(K$4&"!E33")=0,INDIRECT(K$4&"!E33")="NA"),VLOOKUP(K$4,'Jurisdictions | Generation'!$A$3:$I$35,5,FALSE),INDIRECT(K$4&"!E33")) -> 1930000 | L29: =IF(OR(INDIRECT(L$4&"!E33")=0,INDIRECT(L$4&"!E33")="NA"),VLOOKUP(L$4,'Jurisdictions | Generation'!$A$3:$I$35,5,FALSE),INDIRECT(L$4&"!E33")) -> 1004194.663 | M29: =IF(OR(INDIRECT(M$4&"!E33")=0,INDIRECT(M$4&"!E33")="NA"),VLOOKUP(M$4,'Jurisdictions | Generation'!$A$3:$I$35,5,FALSE),INDIRECT(M$4&"!E33")) -> 614461.785 | N29: =IF(OR(INDIRECT(N$4&"!E33")=0,INDIRECT(N$4&"!E33")="NA"),VLOOKUP(N$4,'Jurisdictions | Generation'!$A$3:$I$35,5,FALSE),INDIRECT(N$4&"!E33")) -> 631093 | O29: =IF(OR(INDIRECT(O$4&"!E33")=0,INDIRECT(O$4&"!E33")="NA"),VLOOKUP(O$4,'Jurisdictions | Generation'!$A$3:$I$35,5,FALSE),INDIRECT(O$4&"!E33")) -> 120000 | P29: =IF(OR(INDIRECT(P$4&"!E33")=0,INDIRECT(P$4&"!E33")="NA"),VLOOKUP(P$4,'Jurisdictions | Generation'!$A$3:$I$35,5,FALSE),INDIRECT(P$4&"!E33")) -> 50000 | Q29: =IF(OR(INDIRECT(Q$4&"!E33")=0,INDIRECT(Q$4&"!E33")="NA"),VLOOKUP(Q$4,'Jurisdictions | Generation'!$A$3:$I$35,5,FALSE),INDIRECT(Q$4&"!E33")) -> 653700 | R29: =IF(OR(INDIRECT(R$4&"!E33")=0,INDIRECT(R$4&"!E33")="NA"),VLOOKUP(R$4,'Jurisdictions | Generation'!$A$3:$I$35,5,FALSE),INDIRECT(R$4&"!E33")) -> 20458600 | S29: =IF(OR(INDIRECT(S$4&"!E33")=0,INDIRECT(S$4&"!E33")="NA"),VLOOKUP(S$4,'Jurisdictions | Generation'!$A$3:$I$35,5,FALSE),INDIRECT(S$4&"!E33")) -> 865865.963 | T29: =IF(OR(INDIRECT(T$4&"!E33")=0,INDIRECT(T$4&"!E33")="NA"),VLOOKUP(T$4,'Jurisdictions | Generation'!$A$3:$I$35,5,FALSE),INDIRECT(T$4&"!E33")) -> 65411 | U29: =IF(OR(INDIRECT(U$4&"!E33")=0,INDIRECT(U$4&"!E33")="NA"),VLOOKUP(U$4,'Jurisdictions | Generation'!$A$3:$I$35,5,FALSE),INDIRECT(U$4&"!E33")) -> 107000 | V29: =IF(OR(INDIRECT(V$4&"!E33")=0,INDIRECT(V$4&"!E33")="NA"),VLOOKUP(V$4,'Jurisdictions | Generation'!$A$3:$I$35,5,FALSE),INDIRECT(V$4&"!E33")) -> 230947.232 | W29: =IF(OR(INDIRECT(W$4&"!E33")=0,INDIRECT(W$4&"!E33")="NA"),VLOOKUP(W$4,'Jurisdictions | Generation'!$A$3:$I$35,5,FALSE),INDIRECT(W$4&"!E33")) -> 1704000 | X29: =IF(OR(INDIRECT(X$4&"!E33")=0,INDIRECT(X$4&"!E33")="NA"),VLOOKUP(X$4,'Jurisdictions | Generation'!$A$3:$I$35,5,FALSE),INDIRECT(X$4&"!E33")) -> 809411 | Y29: =IF(OR(INDIRECT(Y$4&"!E33")=0,INDIRECT(Y$4&"!E33")="NA"),VLOOKUP(Y$4,'Jurisdictions | Generation'!$A$3:$I$35,5,FALSE),INDIRECT(Y$4&"!E33")) -> 1057110.5 | Z29: =IF(OR(INDIRECT(Z$4&"!E33")=0,INDIRECT(Z$4&"!E33")="NA"),VLOOKUP(Z$4,'Jurisdictions | Generation'!$A$3:$I$35,5,FALSE),INDIRECT(Z$4&"!E33")) -> 4355502 | AA29: =IF(OR(INDIRECT(AA$4&"!E33")=0,INDIRECT(AA$4&"!E33")="NA"),VLOOKUP(AA$4,'Jurisdictions | Generation'!$A$3:$I$35,5,FALSE),INDIRECT(AA$4&"!E33")) -> 1560000 | AB29: =IF(OR(INDIRECT(AB$4&"!E33")=0,INDIRECT(AB$4&"!E33")="NA"),VLOOKUP(AB$4,'Jurisdictions | Generation'!$A$3:$I$35,5,FALSE),INDIRECT(AB$4&"!E33")) -> 12282 | AC29: =IF(OR(INDIRECT(AC$4&"!E33")=0,INDIRECT(AC$4&"!E33")="NA"),VLOOKUP(AC$4,'Jurisdictions | Generation'!$A$3:$I$35,5,FALSE),INDIRECT(AC$4&"!E33")) -> 57779 | AD29: =IF(OR(INDIRECT(AD$4&"!E33")=0,INDIRECT(AD$4&"!E33")="NA"),VLOOKUP(AD$4,'Jurisdictions | Generation'!$A$3:$I$35,5,FALSE),INDIRECT(AD$4&"!E33")) -> 17706414 | AE29: =IF(OR(INDIRECT(AE$4&"!E33")=0,INDIRECT(AE$4&"!E33")="NA"),VLOOKUP(AE$4,'Jurisdictions | Generation'!$A$3:$I$35,5,FALSE),INDIRECT(AE$4&"!E33")) -> 175000 | AF29: =IF(OR(INDIRECT(AF$4&"!E33")=0,INDIRECT(AF$4&"!E33")="NA"),VLOOKUP(AF$4,'Jurisdictions | Generation'!$A$3:$I$35,5,FALSE),INDIRECT(AF$4&"!E33")) -> 372671 | AG29: =IF(OR(INDIRECT(AG$4&"!E33")=0,INDIRECT(AG$4&"!E33")="NA"),VLOOKUP(AG$4,'Jurisdictions | Generation'!$A$3:$I$35,5,FALSE),INDIRECT(AG$4&"!E33")) -> 39928 | AH29: =IF(OR(INDIRECT(AH$4&"!E33")=0,INDIRECT(AH$4&"!E33")="NA"),VLOOKUP(AH$4,'Jurisdictions | Generation'!$A$3:$I$35,5,FALSE),INDIRECT(AH$4&"!E33")) -> 150664 | AI29: =IF(OR(INDIRECT(AI$4&"!E33")=0,INDIRECT(AI$4&"!E33")="NA"),VLOOKUP(AI$4,'Jurisdictions | Generation'!$A$3:$I$35,5,FALSE),INDIRECT(AI$4&"!E33")) -> 150000 | AJ29: =IF(OR(INDIRECT(AJ$4&"!E33")=0,INDIRECT(AJ$4&"!E33")="NA"),VLOOKUP(AJ$4,'Jurisdictions | Generation'!$A$3:$I$35,5,FALSE),INDIRECT(AJ$4&"!E33")) -> 2000000 | AK29: =IF(OR(INDIRECT(AK$4&"!E33")=0,INDIRECT(AK$4&"!E33")="NA"),VLOOKUP(AK$4,'Jurisdictions | Generation'!$A$3:$I$35,5,FALSE),INDIRECT(AK$4&"!E33")) -> 8463413 | AL29: =IF(OR(INDIRECT(AL$4&"!E33")=0,INDIRECT(AL$4&"!E33")="NA"),VLOOKUP(AL$4,'Jurisdictions | Generation'!$A$3:$I$35,5,FALSE),INDIRECT(AL$4&"!E33")) -> 241764.248 | AM29: =IF(OR(INDIRECT(AM$4&"!E33")=0,INDIRECT(AM$4&"!E33")="NA"),VLOOKUP(AM$4,'Jurisdictions | Generation'!$A$3:$I$35,5,FALSE),INDIRECT(AM$4&"!E33")) -> 641034
D30: Total electricity generation data source (survey or project database) | H30: =IF(OR(INDIRECT(H$4&"!E33")=0,INDIRECT(H$4&"!E33")="NA"),"Database","Survey") -> Database | I30: =IF(OR(INDIRECT(I$4&"!E33")=0,INDIRECT(I$4&"!E33")="NA"),"Database","Survey") -> Database | J30: Database | K30: =IF(OR(INDIRECT(K$4&"!E33")=0,INDIRECT(K$4&"!E33")="NA"),"Database","Survey") -> Database | L30: Survey | M30: Survey | N30: Survey | O30: Survey | P30: Database | Q30: Survey | R30: Database | S30: Survey | T30: Survey | U30: Survey | V30: Survey | W30: Survey | X30: Database | Y30: Survey | Z30: Survey | AA30: Database | AB30: Database | AC30: Database | AD30: Database | AE30: Database | AF30: Database | AG30: Survey | AH30: Database | AI30: Database | AJ30: Database | AK30: Survey | AL30: Database | AM30: Database
D31: What was the total electricity generated from Utility Scale RE projects in 2018? (MWh) | E31: MWh / year | H31: =IF(INDIRECT(H$4&"!E34")="NA",VLOOKUP(H$4,'Jurisdictions | Generation'!$A$3:$M$35,13,FALSE),INDIRECT(H$4&"!E34")) -> 0 | I31: =IF(INDIRECT(I$4&"!E34")="NA",VLOOKUP(I$4,'Jurisdictions | Generation'!$A$3:$M$35,13,FALSE),INDIRECT(I$4&"!E34")) -> 3300 | J31: =IF(INDIRECT(J$4&"!E34")="NA",VLOOKUP(J$4,'Jurisdictions | Generation'!$A$3:$M$35,13,FALSE),INDIRECT(J$4&"!E34")) -> 147022.4 | K31: =IF(INDIRECT(K$4&"!E34")="NA",VLOOKUP(K$4,'Jurisdictions | Generation'!$A$3:$M$35,13,FALSE),INDIRECT(K$4&"!E34")) -> 0 | L31: =IF(INDIRECT(L$4&"!E34")="NA",VLOOKUP(L$4,'Jurisdictions | Generation'!$A$3:$M$35,13,FALSE),INDIRECT(L$4&"!E34")) -> 18124.6725 | M31: =IF(INDIRECT(M$4&"!E34")="NA",VLOOKUP(M$4,'Jurisdictions | Generation'!$A$3:$M$35,13,FALSE),INDIRECT(M$4&"!E34")) -> 30806 | N31: =IF(INDIRECT(N$4&"!E34")="NA",VLOOKUP(N$4,'Jurisdictions | Generation'!$A$3:$M$35,13,FALSE),INDIRECT(N$4&"!E34")) -> 342039 | O31: =IF(INDIRECT(O$4&"!E34")="NA",VLOOKUP(O$4,'Jurisdictions | Generation'!$A$3:$M$35,13,FALSE),INDIRECT(O$4&"!E34")) -> 50000 | P31: =IF(INDIRECT(P$4&"!E34")="NA",VLOOKUP(P$4,'Jurisdictions | Generation'!$A$3:$M$35,13,FALSE),INDIRECT(P$4&"!E34")) -> 0 | Q31: =IF(INDIRECT(Q$4&"!E34")="NA",VLOOKUP(Q$4,'Jurisdictions | Generation'!$A$3:$M$35,13,FALSE),INDIRECT(Q$4&"!E34")) -> 9400 | R31: =IF(INDIRECT(R$4&"!E34")="NA",VLOOKUP(R$4,'Jurisdictions | Generation'!$A$3:$M$35,13,FALSE),INDIRECT(R$4&"!E34")) -> 85042.99248 | S31: =IF(INDIRECT(S$4&"!E34")="NA",VLOOKUP(S$4,'Jurisdictions | Generation'!$A$3:$M$35,13,FALSE),INDIRECT(S$4&"!E34")) -> 237760.9 | T31: =IF(INDIRECT(T$4&"!E34")="NA",VLOOKUP(T$4,'Jurisdictions | Generation'!$A$3:$M$35,13,FALSE),INDIRECT(T$4&"!E34")) -> 18315.08 | U31: =IF(INDIRECT(U$4&"!E34")="NA",VLOOKUP(U$4,'Jurisdictions | Generation'!$A$3:$M$35,13,FALSE),INDIRECT(U$4&"!E34")) -> 17120 | V31: =IF(INDIRECT(V$4&"!E34")="NA",VLOOKUP(V$4,'Jurisdictions | Generation'!$A$3:$M$35,13,FALSE),INDIRECT(V$4&"!E34")) -> 1656.286 | W31: =IF(INDIRECT(W$4&"!E34")="NA",VLOOKUP(W$4,'Jurisdictions | Generation'!$A$3:$M$35,13,FALSE),INDIRECT(W$4&"!E34")) -> 362000 | X31: =IF(INDIRECT(X$4&"!E34")="NA",VLOOKUP(X$4,'Jurisdictions | Generation'!$A$3:$M$35,13,FALSE),INDIRECT(X$4&"!E34")) -> 79298.44 | Y31: =IF(INDIRECT(Y$4&"!E34")="NA",VLOOKUP(Y$4,'Jurisdictions | Generation'!$A$3:$M$35,13,FALSE),INDIRECT(Y$4&"!E34")) -> 170897.75 | Z31: =IF(INDIRECT(Z$4&"!E34")="NA",VLOOKUP(Z$4,'Jurisdictions | Generation'!$A$3:$M$35,13,FALSE),INDIRECT(Z$4&"!E34")) -> 522660.24 | AA31: =IF(INDIRECT(AA$4&"!E34")="NA",VLOOKUP(AA$4,'Jurisdictions | Generation'!$A$3:$M$35,13,FALSE),INDIRECT(AA$4&"!E34")) -> 109200 | AB31: =IF(INDIRECT(AB$4&"!E34")="NA",VLOOKUP(AB$4,'Jurisdictions | Generation'!$A$3:$M$35,13,FALSE),INDIRECT(AB$4&"!E34")) -> 0 | AC31: =IF(INDIRECT(AC$4&"!E34")="NA",VLOOKUP(AC$4,'Jurisdictions | Generation'!$A$3:$M$35,13,FALSE),INDIRECT(AC$4&"!E34")) -> 8865.12 | AD31: =IF(INDIRECT(AD$4&"!E34")="NA",VLOOKUP(AD$4,'Jurisdictions | Generation'!$A$3:$M$35,13,FALSE),INDIRECT(AD$4&"!E34")) -> 392131.302 | AE31: =IF(INDIRECT(AE$4&"!E34")="NA",VLOOKUP(AE$4,'Jurisdictions | Generation'!$A$3:$M$35,13,FALSE),INDIRECT(AE$4&"!E34")) -> 0 | AF31: =IF(INDIRECT(AF$4&"!E34")="NA",VLOOKUP(AF$4,'Jurisdictions | Generation'!$A$3:$M$35,13,FALSE),INDIRECT(AF$4&"!E34")) -> 0 | AG31: =IF(INDIRECT(AG$4&"!E34")="NA",VLOOKUP(AG$4,'Jurisdictions | Generation'!$A$3:$M$35,13,FALSE),INDIRECT(AG$4&"!E34")) -> 5000 | AH31: =IF(INDIRECT(AH$4&"!E34")="NA",VLOOKUP(AH$4,'Jurisdictions | Generation'!$A$3:$M$35,13,FALSE),INDIRECT(AH$4&"!E34")) -> 25612.88 | AI31: =IF(INDIRECT(AI$4&"!E34")="NA",VLOOKUP(AI$4,'Jurisdictions | Generation'!$A$3:$M$35,13,FALSE),INDIRECT(AI$4&"!E34")) -> 1885.428571 | AJ31: =IF(INDIRECT(AJ$4&"!E34")="NA",VLOOKUP(AJ$4,'Jurisdictions | Generation'!$A$3:$M$35,13,FALSE),INDIRECT(AJ$4&"!E34")) -> 868525.2417 | AK31: =IF(INDIRECT(AK$4&"!E34")="NA",VLOOKUP(AK$4,'Jurisdictions | Generation'!$A$3:$M$35,13,FALSE),INDIRECT(AK$4&"!E34")) -> 0 | AL31: =IF(INDIRECT(AL$4&"!E34")="NA",VLOOKUP(AL$4,'Jurisdictions | Generation'!$A$3:$M$35,13,FALSE),INDIRECT(AL$4&"!E34")) -> 2417.64248 | AM31: =IF(INDIRECT(AM$4&"!E34")="NA",VLOOKUP(AM$4,'Jurisdictions | Generation'!$A$3:$M$35,13,FALSE),INDIRECT(AM$4&"!E34")) -> 14636
D32: Utility RE generation data source (survey or project database) | H32: =IF(INDIRECT(H$4&"!E34")="NA","Database","Survey") -> Database | I32: =IF(INDIRECT(I$4&"!E34")="NA","Database","Survey") -> Survey | J32: Database | K32: =IF(INDIRECT(K$4&"!E34")="NA","Database","Survey") -> Survey | L32: Survey | M32: Database | N32: Survey | O32: Survey | P32: Database | Q32: Survey | R32: Database | S32: Survey | T32: Survey | U32: Survey | V32: Survey | W32: Survey | X32: Database | Y32: Survey | Z32: Survey | AA32: Survey | AB32: Database | AC32: Database | AD32: Database | AE32: Database | AF32: Database | AG32: Survey | AH32: Survey | AI32: Database | AJ32: Database | AK32: Survey | AL32: Survey | AM32: Database
B34: 3 | D34: Planned renewable generation | F34: =SUM(F35:F40) -> 0.3 | G34: 0.3 | H34: =IF(H35="Yes",(5/COUNT($C$35:$C$40))*$G$35,0)+($G$36*H36)+IF(H40="Yes",(5/COUNT($C$35:$C$40)*$G$40),0) -> 0 | I34: 0.05497474747 | J34: 0.01986531987 | K34: =IF(K35="Yes",(5/COUNT($C$35:$C$40))*$G$35,0)+($G$36*K36)+IF(K40="Yes",(5/COUNT($C$35:$C$40)*$G$40),0) -> 0.6576799079 | L34: 0.6426568616 | M34: 0.5883452269 | N34: 1.323948205 | O34: 0.5555555556 | P34: 0.3358 | Q34: =IF(Q35="Yes",(5/COUNT($C$35:$C$40))*$G$35,0)+($G$36*Q36)+IF(Q40="Yes",(5/COUNT($C$35:$C$40)*$G$40),0) -> 0.6970216715 | R34: =IF(R35="Yes",(5/COUNT($C$35:$C$40))*$G$35,0)+($G$36*R36)+IF(R40="Yes",(5/COUNT($C$35:$C$40)*$G$40),0) -> 0.3649427022 | S34: 1.419087955 | T34: =MIN(5,IF(T35="Yes",(5/COUNT($C$35:$C$40))*$G$35,0)+($G$36*T36)+IF(T40="Yes",(5/COUNT($C$35:$C$40)*$G$40),0)) -> 5 | U34: =MIN(5,IF(U35="Yes",(5/COUNT($C$35:$C$40))*$G$35,0)+($G$36*U36)+IF(U40="Yes",(5/COUNT($C$35:$C$40)*$G$40),0)) -> 5 | V34: 1.361583835 | W34: 1.70970266 | X34: 0.1078660903 | Y34: 0 | Z34: 1.298743428 | AA34: 0.04585897436 | AB34: 4.030217663 | AC34: 2.067821642 | AD34: 0.7646225486 | AE34: 0 | AF34: 0 | AG34: 3.06006367 | AH34: 0.8109933831 | AI34: 1.755983378 | AJ34: 0.5568987556 | AK34: 0.5555555556 | AL34: 1.126450021 | AM34: 0.05238411691
C35: 1 | D35: Does your country have an estimate of planned installed capacity expected to come online from-utility scale RE projects? | F35: =$G$34*G35 -> 0.1 | G35: =1/3 -> 0.3333333333 | H35: =INDIRECT(H$4&"!E38") -> NA | I35: =INDIRECT(I$4&"!E38") -> NA | J35: NA | K35: =INDIRECT(K$4&"!E38") -> No | L35: Yes | M35: Yes | N35: Yes | O35: No | P35: NA | Q35: No | R35: NA | S35: Yes | T35: Yes | U35: Yes | V35: No | W35: Yes | X35: NA | Y35: No | Z35: Yes | AA35: NA | AB35: Yes | AC35: NA | AD35: NA | AE35: NA | AF35: NA | AG35: Yes | AH35: NA | AI35: Yes | AJ35: Yes | AK35: Yes | AL35: Yes | AM35: NA
C36: 2 | D36: Share of planned production from RE/total electricity production to scale | F36: =$G$34*G36 -> 0.1 | G36: =1/3 -> 0.3333333333 | H36: =H37*5 -> 0 | I36: =I37*5 -> 0.1649242424 | J36: 0.0595959596 | K36: =K37*5 -> 0.306373057 | L36: 0.2613039181 | M36: 0.09836901411 | N36: 0.6385112812 | O36: 0 | P36: 1.0074 | Q36: =Q37*5 -> 0.4243983479 | R36: 1.094828107 | S36: 0.9239305322 | T36: 58.63235541 | U36: 56.07476636 | V36: 2.418084838 | W36: 1.795774648 | X36: 0.3235982708 | Y36: 0 | Z36: 0.5628969519 | AA36: 0.1375769231 | AB36: 10.42398632 | AC36: 6.203464927 | AD36: 2.293867646 | AE36: 0 | AF36: 0 | AG36: 7.513524344 | AH36: 2.432980149 | AI36: 1.9346168 | AJ36: 0.0040296 | AK36: 0 | AL36: 0.0460167295 | AM36: 0.1571523507
D37: Shared of planned production from RE / total electricity production | E37: % | H37: =IFERROR((H38/H29),0) -> 0 | I37: 0.03298484848 | J37: 0.01191919192 | K37: 0.0612746114 | L37: 0.05226078362 | M37: 0.01967380282 | N37: 0.1277022562 | O37: 0 | P37: 0.20148 | Q37: 0.08487966957 | R37: 0.2189656213 | S37: 0.1847861064 | T37: 11.72647108 | U37: 11.21495327 | V37: 0.4836169675 | W37: 0.3591549296 | X37: 0.06471965417 | Y37: 0 | Z37: 0.1125793904 | AA37: 0.02751538462 | AB37: 2.084797264 | AC37: 1.240692985 | AD37: 0.4587735292 | AE37: 0 | AF37: 0 | AG37: 1.502704869 | AH37: 0.4865960298 | AI37: 0.38692336 | AJ37: 0.00080592 | AK37: 0 | AL37: 0.009203345899 | AM37: 0.03143047015
D38: Total planned electricity production from RE | E38: MWh / year | H38: =IF(INDIRECT(H$4&"!E40")="NA",SUMIFS(Marketplace!$Q$3:$Q$423,Marketplace!$C$3:$C$423,"="&H5,Marketplace!$AJ$3:$AJ$423,"Confident",Marketplace!$K$3:$K$423,"Planned",Marketplace!$J$3:$J$423,"Utility/IPP")+SUMIFS(Marketplace!$Q$3:$Q$423,Marketplace!$C$3:$C$423,"="&H5,Marketplace!$AJ$3:$AJ$423,"Confident",Marketplace!$K$3:$K$423,"Under development",Marketplace!$J$3:$J$423,"Utility/IPP")+SUMIFS(Marketplace!$Q$3:$Q$423,Marketplace!$C$3:$C$423,"="&H5,Marketplace!$AJ$3:$AJ$423,"Confident",Marketplace!$K$3:$K$423,"Operational",Marketplace!$AG$3:$AG$423,"2019",Marketplace!$J$3:$J$423,"Utility/IPP"),INDIRECT(H$4&"!E40")) -> 0 | I38: =IF(INDIRECT(I$4&"!E40")="NA",SUMIFS(Marketplace!$Q$3:$Q$423,Marketplace!$C$3:$C$423,"="&I5,Marketplace!$AJ$3:$AJ$423,"Confident",Marketplace!$K$3:$K$423,"Planned",Marketplace!$J$3:$J$423,"Utility/IPP")+SUMIFS(Marketplace!$Q$3:$Q$423,Marketplace!$C$3:$C$423,"="&I5,Marketplace!$AJ$3:$AJ$423,"Confident",Marketplace!$K$3:$K$423,"Under development",Marketplace!$J$3:$J$423,"Utility/IPP")+SUMIFS(Marketplace!$Q$3:$Q$423,Marketplace!$C$3:$C$423,"="&I5,Marketplace!$AJ$3:$AJ$423,"Confident",Marketplace!$K$3:$K$423,"Operational",Marketplace!$AG$3:$AG$423,"2019",Marketplace!$J$3:$J$423,"Utility/IPP"),INDIRECT(I$4&"!E40")) -> 10885 | J38: =IF(INDIRECT(J$4&"!E40")="NA",SUMIFS(Marketplace!$Q$3:$Q$423,Marketplace!$C$3:$C$423,"="&J5,Marketplace!$AJ$3:$AJ$423,"Confident",Marketplace!$K$3:$K$423,"Planned",Marketplace!$J$3:$J$423,"Utility/IPP")+SUMIFS(Marketplace!$Q$3:$Q$423,Marketplace!$C$3:$C$423,"="&J5,Marketplace!$AJ$3:$AJ$423,"Confident",Marketplace!$K$3:$K$423,"Under development",Marketplace!$J$3:$J$423,"Utility/IPP")+SUMIFS(Marketplace!$Q$3:$Q$423,Marketplace!$C$3:$C$423,"="&J5,Marketplace!$AJ$3:$AJ$423,"Confident",Marketplace!$K$3:$K$423,"Operational",Marketplace!$AG$3:$AG$423,"2019",Marketplace!$J$3:$J$423,"Utility/IPP"),INDIRECT(J$4&"!E40")) -> 11800 | K38: =IF(INDIRECT(K$4&"!E40")="NA",SUMIFS(Marketplace!$Q$3:$Q$423,Marketplace!$C$3:$C$423,"="&K5,Marketplace!$AJ$3:$AJ$423,"Confident",Marketplace!$K$3:$K$423,"Planned",Marketplace!$J$3:$J$423,"Utility/IPP")+SUMIFS(Marketplace!$Q$3:$Q$423,Marketplace!$C$3:$C$423,"="&K5,Marketplace!$AJ$3:$AJ$423,"Confident",Marketplace!$K$3:$K$423,"Under development",Marketplace!$J$3:$J$423,"Utility/IPP")+SUMIFS(Marketplace!$Q$3:$Q$423,Marketplace!$C$3:$C$423,"="&K5,Marketplace!$AJ$3:$AJ$423,"Confident",Marketplace!$K$3:$K$423,"Operational",Marketplace!$AG$3:$AG$423,"2019",Marketplace!$J$3:$J$423,"Utility/IPP"),INDIRECT(K$4&"!E40")) -> 118260 | L38: =IF(INDIRECT(L$4&"!E40")="NA",SUMIFS(Marketplace!$Q$3:$Q$423,Marketplace!$C$3:$C$423,"="&L5,Marketplace!$AJ$3:$AJ$423,"Confident",Marketplace!$K$3:$K$423,"Planned",Marketplace!$J$3:$J$423,"Utility/IPP")+SUMIFS(Marketplace!$Q$3:$Q$423,Marketplace!$C$3:$C$423,"="&L5,Marketplace!$AJ$3:$AJ$423,"Confident",Marketplace!$K$3:$K$423,"Under development",Marketplace!$J$3:$J$423,"Utility/IPP")+SUMIFS(Marketplace!$Q$3:$Q$423,Marketplace!$C$3:$C$423,"="&L5,Marketplace!$AJ$3:$AJ$423,"Confident",Marketplace!$K$3:$K$423,"Operational",Marketplace!$AG$3:$AG$423,"2019",Marketplace!$J$3:$J$423,"Utility/IPP"),INDIRECT(L$4&"!E40")) -> 52480 | M38: =IF(INDIRECT(M$4&"!E40")="NA",SUMIFS(Marketplace!$Q$3:$Q$423,Marketplace!$C$3:$C$423,"="&M5,Marketplace!$AJ$3:$AJ$423,"Confident",Marketplace!$K$3:$K$423,"Planned",Marketplace!$J$3:$J$423,"Utility/IPP")+SUMIFS(Marketplace!$Q$3:$Q$423,Marketplace!$C$3:$C$423,"="&M5,Marketplace!$AJ$3:$AJ$423,"Confident",Marketplace!$K$3:$K$423,"Under development",Marketplace!$J$3:$J$423,"Utility/IPP")+SUMIFS(Marketplace!$Q$3:$Q$423,Marketplace!$C$3:$C$423,"="&M5,Marketplace!$AJ$3:$AJ$423,"Confident",Marketplace!$K$3:$K$423,"Operational",Marketplace!$AG$3:$AG$423,"2019",Marketplace!$J$3:$J$423,"Utility/IPP"),INDIRECT(M$4&"!E40")) -> 12088.8 | N38: =IF(INDIRECT(N$4&"!E40")="NA",SUMIFS(Marketplace!$Q$3:$Q$423,Marketplace!$C$3:$C$423,"="&N5,Marketplace!$AJ$3:$AJ$423,"Confident",Marketplace!$K$3:$K$423,"Planned",Marketplace!$J$3:$J$423,"Utility/IPP")+SUMIFS(Marketplace!$Q$3:$Q$423,Marketplace!$C$3:$C$423,"="&N5,Marketplace!$AJ$3:$AJ$423,"Confident",Marketplace!$K$3:$K$423,"Under development",Marketplace!$J$3:$J$423,"Utility/IPP")+SUMIFS(Marketplace!$Q$3:$Q$423,Marketplace!$C$3:$C$423,"="&N5,Marketplace!$AJ$3:$AJ$423,"Confident",Marketplace!$K$3:$K$423,"Operational",Marketplace!$AG$3:$AG$423,"2019",Marketplace!$J$3:$J$423,"Utility/IPP"),INDIRECT(N$4&"!E40")) -> 80592 | O38: =IF(INDIRECT(O$4&"!E40")="NA",SUMIFS(Marketplace!$Q$3:$Q$423,Marketplace!$C$3:$C$423,"="&O5,Marketplace!$AJ$3:$AJ$423,"Confident",Marketplace!$K$3:$K$423,"Planned",Marketplace!$J$3:$J$423,"Utility/IPP")+SUMIFS(Marketplace!$Q$3:$Q$423,Marketplace!$C$3:$C$423,"="&O5,Marketplace!$AJ$3:$AJ$423,"Confident",Marketplace!$K$3:$K$423,"Under development",Marketplace!$J$3:$J$423,"Utility/IPP")+SUMIFS(Marketplace!$Q$3:$Q$423,Marketplace!$C$3:$C$423,"="&O5,Marketplace!$AJ$3:$AJ$423,"Confident",Marketplace!$K$3:$K$423,"Operational",Marketplace!$AG$3:$AG$423,"2019",Marketplace!$J$3:$J$423,"Utility/IPP"),INDIRECT(O$4&"!E40")) -> 0 | P38: =IF(INDIRECT(P$4&"!E40")="NA",SUMIFS(Marketplace!$Q$3:$Q$423,Marketplace!$C$3:$C$423,"="&P5,Marketplace!$AJ$3:$AJ$423,"Confident",Marketplace!$K$3:$K$423,"Planned",Marketplace!$J$3:$J$423,"Utility/IPP")+SUMIFS(Marketplace!$Q$3:$Q$423,Marketplace!$C$3:$C$423,"="&P5,Marketplace!$AJ$3:$AJ$423,"Confident",Marketplace!$K$3:$K$423,"Under development",Marketplace!$J$3:$J$423,"Utility/IPP")+SUMIFS(Marketplace!$Q$3:$Q$423,Marketplace!$C$3:$C$423,"="&P5,Marketplace!$AJ$3:$AJ$423,"Confident",Marketplace!$K$3:$K$423,"Operational",Marketplace!$AG$3:$AG$423,"2019",Marketplace!$J$3:$J$423,"Utility/IPP"),INDIRECT(P$4&"!E40")) -> 10074 | Q38: =IF(INDIRECT(Q$4&"!E40")="NA",SUMIFS(Marketplace!$Q$3:$Q$423,Marketplace!$C$3:$C$423,"="&Q5,Marketplace!$AJ$3:$AJ$423,"Confident",Marketplace!$K$3:$K$423,"Planned",Marketplace!$J$3:$J$423,"Utility/IPP")+SUMIFS(Marketplace!$Q$3:$Q$423,Marketplace!$C$3:$C$423,"="&Q5,Marketplace!$AJ$3:$AJ$423,"Confident",Marketplace!$K$3:$K$423,"Under development",Marketplace!$J$3:$J$423,"Utility/IPP")+SUMIFS(Marketplace!$Q$3:$Q$423,Marketplace!$C$3:$C$423,"="&Q5,Marketplace!$AJ$3:$AJ$423,"Confident",Marketplace!$K$3:$K$423,"Operational",Marketplace!$AG$3:$AG$423,"2019",Marketplace!$J$3:$J$423,"Utility/IPP"),INDIRECT(Q$4&"!E40")) -> 55485.84 | R38: =IF(INDIRECT(R$4&"!E40")="NA",SUMIFS(Marketplace!$Q$3:$Q$423,Marketplace!$C$3:$C$423,"="&R5,Marketplace!$AJ$3:$AJ$423,"Confident",Marketplace!$K$3:$K$423,"Planned",Marketplace!$J$3:$J$423,"Utility/IPP")+SUMIFS(Marketplace!$Q$3:$Q$423,Marketplace!$C$3:$C$423,"="&R5,Marketplace!$AJ$3:$AJ$423,"Confident",Marketplace!$K$3:$K$423,"Under development",Marketplace!$J$3:$J$423,"Utility/IPP")+SUMIFS(Marketplace!$Q$3:$Q$423,Marketplace!$C$3:$C$423,"="&R5,Marketplace!$AJ$3:$AJ$423,"Confident",Marketplace!$K$3:$K$423,"Operational",Marketplace!$AG$3:$AG$423,"2019",Marketplace!$J$3:$J$423,"Utility/IPP"),INDIRECT(R$4&"!E40")) -> 4479730.06 | S38: =IF(INDIRECT(S$4&"!E40")="NA",SUMIFS(Marketplace!$Q$3:$Q$423,Marketplace!$C$3:$C$423,"="&S5,Marketplace!$AJ$3:$AJ$423,"Confident",Marketplace!$K$3:$K$423,"Planned",Marketplace!$J$3:$J$423,"Utility/IPP")+SUMIFS(Marketplace!$Q$3:$Q$423,Marketplace!$C$3:$C$423,"="&S5,Marketplace!$AJ$3:$AJ$423,"Confident",Marketplace!$K$3:$K$423,"Under development",Marketplace!$J$3:$J$423,"Utility/IPP")+SUMIFS(Marketplace!$Q$3:$Q$423,Marketplace!$C$3:$C$423,"="&S5,Marketplace!$AJ$3:$AJ$423,"Confident",Marketplace!$K$3:$K$423,"Operational",Marketplace!$AG$3:$AG$423,"2019",Marketplace!$J$3:$J$423,"Utility/IPP"),INDIRECT(S$4&"!E40")) -> 160000 | T38: =IF(INDIRECT(T$4&"!E40")="NA",SUMIFS(Marketplace!$Q$3:$Q$423,Marketplace!$C$3:$C$423,"="&T5,Marketplace!$AJ$3:$AJ$423,"Confident",Marketplace!$K$3:$K$423,"Planned",Marketplace!$J$3:$J$423,"Utility/IPP")+SUMIFS(Marketplace!$Q$3:$Q$423,Marketplace!$C$3:$C$423,"="&T5,Marketplace!$AJ$3:$AJ$423,"Confident",Marketplace!$K$3:$K$423,"Under development",Marketplace!$J$3:$J$423,"Utility/IPP")+SUMIFS(Marketplace!$Q$3:$Q$423,Marketplace!$C$3:$C$423,"="&T5,Marketplace!$AJ$3:$AJ$423,"Confident",Marketplace!$K$3:$K$423,"Operational",Marketplace!$AG$3:$AG$423,"2019",Marketplace!$J$3:$J$423,"Utility/IPP"),INDIRECT(T$4&"!E40")) -> 767040.2 | U38: =IF(INDIRECT(U$4&"!E40")="NA",SUMIFS(Marketplace!$Q$3:$Q$423,Marketplace!$C$3:$C$423,"="&U5,Marketplace!$AJ$3:$AJ$423,"Confident",Marketplace!$K$3:$K$423,"Planned",Marketplace!$J$3:$J$423,"Utility/IPP")+SUMIFS(Marketplace!$Q$3:$Q$423,Marketplace!$C$3:$C$423,"="&U5,Marketplace!$AJ$3:$AJ$423,"Confident",Marketplace!$K$3:$K$423,"Under development",Marketplace!$J$3:$J$423,"Utility/IPP")+SUMIFS(Marketplace!$Q$3:$Q$423,Marketplace!$C$3:$C$423,"="&U5,Marketplace!$AJ$3:$AJ$423,"Confident",Marketplace!$K$3:$K$423,"Operational",Marketplace!$AG$3:$AG$423,"2019",Marketplace!$J$3:$J$423,"Utility/IPP"),INDIRECT(U$4&"!E40")) -> 1200000 | V38: =IF(INDIRECT(V$4&"!E40")="NA",SUMIFS(Marketplace!$Q$3:$Q$423,Marketplace!$C$3:$C$423,"="&V5,Marketplace!$AJ$3:$AJ$423,"Confident",Marketplace!$K$3:$K$423,"Planned",Marketplace!$J$3:$J$423,"Utility/IPP")+SUMIFS(Marketplace!$Q$3:$Q$423,Marketplace!$C$3:$C$423,"="&V5,Marketplace!$AJ$3:$AJ$423,"Confident",Marketplace!$K$3:$K$423,"Under development",Marketplace!$J$3:$J$423,"Utility/IPP")+SUMIFS(Marketplace!$Q$3:$Q$423,Marketplace!$C$3:$C$423,"="&V5,Marketplace!$AJ$3:$AJ$423,"Confident",Marketplace!$K$3:$K$423,"Operational",Marketplace!$AG$3:$AG$423,"2019",Marketplace!$J$3:$J$423,"Utility/IPP"),INDIRECT(V$4&"!E40")) -> 111690 | W38: =IF(INDIRECT(W$4&"!E40")="NA",SUMIFS(Marketplace!$Q$3:$Q$423,Marketplace!$C$3:$C$423,"="&W5,Marketplace!$AJ$3:$AJ$423,"Confident",Marketplace!$K$3:$K$423,"Planned",Marketplace!$J$3:$J$423,"Utility/IPP")+SUMIFS(Marketplace!$Q$3:$Q$423,Marketplace!$C$3:$C$423,"="&W5,Marketplace!$AJ$3:$AJ$423,"Confident",Marketplace!$K$3:$K$423,"Under development",Marketplace!$J$3:$J$423,"Utility/IPP")+SUMIFS(Marketplace!$Q$3:$Q$423,Marketplace!$C$3:$C$423,"="&W5,Marketplace!$AJ$3:$AJ$423,"Confident",Marketplace!$K$3:$K$423,"Operational",Marketplace!$AG$3:$AG$423,"2019",Marketplace!$J$3:$J$423,"Utility/IPP"),INDIRECT(W$4&"!E40")) -> 612000 | X38: =IF(INDIRECT(X$4&"!E40")="NA",SUMIFS(Marketplace!$Q$3:$Q$423,Marketplace!$C$3:$C$423,"="&X5,Marketplace!$AJ$3:$AJ$423,"Confident",Marketplace!$K$3:$K$423,"Planned",Marketplace!$J$3:$J$423,"Utility/IPP")+SUMIFS(Marketplace!$Q$3:$Q$423,Marketplace!$C$3:$C$423,"="&X5,Marketplace!$AJ$3:$AJ$423,"Confident",Marketplace!$K$3:$K$423,"Under development",Marketplace!$J$3:$J$423,"Utility/IPP")+SUMIFS(Marketplace!$Q$3:$Q$423,Marketplace!$C$3:$C$423,"="&X5,Marketplace!$AJ$3:$AJ$423,"Confident",Marketplace!$K$3:$K$423,"Operational",Marketplace!$AG$3:$AG$423,"2019",Marketplace!$J$3:$J$423,"Utility/IPP"),INDIRECT(X$4&"!E40")) -> 52384.8 | Y38: =IF(INDIRECT(Y$4&"!E40")="NA",SUMIFS(Marketplace!$Q$3:$Q$423,Marketplace!$C$3:$C$423,"="&Y5,Marketplace!$AJ$3:$AJ$423,"Confident",Marketplace!$K$3:$K$423,"Planned",Marketplace!$J$3:$J$423,"Utility/IPP")+SUMIFS(Marketplace!$Q$3:$Q$423,Marketplace!$C$3:$C$423,"="&Y5,Marketplace!$AJ$3:$AJ$423,"Confident",Marketplace!$K$3:$K$423,"Under development",Marketplace!$J$3:$J$423,"Utility/IPP")+SUMIFS(Marketplace!$Q$3:$Q$423,Marketplace!$C$3:$C$423,"="&Y5,Marketplace!$AJ$3:$AJ$423,"Confident",Marketplace!$K$3:$K$423,"Operational",Marketplace!$AG$3:$AG$423,"2019",Marketplace!$J$3:$J$423,"Utility/IPP"),INDIRECT(Y$4&"!E40")) -> 0 | Z38: =IF(INDIRECT(Z$4&"!E40")="NA",SUMIFS(Marketplace!$Q$3:$Q$423,Marketplace!$C$3:$C$423,"="&Z5,Marketplace!$AJ$3:$AJ$423,"Confident",Marketplace!$K$3:$K$423,"Planned",Marketplace!$J$3:$J$423,"Utility/IPP")+SUMIFS(Marketplace!$Q$3:$Q$423,Marketplace!$C$3:$C$423,"="&Z5,Marketplace!$AJ$3:$AJ$423,"Confident",Marketplace!$K$3:$K$423,"Under development",Marketplace!$J$3:$J$423,"Utility/IPP")+SUMIFS(Marketplace!$Q$3:$Q$423,Marketplace!$C$3:$C$423,"="&Z5,Marketplace!$AJ$3:$AJ$423,"Confident",Marketplace!$K$3:$K$423,"Operational",Marketplace!$AG$3:$AG$423,"2019",Marketplace!$J$3:$J$423,"Utility/IPP"),INDIRECT(Z$4&"!E40")) -> 490339.76 | AA38: =IF(INDIRECT(AA$4&"!E40")="NA",SUMIFS(Marketplace!$Q$3:$Q$423,Marketplace!$C$3:$C$423,"="&AA5,Marketplace!$AJ$3:$AJ$423,"Confident",Marketplace!$K$3:$K$423,"Planned",Marketplace!$J$3:$J$423,"Utility/IPP")+SUMIFS(Marketplace!$Q$3:$Q$423,Marketplace!$C$3:$C$423,"="&AA5,Marketplace!$AJ$3:$AJ$423,"Confident",Marketplace!$K$3:$K$423,"Under development",Marketplace!$J$3:$J$423,"Utility/IPP")+SUMIFS(Marketplace!$Q$3:$Q$423,Marketplace!$C$3:$C$423,"="&AA5,Marketplace!$AJ$3:$AJ$423,"Confident",Marketplace!$K$3:$K$423,"Operational",Marketplace!$AG$3:$AG$423,"2019",Marketplace!$J$3:$J$423,"Utility/IPP"),INDIRECT(AA$4&"!E40")) -> 42924 | AB38: =IF(INDIRECT(AB$4&"!E40")="NA",SUMIFS(Marketplace!$Q$3:$Q$423,Marketplace!$C$3:$C$423,"="&AB5,Marketplace!$AJ$3:$AJ$423,"Confident",Marketplace!$K$3:$K$423,"Planned",Marketplace!$J$3:$J$423,"Utility/IPP")+SUMIFS(Marketplace!$Q$3:$Q$423,Marketplace!$C$3:$C$423,"="&AB5,Marketplace!$AJ$3:$AJ$423,"Confident",Marketplace!$K$3:$K$423,"Under development",Marketplace!$J$3:$J$423,"Utility/IPP")+SUMIFS(Marketplace!$Q$3:$Q$423,Marketplace!$C$3:$C$423,"="&AB5,Marketplace!$AJ$3:$AJ$423,"Confident",Marketplace!$K$3:$K$423,"Operational",Marketplace!$AG$3:$AG$423,"2019",Marketplace!$J$3:$J$423,"Utility/IPP"),INDIRECT(AB$4&"!E40")) -> 25605.48 | AC38: =IF(INDIRECT(AC$4&"!E40")="NA",SUMIFS(Marketplace!$Q$3:$Q$423,Marketplace!$C$3:$C$423,"="&AC5,Marketplace!$AJ$3:$AJ$423,"Confident",Marketplace!$K$3:$K$423,"Planned",Marketplace!$J$3:$J$423,"Utility/IPP")+SUMIFS(Marketplace!$Q$3:$Q$423,Marketplace!$C$3:$C$423,"="&AC5,Marketplace!$AJ$3:$AJ$423,"Confident",Marketplace!$K$3:$K$423,"Under development",Marketplace!$J$3:$J$423,"Utility/IPP")+SUMIFS(Marketplace!$Q$3:$Q$423,Marketplace!$C$3:$C$423,"="&AC5,Marketplace!$AJ$3:$AJ$423,"Confident",Marketplace!$K$3:$K$423,"Operational",Marketplace!$AG$3:$AG$423,"2019",Marketplace!$J$3:$J$423,"Utility/IPP"),INDIRECT(AC$4&"!E40")) -> 71686 | AD38: =IF(INDIRECT(AD$4&"!E40")="NA",SUMIFS(Marketplace!$Q$3:$Q$423,Marketplace!$C$3:$C$423,"="&AD5,Marketplace!$AJ$3:$AJ$423,"Confident",Marketplace!$K$3:$K$423,"Planned",Marketplace!$J$3:$J$423,"Utility/IPP")+SUMIFS(Marketplace!$Q$3:$Q$423,Marketplace!$C$3:$C$423,"="&AD5,Marketplace!$AJ$3:$AJ$423,"Confident",Marketplace!$K$3:$K$423,"Under development",Marketplace!$J$3:$J$423,"Utility/IPP")+SUMIFS(Marketplace!$Q$3:$Q$423,Marketplace!$C$3:$C$423,"="&AD5,Marketplace!$AJ$3:$AJ$423,"Confident",Marketplace!$K$3:$K$423,"Operational",Marketplace!$AG$3:$AG$423,"2019",Marketplace!$J$3:$J$423,"Utility/IPP"),INDIRECT(AD$4&"!E40")) -> 8123234.04 | AE38: =IF(INDIRECT(AE$4&"!E40")="NA",SUMIFS(Marketplace!$Q$3:$Q$423,Marketplace!$C$3:$C$423,"="&AE5,Marketplace!$AJ$3:$AJ$423,"Confident",Marketplace!$K$3:$K$423,"Planned",Marketplace!$J$3:$J$423,"Utility/IPP")+SUMIFS(Marketplace!$Q$3:$Q$423,Marketplace!$C$3:$C$423,"="&AE5,Marketplace!$AJ$3:$AJ$423,"Confident",Marketplace!$K$3:$K$423,"Under development",Marketplace!$J$3:$J$423,"Utility/IPP")+SUMIFS(Marketplace!$Q$3:$Q$423,Marketplace!$C$3:$C$423,"="&AE5,Marketplace!$AJ$3:$AJ$423,"Confident",Marketplace!$K$3:$K$423,"Operational",Marketplace!$AG$3:$AG$423,"2019",Marketplace!$J$3:$J$423,"Utility/IPP"),INDIRECT(AE$4&"!E40")) -> 0 | AF38: =IF(INDIRECT(AF$4&"!E40")="NA",SUMIFS(Marketplace!$Q$3:$Q$423,Marketplace!$C$3:$C$423,"="&AF5,Marketplace!$AJ$3:$AJ$423,"Confident",Marketplace!$K$3:$K$423,"Planned",Marketplace!$J$3:$J$423,"Utility/IPP")+SUMIFS(Marketplace!$Q$3:$Q$423,Marketplace!$C$3:$C$423,"="&AF5,Marketplace!$AJ$3:$AJ$423,"Confident",Marketplace!$K$3:$K$423,"Under development",Marketplace!$J$3:$J$423,"Utility/IPP")+SUMIFS(Marketplace!$Q$3:$Q$423,Marketplace!$C$3:$C$423,"="&AF5,Marketplace!$AJ$3:$AJ$423,"Confident",Marketplace!$K$3:$K$423,"Operational",Marketplace!$AG$3:$AG$423,"2019",Marketplace!$J$3:$J$423,"Utility/IPP"),INDIRECT(AF$4&"!E40")) -> 0 | AG38: =IF(INDIRECT(AG$4&"!E40")="NA",SUMIFS(Marketplace!$Q$3:$Q$423,Marketplace!$C$3:$C$423,"="&AG5,Marketplace!$AJ$3:$AJ$423,"Confident",Marketplace!$K$3:$K$423,"Planned",Marketplace!$J$3:$J$423,"Utility/IPP")+SUMIFS(Marketplace!$Q$3:$Q$423,Marketplace!$C$3:$C$423,"="&AG5,Marketplace!$AJ$3:$AJ$423,"Confident",Marketplace!$K$3:$K$423,"Under development",Marketplace!$J$3:$J$423,"Utility/IPP")+SUMIFS(Marketplace!$Q$3:$Q$423,Marketplace!$C$3:$C$423,"="&AG5,Marketplace!$AJ$3:$AJ$423,"Confident",Marketplace!$K$3:$K$423,"Operational",Marketplace!$AG$3:$AG$423,"2019",Marketplace!$J$3:$J$423,"Utility/IPP"),INDIRECT(AG$4&"!E40")) -> 60000 | AH38: =IF(INDIRECT(AH$4&"!E40")="NA",SUMIFS(Marketplace!$Q$3:$Q$423,Marketplace!$C$3:$C$423,"="&AH5,Marketplace!$AJ$3:$AJ$423,"Confident",Marketplace!$K$3:$K$423,"Planned",Marketplace!$J$3:$J$423,"Utility/IPP")+SUMIFS(Marketplace!$Q$3:$Q$423,Marketplace!$C$3:$C$423,"="&AH5,Marketplace!$AJ$3:$AJ$423,"Confident",Marketplace!$K$3:$K$423,"Under development",Marketplace!$J$3:$J$423,"Utility/IPP")+SUMIFS(Marketplace!$Q$3:$Q$423,Marketplace!$C$3:$C$423,"="&AH5,Marketplace!$AJ$3:$AJ$423,"Confident",Marketplace!$K$3:$K$423,"Operational",Marketplace!$AG$3:$AG$423,"2019",Marketplace!$J$3:$J$423,"Utility/IPP"),INDIRECT(AH$4&"!E40")) -> 73312.50424 | AI38: =IF(INDIRECT(AI$4&"!E40")="NA",Marketplace!Q273+Marketplace!Q362,INDIRECT(AI$4&"!E40")) -> 58038.504 | AJ38: =IF(INDIRECT(AJ$4&"!E40")="NA",SUMIFS(Marketplace!$Q$3:$Q$423,Marketplace!$C$3:$C$423,"="&AJ5,Marketplace!$AJ$3:$AJ$423,"Confident",Marketplace!$K$3:$K$423,"Planned",Marketplace!$J$3:$J$423,"Utility/IPP")+SUMIFS(Marketplace!$Q$3:$Q$423,Marketplace!$C$3:$C$423,"="&AJ5,Marketplace!$AJ$3:$AJ$423,"Confident",Marketplace!$K$3:$K$423,"Under development",Marketplace!$J$3:$J$423,"Utility/IPP")+SUMIFS(Marketplace!$Q$3:$Q$423,Marketplace!$C$3:$C$423,"="&AJ5,Marketplace!$AJ$3:$AJ$423,"Confident",Marketplace!$K$3:$K$423,"Operational",Marketplace!$AG$3:$AG$423,"2019",Marketplace!$J$3:$J$423,"Utility/IPP"),INDIRECT(AJ$4&"!E40")) -> 1611.84 | AK38: =IF(INDIRECT(AK$4&"!E40")="NA",SUMIFS(Marketplace!$Q$3:$Q$423,Marketplace!$C$3:$C$423,"="&AK5,Marketplace!$AJ$3:$AJ$423,"Confident",Marketplace!$K$3:$K$423,"Planned",Marketplace!$J$3:$J$423,"Utility/IPP")+SUMIFS(Marketplace!$Q$3:$Q$423,Marketplace!$C$3:$C$423,"="&AK5,Marketplace!$AJ$3:$AJ$423,"Confident",Marketplace!$K$3:$K$423,"Under development",Marketplace!$J$3:$J$423,"Utility/IPP")+SUMIFS(Marketplace!$Q$3:$Q$423,Marketplace!$C$3:$C$423,"="&AK5,Marketplace!$AJ$3:$AJ$423,"Confident",Marketplace!$K$3:$K$423,"Operational",Marketplace!$AG$3:$AG$423,"2019",Marketplace!$J$3:$J$423,"Utility/IPP"),INDIRECT(AK$4&"!E40")) -> 0 | AL38: =IF(INDIRECT(AL$4&"!E40")="NA",SUMIFS(Marketplace!$Q$3:$Q$423,Marketplace!$C$3:$C$423,"="&AL5,Marketplace!$AJ$3:$AJ$423,"Confident",Marketplace!$K$3:$K$423,"Planned",Marketplace!$J$3:$J$423,"Utility/IPP")+SUMIFS(Marketplace!$Q$3:$Q$423,Marketplace!$C$3:$C$423,"="&AL5,Marketplace!$AJ$3:$AJ$423,"Confident",Marketplace!$K$3:$K$423,"Under development",Marketplace!$J$3:$J$423,"Utility/IPP")+SUMIFS(Marketplace!$Q$3:$Q$423,Marketplace!$C$3:$C$423,"="&AL5,Marketplace!$AJ$3:$AJ$423,"Confident",Marketplace!$K$3:$K$423,"Operational",Marketplace!$AG$3:$AG$423,"2019",Marketplace!$J$3:$J$423,"Utility/IPP"),INDIRECT(AL$4&"!E40")) -> 2225.04 | AM38: =IF(INDIRECT(AM$4&"!E40")="NA",SUMIFS(Marketplace!$Q$3:$Q$423,Marketplace!$C$3:$C$423,"="&AM5,Marketplace!$AJ$3:$AJ$423,"Confident",Marketplace!$K$3:$K$423,"Planned",Marketplace!$J$3:$J$423,"Utility/IPP")+SUMIFS(Marketplace!$Q$3:$Q$423,Marketplace!$C$3:$C$423,"="&AM5,Marketplace!$AJ$3:$AJ$423,"Confident",Marketplace!$K$3:$K$423,"Under development",Marketplace!$J$3:$J$423,"Utility/IPP")+SUMIFS(Marketplace!$Q$3:$Q$423,Marketplace!$C$3:$C$423,"="&AM5,Marketplace!$AJ$3:$AJ$423,"Confident",Marketplace!$K$3:$K$423,"Operational",Marketplace!$AG$3:$AG$423,"2019",Marketplace!$J$3:$J$423,"Utility/IPP"),INDIRECT(AM$4&"!E40")) -> 20148
D39: Planned RE generation data source (survey or project database) | H39: =IF(INDIRECT(H$4&"!E40")="NA","Database","Survey") -> Database | I39: =IF(INDIRECT(I$4&"!E40")="NA","Database","Survey") -> Database | J39: Database | K39: =IF(INDIRECT(K$4&"!E40")="NA","Database","Survey") -> Database | L39: Survey | M39: Survey | N39: Database | O39: Database | P39: Database | Q39: Database | R39: Database | S39: Survey | T39: Database | U39: Survey | V39: Database | W39: Survey | X39: Database | Y39: Database | Z39: Survey | AA39: Database | AB39: Database | AC39: Database | AD39: Database | AE39: Database | AF39: Database | AG39: Survey | AH39: Database | AI39: Database | AJ39: Survey | AK39: Database | AL39: Database | AM39: Database
C40: 3 | D40: Is climate resilience incorporated in your IRP or national policy? | F40: =G40*$G$8 -> 0.1 | G40: =1/3 -> 0.3333333333 | H40: =INDIRECT(H$4&"!E41") -> NA | I40: =INDIRECT(I$4&"!E41") -> NA | J40: NA | K40: =INDIRECT(K$4&"!E41") -> Yes | L40: No | M40: No | N40: Yes | O40: Yes | P40: NA | Q40: Yes | R40: NA | S40: Yes | T40: Yes | U40: Yes | V40: Yes | W40: Yes | X40: NA | Y40: No | Z40: Yes | AA40: NA | AB40: No | AC40: NA | AD40: NA | AE40: NA | AF40: NA | AG40: No | AH40: NA | AI40: Yes | AJ40: No | AK40: No | AL40: Yes | AM40: NA
B42: 4 | D42: Electric Mobility | F42: =SUM(F43:F44) -> 0.1 | G42: 0.1 | H42: =IF(H43="Yes",5*$G$43,0) + IF(H44="Yes",5*$G$44,0) -> 0 | I42: 0 | J42: 0 | K42: =IF(K43="Yes",5*$G$43,0) + IF(K44="Yes",5*$G$44,0) -> 0 | L42: 2.5 | M42: 0 | N42: 0 | O42: 0 | P42: 0 | Q42: =IF(Q43="Yes",5*$G$43,0) + IF(Q44="Yes",5*$G$44,0) -> 5 | R42: =IF(R43="Yes",5*$G$43,0) + IF(R44="Yes",5*$G$44,0) -> 0 | S42: 0 | T42: 2.5 | U42: 0 | V42: 0 | W42: 5 | X42: 0 | Y42: 0 | Z42: 2.5 | AA42: 0 | AB42: 0 | AC42: 0 | AD42: 0 | AE42: 0 | AF42: 0 | AG42: 2.5 | AH42: 0 | AI42: 0 | AJ42: 0 | AK42: 0 | AL42: 0 | AM42: 0
C43: 1 | D43: Does your country have policies in place or draft legislation to promote the uptake of electric mobility? | F43: =$G$42*G43 -> 0.05 | G43: =1/COUNT($C$43:$C$44) -> 0.5 | H43: =INDIRECT(H$4&"!E45") -> NA | I43: =INDIRECT(I$4&"!E45") -> NA | J43: NA | K43: =INDIRECT(K$4&"!E45") -> No | L43: Yes | M43: No | N43: No | O43: No | P43: NA | Q43: Yes | R43: NA | S43: No | T43: Yes | U43: No | V43: No | W43: Yes | X43: NA | Y43: No | Z43: Yes | AA43: NA | AB43: No | AC43: No | AD43: NA | AE43: NA | AF43: NA | AG43: Yes | AH43: NA | AI43: No | AJ43: No | AK43: No | AL43: No | AM43: NA
C44: 2 | D44: Does your country have specific targets for the uptake of electric vehicles? | F44: =$G$42*G44 -> 0.05 | G44: =1/COUNT($C$43:$C$44) -> 0.5 | H44: =INDIRECT(H$4&"!E46") -> NA | I44: =INDIRECT(I$4&"!E46") -> NA | J44: NA | K44: =INDIRECT(K$4&"!E46") -> No | L44: No | M44: No | N44: No | O44: No | P44: NA | Q44: Yes | R44: NA | S44: No | T44: No | U44: No | V44: No | W44: Yes | X44: NA | Y44: No | Z44: No | AA44: NA | AB44: No | AC44: No | AD44: NA | AE44: NA | AF44: NA | AG44: No | AH44: NA | AI44: No | AJ44: No | AK44: No | AL44: No | AM44: NA
D47: Descriptive CREF Index Survey
D48: Enabling Environment for Renewable Energy (RE) Investments
D49: Renewable energy strategy
D50: Which of the rollowing renewable generation options is included in your country's strategic plan to develop renewable energy? - Solar PV - Offshore wind - Biomass - Waste to energy - Hydro -Geothermal - Other | H50: =INDIRECT(H$4&"!E55") -> NA | I50: =INDIRECT(I$4&"!E55") -> Solar PV, Onshore wind, WTE | J50: NA | K50: =INDIRECT(K$4&"!E55") -> Solar PV,WTE | L50: Solar PV, Onshore wind, Offshore wind, biomass, WTE, energy storage | M50: Solar PV, offshore wind, biomass, WTE | N50: Solar PV, Biomass, Hydro | O50: Solar PV, Onshore wind, Geothermal, ocean thermal energy conversion | P50: NA | Q50: Solar PV, onshore wind, WTE | R50: NA | S50: Solar PV, Onshore wind, WTE | T50: Solar, hydro, geothermal | U50: Solar PV, onshore wind, biomass, WTE, hydro | V50: Solar PV, onshore wind, WTE, geothermal, biomass | W50: Solar PV, Onshore wind, offshore wind, biomass, hydro, geothermal, WTE | X50: NA | Y50: Solar PV, onshore wind, biomass, hydro | Z50: Solar PV, Onshore Wind, Offshore Wind, Biomass, WTE, Hydro | AA50: NA | AB50: Solar PV, onshore sind, WTE, geothermal | AC50: Solar PV, onshore wind, WTE, geothermal | AD50: NA | AE50: NA | AF50: NA | AG50: Solar PV, onshore wind, geothermal | AH50: Solar PV, Onshore Wind, Hydro, Geothermal | AI50: Solar PV, Onshore wind, WTE, Geothermal | AJ50: Solar PV | AK50: Solar PV, Onshore wind, WTE | AL50: Solar PV, onshore wind, offshore wind, biomass, WTE | AM50: Solar PV, onshore wind, WTE
D51: What is the target and target year? | H51: =INDIRECT(H$4&"!E56") -> NA | I51: =INDIRECT(I$4&"!E56") -> 20% by 2020 | J51: NA | K51: =INDIRECT(K$4&"!E56") -> 30% by 2030 | L51: 100% by 2030 | M51: 30% of electricity to be generated by renewable energy by 2020 | N51: Reduce the country's dependence on imported fuels by 50 percent by 2020..by increasing the production of modern energy carriers from domestic renewable energy resources, coupled with improving energy efficiency and conservation. | O51: 50% by 2030 | P51: NA | Q51: • 70% of total electricity generation to come from renewable sources by 2037; • total peak GHG emissions for the Cayman Islands by 2020 while not exceeding 2014 per capita emissions levels (approx. 12.3 tCO2e). • 4.8 tCO2e of GHG emissions per capita by 2030. | R51: NA | S51: 65MW wind by 2025 and 55MW PV by 2028 | T51: 100% by 2030 | U51: 15% renewable energy by 2021 | V51: Grenada commits to reducing its Greenhouse gas emissions by 30% of 2010 by 2025, with an indicative reduction of 40% of 2010 by 2030. | W51: By 2020: 50% met by renewable energy sources By 2030: Energy independence | X51: NA | Z51: 50% Energy by 2030 - revised October 2018 | AA51: NA | AC51: 100% renewable electricity by 2025 | AD51: NA | AE51: NA | AF51: NA | AG51: 35% by 2025 and 50% 2030 | AH51: 60% by 2020 | AI51: 100% generation by 2020 | AJ51: 0 | AK51: 10% of electricity generation by 2021. | AM51: Installed capacity of 50% of peak demand by 2025
D52: What is the current breakdown of your country's energy mix? | H52: =INDIRECT(H$4&"!E57") -> NA | I52: =INDIRECT(I$4&"!E57") ->  | J52: NA | K52: =INDIRECT(K$4&"!E57") -> <1% Renewable, >99% fossil fuel | L52: HFO 37%, DIESEL 18%, GASOLINE 17%, KEROSINE 7%, LPG 2%, SUGAR CANE BACASSE 3%, NATURAL GAS 2%, ELECTRICITY 14%, SOLAR THERMAL < 1% | M52: Power Generation 90% - heavy fuel oil/fossil fuel 10% - renewables Transportation 99% fossil fuel (gasoline/diesel) 1% electric | N52: 54% Renewable Energy 37% Imported Energy (From Mexico) 9% Non-Renewable Energy | O52: Carribean part of the Netherlands (excluding Sint Maarten, Curaçao and Aruba): 70% oil, 20% wind, 10% solar. | P52: NA | Q52: 2.5% Solar, the rest diesel. | R52: NA | S52: 28% renewable, 72% fuel | T52: Diesel fuel 70% Hydro 30% | U52: 12% hydro 2% wind 1% biomass 1% fv | V52: Fossil Fuel 98% Solar Energy 2% | W52: Fossils : 1 598 GWh - Coal : 18% - Butane : 1,6% - FOD : 1,6% - HFuel : 21,7% - Gasoline : 11,6% - Diesel : 22,3% - Jet fuel : 17,1% Renewables : 568 Gwh - Bagasse : 0,6% - Geothermal : 1,1% - Hydro : 0,4% - Wind (on shore) : 0,6% - PV : 1% - Biomasse/biogaz : 0,1% - Solar heaters : 0,9% - Steam (process) : 1,2% | X52: NA | Y52: 85% thermal, 15% Renewable mainly hydro | Z52: 10-14% RE | AA52: NA | AC52: 4-10% RE (wind and solar) | AD52: NA | AE52: NA | AF52: NA | AG52: 88.4 MW -FF 4MW -Solar | AH52: 80-81% Diesel 15-17% Hydro 2% Solar | AI52: 90% deisel,99.8% diesel, 0.1% solar, 0.1% wind | AJ52: 40% hydro and 58% hydro 2 % solar | AK52: 100% electricity generation from fossil fuels (natural gas) | AL52: Yes | AM52: Utility scale solar 1.5%, customer solar 4%
D53: Utilities
D54: On average, how long does it take for the power utility to get investments in RE projects approved by the regulatory authority 9or the relevant entity) for recovery through tariffs? | H54: =INDIRECT(H$4&"!E59") -> NA | I54: =INDIRECT(I$4&"!E59") ->  | J54: NA | K54: =INDIRECT(K$4&"!E59") -> 0 | L54: 6 months - 3 years | M54: As Bermuda is in the process of going through its first utility scale RE project development with a PPA which needs to be approved by the regulatory authority we can not provide this figure. | N54: Direct capital investments made by the Utility should be recoverable in any Annual Tariff Period - on a year-to-year. | O54: approval takes place before the investment. so there is no lag. | P54: NA | Q54: NA | R54: NA | U54: 6-12 months | V54: Regulator has recently started operations | W54: It can take years: 5 to over 10 | X54: NA | Z54: 2-3 years | AA54: NA | AC54: It does not very long once the Government approve. On an average it can take a year or less. | AD54: NA | AE54: NA | AF54: NA | AG54: There are no specific laws and regulations to empower the regulator to impose such on the utility | AH54: Approval not required | AI54: 18 months | AJ54: 0 | AK54: There have been no major RE projects that have been started by the utility, therefore, this has not been considered. Notwithstanding, approval by the regulator, of investment in RE or any traditional capital projects, take place during a Price Review. This is statutorily set to happen every 5 years. | AL54: for utility scale: 3 years and counting | AM54: 2 years
D55: IPPs
D56: How long did it take to get your off-take agreement? | H56: =INDIRECT(H$4&"!E61") -> NA | I56: =INDIRECT(I$4&"!E61") ->  | J56: NA | K56: =INDIRECT(K$4&"!E61") -> 0 | L56: 3 months | M56: The first is still in the process of being finalised. | N56: Timelines vary significantly based on project particulars. | O56: RE producer is usually also the distributor, so it is sure the energy can be sold. | P56: NA | Q56: NA | R56: NA | S56: 2-3 months | U56: 2 months - 1 yr | V56: Regulations not yet published | X56: NA | AA56: NA | AD56: NA | AE56: NA | AF56: NA | AG56: There are regulations in force as yet to govern this | AI56: 18 months | AJ56: 0 | AK56: There is no arrangement for purchase of RE by the utility at this time, therefore, this is not applicable. | AL56: There is no policy in place for IPP/PPA
D57: Distributed Generation
D58: What is the number of exisiting distributed scale RE systems in 2018? | H58: =INDIRECT(H$4&"!E63") -> NA | I58: =INDIRECT(I$4&"!E63") -> 105 | J58: NA | K58: =INDIRECT(K$4&"!E63") -> 0 | L58: 20MW | M58: 1. 549 (Oct-14-19) or 477 (end of 2018) | N58: NA | O58: NA | P58: NA | Q58: 333 | R58: NA | S58: Approx 780 | U58: Hundreds of projects through net metering. 90 MW of typically less than 1 MW projects | V58: 2693kw | W58: 147 MW of REN vs 422 of Fossil centralized generation | X58: NA | Z58: 500 | AA58: NA | AD58: NA | AE58: NA | AF58: NA | AG58: 99 | AJ58: 5.5MW | AL58: 9 - only utility distributed system
D59: What is the total installed capacity from renewable distributed generation in your country? | H59: =INDIRECT(H$4&"!E64") -> NA | I59: =INDIRECT(I$4&"!E64") -> 1.5MW | J59: NA | K59: =INDIRECT(K$4&"!E64") -> 0 | L59: 24MW | M59: 5.095 MW (Oct-14-19) or 4.066 MW (end of 2018) | N59: Approximate 4 MW with 2 MW on grid | O59: 18 MW (Carribean Netherlands only) | P59: NA | Q59: 10.183MW | R59: NA | S59: 15MW in small scale PV owned by customers | U59: 90-120 | V59: 3001kw | W59: 147 MW of REN vs 422 of Fossil centralized generation | X59: NA | Y59: Less than 0.5MW | Z59: 30MW in 2018 (estimated) | AA59: NA | AD59: NA | AE59: NA | AF59: NA | AG59: 1.06285 MW | AI59: 2.5MW | AJ59: 0 | AL59: 1MW
D60: What was the total generation from exisitng distributed scale RE systems in 2018? | H60: =INDIRECT(H$4&"!E65") -> NA | I60: =INDIRECT(I$4&"!E65") ->  | J60: NA | K60: =INDIRECT(K$4&"!E65") -> 0 | L60: 18-26GWh | M60: unkown | N60: Not Available | O60: 50000 | P60: NA | Q60: 16.1GWh | R60: NA | S60: The actual 15 MW in small scale PV, generates approximately 24 GWh a year of which approximately 3 GWh is sold to the grid and the remainder is for own consumption. | U60: 135000 | V60: 3302285 | W60: 362 GWh from REN vs 1 342 GWh form centralized fossil power generation | X60: NA | Z60: 66000 | AA60: NA | AD60: NA | AE60: NA | AF60: NA | AG60: 1663.2 MWh | AJ60: 0 | AL60: 500,000 kWh
D62: Existing Renewable Generation
D63: Existing Utility-Scale Renewable Energy Projects
D64: What was the total electricity generated in 2018 (MWh)? | H64: =INDIRECT(H$4&"!E68") -> NA | I64: =INDIRECT(I$4&"!E68") -> 2 | J64: NA | K64: =INDIRECT(K$4&"!E68") -> 0 | L64: One: 10MW Trents Solar PV Farm | M64: 0 | N64: 7 | P64: 0 | Q64: 1 | R64: NA | S64: Wind 46.5 MW (3 projects) and first 15 MW PV utility scale project is in tendering phase. | T64: 0 | U64: 2 in operation, 2 in construction | V64: 3 | W64: 147 MW of REN vs 422 of Fossil centralized generation | X64: NA | Z64: 6 (Wigton 1, Wigton 2, Wigton 3, BMR, Content & Eight Rivers) JPS Hydro Excluded | AA64: NA | AD64: NA | AE64: NA | AF64: NA | AG64: 1 | AI64: 3 | AJ64: 500kWp | AM64: NA
D65: What was the total electricity generated from utility-scale RE projects in 2018 (MWh)? | H65: =INDIRECT(H$4&"!E69") -> NA | I65: =INDIRECT(I$4&"!E69") -> NA | J65: NA | K65: =INDIRECT(K$4&"!E69") -> 0 | L65: 970389-1038000 | M65: 614461.785 | N65: 631093 | O65: 120000 | P65: 0 | Q65: 653700 | R65: NA | S65: 865865.963 | T65: 65411 | U65: 107000 | V65: 230947.232 | W65: 1704000 | X65: NA | Y65: 1057110.5 | Z65: 4355502 | AA65: NA | AB65: NA | AC65: NA | AD65: NA | AE65: NA | AF65: NA | AG65: 39928 | AH65: NA | AI65: NA | AJ65: 0 | AK65: 8463413 | AL65: NA | AM65: NA
D66: What was the total electricity generated from utility-scale RE projects in 2018 (MWh)? | H66: =INDIRECT(H$4&"!E70") -> NA | I66: =INDIRECT(I$4&"!E70") -> 3300 | J66: NA | K66: =INDIRECT(K$4&"!E70") -> 0 | L66: 18000 | M66: 0 | N66: 342039 | O66: 50000 | P66: NA | Q66: 9400 | R66: NA | S66: 237760.9 | T66: 18315.08 | U66: 17120 | V66: 1656.286 | W66: 362000 | X66: NA | Y66: 170897.75 | Z66: 522660.24 | AA66: 109200 | AB66: NA | AC66: NA | AD66: NA | AE66: NA | AF66: NA | AG66: 5000 | AH66: 25612.88 | AI66: NA | AJ66: 0 | AK66: 0 | AL66: 2417.64248 | AM66: NA
D67: Please provide as much information as possible for exisitng RE projects in the box below as: - Project Name - Developer - Offtaker - Renewable Energy Technology Type - Start of Commercial Operation (Year) - Estimated Capacity Factor (in %) OR Estimated Annual Production (in MWh) - Installed Capacity (MW) - Length of PPA | H67: =INDIRECT(H$4&"!E71") -> NA | I67: =INDIRECT(I$4&"!E71") -> Project Name: 10 MegaWatt Solar Project Developer: PV Energy Offtaker: APUA RE Technology Type: Solar Start of Commercial Operation: 2018 Estimated Capacity Factor: 5475 MWh Installed Capacity: 3 MW Length of PPA: N/A | J67: NA | K67: =INDIRECT(K$4&"!E71") -> 0 | L67: Project Name: Trents PV - Developer - BLPC - Offtaker- BLPC - Renewable Energy Technology Type - Solar PV - Start of Commercial Operation (Year)- 2016 - Estimated Capacity Factor (in %) - 20% est. OR Estimated Annual Production (in MWh) - Installed Capacity (MW) - 10MW - Length of PPA - N/A, rate-based BLPC project | M67: NA | N67: NA | O67: NA | P67: 0 | Q67: Lake Destiny, BMR, 5 MW | R67: NA | S67: Project Name: Windfarm Playa Canoa; Developer . : Nu Capital Offtaker : Aqualectra N.V. RE tecnology : Wind Start year : 2012 Estimated CF : 50% or 65 GWh/year Installed capacity : 15 MW Length PPA . : 20 years Project Name: Windfarm Tera Cora 1; Developer . : Nu Capital Offtaker : Aqualectra N.V. RE tecnology : Wind Start year : 2012 Estimated CF : 50% or 65 GWh/year Installed capacity : 15 MW Length PPA . : 20 years Project Name: Windfarm Tera Cora 2; Developer . : Nu Capital Offtaker : Aqualectra N.V. RE tecnology : Wind Start year : 2017 Estimated CF : 70% or 103 GWh/year Installed capacity : 16.5 MW Length PPA . : 20 years | X67: NA | Z67: Project Name Developer Offtaker RE Technology Type Commercial Operations Year Capacity Factor % Installed Capacity (MW) Length of PPA JPS' Munro 3MW Windfarm JPS JPS Wind 2010 15% 3 20 Wigton Windfarm Phase 1 Wigton Windfarm Limited JPS Wind 2004 30% 20 20 Wigton Windfarm Phase 2 Wigton Windfarm Limited JPS Wind 2010 35% 18 20 Wigton Windfarm Phase 3 Wigton Windfarm Limited JPS Wind 2016 24% 24 20 BMR Jamaica Wind Ltd BMR Energy/ acquired in 2016 by Virgin Investments JPS Wind 2016 41% 36.3 20 Content Solar, Limited WRB Energy JPS Solar 2016 23% 20 20 Eight Rivers Energy Company (EREC) Neoen, Rekamniar/MPC Capital JPS Solar 2019 30% 37 20 | AA67: NA | AB67: 250 kW Government of Monstarrat | AD67: NA | AE67: NA | AF67: NA | AG67: 1.Name: Solar Demo PV Project Contractor -FDL-High Peaks -Owner-Government of Saint Lucia Offtaker -Lucelec RE Technology type - Solar PV Start of commercial year -2019 Annual production -396 MWh Installed capacity - 0.2 MW Length of PPA- TBD 2. Project name : Solar carport project Contractor -Gearing up limited Owner -Government of Saint Lucia Offtaker -Lucelec RET- Solar PV Start of commercial year - 2019 Estimated annual production: 114.84 MWh Installed Capacity - 58kW Length of PPA-TBD 3. Project Name - Renewable Energy Sector Development Project Developer: Government of Saint Lucia Offtaker -Lucelec RET -Geothermal Start of Commercial Operation: 2025 Estimated capacity - Installed capacity (projected) - 30 MW Length of PPA - TBD | AI67: SKELEC solar farm - Developer:SKELEC; Offtaker: SKELEC; Year: 2015; Technology: Solar PV; Capacity: 0.5 MW SCASPA solar Farm - Developer: SCASPA; Offtaker: SKELEC; Year: 2013; Technology: Solar PV; Capacity: 0.75 MW WinWatt Wind Farm - Developer: WindWatt; Offtaker: NEVLEC; Technology: Wind; Capacity: 2.2 MW | AJ67: 0 | AL67: Our proposed 1 MW Utility scale PV project is still waiting for Govt. Planning Approval | AM67: NA
D69: Planned Renewable Generation
D70: Potential Utility-Scale Renewable Energy Projects
D71: How much installed capacity from RE is expected to come online in the next 3 years? | H71: =INDIRECT(H$4&"!E74") -> NA | I71: =INDIRECT(I$4&"!E74") ->  | J71: NA | K71: =INDIRECT(K$4&"!E74") -> 0 | L71: 96 | M71: 6MW | N71: 40MW | O71: NA | P71: 0 | Q71: NA | R71: NA | S71: 22MW wind and 15MW PV | T71: Geothermal 7MW | U71: 350MW | W71: 158 | X71: NA | Z71: 150-330MW | AA71: NA | AB71: 750 kW PV within the next two years | AD71: NA | AE71: NA | AF71: NA | AG71: 22MW | AI71: 40MW | AJ71: 2MW | AK71: 130MW | AM71: NA
D72: How much renewable energy generation is expected to come online in the next 3 years? | H72: =INDIRECT(H$4&"!E75") -> NA | I72: =INDIRECT(I$4&"!E75") -> 0 | J72: NA | K72: =INDIRECT(K$4&"!E75") -> 0 | L72: 52480 | M72: 6MW | N72: NA | O72: NA | P72: NA | Q72: NA | R72: NA | S72: 160000 | T72: NA | U72: 1200000 | V72: NA | W72: 612000 | X72: NA | Y72: NA | Z72: 490339.76 | AA72: NA | AB72: NA | AC72: NA | AD72: NA | AE72: NA | AF72: NA | AG72: 60000 | AH72: NA | AI72: NA | AJ72: 0.8MW | AK72: Unkown at this time | AL72: NA | AM72: NA
D73: Please provide as much information as possible for RE projects currently under development in the box below as: - Project Name - Developer - Offtaker - Renewable Energy Technology Type - Start of Commercial Operation (Year) - Estimated Capacity Factor (in %) OR Estimated Annual Production (in MWh) - Installed Capacity (MW) - Length of PPA | H73: =INDIRECT(H$4&"!E76") -> NA | I73: =INDIRECT(I$4&"!E76") ->  | J73: NA | K73: =INDIRECT(K$4&"!E76") -> 0 | L73: 0 | M73: SAME PROJECT AS QUESTION Bermuda Airport Solar Project Saturn Power Inc. Bermuda Electric Light Company Ltd. (BELCo) Solar Photo-voltaic under construction 2020 ??? 6MW 20 Years | N73: Project Name: BECOL 30 MW Solar Farm Developer: Belize Electric Company Limited (BECOL) Off taker: Belize Electricity Limited (BEL) RE Technology: Solar PV Status: Feasibility Expected Commercial Operation (Year): 2021 Estimated Capacity Factor (%) or Annual Production (in MWh): not available Installed Capacity 30MW Length of PPA: To be determined Project Name: BAPCOL 10 MW Solar Farm Developer: Blair Athol Power Company Limited (BAPCOL) Off taker: Belize Electricity Limited (BEL) RE Technology: Solar PV Status: Feasibility Expected Commercial Operation (Year): 2021 Estimated Capacity Factor (%) or Annual Production (in MWh): not available Installed Capacity 10MW Length of PPA: To be determined | O73: NA | P73: 0 | Q73: NA | R73: NA | X73: NA | Z73: None-awaiting publishing of IRP | AA73: NA | AD73: NA | AE73: NA | AF73: NA | AG73: Project Name : Developer : Masdar Offtaker: Lucelec Renewable energy technology type: Solar PV Status as of July 2019: prefeasibility Expected commercial operation: 2020 Estimated Annual Production:900 MWh Installed Capacity: (planned) 500-800kW Length of PPA:TBD(legislative framework not yet in place | AI73: Leclanche 35 MW solar farm with 44 MWh of battery storage(PPA signed) Northstar 5 MW wind farm with 2 MW battery storage ((PPA being negotiated) | AJ73: 0 | AK73: None currently exists | AM73: NA
D75: Electric Mobility
D76: What is the target and target year? | H76: =INDIRECT(H$4&"!E78") -> NA | I76: =INDIRECT(I$4&"!E78") ->  | J76: NA | K76: =INDIRECT(K$4&"!E78") -> 0 | L76: 0 | M76: NA | N76: NA | O76: NA | P76: 0 | Q76: NA | R76: NA | W76: 30% of EVs in circulating vehicles by 2030 (currently 220 000 vehicles in Guadeloupe) | X76: NA | Z76: 0 | AA76: NA | AD76: NA | AE76: NA | AF76: NA | AI76: 0 | AJ76: 0 | AM76: NA
D77: How many electric cars are currently in your country? | H77: =INDIRECT(H$4&"!E79") -> NA | I77: =INDIRECT(I$4&"!E79") ->  | J77: NA | K77: =INDIRECT(K$4&"!E79") -> 0 | L77: Approximately 400 | M77: 240 | N77: Less than 5 known electric vehicles, including hybrids. | O77: NA | P77: 0 | Q77: 120 | R77: NA | S77: Approx 50 | V77: About 7 | W77: <1% | X77: NA | Z77: <30 | AA77: NA | AB77: 1 | AD77: NA | AE77: NA | AF77: NA | AG77: Government of Saint Lucia -owns 3 full EVs Private sector - data being tallied | AI77: <5 | AJ77: 0 | AK77: <50 | AL77: 2 | AM77: NA
D78: How many charging stations are in your country? | H78: =INDIRECT(H$4&"!E80") -> NA | I78: =INDIRECT(I$4&"!E80") ->  | J78: NA | K78: =INDIRECT(K$4&"!E80") -> 0 | L78: 50-119 | M78: 20 (estimate) | N78: No publicly available charging stations | O78: NA | P78: 0 | Q78: Approximately 14 | R78: NA | S78: None, charging is done at home or at the office. Public charging stations are being developed | V78: 2 | W78: Estimated: 50 | X78: NA | Z78: 2 - Solar Charging by JPS - available to the public free 1 - AC Marriott (Private for guests) 1 - IADB local Office (Private and Demonstration) | AA78: NA | AB78: 1 | AD78: NA | AE78: NA | AF78: NA | AG78: 3 | AJ78: 0 | AK78: <5 | AL78: 1 | AM78: NA
D81: Improvement Year-on-Year | I81: =I5 -> Antigua & Barbuda | J81: =J5 -> Aruba | K81: The Bahamas | L81: Barbados | M81: Bermuda | N81: Belize | O81: Bonaire | P81: British Virgin Islands | Q81: Cayman Islands | R81: Cuba | S81: Curaҫao | T81: Dominica | U81: Dominican Republic | V81: Grenada | W81: Guadeloupe | X81: Guyana | Y81: Haiti | Z81: Jamaica | AA81: Martinique | AB81: Montserrat | AC81: Nevis | AD81: Puerto Rico | AE81: Saint-Martin | AF81: Sint Maarten | AG81: St. Lucia | AH81: St. Vincent and the Grenadines | AI81: St. Kitts | AJ81: Suriname | AK81: Trinidad and Tobago | AL81: Turks and Caicos Islands
D82: Improvement Year-on-Year | G82: 1
D83: Enabling environment for renewable energy investments | E83: Change | G83: =G8 -> 0.3 | H83: =INDIRECT(H$4&"!E84") -> -1.875 | I83: =INDIRECT(I$4&"!E84") -> 0.3125 | J83: -3.645833333 | K83: =INDIRECT(K$4&"!E84") -> -1.177083333 | L83: -0.2083333333 | M83: 1.354166667 | N83: 0.234375 | O83: -0.1302083333 | P83: -4.375 | Q83: -0.080625 | R83: 0 | S83: -0.3125 | T83: -0.234375 | U83: -1.880208333 | V83: 1.171875 | W83: 0.8072916667 | X83: 0 | Y83: 0.65625 | Z83: 0.1197916667 | AA83: -3.333333333 | AB83: 0.15625 | AC83: -1.145833333 | AD83: -2.8125 | AE83: 0 | AF83: 0 | AG83: -2.734375 | AH83: -3.59375 | AI83: -0.1197916667 | AJ83: 0.46875 | AK83: -1.328125 | AL83: -0.9895833333 | AM83: -2.953125
D84: 2012 Score | E84: 0 to 5 | H84: =INDIRECT(H$4&"!E85") -> 2.333333333 | I84: =INDIRECT(I$4&"!E85") -> 1.666666667 | J84: 2 | K84: =INDIRECT(K$4&"!E85") -> 1 | L84: 3.166666667 | M84: 2.333333333 | N84: 2.333333333 | O84: 0 | P84: 1 | Q84: 3.33 | R84: 0 | S84: NA | T84: 2.833333333 | U84: 2.333333333 | V84: 2.333333333 | W84: NA | X84: 0 | Y84: 0 | Z84: 3.666666667 | AA84: 3 | AB84: 1.67 | AC84: 2.333333333 | AD84: 0 | AE84: 0 | AF84: 0 | AG84: 2.33 | AH84: 3 | AI84: 1.67 | AJ84: 0 | AK84: 2.33 | AL84: 2 | AM84: NA
D85: 2013 Score | E85: 0 to 5 | H85: =INDIRECT(H$4&"!E86") -> 2.333333333 | I85: =INDIRECT(I$4&"!E86") -> 1.666666667 | J85: 2 | K85: =INDIRECT(K$4&"!E86") -> 1 | L85: 3.166666667 | M85: 3 | N85: 2.333333333 | O85: 2 | P85: 1 | Q85: 3.33 | R85: 0 | S85: 3 | T85: 2.833333333 | U85: 2.333333333 | V85: 2.333333333 | W85: 4 | X85: 1.666666667 | Y85: 1.666666667 | Z85: 3.666666667 | AA85: 4 | AB85: 1.666666667 | AC85: 2.333333333 | AD85: 3.333333333 | AE85: 0 | AF85: 0 | AG85: 2.333333333 | AH85: 3 | AI85: 1.666666667 | AJ85: 0 | AK85: 2.333333333 | AL85: 2 | AM85: NA
D86: 2014 Score | E86: 0 to 5 | H86: =INDIRECT(H$4&"!E87") -> 2.333333333 | I86: =INDIRECT(I$4&"!E87") -> 2 | J86: 4 | K86: =INDIRECT(K$4&"!E87") -> 1 | L86: 3.833333333 | M86: 3 | N86: 3 | O86: 2 | P86: 1 | Q86: 3.33 | R86: 0 | S86: 4 | T86: 2.833333333 | U86: 2.333333333 | V86: 2.333333333 | W86: 4.333333333 | X86: 1.666666667 | Y86: 1.666666667 | Z86: 3.666666667 | AA86: 4.333333333 | AB86: 1.666666667 | AC86: 2.666666667 | AD86: 2 | AE86: 0 | AF86: 0 | AG86: 2.333333333 | AH86: 3 | AI86: 2.666666667 | AJ86: 0 | AK86: 2.333333333 | AL86: 2 | AM86: 2
D87: 2015 Score | E87: 0 to 5 | H87: =INDIRECT(H$4&"!E88") -> 2.333333333 | I87: =INDIRECT(I$4&"!E88") -> 2 | J87: 4 | K87: =INDIRECT(K$4&"!E88") -> 1.333333333 | L87: 3.833333333 | M87: 3 | N87: 3.333333333 | O87: 2 | P87: 2 | Q87: 3.33 | R87: 1 | S87: 4 | T87: 2.833333333 | U87: 2.333333333 | V87: 2.666666667 | W87: 4.333333333 | X87: 1.666666667 | Y87: 1.666666667 | Z87: 3.666666667 | AA87: 4.333333333 | AB87: 1.666666667 | AC87: 2.666666667 | AD87: 2 | AE87: 0 | AF87: 0 | AG87: 2.333333333 | AH87: 3 | AI87: 2.666666667 | AJ87: 0 | AK87: 3 | AL87: 2 | AM87: 2
D88: 2016 Score | E88: 0 to 5 | H88: =INDIRECT(H$4&"!E89") -> 1.333333333 | I88: =INDIRECT(I$4&"!E89") -> 3.666666667 | J88: 2.666666667 | K88: =INDIRECT(K$4&"!E89") -> 4.333333333 | L88: 2.666666667 | M88: 4.333333333 | N88: 2.666666667 | O88: 2.666666667 | P88: 1.333333333 | Q88: 4.33 | R88: 0 | S88: 5 | T88: 5 | U88: 4.333333333 | V88: 5 | W88: 5 | X88: 3.666666667 | Y88: 3.666666667 | Z88: 4.333333333 | AA88: 5 | AB88: 0 | AC88: 5 | AD88: 3.666666667 | AE88: 0 | AF88: 0 | AG88: 1.333333333 | AH88: 4.333333333 | AI88: 1.333333333 | AJ88: 0 | AK88: 1.333333333 | AL88: 1.333333333 | AM88: 3.666666667
D89: 2017 Score | E89: 0 to 5 | H89: =INDIRECT(H$4&"!E90") -> 1.875 | I89: =INDIRECT(I$4&"!E90") -> 4.0625 | J89: 3.645833333 | K89: =INDIRECT(K$4&"!E90") -> 3.958333333 | L89: 3.333333333 | M89: 3.333333333 | N89: 3.125 | O89: 4.583333333 | P89: 4.375 | Q89: 4.69 | R89: 0 | S89: 5 | T89: 3.4375 | U89: 4.583333333 | V89: 1.875 | W89: 3.958333333 | X89: 0 | Y89: 0 | Z89: 3.333333333 | AA89: 3.333333333 | AB89: 0 | AC89: 3.958333333 | AD89: 2.8125 | AE89: 0 | AF89: 0 | AG89: 3.125 | AH89: 3.75 | AI89: 1.666666667 | AJ89: 2.5 | AK89: 1.5625 | AL89: 2.708333333 | AM89: 5
D90: 2018 Score | H90: =H8 -> 0 | I90: 4.375 | J90: 0 | K90: 2.78125 | L90: 3.125 | M90: 4.6875 | N90: 3.359375 | O90: 4.453125 | P90: 0 | Q90: 4.609375 | R90: 0 | S90: 4.6875 | T90: 3.203125 | U90: 2.703125 | V90: 3.046875 | W90: 4.765625 | X90: 0 | Y90: 0.65625 | Z90: 3.453125 | AA90: 0 | AB90: 0.15625 | AC90: 2.8125 | AD90: 0 | AE90: 0 | AF90: 0 | AG90: 0.390625 | AH90: 0.15625 | AI90: 1.546875 | AJ90: 2.96875 | AK90: 0.234375 | AL90: 1.71875 | AM90: 2.046875
D91: Existing renewable generation | E91: Change | G91: =G26 -> 0.3 | H91: 0 | I91: 0.05 | J91: 0.7425373737 | K91: 0 | L91: 0.09024481591 | M91: 0.2506746616 | N91: 2.709893787 | O91: 2.083333333 | P91: 0 | Q91: 0.07189842435 | R91: 0.02078416717 | S91: 1.372965968 | T91: 1.4 | U91: 0.8 | V91: 0.03585853759 | W91: 1.062206573 | X91: 0.4898527448 | Y91: 0.8083249102 | Z91: 0.6 | AA91: 0.35 | AB91: 0 | AC91: 0.7671576178 | AD91: 0.1 | AE91: 0 | AF91: 0 | AG91: 0.6261270287 | AH91: 0.85 | AI91: 0.06284761905 | AJ91: 2.171313104 | AK91: 0 | AL91: 0.05 | AM91: 0.1141593114
D92: 2012 Score | E92: 0 to 5 | H92: =INDIRECT(H$4&"!E93") -> 0.01 | I92: =INDIRECT(I$4&"!E93") -> 0 | J92: 0.5 | K92: =INDIRECT(K$4&"!E93") -> 0 | L92: 0 | M92: 0.01 | N92: 2.6 | O92: 0 | P92: 0 | Q92: 0 | R92: 0 | S92: NA | T92: 2.2 | U92: 0.43 | V92: 0.1 | W92: NA | X92: 0 | Y92: 0 | Z92: 0.27 | AA92: 0.15 | AB92: 0 | AC92: 0.95 | AD92: 0 | AE92: 0 | AF92: 0 | AG92: 0.01 | AH92: 1.22 | AI92: 0 | AJ92: 0 | AK92: 0 | AL92: 0 | AM92: NA
D93: 2013 Score | E93: 0 to 5 | H93: =INDIRECT(H$4&"!E94") -> 0 | I93: =INDIRECT(I$4&"!E94") -> 0 | J93: 0.6554299569 | K93: =INDIRECT(K$4&"!E94") -> 0.01051051893 | L93: 0.00988006576 | M93: 0 | N93: 2.658894418 | O93: 1.390777168 | P93: 0 | Q93: 0.001555465944 | R93: 0.03596293251 | S93: 0.612413512 | T93: 1.593331003 | U93: 0.6335559935 | V93: 0.01066908992 | W93: 0.6886440599 | X93: 0.04754977029 | Y93: 0.04754977029 | Z93: 0.2846569842 | AA93: 0.1446690714 | AB93: 0 | AC93: 0.3018652141 | AD93: 0.1009084384 | AE93: 0.04058643617 | AF93: 0 | AG93: 0.0006848916215 | AH93: 1.0240374 | AI93: 0 | AJ93: 2.441962025 | AK93: 3.596190915e-06 | AL93: 0 | AM93: NA
D94: 2014 Score | E94: 0 to 5 | H94: =INDIRECT(H$4&"!E95") -> 0.08468643436 | I94: =INDIRECT(I$4&"!E95") -> 0.006991575 | J94: 0.8362480417 | K94: =INDIRECT(K$4&"!E95") -> 0.01420321463 | L94: 0.04232329106 | M94: 0.1170702895 | N94: 3.190331642 | O94: 1.493199951 | P94: 0.190859376 | Q94: 0.0143266175 | R94: 0.04066345946 | S94: 0.6896652316 | T94: 1.350176791 | U94: 0.7824621563 | V94: 0.04032443739 | W94: 0.8213333824 | X94: 0.4655531864 | Y94: 0.4655531864 | Z94: 0.3849808088 | AA94: 0.3373700133 | AB94: 0 | AC94: 0.5305854359 | AD94: 0.1054455938 | AE94: 0.07977320816 | AF94: 0.019109375 | AG94: 0.000946962734 | AH94: 1.108045438 | AI94: 0.109487662 | AJ94: 2.738240638 | AK94: 2.521046512e-05 | AL94: 0.001136822341 | AM94: 0.1923122518
D95: 2015 Score | E95: 0 to 5 | H95: =INDIRECT(H$4&"!E96") -> 0.06781581416 | I95: =INDIRECT(I$4&"!E96") -> 0.00560459684 | J95: 0.7529445502 | K95: =INDIRECT(K$4&"!E96") -> 0.01264142634 | L95: 0.03586244048 | M95: 0.1056815347 | N95: 2.870719008 | O95: 1.343377796 | P95: 0.1530347888 | Q95: 0.01293696345 | R95: 0.03648660562 | S95: 0.6196484204 | T95: 1.208726916 | U95: 0.7031745937 | V95: 0.03421611041 | W95: 0.7146451333 | X95: 0.4189978678 | Y95: 0.4189978678 | Z95: 0.3457923359 | AA95: 0.2822986606 | AB95: 0 | AC95: 0.4775268923 | AD95: 0.09314444542 | AE95: 0.07123589306 | AF95: 0.01531438172 | AG95: 0.0008107116041 | AH95: 0.9962195666 | AI95: 0.0981776052 | AJ95: 2.464416574 | AK95: 4.797015465e-05 | AL95: 0.001023140107 | AM95: 0.1679561366
D96: 2016 Score | E96: 0 to 5 | H96: =INDIRECT(H$4&"!E97") -> 0 | I96: =INDIRECT(I$4&"!E97") -> 0 | J96: 0.7725378735 | K96: =INDIRECT(K$4&"!E97") -> 0 | L96: 0.191726859 | M96: 0.2397277725 | N96: 3.926362109 | O96: 1.675580276 | P96: 0.1534304706 | Q96: 0.05364936481 | R96: 0 | S96: 0 | T96: 1.091680013 | U96: 0.8596655588 | V96: 0.0540998187 | W96: 1.646875764 | X96: 0 | Y96: 0 | Z96: 0.5000994119 | AA96: 0.26614456 | AB96: 0 | AC96: 0 | AD96: 0.2146890974 | AE96: 0.07398103341 | AF96: 0.01531245757 | AG96: 0 | AH96: 0 | AI96: 0.08749830154 | AJ96: 2.466911511 | AK96: 0 | AL96: 0 | AM96: 0.2260880772
D97: 2017 Score | E97: 0 to 5 | H97: =INDIRECT(H$4&"!E98") -> 0.13 | I97: =INDIRECT(I$4&"!E98") -> 0.3104274611 | J97: 0.1070797576 | K97: =INDIRECT(K$4&"!E98") -> 0 | L97: 0.3438046329 | M97: 0.4734986343 | N97: 2.544071655 | O97: 2.108333333 | P97: 0.25 | Q97: 0.3147324906 | R97: 0 | S97: 1.238743507 | T97: 2.690328526 | U97: 0.5727039157 | V97: 0.2636306222 | W97: 0.9046449638 | X97: 0.15625 | Y97: 0.15625 | Z97: 0.798214628 | AA97: 0.798214628 | AB97: 0 | AC97: 0.9020839751 | AD97: 0.1988446651 | AE97: 0 | AF97: 0 | AG97: 0.3381481481 | AH97: 2.206587395 | AI97: 0.317014 | AJ97: 2.58622296 | AK97: 0.25 | AL97: 0.25 | AM97: 0.3020354147
D98: 2018 Score | E98: 0 to 5 | H98: =INDIRECT(H$4&"!E99") -> 0 | I98: =INDIRECT(I$4&"!E99") -> 0.05 | J98: 0.7425373737 | K98: =INDIRECT(K$4&"!E99") -> 0 | L98: 0.09024481591 | M98: 0.2506746616 | N98: 2.709893787 | O98: 2.083333333 | P98: 0 | Q98: 0.07189842435 | R98: 0.02078416717 | S98: 1.372965968 | T98: 1.4 | U98: 0.8 | V98: 0.03585853759 | W98: 1.062206573 | X98: 0.4898527448 | Y98: 0.8083249102 | Z98: 0.6 | AA98: 0.35 | AB98: 0 | AC98: 0.7671576178 | AD98: 0.1 | AE98: 0 | AF98: 0 | AG98: 0.6261270287 | AH98: 0.85 | AI98: 0.06284761905 | AJ98: 2.171313104 | AK98: 0 | AL98: 0.05 | AM98: 0.1141593114
D99: Planned renewable generation | E99: Change | G99: =G34 -> 0.3 | H99: =H34 -> 0 | I99: =I34 -> 0.05497474747 | J99: 0.01986531987 | K99: =K34 -> 0.6576799079 | L99: 0.6426568616 | M99: 0.5883452269 | N99: 1.323948205 | O99: 0.5555555556 | P99: 0.3358 | Q99: 0.6970216715 | R99: 0.3649427022 | S99: 1.419087955 | T99: 5 | U99: 5 | V99: 1.361583835 | W99: 1.70970266 | X99: 0.1078660903 | Y99: 0 | Z99: 1.298743428 | AA99: 0.04585897436 | AB99: 4.030217663 | AC99: 2.067821642 | AD99: 0.7646225486 | AE99: 0 | AF99: 0 | AG99: 3.06006367 | AH99: 0.8109933831 | AI99: 1.755983378 | AJ99: 0.5568987556 | AK99: 0.5555555556 | AL99: 1.126450021 | AM99: 0.05238411691
D100: 2012 Score | E100: 0 to 5 | H100: =INDIRECT(H$4&"!E101") -> 0.26 | I100: =INDIRECT(I$4&"!E101") -> 0 | J100: 0.05 | K100: =INDIRECT(K$4&"!E101") -> 0.21 | L100: 0.6 | M100: 0 | N100: 0 | O100: 0 | P100: 0 | Q100: 0.18 | R100: 0 | S100: NA | T100: 3.7 | U100: 0.85 | V100: 3.2 | W100: NA | X100: 0 | Y100: 0 | Z100: 0.06 | AA100: 0.86 | AB100: 4.5 | AC100: 0.5 | AD100: 0 | AE100: 0 | AF100: 0 | AG100: 1.01 | AH100: 0 | AI100: 0 | AJ100: 0 | AK100: 0 | AL100: 0 | AM100: NA
D101: 2013 Score | E101: 0 to 5 | H101: =INDIRECT(H$4&"!E102") -> 0.06381118881 | I101: =INDIRECT(I$4&"!E102") -> 0 | J101: 0.1007682081 | K101: =INDIRECT(K$4&"!E102") -> 0.3017843708 | L101: 0.710305361 | M101: 0 | N101: 0.3619857205 | O101: 0 | P101: 0 | Q101: 0.1745733265 | R101: 0 | S101: 0.3025404878 | T101: 4.117443898 | U101: 0.8604201529 | V101: 2.938614592 | W101: 0.693075923 | X101: 4.005283308 | Y101: 4.005283308 | Z101: 0.1941868386 | AA101: 0.8242409565 | AB101: 4.5 | AC101: 0 | AD101: 0.0607551059 | AE101: 0.0114975 | AF101: 0 | AG101: 0 | AH101: 0.7010121672 | AI101: 0.3069763099 | AJ101: 0 | AK101: 0 | AL101: 0 | AM101: NA
D102: 2014 Score | E102: 0 to 5 | H102: =INDIRECT(H$4&"!E103") -> 0.1756111987 | I102: =INDIRECT(I$4&"!E103") -> 0 | J102: 0.6533827084 | K102: =INDIRECT(K$4&"!E103") -> 0.3406416772 | L102: 0.1456294066 | M102: 0 | N102: 0.3638523386 | O102: 0 | P102: 0 | Q102: 0.17725907 | R102: 0.08829374465 | S102: 0.4466621004 | T102: 4.12213097 | U102: 0.2865592685 | V102: 0.09944376565 | W102: 0 | X102: 0.3782666977 | Y102: 0.3782666977 | Z102: 0.1870152964 | AA102: 0.6133406662 | AB102: 4.5 | AC102: 0.2300462134 | AD102: 0 | AE102: 0.01990937356 | AF102: 0 | AG102: 0.05532157086 | AH102: 0.04497173084 | AI102: 0 | AJ102: 0.287647513 | AK102: 0 | AL102: 0 | AM102: 0.4394004672
D103: 2015 Score | E103: 0 to 5 | H103: =INDIRECT(H$4&"!E104") -> 0.2449137553 | I103: =INDIRECT(I$4&"!E104") -> 0 | J103: 0.3064347123 | K103: =INDIRECT(K$4&"!E104") -> 0.05150103796 | L103: 1.155325051 | M103: 2.031726637 | N103: 4.5 | O103: 0 | P103: 0 | Q103: 0.2216694615 | R103: 0.08997792322 | S103: 0.4427950597 | T103: 4.128332539 | U103: 0.326080521 | V103: 1.616708567 | W103: 0.03624874827 | X103: 0.3787559202 | Y103: 0.3787559202 | Z103: 0.1537613453 | AA103: 0.6133429193 | AB103: 4.5 | AC103: 3.211660734 | AD103: 0.05952168121 | AE103: 0 | AF103: 0 | AG103: 0.05558259525 | AH103: 2.155990002 | AI103: 0 | AJ103: 0 | AK103: 0 | AL103: 0 | AM103: 0.1682406861
D104: 2016 Score | E104: 0 to 5 | H104: =INDIRECT(H$4&"!E105") -> 0 | I104: =INDIRECT(I$4&"!E105") -> 0 | J104: 0.06745677136 | K104: =INDIRECT(K$4&"!E105") -> 0 | L104: 0 | M104: 0 | N104: 0.4341058603 | O104: 0 | P104: 0.3701962732 | Q104: 0.1765317083 | R104: 0.2217340116 | S104: 0 | T104: 4.076507688 | U104: 0.2973594116 | V104: 0 | W104: 0.2234949808 | X104: 0 | Y104: 0 | Z104: 0.07183519146 | AA104: 0.807851233 | AB104: 0 | AC104: 0 | AD104: 0 | AE104: 0 | AF104: 0 | AG104: 0 | AH104: 0 | AI104: 0 | AJ104: 0 | AK104: 0 | AL104: 0 | AM104: 0
D105: 2017 Score | E105: 0 to 5 | H105: =INDIRECT(H$4&"!E106") -> 0 | I105: =INDIRECT(I$4&"!E106") -> 0.2383907345 | J105: 0 | K105: =INDIRECT(K$4&"!E106") -> 0 | L105: 0.1761188811 | M105: 0.212194196 | N105: 0 | O105: 0 | P105: 0 | Q105: 0.1971916821 | R105: 0 | S105: 0.278511206 | T105: 2.112878466 | U105: 0.334669814 | V105: 2.044593333 | W105: 0.3305658883 | X105: 0 | Y105: 0 | Z105: 0.1273165881 | AA105: 0.1273165881 | AB105: 0 | AC105: 4.061372609 | AD105: 0.07600318994 | AE105: 0 | AF105: 0 | AG105: 2.697128296 | AH105: 2.387758563 | AI105: 3.447936 | AJ105: 0 | AK105: 0.1 | AL105: 0.1368133836 | AM105: 0.2348546255
D106: 2018 Score | E106: 0 to 5 | H106: =INDIRECT(H$4&"!E107") -> 0 | I106: =INDIRECT(I$4&"!E107") -> 0.05497474747 | J106: 0.01986531987 | K106: =INDIRECT(K$4&"!E107") -> 0.6576799079 | L106: 0.6426568616 | M106: 0.5883452269 | N106: 1.323948205 | O106: 0.5555555556 | P106: 0.3358 | Q106: 0.6970216715 | R106: 0.3649427022 | S106: 1.419087955 | T106: 5 | U106: 5 | V106: 1.361583835 | W106: 1.70970266 | X106: 0.1078660903 | Y106: 0 | Z106: 1.298743428 | AA106: 0.04585897436 | AB106: 4.030217663 | AC106: 2.067821642 | AD106: 0.7646225486 | AE106: 0 | AF106: 0 | AG106: 3.06006367 | AH106: 0.8109933831 | AI106: 1.755983378 | AJ106: 0.5568987556 | AK106: 0.5555555556 | AL106: 1.126450021 | AM106: 0.05238411691
D107: Electric Mobility | E107: Change | G107: =G42 -> 0.1 | H107: =H42 -> 0 | I107: =I42 -> 0 | J107: 0 | K107: =K42 -> 0 | L107: 2.5 | M107: 0 | N107: 0 | O107: 0 | P107: 0 | Q107: 5 | R107: 0 | S107: 0 | T107: 2.5 | U107: 0 | V107: 0 | W107: 5 | X107: 0 | Y107: 0 | Z107: 2.5 | AA107: 0 | AB107: 0 | AC107: 0 | AD107: 0 | AE107: 0 | AF107: 0 | AG107: 2.5 | AH107: 0 | AI107: 0 | AJ107: 0 | AK107: 0 | AL107: 0 | AM107: 0
D108: 2018 Score | E108: 0 to 5 | H108: =INDIRECT(H$4&"!E109") -> 0 | I108: =INDIRECT(I$4&"!E109") -> 0 | J108: 0 | K108: =INDIRECT(K$4&"!E109") -> 0 | L108: 2.5 | M108: 0 | N108: 0 | O108: 0 | P108: 0 | Q108: 5 | R108: 0 | S108: 0 | T108: 2.5 | U108: 0 | V108: 0 | W108: 5 | X108: 0 | Y108: 0 | Z108: 2.5 | AA108: 0 | AB108: 0 | AC108: 0 | AD108: 0 | AE108: 0 | AF108: 0 | AG108: 2.5 | AH108: 0 | AI108: 0 | AJ108: 0 | AK108: 0 | AL108: 0 | AM108: 0
D109: Overall Score Year-on-Year | H109: =INDIRECT(H$4&"!E110") -> -0.6683333333 | I109: =INDIRECT(I$4&"!E110") -> -0.193113641 | J109: -1.022250222 | K109: =INDIRECT(K$4&"!E110") -> -0.2877654721 | L109: 0.1229515541 | M109: 0.3182805787 | N109: 0.328274546 | O109: -0.1029513889 | P109: -1.440926667 | Q109: 0.3803471379 | R109: 0.1157180608 | S109: 0.07144793932 | T109: 0.3840351694 | U109: 0.7207018123 | V109: -0.06111277335 | W109: 1.030078875 | X109: 0.1272323172 | Y109: 0.3872891397 | Z109: 0.4359390121 | AA109: -1.300863824 | AB109: 1.255940299 | AC109: -1.279686195 | AD109: -0.7697291871 | AE109: 2 | AF109: 0 | AG109: -0.5803807718 | AH109: -2.236275638 | AI109: -0.8008270898 | AJ109: 0.01368090452 | AK109: -0.4005208333 | AL109: -0.163155566 | AM109: -1.181604485
D110: 2012 Overall Score | H110: =INDIRECT(H$4&"!E111") -> 0.8591 | I110: =INDIRECT(I$4&"!E111") -> 0.55 | J110: 0.8415 | K110: =INDIRECT(K$4&"!E111") -> 0.3993 | L110: 1.243 | M110: 0.7733 | N110: 1.628 | O110: 0 | P110: 0.33 | Q110: 1.1594 | R110: 0 | S110: 0 | T110: 2.882 | U110: 1.1924 | V110: 1.859 | W110: 0 | X110: 0 | Y110: 0 | Z110: 1.3189 | AA110: 1.3233 | AB110: 2.0361 | AC110: 1.2485 | AD110: 0 | AE110: 0 | AF110: 0 | AG110: 1.1055 | AH110: 1.3926 | AI110: 0.5511 | AJ110: 0 | AK110: 0.7689 | AL110: 0.66 | AM110: 0
D111: 2012 Rank | H111: =INDIRECT(H$4&"!E112") -> 13 | I111: =INDIRECT(I$4&"!E112") -> 19 | J111: 14 | K111: =INDIRECT(K$4&"!E112") -> 20 | L111: 9 | M111: 15 | N111: 4 | O111: 22 | P111: 21 | Q111: 11 | R111: 22 | S111: 22 | T111: 1 | U111: 10 | V111: 3 | W111: 22 | X111: 22 | Y111: 22 | Z111: 7 | AA111: 6 | AB111: 2 | AC111: 8 | AD111: 22 | AE111: 22 | AF111: 22 | AG111: 12 | AH111: 5 | AI111: 18 | AJ111: 22 | AK111: 16 | AL111: 17 | AM111: 22
D112: 2013 Overall Score | H112: =INDIRECT(H$4&"!E113") -> 0.799048174 | I112: =INDIRECT(I$4&"!E113") -> 0.5555555556 | J112: 0.9187327217 | K112: =INDIRECT(K$4&"!E113") -> 0.4374316299 | L112: 1.295617364 | M112: 1 | N112: 1.784737824 | O112: 1.130259056 | P112: 0.3333333333 | Q112: 1.169820709 | R112: 0.01198764417 | S112: 1.304984667 | T112: 2.848036078 | U112: 1.275769827 | V112: 1.760872338 | W112: 1.793906661 | X112: 1.906499915 | Y112: 1.906499915 | Z112: 1.38183683 | AA112: 1.656303343 | AB112: 2.055555556 | AC112: 0.8783995158 | AD112: 1.164998959 | AE112: 0.01736131206 | AF112: 0 | AG112: 0.778006075 | AH112: 1.575016522 | AI112: 0.6578809922 | AJ112: 0.8139873418 | AK112: 0.7777789765 | AL112: 0.6666666667 | AM112: 0
D113: 2013 Rank | H113: =INDIRECT(H$4&"!E114") -> 21 | I113: =INDIRECT(I$4&"!E114") -> 26 | J113: 18 | K113: =INDIRECT(K$4&"!E114") -> 27 | L113: 12 | M113: 17 | N113: 6 | O113: 16 | P113: 28 | Q113: 14 | R113: 30 | S113: 11 | T113: 1 | U113: 13 | V113: 7 | W113: 5 | X113: 3 | Y113: 3 | Z113: 10 | AA113: 8 | AB113: 2 | AC113: 19 | AD113: 15 | AE113: 29 | AF113: 31 | AG113: 22 | AH113: 9 | AI113: 25 | AJ113: 20 | AK113: 23 | AL113: 24 | AM113: 31
D114: 2014 Overall Score | H114: =INDIRECT(H$4&"!E115") -> 0.8645436555 | I114: =INDIRECT(I$4&"!E115") -> 0.6689971917 | J114: 1.829876917 | K114: =INDIRECT(K$4&"!E115") -> 0.451614964 | L114: 1.340428677 | M114: 1.03902343 | N114: 2.184727993 | O114: 1.164399984 | P114: 0.3969531253 | Q114: 1.174973007 | R114: 0.0429857347 | S114: 1.712109111 | T114: 2.768547031 | U114: 1.134118253 | V114: 0.8243671788 | W114: 1.718222239 | X114: 0.8368288503 | Y114: 0.8368288503 | Z114: 1.412887591 | AA114: 1.761348004 | AB114: 2.055555556 | AC114: 1.142432772 | AD114: 0.7018151979 | AE114: 0.03322752724 | AF114: 0.006369791667 | AG114: 0.7965339556 | AH114: 1.384339056 | AI114: 0.9253847762 | AJ114: 1.008629384 | AK114: 0.7777861813 | AL114: 0.6670456074 | AM114: 0.877237573
D115: 2014 Rank | H115: =INDIRECT(H$4&"!E116") -> 18 | I115: =INDIRECT(I$4&"!E116") -> 25 | J115: 4 | K115: =INDIRECT(K$4&"!E116") -> 27 | L115: 10 | M115: 15 | N115: 2 | O115: 12 | P115: 28 | Q115: 11 | R115: 29 | S115: 7 | T115: 1 | U115: 14 | V115: 21 | W115: 6 | X115: 19 | Y115: 19 | Z115: 8 | AA115: 5 | AB115: 3 | AC115: 13 | AD115: 24 | AE115: 30 | AF115: 31 | AG115: 22 | AH115: 9 | AI115: 17 | AJ115: 16 | AK115: 23 | AL115: 26 | AM115: 18
D116: 2015 Overall Score | H116: =INDIRECT(H$4&"!E117") -> 0.8820209676 | I116: =INDIRECT(I$4&"!E117") -> 0.6685348656 | J116: 1.686459754 | K116: =INDIRECT(K$4&"!E117") -> 0.4658252659 | L116: 1.674840275 | M116: 1.712469391 | N116: 3.568017447 | O116: 1.114459265 | P116: 0.7176782629 | Q116: 1.189313253 | R116: 0.3754881763 | S116: 1.68748116 | T116: 2.723464263 | U116: 1.120862816 | V116: 1.439197115 | W116: 1.694742405 | X116: 0.8214734849 | Y116: 0.8214734849 | Z116: 1.388740116 | AA116: 1.742991638 | AB116: 2.055555556 | AC116: 2.118618098 | AD116: 0.7175553755 | AE116: 0.02374529769 | AF116: 0.005104793907 | AG116: 0.7965755467 | AH116: 2.050736523 | AI116: 0.9216147573 | AJ116: 0.8214721915 | AK116: 1.00001599 | AL116: 0.6670077134 | AM116: 0.7787322743
D117: 2015 Rank | H117: =INDIRECT(H$4&"!E118") -> 19 | I117: =INDIRECT(I$4&"!E118") -> 27 | J117: 10 | K117: =INDIRECT(K$4&"!E118") -> 29 | L117: 11 | M117: 7 | N117: 1 | O117: 16 | P117: 25 | Q117: 14 | R117: 30 | S117: 9 | T117: 2 | U117: 15 | V117: 12 | W117: 8 | X117: 20 | Y117: 20 | Z117: 13 | AA117: 6 | AB117: 4 | AC117: 3 | AD117: 26 | AE117: 31 | AF117: 32 | AG117: 23 | AH117: 5 | AI117: 18 | AJ117: 22 | AK117: 17 | AL117: 28 | AM117: 24
D118: 2016 Overall Score | H118: =INDIRECT(H$4&"!E119") -> 0.4444444444 | I118: =INDIRECT(I$4&"!E119") -> 1.222222222 | J118: 1.168887104 | K118: =INDIRECT(K$4&"!E119") -> 1.444444444 | L118: 0.9527978419 | M118: 1.524353702 | N118: 2.342378212 | O118: 1.447415648 | P118: 0.6189866924 | Q118: 1.743393691 | R118: 0.07391133721 | S118: 1.666666667 | T118: 3.389395901 | U118: 1.830119435 | V118: 1.68469994 | W118: 2.290123582 | X118: 1.222222222 | Y118: 1.222222222 | Z118: 1.635089312 | AA118: 2.024665264 | AB118: 0 | AC118: 1.666666667 | AD118: 1.293785255 | AE118: 0.02466034447 | AF118: 0.005104152524 | AG118: 0.4444444444 | AH118: 1.444444444 | AI118: 0.473610545 | AJ118: 0.822303837 | AK118: 0.4444444444 | AL118: 0.4444444444 | AM118: 1.297584915
D119: 2016 Rank | H119: =INDIRECT(H$4&"!E120") -> 25 | I119: =INDIRECT(I$4&"!E120") -> 17 | J119: 20 | K119: =INDIRECT(K$4&"!E120") -> 13 | L119: 21 | M119: 11 | N119: 2 | O119: 12 | P119: 23 | Q119: 6 | R119: 29 | S119: 8 | T119: 1 | U119: 5 | V119: 7 | W119: 3 | X119: 17 | Y119: 17 | Z119: 10 | AA119: 4 | AB119: 32 | AC119: 8 | AD119: 16 | AE119: 30 | AF119: 31 | AG119: 25 | AH119: 13 | AI119: 24 | AJ119: 22 | AK119: 25 | AL119: 25 | AM119: 15
D120: 2017 Overall Score | H120: =INDIRECT(H$4&"!E121") -> 0.6683333333 | I120: =INDIRECT(I$4&"!E121") -> 1.537106065 | J120: 1.25097103 | K120: =INDIRECT(K$4&"!E121") -> 1.319444444 | L120: 1.284418949 | M120: 1.339675388 | N120: 1.889690552 | O120: 2.230555556 | P120: 1.541666667 | Q120: 1.733141391 | R120: 0 | S120: 2.172418238 | T120: 2.746902331 | U120: 1.830235688 | V120: 1.394407985 | W120: 1.731181395 | X120: 0.05208333333 | Y120: 0.05208333333 | Z120: 1.419621516 | AA120: 1.419621516 | AB120: 0 | AC120: 2.973929973 | AD120: 1.029115952 | AE120: 0 | AF120: 0 | AG120: 2.053425481 | AH120: 2.781448653 | AI120: 1.810538889 | AJ120: 1.695407653 | AK120: 0.6375 | AL120: 1.031715572 | AM120: 1.845630013
D121: 2017 Rank | H121: =INDIRECT(H$4&"!E122") -> 25 | I121: =INDIRECT(I$4&"!E122") -> 14 | J121: 21 | K121: =INDIRECT(K$4&"!E122") -> 19 | L121: 20 | M121: 18 | N121: 7 | O121: 4 | P121: 13 | Q121: 10 | R121: 28 | S121: 5 | T121: 3 | U121: 8 | V121: 17 | W121: 11 | X121: 26 | Y121: 26 | Z121: 15 | AA121: 15 | AB121: 28 | AC121: 1 | AD121: 23 | AE121: 28 | AF121: 28 | AG121: 6 | AH121: 2 | AI121: 9 | AJ121: 12 | AK121: 25 | AL121: 22 | AM121: 8
D122: 2018 Overall Score | H122: =H6 -> 0 | I122: 1.343992424 | J122: 0.2287208081 | K122: 1.031678972 | L122: 1.407370503 | M122: 1.657955967 | N122: 2.217965098 | O122: 2.127604167 | P122: 0.10074 | Q122: 2.113488529 | R122: 0.1157180608 | S122: 2.243866177 | T122: 3.1309375 | U122: 2.5509375 | V122: 1.333295212 | W122: 2.76126027 | X122: 0.1793156505 | Y122: 0.4393724731 | Z122: 1.855560529 | AA122: 0.1187576923 | AB122: 1.255940299 | AC122: 1.694243778 | AD122: 0.2593867646 | AE122: 0 | AF122: 0 | AG122: 1.47304471 | AH122: 0.5451730149 | AI122: 1.009711799 | AJ122: 1.709088558 | AK122: 0.2369791667 | AL122: 0.8685600063 | AM122: 0.6640255285
D123: 2018 Rank | H123: =_xlfn.RANK.AVG(H122,$H$122:$AM$122,0) -> 31 | I123: 14 | J123: 25 | K123: 17 | L123: 13 | M123: 11 | N123: 5 | O123: 6 | P123: 29 | Q123: 7 | R123: 28 | S123: 4 | T123: 1 | U123: 3 | V123: 15 | W123: 2 | X123: 26 | Y123: 22 | Z123: 8 | AA123: 27 | AB123: 16 | AC123: 10 | AD123: 23 | AE123: 31 | AF123: 31 | AG123: 12 | AH123: 21 | AI123: 18 | AJ123: 9 | AK123: 24 | AL123: 19 | AM123: 20
D124: Rank change 2017 to 2018 | H124: =H123-H121 -> 6 | I124: =I123-I121 -> 0 | J124: 4 | K124: =K123-K121 -> -2 | L124: -7 | M124: -7 | N124: -2 | O124: 2 | P124: 16 | Q124: -3 | R124: 0 | S124: -1 | T124: -2 | U124: -5 | V124: -2 | W124: -9 | X124: 0 | Y124: -4 | Z124: -7 | AA124: 12 | AB124: -12 | AC124: 9 | AD124: 0 | AE124: 3 | AF124: 3 | AG124: 6 | AH124: 19 | AI124: 9 | AJ124: -3 | AK124: -1 | AL124: -3 | AM124: 12

Sheet RE Index | Results Summary
A2: Component 1 | B2: Enabling environment for renewable energy (RE) investments*
A3: Component 2 | B3: Existing renewable generation
A4: Component 3 | B4: Planned renewable generation
A5: Component 4 | B5: Electric Mobility
B8: Overall score
B9: Overall Score | D9: Enabling environment for renewable energy (RE) investments | G9: Existing renewable generation | J9: Planned renewable generation | M9: Electric Mobility
A10: Weights | B10: =SUM(D10:O10) -> 1 | C10: Rank | D10: ='RE Index | Ranking inputs'!G8 -> 0.3 | F10: Rank | G10: ='RE Index | Ranking inputs'!G26 -> 0.3 | I10: Rank | J10: ='RE Index | Ranking inputs'!F34 -> 0.3 | L10: Rank | M10: ='RE Index | Ranking inputs'!G42 -> 0.1 | O10: Rank
A11: Dominica | B11: =HLOOKUP(A11,'RE Index | Ranking inputs'!$H$5:$AM$7,2,FALSE) -> 3.1309375 | C11: =RANK( B11, $B$11:$B$33) -> 1 | D11: =IF(ISNUMBER(E11),E11*$D$10,"") -> 0.9609375 | E11: =HLOOKUP(A11,'RE Index | Ranking inputs'!$H$5:$AM$8,4,FALSE) -> 3.203125 | F11: =RANK( E11, $E$11:$E$33) -> 9 | G11: =IF(ISNUMBER(H11),H11*$G$10,"") -> 0.42 | H11: =HLOOKUP(A11,'RE Index | Ranking inputs'!$H$5:$AM$26,22,FALSE) -> 1.4 | I11: =RANK(H11,$H$11:$H$33) -> 4 | J11: =IF(ISNUMBER(K11),K11*$J$10,"") -> 1.5 | K11: =HLOOKUP(A11,'RE Index | Ranking inputs'!$H$5:$AM$34,30,FALSE) -> 5 | L11: =RANK(K11,$K$11:$K$33) -> 1 | M11: =IF(ISNUMBER(N11),N11*$M$10,"") -> 0.25 | N11: =HLOOKUP(A11,'RE Index | Ranking inputs'!$H$5:$AM$42,38,FALSE) -> 2.5 | O11: =RANK(N11,$N$11:$N$33) -> 3
A12: Guadeloupe | B12: =HLOOKUP(A12,'RE Index | Ranking inputs'!$H$5:$AM$7,2,FALSE) -> 2.76126027 | C12: 2 | D12: 1.4296875 | E12: =HLOOKUP(A12,'RE Index | Ranking inputs'!$H$5:$AM$8,4,FALSE) -> 4.765625 | F12: 1 | G12: 0.3186619718 | H12: =HLOOKUP(A12,'RE Index | Ranking inputs'!$H$5:$AM$26,22,FALSE) -> 1.062206573 | I12: 6 | J12: 0.5129107981 | K12: =HLOOKUP(A12,'RE Index | Ranking inputs'!$H$5:$AM$34,30,FALSE) -> 1.70970266 | L12: 7 | M12: 0.5 | N12: =HLOOKUP(A12,'RE Index | Ranking inputs'!$H$5:$AM$42,38,FALSE) -> 5 | O12: 1
A13: Dominican Republic | B13: =HLOOKUP(A13,'RE Index | Ranking inputs'!$H$5:$AM$7,2,FALSE) -> 2.5509375 | C13: 3 | D13: 0.8109375 | E13: =HLOOKUP(A13,'RE Index | Ranking inputs'!$H$5:$AM$8,4,FALSE) -> 2.703125 | F13: 15 | G13: 0.24 | H13: =HLOOKUP(A13,'RE Index | Ranking inputs'!$H$5:$AM$26,22,FALSE) -> 0.8 | I13: 9 | J13: 1.5 | K13: =HLOOKUP(A13,'RE Index | Ranking inputs'!$H$5:$AM$34,30,FALSE) -> 5 | L13: 1 | M13: 0 | N13: =HLOOKUP(A13,'RE Index | Ranking inputs'!$H$5:$AM$42,38,FALSE) -> 0 | O13: 7
A14: Curaҫao | B14: =HLOOKUP(A14,'RE Index | Ranking inputs'!$H$5:$AM$7,2,FALSE) -> 2.243866177 | C14: 4 | D14: 1.40625 | E14: =HLOOKUP(A14,'RE Index | Ranking inputs'!$H$5:$AM$8,4,FALSE) -> 4.6875 | F14: 2 | G14: 0.4118897904 | H14: =HLOOKUP(A14,'RE Index | Ranking inputs'!$H$5:$AM$26,22,FALSE) -> 1.372965968 | I14: 5 | J14: 0.4257263866 | K14: =HLOOKUP(A14,'RE Index | Ranking inputs'!$H$5:$AM$34,30,FALSE) -> 1.419087955 | L14: 8 | M14: 0 | N14: =HLOOKUP(A14,'RE Index | Ranking inputs'!$H$5:$AM$42,38,FALSE) -> 0 | O14: 7
A15: Belize | B15: =HLOOKUP(A15,'RE Index | Ranking inputs'!$H$5:$AM$7,2,FALSE) -> 2.217965098 | C15: 5 | D15: 1.0078125 | E15: =HLOOKUP(A15,'RE Index | Ranking inputs'!$H$5:$AM$8,4,FALSE) -> 3.359375 | F15: 8 | G15: 0.8129681362 | H15: =HLOOKUP(A15,'RE Index | Ranking inputs'!$H$5:$AM$26,22,FALSE) -> 2.709893787 | I15: 1 | J15: 0.3971844615 | K15: =HLOOKUP(A15,'RE Index | Ranking inputs'!$H$5:$AM$34,30,FALSE) -> 1.323948205 | L15: 10 | M15: 0 | N15: =HLOOKUP(A15,'RE Index | Ranking inputs'!$H$5:$AM$42,38,FALSE) -> 0 | O15: 7
A16: Bonaire | B16: =HLOOKUP(A16,'RE Index | Ranking inputs'!$H$5:$AM$7,2,FALSE) -> 2.127604167 | C16: 6 | D16: 1.3359375 | E16: =HLOOKUP(A16,'RE Index | Ranking inputs'!$H$5:$AM$8,4,FALSE) -> 4.453125 | F16: 5 | G16: 0.625 | H16: =HLOOKUP(A16,'RE Index | Ranking inputs'!$H$5:$AM$26,22,FALSE) -> 2.083333333 | I16: 3 | J16: 0.1666666667 | K16: =HLOOKUP(A16,'RE Index | Ranking inputs'!$H$5:$AM$34,30,FALSE) -> 0.5555555556 | L16: 19 | M16: 0 | N16: =HLOOKUP(A16,'RE Index | Ranking inputs'!$H$5:$AM$42,38,FALSE) -> 0 | O16: 7
A17: Cayman Islands | B17: =HLOOKUP(A17,'RE Index | Ranking inputs'!$H$5:$AM$7,2,FALSE) -> 2.113488529 | C17: 7 | D17: 1.3828125 | E17: =HLOOKUP(A17,'RE Index | Ranking inputs'!$H$5:$AM$8,4,FALSE) -> 4.609375 | F17: 4 | G17: 0.02156952731 | H17: =HLOOKUP(A17,'RE Index | Ranking inputs'!$H$5:$AM$26,22,FALSE) -> 0.07189842435 | I17: 16 | J17: 0.2091065015 | K17: =HLOOKUP(A17,'RE Index | Ranking inputs'!$H$5:$AM$34,30,FALSE) -> 0.6970216715 | L17: 14 | M17: 0.5 | N17: =HLOOKUP(A17,'RE Index | Ranking inputs'!$H$5:$AM$42,38,FALSE) -> 5 | O17: 1
A18: Jamaica | B18: =HLOOKUP(A18,'RE Index | Ranking inputs'!$H$5:$AM$7,2,FALSE) -> 1.855560529 | C18: 8 | D18: 1.0359375 | E18: =HLOOKUP(A18,'RE Index | Ranking inputs'!$H$5:$AM$8,4,FALSE) -> 3.453125 | F18: 7 | G18: 0.18 | H18: =HLOOKUP(A18,'RE Index | Ranking inputs'!$H$5:$AM$26,22,FALSE) -> 0.6 | I18: 12 | J18: 0.3896230285 | K18: =HLOOKUP(A18,'RE Index | Ranking inputs'!$H$5:$AM$34,30,FALSE) -> 1.298743428 | L18: 11 | M18: 0.25 | N18: =HLOOKUP(A18,'RE Index | Ranking inputs'!$H$5:$AM$42,38,FALSE) -> 2.5 | O18: 3
A19: Suriname | B19: =HLOOKUP(A19,'RE Index | Ranking inputs'!$H$5:$AM$7,2,FALSE) -> 1.709088558 | C19: 9 | D19: 0.890625 | E19: =HLOOKUP(A19,'RE Index | Ranking inputs'!$H$5:$AM$8,4,FALSE) -> 2.96875 | F19: 12 | G19: 0.6513939313 | H19: =HLOOKUP(A19,'RE Index | Ranking inputs'!$H$5:$AM$26,22,FALSE) -> 2.171313104 | I19: 2 | J19: 0.1670696267 | K19: =HLOOKUP(A19,'RE Index | Ranking inputs'!$H$5:$AM$34,30,FALSE) -> 0.5568987556 | L19: 18 | M19: 0 | N19: =HLOOKUP(A19,'RE Index | Ranking inputs'!$H$5:$AM$42,38,FALSE) -> 0 | O19: 7
A20: Nevis | B20: =HLOOKUP(A20,'RE Index | Ranking inputs'!$H$5:$AM$7,2,FALSE) -> 1.694243778 | C20: 10 | D20: 0.84375 | E20: =HLOOKUP(A20,'RE Index | Ranking inputs'!$H$5:$AM$8,4,FALSE) -> 2.8125 | F20: 13 | G20: 0.2301472853 | H20: =HLOOKUP(A20,'RE Index | Ranking inputs'!$H$5:$AM$26,22,FALSE) -> 0.7671576178 | I20: 10 | J20: 0.6203464927 | K20: =HLOOKUP(A20,'RE Index | Ranking inputs'!$H$5:$AM$34,30,FALSE) -> 2.067821642 | L20: 5 | M20: 0 | N20: =HLOOKUP(A20,'RE Index | Ranking inputs'!$H$5:$AM$42,38,FALSE) -> 0 | O20: 7
A21: Bermuda | B21: =HLOOKUP(A21,'RE Index | Ranking inputs'!$H$5:$AM$7,2,FALSE) -> 1.657955967 | C21: 11 | D21: 1.40625 | E21: =HLOOKUP(A21,'RE Index | Ranking inputs'!$H$5:$AM$8,4,FALSE) -> 4.6875 | F21: 2 | G21: 0.07520239847 | H21: =HLOOKUP(A21,'RE Index | Ranking inputs'!$H$5:$AM$26,22,FALSE) -> 0.2506746616 | I21: 13 | J21: 0.1765035681 | K21: =HLOOKUP(A21,'RE Index | Ranking inputs'!$H$5:$AM$34,30,FALSE) -> 0.5883452269 | L21: 17 | M21: 0 | N21: =HLOOKUP(A21,'RE Index | Ranking inputs'!$H$5:$AM$42,38,FALSE) -> 0 | O21: 7
A22: St. Lucia | B22: =HLOOKUP(A22,'RE Index | Ranking inputs'!$H$5:$AM$7,2,FALSE) -> 1.47304471 | C22: 12 | D22: 0.1171875 | E22: =HLOOKUP(A22,'RE Index | Ranking inputs'!$H$5:$AM$8,4,FALSE) -> 0.390625 | F22: 20 | G22: 0.1878381086 | H22: =HLOOKUP(A22,'RE Index | Ranking inputs'!$H$5:$AM$26,22,FALSE) -> 0.6261270287 | I22: 11 | J22: 0.918019101 | K22: =HLOOKUP(A22,'RE Index | Ranking inputs'!$H$5:$AM$34,30,FALSE) -> 3.06006367 | L22: 4 | M22: 0.25 | N22: =HLOOKUP(A22,'RE Index | Ranking inputs'!$H$5:$AM$42,38,FALSE) -> 2.5 | O22: 3
A23: Barbados | B23: =HLOOKUP(A23,'RE Index | Ranking inputs'!$H$5:$AM$7,2,FALSE) -> 1.407370503 | C23: 13 | D23: 0.9375 | E23: =HLOOKUP(A23,'RE Index | Ranking inputs'!$H$5:$AM$8,4,FALSE) -> 3.125 | F23: 10 | G23: 0.02707344477 | H23: =HLOOKUP(A23,'RE Index | Ranking inputs'!$H$5:$AM$26,22,FALSE) -> 0.09024481591 | I23: 15 | J23: 0.1927970585 | K23: =HLOOKUP(A23,'RE Index | Ranking inputs'!$H$5:$AM$34,30,FALSE) -> 0.6426568616 | L23: 16 | M23: 0.25 | N23: =HLOOKUP(A23,'RE Index | Ranking inputs'!$H$5:$AM$42,38,FALSE) -> 2.5 | O23: 3
A24: Antigua & Barbuda | B24: =HLOOKUP(A24,'RE Index | Ranking inputs'!$H$5:$AM$7,2,FALSE) -> 1.343992424 | C24: 14 | D24: 1.3125 | E24: =HLOOKUP(A24,'RE Index | Ranking inputs'!$H$5:$AM$8,4,FALSE) -> 4.375 | F24: 6 | G24: 0.015 | H24: =HLOOKUP(A24,'RE Index | Ranking inputs'!$H$5:$AM$26,22,FALSE) -> 0.05 | I24: 18 | J24: 0.01649242424 | K24: =HLOOKUP(A24,'RE Index | Ranking inputs'!$H$5:$AM$34,30,FALSE) -> 0.05497474747 | L24: 21 | M24: 0 | N24: =HLOOKUP(A24,'RE Index | Ranking inputs'!$H$5:$AM$42,38,FALSE) -> 0 | O24: 7
A25: Grenada | B25: =HLOOKUP(A25,'RE Index | Ranking inputs'!$H$5:$AM$7,2,FALSE) -> 1.333295212 | C25: 15 | D25: 0.9140625 | E25: =HLOOKUP(A25,'RE Index | Ranking inputs'!$H$5:$AM$8,4,FALSE) -> 3.046875 | F25: 11 | G25: 0.01075756128 | H25: =HLOOKUP(A25,'RE Index | Ranking inputs'!$H$5:$AM$26,22,FALSE) -> 0.03585853759 | I25: 20 | J25: 0.4084751504 | K25: =HLOOKUP(A25,'RE Index | Ranking inputs'!$H$5:$AM$34,30,FALSE) -> 1.361583835 | L25: 9 | M25: 0 | N25: =HLOOKUP(A25,'RE Index | Ranking inputs'!$H$5:$AM$42,38,FALSE) -> 0 | O25: 7
A26: Montserrat | B26: =HLOOKUP(A26,'RE Index | Ranking inputs'!$H$5:$AM$7,2,FALSE) -> 1.255940299 | C26: 16 | D26: 0.046875 | E26: =HLOOKUP(A26,'RE Index | Ranking inputs'!$H$5:$AM$8,4,FALSE) -> 0.15625 | F26: 22 | G26: 0 | H26: =HLOOKUP(A26,'RE Index | Ranking inputs'!$H$5:$AM$26,22,FALSE) -> 0 | I26: 21 | J26: 1.209065299 | K26: =HLOOKUP(A26,'RE Index | Ranking inputs'!$H$5:$AM$34,30,FALSE) -> 4.030217663 | L26: 3 | M26: 0 | N26: =HLOOKUP(A26,'RE Index | Ranking inputs'!$H$5:$AM$42,38,FALSE) -> 0 | O26: 7
A27: St. Kitts | B27: =HLOOKUP(A27,'RE Index | Ranking inputs'!$H$5:$AM$7,2,FALSE) -> 1.009711799 | C27: 18 | D27: 0.4640625 | E27: =HLOOKUP(A27,'RE Index | Ranking inputs'!$H$5:$AM$8,4,FALSE) -> 1.546875 | F27: 18 | G27: 0.01885428571 | H27: =HLOOKUP(A27,'RE Index | Ranking inputs'!$H$5:$AM$26,22,FALSE) -> 0.06284761905 | I27: 17 | J27: 0.5267950133 | K27: =HLOOKUP(A27,'RE Index | Ranking inputs'!$H$5:$AM$34,30,FALSE) -> 1.755983378 | L27: 6 | M27: 0 | N27: =HLOOKUP(A27,'RE Index | Ranking inputs'!$H$5:$AM$42,38,FALSE) -> 0 | O27: 7
A28: The Bahamas | B28: =HLOOKUP(A28,'RE Index | Ranking inputs'!$H$5:$AM$7,2,FALSE) -> 1.031678972 | C28: 17 | D28: 0.834375 | E28: =HLOOKUP(A28,'RE Index | Ranking inputs'!$H$5:$AM$8,4,FALSE) -> 2.78125 | F28: 14 | G28: 0 | H28: =HLOOKUP(A28,'RE Index | Ranking inputs'!$H$5:$AM$26,22,FALSE) -> 0 | I28: 21 | J28: 0.1973039724 | K28: =HLOOKUP(A28,'RE Index | Ranking inputs'!$H$5:$AM$34,30,FALSE) -> 0.6576799079 | L28: 15 | M28: 0 | N28: =HLOOKUP(A28,'RE Index | Ranking inputs'!$H$5:$AM$42,38,FALSE) -> 0 | O28: 7
A29: Turks and Caicos Islands | B29: =HLOOKUP(A29,'RE Index | Ranking inputs'!$H$5:$AM$7,2,FALSE) -> 0.8685600063 | C29: 19 | D29: 0.515625 | E29: =HLOOKUP(A29,'RE Index | Ranking inputs'!$H$5:$AM$8,4,FALSE) -> 1.71875 | F29: 17 | G29: 0.015 | H29: =HLOOKUP(A29,'RE Index | Ranking inputs'!$H$5:$AM$26,22,FALSE) -> 0.05 | I29: 18 | J29: 0.3379350063 | K29: =HLOOKUP(A29,'RE Index | Ranking inputs'!$H$5:$AM$34,30,FALSE) -> 1.126450021 | L29: 12 | M29: 0 | N29: =HLOOKUP(A29,'RE Index | Ranking inputs'!$H$5:$AM$42,38,FALSE) -> 0 | O29: 7
A30: U.S. Virgin Islands | B30: =HLOOKUP(A30,'RE Index | Ranking inputs'!$H$5:$AM$7,2,FALSE) -> 0.6640255285 | C30: 20 | D30: 0.6140625 | E30: =HLOOKUP(A30,'RE Index | Ranking inputs'!$H$5:$AM$8,4,FALSE) -> 2.046875 | F30: 16 | G30: 0.03424779341 | H30: =HLOOKUP(A30,'RE Index | Ranking inputs'!$H$5:$AM$26,22,FALSE) -> 0.1141593114 | I30: 14 | J30: 0.01571523507 | K30: =HLOOKUP(A30,'RE Index | Ranking inputs'!$H$5:$AM$34,30,FALSE) -> 0.05238411691 | L30: 22 | M30: 0 | N30: =HLOOKUP(A30,'RE Index | Ranking inputs'!$H$5:$AM$42,38,FALSE) -> 0 | O30: 7
A31: St. Vincent and the Grenadines | B31: =HLOOKUP(A31,'RE Index | Ranking inputs'!$H$5:$AM$7,2,FALSE) -> 0.5451730149 | C31: 21 | D31: 0.046875 | E31: =HLOOKUP(A31,'RE Index | Ranking inputs'!$H$5:$AM$8,4,FALSE) -> 0.15625 | F31: 22 | G31: 0.255 | H31: =HLOOKUP(A31,'RE Index | Ranking inputs'!$H$5:$AM$26,22,FALSE) -> 0.85 | I31: 7 | J31: 0.2432980149 | K31: =HLOOKUP(A31,'RE Index | Ranking inputs'!$H$5:$AM$34,30,FALSE) -> 0.8109933831 | L31: 13 | M31: 0 | N31: =HLOOKUP(A31,'RE Index | Ranking inputs'!$H$5:$AM$42,38,FALSE) -> 0 | O31: 7
A32: Haiti | B32: =HLOOKUP(A32,'RE Index | Ranking inputs'!$H$5:$AM$7,2,FALSE) -> 0.4393724731 | C32: 22 | D32: 0.196875 | E32: =HLOOKUP(A32,'RE Index | Ranking inputs'!$H$5:$AM$8,4,FALSE) -> 0.65625 | F32: 19 | G32: 0.2424974731 | H32: =HLOOKUP(A32,'RE Index | Ranking inputs'!$H$5:$AM$26,22,FALSE) -> 0.8083249102 | I32: 8 | J32: 0 | K32: =HLOOKUP(A32,'RE Index | Ranking inputs'!$H$5:$AM$34,30,FALSE) -> 0 | L32: 23 | M32: 0 | N32: =HLOOKUP(A32,'RE Index | Ranking inputs'!$H$5:$AM$42,38,FALSE) -> 0 | O32: 7
A33: Trinidad and Tobago | B33: =HLOOKUP(A33,'RE Index | Ranking inputs'!$H$5:$AM$7,2,FALSE) -> 0.2369791667 | C33: 23 | D33: 0.0703125 | E33: =HLOOKUP(A33,'RE Index | Ranking inputs'!$H$5:$AM$8,4,FALSE) -> 0.234375 | F33: 21 | G33: 0 | H33: =HLOOKUP(A33,'RE Index | Ranking inputs'!$H$5:$AM$26,22,FALSE) -> 0 | I33: 21 | J33: 0.1666666667 | K33: =HLOOKUP(A33,'RE Index | Ranking inputs'!$H$5:$AM$34,30,FALSE) -> 0.5555555556 | L33: 19 | M33: 0 | N33: =HLOOKUP(A33,'RE Index | Ranking inputs'!$H$5:$AM$42,38,FALSE) -> 0 | O33: 7
AC57: Legal & Regulatory Framework
AC58: Strategic plan for RE
AC59: Specific target for RE
AC60: IRP within the last 3 years
AC61: ≥ 6 months to secure O-T-A
AC62: # of Utility Scale RE Projects
AC63: Capacity (KW)
AC64: Investment (M USD)

Sheet Antigua_Barbuda
B1: Antigua & Barbuda
C2: Overall Indicator
C3: Enabling Environment for Renewable Energy (RE) Investments | E3: Consolidated Survey Response | F3: Winston Whyte - APUA | G3: Brian Challenger - Minister of Public Utilities
C4: Government - Renewable Energy Strategy | E4: Y/N
B5: 1 | C5: Does your country have a strategic plan to develop renewble energy?
C6: Which of the following renewable generation options is includd in you country's strategic plan to develop renewable energy? | E6: =IF(B6<>0,IF(ISBLANK(F6),"NA",F6)," ") ->  | F6: Solar PV, onshore wind | G6: Solar PV, onshore wind, WTE
B7: 2 | C7: Does your country have a specific target for renewable energy? | E7: =IF(B7<>0,IF(ISBLANK(F7),"NA",F7)," ") -> Yes | F7: Yes | G7: Yes
C8: If yes, what is the target and target year? | F8: 20% by 2020 | G8: 50MW by 2030
C9: What is the current breakdown of your country's energy mix? | F9: 1% RE, 99% fossil fuel | G9: 10% RE capacity
B10: 3 | C10: Does your country have an Integrated Resource Plan (IRP) that was produced within the last three years? | E10: No | F10: No | G10: No
C11: Utilities | E11: Y/N
B12: 1 | C12: When planning generation expansion, does the utility consider RE options? | E12: =IF(B12<>0,IF(ISBLANK(G12),"NA",G12)," ") -> Yes | F12: No | G12: Yes
B13: 2 | C13: Can the utility safely recover RE investments through tariffs like it can recover fossil fuel costs? | E13: =IF(B13<>0,IF(ISBLANK(G13),"NA",G13)," ") -> Yes | F13: No | G13: Yes
B14: 3 | C14: Are there clear, specific planning and permitting processes and rules in place for developing RE? | E14: Yes | F14: No | G14: Yes
C15: On average, how long does it take for the power utility to get investments in RE projects approved by the regulatory authority (or relevant entity) fror recovery through tariffs? | G15: Yes
C16: IPPs | E16: Y/N
B17: 1 | C17: Can the utility safely recover purchases of RE from third parties, just as it recovers fossil fuel costs? | E17: =IF(B17<>0,IF(ISBLANK(G17),"NA",G17)," ") -> Yes | F17: No | G17: Yes
C18: How long did it take to get your off-take agreement? | E18: =IF(B18<>0,IF(ISBLANK(G18),"NA",G18)," ") ->  | F18: There is no contractual arrangement and therefore no targets to determine a timeline
B19: 2 | C19: Are there workable precedents or rules for PPA terms and grid operation rules? | E19: Yes | F19: No | G19: Yes
B20: 3 | C20: Are there clear and effective licensing processes and requirements in place for IPPs? | E20: No | F20: Yes | G20: No
B21: 4 | C21: Does the utility have an obligation to purchase from IPPs when it is cheaper than generating the power itself? | E21: No | F21: Yes | G21: No
B22: 5 | C22: Does the PPA have any take-or-pay arrangements? | E22: No | F22: No | G22: No
C23: Distributed generation | E23: Y/N
B24: 1 | C24: Do you have a registry or database of distributed generation? | E24: Yes | F24: Yes
C25: What was the number of existing distributed scale RE systems in 2018? | F25: 105
C26: Is there an aggregate maximum capacity for distributed generation? | F26: No
C27: What is the total installed capacity from renewable distributed generation in your country? | F27: 1.5MW
C28: What was the total generation from existing distributed scale RE systems in 2018?
B29: 2 | C29: Is there a standard arrangement in place for customers to sell electricity to the utility at a reasonable price, for a reasonable timeframe, and with a clear interconnection agreement? | E29: Yes | F29: Yes
A31: 2 | C31: Existing renewable generation
C32: What is the number of existing Utility-Scale RE projects? | E32: =IF(B32<>0,IF(ISBLANK(F32),"NA",F32)," ") ->  | F32: 2
B33: 1 | C33: What was the total electricity generated in 2018? (MWh) | E33: NA
B34: 1 | C34: What was the total electricity generated from Utility Scale RE projects in 2018? (MWh) | E34: ='Jurisdictions | Generation'!E4*1% -> 3300
C35: Please provide as much information as possible for exisitng RE projects in the box below as: - Project Name - Developer - Offtaker - Renewable Energy Technology Type - Start of Commercial Operation (Year) - Estimated Capacity Factor (in %) OR Estimated Annual Production (in MWh) - Installed Capacity (MW) - Length of PPA | F35: Project Name: 10 MegaWatt Solar Project Developer: PV Energy Offtaker: APUA RE Technology Type: Solar Start of Commercial Operation: 2018 Estimated Capacity Factor: 5475 MWh Installed Capacity: 3 MW Length of PPA: N/A
A37: 3 | C37: Planned Utility-Scale Renewable Energy Projects
B38: 1 | C38: Does your country have an estimate of planned installed capacity expected to come online from-utility scale RE projects? | E38: =IF(B38<>0,IF(ISBLANK(F38),"NA",F38)," ") -> NA
C39: How much installed capacity from RE is expected to come online in the next 3 years?
B40: 2 | C40: How much renewable energy generation is expected to come online in the next 3 years? | E40: NA
B41: 3 | C41: Is climate resilience incorporated in your IRP or national policy? | E41: NA
C42: Please provide as much information as possible for RE projects currently under development in the box below as: - Project Name - Developer - Offtaker - Renewable Energy Technology Type - Start of Commercial Operation (Year) - Estimated Capacity Factor (in %) OR Estimated Annual Production (in MWh) - Installed Capacity (MW) - Length of PPA
A44: 4 | C44: Electric Mobility
B45: 1 | C45: Does your country have policies in place or draft legislation to promote the uptake of electric mobility? | E45: =IF(B45<>0,IF(ISBLANK(F45),"NA",F45)," ") -> NA
B46: 2 | C46: Does your country have specific targets for the uptake of electric vehicles? | E46: NA
C47: What is the target and target year?
C48: How many electric cars are currently in your country?
C49: How many charging stations are in your country?
C52: Descriptive CREF Index Survey
C53: Enabling Environment for Renewable Energy (RE) Investments
C54: Renewable energy strategy
C55: Which of the rollowing renewable generation options is included in your country's strategic plan to develop renewable energy? - Solar PV - Offshore wind - Biomass - Waste to energy - Hydro -Geothermal - Other | E55: Solar PV, Onshore wind, WTE | F55: =F6 -> Solar PV, onshore wind | G55: =G6 -> Solar PV, onshore wind, WTE
C56: What is the target and target year? | E56: =F56 -> 20% by 2020 | F56: =F8 -> 20% by 2020 | G56: =G8 -> 50MW by 2030
C57: What is the current breakdown of your country's energy mix? | E57: =E9 ->  | F57: =F9 -> 1% RE, 99% fossil fuel | G57: =G9 -> 10% RE capacity
C58: Utilities
C59: On average, how long does it take for the power utility to get investments in RE projects approved by the regulatory authority 9or the relevant entity) for recovery through tariffs? | E59: =E15 ->  | F59: =F15 -> 0 | G59: =G15 -> Yes
C60: IPPs
C61: How long did it take to get your off-take agreement? | E61: =E18 ->  | F61: =F18 -> There is no contractual arrangement and therefore no targets to determine a timeline | G61: =G18 -> 0
C62: Distributed Generation
C63: What is the number of exisiting distributed scale RE systems in 2018? | E63: =F63 -> 105 | F63: =F25 -> 105 | G63: =G25 -> 0
C64: What is the total installed capacity from renewable distributed generation in your country? | E64: =F64 -> 1.5MW | F64: =F27 -> 1.5MW | G64: =G27 -> 0
C65: What was the total generation from exisitng distributed scale RE systems in 2018? | E65: =E28 ->  | F65: =F28 -> 0 | G65: =G28 -> 0
C66: Existing renewable generation
C67: Existing Utility-Scale Renewable Energy Projects
C68: What is the number of existing utility-scale RE projects? | E68: =F68 -> 2 | F68: =F32 -> 2 | G68: 0
C69: What was the total electricity generated in 2018 (MWh)? | E69: =E33 -> NA | F69: 0 | G69: 0
C70: What was the total electricity generated from utility-scale RE projects in 2018 (MWh)? | E70: =E34 -> 3300 | F70: 0 | G70: 0
C71: Please provide as much information as possible for exisitng RE projects in the box below as: - Project Name - Developer - Offtaker - Renewable Energy Technology Type - Start of Commercial Operation (Year) - Estimated Capacity Factor (in %) OR Estimated Annual Production (in MWh) - Installed Capacity (MW) - Length of PPA | E71: =F71 -> Project Name: 10 MegaWatt Solar Project Developer: PV Energy Offtaker: APUA RE Technology Type: Solar Start of Commercial Operation: 2018 Estimated Capacity Factor: 5475 MWh Installed Capacity: 3 MW Length of PPA: N/A | F71: Project Name: 10 MegaWatt Solar Project Developer: PV Energy Offtaker: APUA RE Technology Type: Solar Start of Commercial Operation: 2018 Estimated Capacity Factor: 5475 MWh Installed Capacity: 3 MW Length of PPA: N/A | G71: 0
C72: Planned renewable generation
C73: Potential Utility-Scale Renewable Energy Projects
C74: How much installed capacity from RE is expected to come online in the next 3 years? | E74: =E39 ->  | F74: =F39 -> 0 | G74: =G39 -> 0
C75: How much renewable energy generation is expected to come online in the next 3 years? | F75: =F40 -> 0 | G75: =G40 -> 0
C76: Please provide as much information as possible for RE projects currently under development in the box below as: - Project Name - Developer - Offtaker - Renewable Energy Technology Type - Start of Commercial Operation (Year) - Estimated Capacity Factor (in %) OR Estimated Annual Production (in MWh) - Installed Capacity (MW) - Length of PPA | E76: =E42 ->  | F76: =F42 -> 0 | G76: =G42 -> 0
C77: Electric Mobility
C78: What is the target and target year? | E78: =E47 ->  | F78: =F47 -> 0 | G78: =G47 -> 0
C79: How many electric cars are currently in your country? | E79: =E48 ->  | F79: 0 | G79: =G48 -> 0
C80: How many charging stations are in your country? | F80: 0 | G80: =G49 -> 0
C83: Improvement Year-on-Year
C84: Enabling environment for renewable energy investments | D84: Change | E84: =IF(ISERR(E91-E90),"",E91-E90) -> 0.3125
C85: 2012 Score | D85: 0 to 5 | E85: 1.666666667
C86: 2013 Score | D86: 0 to 5 | E86: 1.666666667
C87: 2014 Score | D87: 0 to 5 | E87: 2
C88: 2015 Score | D88: 0 to 5 | E88: 2
C89: 2016 Score | D89: 0 to 5 | E89: 3.666666667
C90: 2017 Score | D90: 0 to 5 | E90: 4.0625
C91: 2018 Score | D91: 0 to 5 | E91: =VLOOKUP(C84,'RE Index | Ranking inputs'!$D$8:$AM$44,MATCH($B$1,'RE Index | Ranking inputs'!$D$5:$AM$5,0),0) -> 4.375
C92: Existing renewable generation | D92: Change | E92: =IF(ISERR(E99-E98),"",E99-E98) -> -0.2604274611
C93: 2012 Score | D93: 0 to 5 | E93: 0
C94: 2013 Score | D94: 0 to 5 | E94: 0
C95: 2014 Score | D95: 0 to 5 | E95: 0.006991575
C96: 2015 Score | D96: 0 to 5 | E96: 0.00560459684
C97: 2016 Score | D97: 0 to 5 | E97: 0
C98: 2017 Score | D98: 0 to 5 | E98: 0.3104274611
C99: 2018 Score | D99: 0 to 5 | E99: =VLOOKUP(C92,'RE Index | Ranking inputs'!$D$8:$AM$44,MATCH($B$1,'RE Index | Ranking inputs'!$D$5:$AM$5,0),0) -> 0.05
C100: Planned renewable generation | D100: Change | E100: =IF(ISERR(E107-E106),"",E107-E106) -> -0.1834159871
C101: 2012 Score | D101: 0 to 5 | E101: 0
C102: 2013 Score | D102: 0 to 5 | E102: 0
C103: 2014 Score | D103: 0 to 5 | E103: 0
C104: 2015 Score | D104: 0 to 5 | E104: 0
C105: 2016 Score | D105: 0 to 5 | E105: 0
C106: 2017 Score | D106: 0 to 5 | E106: 0.2383907345
C107: 2018 Score | D107: 0 to 5 | E107: =VLOOKUP(C100,'RE Index | Ranking inputs'!$D$8:$AM$44,MATCH($B$1,'RE Index | Ranking inputs'!$D$5:$AM$5,0),0) -> 0.05497474747
C108: Electric Mobility | D108: Change | E108: N/A
C109: 2018 Score | D109: 0 to 5 | E109: =VLOOKUP(C108,'RE Index | Ranking inputs'!$D$8:$AM$44,MATCH($B$1,'RE Index | Ranking inputs'!$D$5:$AM$5,0),0) -> 0
C110: Overall Score Year-on-Year | D110: Change | E110: =E123-E121 -> -0.193113641
C111: 2012 Overall Score | E111: 0.55
C112: 2012 Rank | E112: 19
C113: 2013 Overall Score | E113: 0.5555555556
C114: 2013 Rank | E114: 26
C115: 2014 Overall Score | E115: 0.6689971917
C116: 2014 Rank | E116: 25
C117: 2015 Overall Score | E117: 0.6685348656
C118: 2015 Rank | E118: 27
C119: 2016 Overall Score | E119: 1.222222222
C120: 2016 Rank | E120: 17
C121: 2017 Overall Score | E121: 1.537106065
C122: 2017 Rank | E122: 14
C123: 2018 Overall Score | E123: =VLOOKUP(C123,'RE Index | Ranking inputs'!$D$8:$AM$125,MATCH($B$1,'RE Index | Ranking inputs'!$D$5:$AM$5,0),0) -> 1.343992424
C124: 2018 Rank | E124: =VLOOKUP(C124,'RE Index | Ranking inputs'!$D$8:$AM$125,MATCH($B$1,'RE Index | Ranking inputs'!$D$5:$AM$5,0),0) -> 14

Sheet Bahamas
B1: The Bahamas
C2: Overall Indicator | F2: Burlington Strachan - BPL
A3: 1 | C3: Enabling Environment for Renewable Energy (RE) Investments | E3: Consolidated Survey Response | F3: Respondent 27
C4: Government - Renewable Energy Strategy | F4: Y/N
B5: 1 | C5: Does your country have a strategic plan to develop renewble energy? | E5: =IF(B5<>0,IF(ISBLANK(F5),"NA",F5)," ") -> NA
C6: Which of the following renewable generation options is includd in you country's strategic plan to develop renewable energy? | E6: =IF(B6<>0,IF(ISBLANK(F6),"NA",F6)," ") ->  | F6: Solar PV,WTE
B7: 2 | C7: Does your country have a specific target for renewable energy? | E7: Yes | F7: Yes
C8: If yes, what is the target and target year? | F8: 30% by 2030
C9: What is the current breakdown of your country's energy mix? | F9: <1% Renewable, >99% fossil fuel
B10: 3 | C10: Does your country have an Integrated Resource Plan (IRP) that was produced within the last three years? | E10: Yes | F10: Yes
C11: Utilities | F11: Y/N
B12: 1 | C12: When planning generation expansion, does the utility consider RE options? | E12: Yes | F12: Yes
B13: 2 | C13: Can the utility safely recover RE investments through tariffs like it can recover fossil fuel costs? | E13: No | F13: No
B14: 3 | C14: Are there clear, specific planning and permitting processes and rules in place for developing RE? | E14: Yes | F14: Yes
C15: On average, how long does it take for the power utility to get investments in RE projects approved by the regulatory authority (or relevant entity) fror recovery through tariffs? | F15: NA
C16: IPPs | F16: Y/N
B17: 1 | C17: Can the utility safely recover purchases of RE from third parties, just as it recovers fossil fuel costs? | E17: No | F17: No
C18: How long did it take to get your off-take agreement?
B19: 2 | C19: Are there workable precedents or rules for PPA terms and grid operation rules? | E19: Yes | F19: Yes
B20: 3 | C20: Are there clear and effective licensing processes and requirements in place for IPPs? | E20: Yes | F20: Yes
B21: 4 | C21: Does the utility have an obligation to purchase from IPPs when it is cheaper than generating the power itself? | E21: Yes | F21: Yes
B22: 5 | C22: Does the PPA have any take-or-pay arrangements? | E22: Yes | F22: Yes
C23: Distributed generation | F23: Y/N
B24: 1 | C24: Do you have a registry or database of distributed generation? | E24: Yes | F24: Yes
C25: What was the number of existing distributed scale RE systems in 2018? | F25: NA
C26: Is there an aggregate maximum capacity for distributed generation? | F26: NA
C27: What is the total installed capacity from renewable distributed generation in your country? | F27: NA
C28: What was the total generation from existing distributed scale RE systems in 2018? | F28: NA
B29: 2 | C29: Is there a standard arrangement in place for customers to sell electricity to the utility at a reasonable price, for a reasonable timeframe, and with a clear interconnection agreement? | E29: NA | F29: NA
A31: 2 | C31: Existing renewable generation
C32: What is the number of existing Utility-Scale RE projects? | E32: =IF(B32<>0,IF(ISBLANK(F32),"NA",F32)," ") ->  | F32: 0
B33: 1 | C33: What was the total electricity generated in 2018? (MWh) | E33: NA | F33: NA
B34: 1 | C34: What was the total electricity generated from Utility Scale RE projects in 2018? (MWh) | E34: 0 | F34: 0
C35: Please provide as much information as possible for exisitng RE projects in the box below as: - Project Name - Developer - Offtaker - Renewable Energy Technology Type - Start of Commercial Operation (Year) - Estimated Capacity Factor (in %) OR Estimated Annual Production (in MWh) - Installed Capacity (MW) - Length of PPA | F35: NA
A37: 3 | C37: Planned Utility-Scale Renewable Energy Projects
B38: 1 | C38: Does your country have an estimate of planned installed capacity expected to come online from-utility scale RE projects? | E38: =IF(B38<>0,IF(ISBLANK(F38),"NA",F38)," ") -> No | F38: No
C39: How much installed capacity from RE is expected to come online in the next 3 years? | F39: NA
B40: 2 | C40: How much renewable energy generation is expected to come online in the next 3 years? | E40: NA | F40: NA
B41: 3 | C41: Is climate resilience incorporated in your IRP or national policy? | E41: Yes | F41: Yes
C42: Please provide as much information as possible for RE projects currently under development in the box below as: - Project Name - Developer - Offtaker - Renewable Energy Technology Type - Start of Commercial Operation (Year) - Estimated Capacity Factor (in %) OR Estimated Annual Production (in MWh) - Installed Capacity (MW) - Length of PPA | F42: NA
A44: 4 | C44: Electric Mobility
B45: 1 | C45: Does your country have policies in place or draft legislation to promote the uptake of electric mobility? | E45: No | F45: NA
B46: 2 | C46: Does your country have specific targets for the uptake of electric vehicles? | E46: No | F46: NA
C47: What is the target and target year? | E47: =IF(B47<>0,IF(ISBLANK(F47),"NA",F47)," ") ->  | F47: NA
C48: How many electric cars are currently in your country? | F48: NA
C49: How many charging stations are in your country? | F49: NA
C52: Descriptive CREF Index Survey
C53: Enabling Environment for Renewable Energy (RE) Investments
C54: Renewable energy strategy
C55: Which of the rollowing renewable generation options is included in your country's strategic plan to develop renewable energy? - Solar PV - Offshore wind - Biomass - Waste to energy - Hydro -Geothermal - Other | E55: =F55 -> Solar PV,WTE | F55: =F6 -> Solar PV,WTE
C56: What is the target and target year? | E56: =F56 -> 30% by 2030 | F56: =F8 -> 30% by 2030
C57: What is the current breakdown of your country's energy mix? | E57: <1% Renewable, >99% fossil fuel | F57: =F9 -> <1% Renewable, >99% fossil fuel
C58: Utilities
C59: On average, how long does it take for the power utility to get investments in RE projects approved by the regulatory authority 9or the relevant entity) for recovery through tariffs? | F59: =F15 -> NA
C60: IPPs
C61: How long did it take to get your off-take agreement? | F61: =F18 -> 0
C62: Distributed Generation
C63: What is the number of exisiting distributed scale RE systems in 2018? | F63: =F25 -> NA
C64: What is the total installed capacity from renewable distributed generation in your country? | F64: =F27 -> NA
C65: What was the total generation from exisitng distributed scale RE systems in 2018? | F65: =F28 -> NA
C66: Existing renewable generation
C67: Existing Utility-Scale Renewable Energy Projects
C68: What is the number of existing utility-scale RE projects? | F68: =F32 -> 0
C69: What was the total electricity generated in 2018 (MWh)? | F69: =F33 -> NA
C70: What was the total electricity generated from utility-scale RE projects in 2018 (MWh)? | F70: =F34 -> 0
C71: Please provide as much information as possible for exisitng RE projects in the box below as: - Project Name - Developer - Offtaker - Renewable Energy Technology Type - Start of Commercial Operation (Year) - Estimated Capacity Factor (in %) OR Estimated Annual Production (in MWh) - Installed Capacity (MW) - Length of PPA | F71: =F35 -> NA
C72: Planned renewable generation
C73: Potential Utility-Scale Renewable Energy Projects
C74: How much installed capacity from RE is expected to come online in the next 3 years? | F74: =F39 -> NA
C75: How much renewable energy generation is expected to come online in the next 3 years? | F75: =F40 -> NA
C76: Please provide as much information as possible for RE projects currently under development in the box below as: - Project Name - Developer - Offtaker - Renewable Energy Technology Type - Start of Commercial Operation (Year) - Estimated Capacity Factor (in %) OR Estimated Annual Production (in MWh) - Installed Capacity (MW) - Length of PPA | F76: =F42 -> NA
C77: Electric Mobility
C78: What is the target and target year? | F78: =F47 -> NA
C79: How many electric cars are currently in your country? | F79: =F48 -> NA
C80: How many charging stations are in your country? | F80: NA
C83: Improvement Year-on-Year
C84: Enabling environment for renewable energy investments | D84: Change | E84: =IF(ISERR(E91-E90),"",E91-E90) -> -1.177083333
C85: 2012 Score | D85: 0 to 5 | E85: 1
C86: 2013 Score | D86: 0 to 5 | E86: 1
C87: 2014 Score | D87: 0 to 5 | E87: 1
C88: 2015 Score | D88: 0 to 5 | E88: 1.333333333
C89: 2016 Score | D89: 0 to 5 | E89: 4.333333333
C90: 2017 Score | D90: 0 to 5 | E90: 3.958333333
C91: 2018 Score | D91: 0 to 5 | E91: =VLOOKUP(C84,'RE Index | Ranking inputs'!$D$8:$AM$44,MATCH($B$1,'RE Index | Ranking inputs'!$D$5:$AM$5,0),0) -> 2.78125
C92: Existing renewable generation | D92: Change | E92: =IF(ISERR(E99-E98),"",E99-E98) -> 0
C93: 2012 Score | D93: 0 to 5 | E93: 0
C94: 2013 Score | D94: 0 to 5 | E94: 0.01051051893
C95: 2014 Score | D95: 0 to 5 | E95: 0.01420321463
C96: 2015 Score | D96: 0 to 5 | E96: 0.01264142634
C97: 2016 Score | D97: 0 to 5 | E97: 0
C98: 2017 Score | D98: 0 to 5 | E98: 0
C99: 2018 Score | D99: 0 to 5 | E99: =VLOOKUP(C92,'RE Index | Ranking inputs'!$D$8:$AM$44,MATCH($B$1,'RE Index | Ranking inputs'!$D$5:$AM$5,0),0) -> 0
C100: Planned renewable generation | D100: Change | E100: =IF(ISERR(E107-E106),"",E107-E106) -> 0.6576799079
C101: 2012 Score | D101: 0 to 5 | E101: 0.21
C102: 2013 Score | D102: 0 to 5 | E102: 0.3017843708
C103: 2014 Score | D103: 0 to 5 | E103: 0.3406416772
C104: 2015 Score | D104: 0 to 5 | E104: 0.05150103796
C105: 2016 Score | D105: 0 to 5 | E105: 0
C106: 2017 Score | D106: 0 to 5 | E106: 0
C107: 2018 Score | D107: 0 to 5 | E107: =VLOOKUP(C100,'RE Index | Ranking inputs'!$D$8:$AM$44,MATCH($B$1,'RE Index | Ranking inputs'!$D$5:$AM$5,0),0) -> 0.6576799079
C108: Electric Mobility | D108: Change | E108: N/A
C109: 2018 Score | D109: 0 to 5 | E109: =VLOOKUP(C108,'RE Index | Ranking inputs'!$D$8:$AM$44,MATCH($B$1,'RE Index | Ranking inputs'!$D$5:$AM$5,0),0) -> 0
C110: Overall Score Year-on-Year | D110: Change | E110: =E123-E121 -> -0.2877654721
C111: 2012 Overall Score | E111: 0.3993
C112: 2012 Rank | E112: 20
C113: 2013 Overall Score | E113: 0.4374316299
C114: 2013 Rank | E114: 27
C115: 2014 Overall Score | E115: 0.451614964
C116: 2014 Rank | E116: 27
C117: 2015 Overall Score | E117: 0.4658252659
C118: 2015 Rank | E118: 29
C119: 2016 Overall Score | E119: 1.444444444
C120: 2016 Rank | E120: 13
C121: 2017 Overall Score | E121: 1.319444444
C122: 2017 Rank | E122: 19
C123: 2018 Overall Score | E123: =VLOOKUP(C123,'RE Index | Ranking inputs'!$D$8:$AM$125,MATCH($B$1,'RE Index | Ranking inputs'!$D$5:$AM$5,0),0) -> 1.031678972
C124: 2018 Rank | E124: =VLOOKUP(C124,'RE Index | Ranking inputs'!$D$8:$AM$125,MATCH($B$1,'RE Index | Ranking inputs'!$D$5:$AM$5,0),0) -> 17

Sheet Barbados
B1: Barbados
C2: Overall Indicator | F2: Elvis Caddle - Fair Trading Commission | G2: Charmaine Gill-Evans, Barbados Light & Power
A3: 1 | C3: Enabling Environment for Renewable Energy (RE) Investments | E3: Consolidated Survey Response | F3: Respondent 27/33 | G3: Respondent 28
C4: Government - Renewable Energy Strategy | E4: Y/N
B5: 1 | C5: Does your country have a strategic plan to develop renewble energy? | E5: Yes | F5: Yes | G5: Yes
C6: Which of the following renewable generation options is includd in you country's strategic plan to develop renewable energy? | F6: Solar PV, Onshore Wind, Offshore wind, biomass, WTE | G6: Solar PV, Onshore wind, Offshore wind, biomass, WTE, energy storage
B7: 2 | C7: Does your country have a specific target for renewable energy? | E7: Yes | F7: Yes | G7: Yes
C8: If yes, what is the target and target year? | F8: 100% RE BY 2030. | G8: This Barbados National Energy Policy (BNEP) 2019-2030 document is designed to achieve the 100% renewable energy and carbon neutral island- state transformational goals by 2030.
C9: What is the current breakdown of your country's energy mix? | F9: HFO 37%, DIESEL 18%, GASOLINE 17%, KEROSINE 7%, LPG 2%, SUGAR CANE BACASSE 3%, NATURAL GAS 2%, ELECTRICITY 14%, SOLAR THERMAL < 1%
B10: 3 | C10: Does your country have an Integrated Resource Plan (IRP) that was produced within the last three years? | E10: No | F10: No | G10: No
C11: Utilities | E11: Y/N
B12: 1 | C12: When planning generation expansion, does the utility consider RE options? | E12: Yes | F12: Yes | G12: Yes
B13: 2 | C13: Can the utility safely recover RE investments through tariffs like it can recover fossil fuel costs? | E13: Yes | F13: Yes | G13: Yes
B14: 3 | C14: Are there clear, specific planning and permitting processes and rules in place for developing RE? | E14: No | F14: Yes | G14: No
C15: On average, how long does it take for the power utility to get investments in RE projects approved by the regulatory authority (or relevant entity) fror recovery through tariffs? | F15: 6 months | G15: The permitting process is a minimum of a year and a half for large-scale utility solar projects and for solar projects less than 500kW, approx. one month. The permitting process is two to three years for large-scale utility wind.
C16: IPPs | E16: Y/N
B17: 1 | C17: Can the utility safely recover purchases of RE from third parties, just as it recovers fossil fuel costs? | E17: Yes | F17: Yes | G17: Yes
C18: How long did it take to get your off-take agreement? | F18: 3 months | G18: This pertains only to the providers under the Renewable Energy Rider, for RE systems up to 500kw. Costs are recovered via the Fuel Clause Adjustment.
B19: 2 | C19: Are there workable precedents or rules for PPA terms and grid operation rules? | F19: Yes | G19: No
B20: 3 | C20: Are there clear and effective licensing processes and requirements in place for IPPs? | F20: Yes | G20: No
B21: 4 | C21: Does the utility have an obligation to purchase from IPPs when it is cheaper than generating the power itself? | E21: Yes | F21: Yes | G21: Yes
B22: 5 | C22: Does the PPA have any take-or-pay arrangements? | F22: Yes | G22: No
C23: Distributed generation | E23: Y/N
B24: 1 | C24: Do you have a registry or database of distributed generation? | E24: Yes | F24: Yes | G24: Yes
C25: What was the number of existing distributed scale RE systems in 2018? | F25: 20MW | G25: 1779 customers subscribe to the Renewable Energy Rider, 19.6 MW in total
C26: Is there an aggregate maximum capacity for distributed generation? | F26: Yes | G26: No
C27: What is the total installed capacity from renewable distributed generation in your country? | F27: 24MW | G27: Via the RER - 24.7MW Via the utility owned Trents solar PV plant - 10MW
C28: What was the total generation from existing distributed scale RE systems in 2018? | F28: 26GWh | G28: Via the RER - 25, 765, 274 kWh Via the utility owned Trents solar PV plant - 18,015,345 kWh net
B29: 2 | C29: Is there a standard arrangement in place for customers to sell electricity to the utility at a reasonable price, for a reasonable timeframe, and with a clear interconnection agreement? | E29: Yes | F29: Yes | G29: Yes
A31: 2 | C31: Existing renewable generation
C32: What is the number of existing Utility-Scale RE projects? | F32: One 10MW solar farm | G32: One - Trents Solar PV
C33: What was the total electricity generated in 2018? (MWh) | E33: =AVERAGE(F33,970389.326) -> 1004194.663 | F33: 1038000 | G33: 970, 389.326 MWh net in 2018
B34: 1 | C34: What was the total electricity generated from Utility Scale RE projects in 2018? (MWh) | E34: =AVERAGE(18234,18015.345) -> 18124.6725 | F34: 18234 | G34: Via the utility owned Trents solar PV plant - 18,015.345 MWh net
C35: Please provide as much information as possible for exisitng RE projects in the box below as: - Project Name - Developer - Offtaker - Renewable Energy Technology Type - Start of Commercial Operation (Year) - Estimated Capacity Factor (in %) OR Estimated Annual Production (in MWh) - Installed Capacity (MW) - Length of PPA | F35: NA | G35: Project Name: Trents PV - Developer - BLPC - Offtaker- BLPC - Renewable Energy Technology Type - Solar PV - Start of Commercial Operation (Year)- 2016 - Estimated Capacity Factor (in %) - 20% est. OR Estimated Annual Production (in MWh) - Installed Capacity (MW) - 10MW - Length of PPA - N/A, rate-based BLPC project
A37: 3 | C37: Planned Utility-Scale Renewable Energy Projects
B38: 1 | C38: Does your country have an estimate of planned installed capacity expected to come online from-utility scale RE projects? | E38: Yes | F38: No | G38: Yes
C39: How much installed capacity from RE is expected to come online in the next 3 years? | E39: =(32*3) -> 96 | F39: NA | G39: See previously attached Government Implementation plan.
B40: 2 | C40: How much renewable energy generation is expected to come online in the next 3 years? | E40: =52.48*1000 -> 52480 | F40: NA | G40: See previously attached Government Implementation plan.
B41: 3 | C41: Is climate resilience incorporated in your IRP or national policy? | E41: No | F41: Yes | G41: No
C42: Please provide as much information as possible for RE projects currently under development in the box below as: - Project Name - Developer - Offtaker - Renewable Energy Technology Type - Start of Commercial Operation (Year) - Estimated Capacity Factor (in %) OR Estimated Annual Production (in MWh) - Installed Capacity (MW) - Length of PPA | G42: NA
A44: 4 | C44: Electric Mobility
B45: 1 | C45: Does your country have policies in place or draft legislation to promote the uptake of electric mobility? | E45: Yes | F45: Yes | G45: NA
B46: 2 | C46: Does your country have specific targets for the uptake of electric vehicles? | E46: No | F46: No | G46: NA
C47: What is the target and target year? | F47: NA | G47: NA
C48: How many electric cars are currently in your country? | F48: Approximately 400 | G48: 400 est.
C49: How many charging stations are in your country? | F49: Approximately 50 | G49: 119 Total EV Chargers (via Plugshare app) EV Charge Points from www.plugshare.com
C52: Descriptive CREF Index Survey
C53: Enabling Environment for Renewable Energy (RE) Investments
C54: Renewable energy strategy
C55: Which of the rollowing renewable generation options is included in your country's strategic plan to develop renewable energy? - Solar PV - Offshore wind - Biomass - Waste to energy - Hydro -Geothermal - Other | E55: =G55 -> Solar PV, Onshore wind, Offshore wind, biomass, WTE, energy storage | F55: =F6 -> Solar PV, Onshore Wind, Offshore wind, biomass, WTE | G55: Solar PV, Onshore wind, Offshore wind, biomass, WTE, energy storage
C56: What is the target and target year? | E56: 100% by 2030 | F56: =F8 -> 100% RE BY 2030. | G56: This Barbados National Energy Policy (BNEP) 2019-2030 document is designed to achieve the 100% renewable energy and carbon neutral island- state transformational goals by 2030.
C57: What is the current breakdown of your country's energy mix? | E57: =F57 -> HFO 37%, DIESEL 18%, GASOLINE 17%, KEROSINE 7%, LPG 2%, SUGAR CANE BACASSE 3%, NATURAL GAS 2%, ELECTRICITY 14%, SOLAR THERMAL < 1% | F57: =F9 -> HFO 37%, DIESEL 18%, GASOLINE 17%, KEROSINE 7%, LPG 2%, SUGAR CANE BACASSE 3%, NATURAL GAS 2%, ELECTRICITY 14%, SOLAR THERMAL < 1% | G57: 0
C58: Utilities
C59: On average, how long does it take for the power utility to get investments in RE projects approved by the regulatory authority 9or the relevant entity) for recovery through tariffs? | E59: 6 months - 3 years | F59: =F15 -> 6 months | G59: The permitting process is a minimum of a year and a half for large-scale utility solar projects and for solar projects less than 500kW, approx. one month. The permitting process is two to three years for large-scale utility wind.
C60: IPPs
C61: How long did it take to get your off-take agreement? | E61: =F61 -> 3 months | F61: =F18 -> 3 months | G61: This pertains only to the providers under the Renewable Energy Rider, for RE systems up to 500kw. Costs are recovered via the Fuel Clause Adjustment.
C62: Distributed Generation
C63: What is the number of exisiting distributed scale RE systems in 2018? | E63: =F63 -> 20MW | F63: =F25 -> 20MW | G63: 1779 customers subscribe to the Renewable Energy Rider, 19.6 MW in total
C64: What is the total installed capacity from renewable distributed generation in your country? | E64: =F64 -> 24MW | F64: =F27 -> 24MW | G64: Via the RER - 24.7MW Via the utility owned Trents solar PV plant - 10MW
C65: What was the total generation from exisitng distributed scale RE systems in 2018? | E65: 18-26GWh | F65: =F28 -> 26GWh | G65: Via the RER - 25, 765, 274 kWh Via the utility owned Trents solar PV plant - 18,015,345 kWh net
C66: Existing renewable generation
C67: Existing Utility-Scale Renewable Energy Projects
C68: What is the number of existing utility-scale RE projects? | E68: One: 10MW Trents Solar PV Farm | F68: =F32 -> One 10MW solar farm | G68: One - Trents Solar PV
C69: What was the total electricity generated in 2018 (MWh)? | E69: 970389-1038000 | F69: =F33 -> 1038000 | G69: 970, 389.326 MWh net in 2018
